Workbook

Sheet Dashboard Descriptions
A1: Participant Account Dashboard
A2: The Participant Account Dashboard is intended to provide information regarding diversions, storage volumes, releases, and use of Sites Water for each of the current participants.
A3: Graphs and tables have been developed for each participant and can be viewed on the relevant worksheet tab: NOD, SOD, State, and Federal.
A4: In addition to the dashboards, all displayed data is available in the spreadsheet for review and use. Information displayed on each Dashboard, and the associated data, is described below.
A6: Each Dashboard presents information from Alternative 1B and Alternative 3B.
A7: - Alternative 1B is displayed because it includes the Ammendment 2 participation volumes for local participants (NOD and SOD tabs). Although this does not reflect the most recent participation volumes, it refelcts the modeling published in the EIR/EIS.
A8: - Alternative 3B is displayed because it includes the investment amount requested by Reclamation – 16%. However, local participants’ participation volumes were proportionately decreased to accommodate the increase in Reclamation’s storage allocation.
A9: This is a modeling assumption. The methodology to accommodate additional investment by Reclamation has not been approved by the Authority Board and/or Reservoir Committee.
A11: · Demand Assumptions Tab
A12: o Summarizes the release/demand modeling assumptions and constraints for each group of participants.
A13: · NOD Tab
A14: o Function:
A15: § Click on the participant name you would like to view in the “Select Participant” box in column W.
A16: o Figures on Left Side:
A17: § Top two graphs summarize combined monthly storage volume and annual diversions for all NOD participants (in 1,000 acre-feet [TAF]) for Alternatives 1B and 3B.
A18: § Second two graphs show monthly storage volume (TAF) and annual release (TAF), including transfers to SOD participant accounts, for the participant selected.
A19: § Bottom graph shows modeled End of May CVP/SWP storage, annual SWP contract allocation, and water year type for Alternative 1B. Intended to provide context for when/why each participant will call on water in Sites Reservoir.
A20: § Note water year 2003 is not included in Diversions and Release figures as the CalSim II model does not cover the entire 2003 contract year (i.e., CalSim II goes through September 2003).
A21: o Information on Right Side:
A22: § Summary of Assumptions for all NOD participants.
A23: § Table summarizes Releases, NOD to SOD Transfers, and Deliveries for the selected participant. Averages for long-term, dry and critically dry, and each water year type are included in the table; along with the number of years in the model and frequency of occurrence associated with that average.
B24: § Example – There are 10 above normal years in the 82 years summarized in the Dashboard, representing 12% of the years.
A25: § Utilization statistics provide summary of use of Sites water for the selected participant.
B26: § Percent of years, based on end of September storage, that the participant’s storage account is “full” (more than 90% of its capacity).
B27: § Percent of years, based on end of September storage, that the participant’s storage account is “empty” (less than 10% of its capacity).
B28: § Percentage of water released as related to water filled in reservoir, transferred related to filled, and delivered as related to released.
B29: Note that the amount delivered is 100% of the amount released as there are no losses assumed for deliveries to NOD participants in the CalSim II model.
B30: § Probability of exceedance graph shows percent of participant's full capacity at end of September.
A31: o NOD_Data Tab
A32: § The NOD_Data tab provides all data shown for the participant selected on the NOD tab.
B33: § Columns K through V provide monthly data for the selected participant for each Alternative.
B34: § Columns AB through AJ provide annual data for the selected participant for each Alternative.
B35: § Columns AL through AQ provide the annual CVP/SWP storage data.
B36: § Columns AR and AS provide the annual SWP contract allocation.
B37: § Utilization statistics are below the monthly data and begin in Cell K1008.
A38: · SOD Tab
A39: o Function:
A40: § Click on the participant name you would like to view in the “Select Participant” box in column W.
A41: o Figures on Left Side:
A42: § Top two graphs summarize combined monthly storage volume (TAF) and annual diversions (TAF) for all SOD participants for Alternatives 1B and 3B.
A43: § Second two graphs show monthly storage volume (TAF) and annual release (TAF) for the participant selected.
A44: § Bottom graph shows modeled End of May CVP/SWP storage, annual SWP contract allocation, and water year type for Alternative 1B. Intended to provide context for when/why each participant will call on water in Sites Reservoir.
A45: § Note water year 2003 is not included in Diversions and Release figures as the CalSim II model does not cover the entire 2003 contract year (i.e., CalSim II goes through September 2003).
A46: o Information on Right Side:
A47: § Summary of Assumptions for all SOD participants.
A48: § Table summarizes Releases and Deliveries for the selected participant. Averages for long-term, dry and critically dry, and each water year type are included in the table; along with the number of years in the model and frequency of occurrence associated with that average.
B49: § Example – There are 10 above normal years in the 82 years summarized in the Dashboard, representing 12% of the years.
B50: § Deliveries include delivery of water transferred from NOD participant accounts. These volumes are not included in the releases, as they are considered to be released/transferred from the NOD participants (see NOD tab).
A51: § Utilization statistics provide summary of use of Sites water for the selected participant.
B52: § Percent of years, based on end of September storage, that the participant’s storage account is “full” (more than 90% of its capacity).
B53: § Percent of years, based on end of September storage, that the participant’s storage account is “empty” (less than 10% of its capacity).
B54: § Percentage of water released as related to water filled in reservoir and delivered as related to released.
B55: Note that the amount delivered includes volumes of water transferred from a NOD participant account. Assumed losses, such as carriage water, are applied to deliveries for SOD participants in the CalSim II model.
B56: § Probability of exceedance graph shows percent of participant's full capacity at end of September.
A57: o SOD_Data Tab
A58: § The SOD_Data tab provides all data shown for the participant selected on the SOD tab.
B59: § Columns K through T provide monthly data for the selected participant for each Alternative.
B60: § Columns Z through AF provide annual data for the selected participant for each Alternative.
B61: § Utilization statistics are below the monthly data and begin in Cell K1008.
B62: § Note: the annual CVP/SWP storage data and SWP contract allocations are provided in Columns AL through AS of the NOD_Data tab.
A63: · State Tab
A64: o Function:
A65: § Click on the Category of State water you would like to view in the “Select Participant” box in column W.
A66: o Figures on Left Side:
A67: § Top two graphs summarize combined monthly storage volume (TAF) and annual diversions (TAF) for both categories of State water for Alternatives 1B and 3B.
A68: § Second two graphs show monthly storage volume (TAF) and annual release (TAF) for the category selected.
A69: § Note water year 2003 is not included in Diversions and Release figures as the CalSim II model does not cover the entire 2003 contract year (i.e., CalSim II goes through September 2003).
A70: o Information on Right Side:
A71: § Summary of Assumptions for State water.
A72: § Table summarizes Releases and Deliveries for the selected category. Averages for long-term, dry and critically dry, and each water year type are included in the table; along with the number of years in the model and frequency of occurrence associated with that average.
B73: § Example – There are 10 above normal years in the 82 years summarized in the Dashboard, representing 12% of the years.
A74: § Utilization statistics provide summary of use of Sites water for the selected category.
B75: § Percent of years, based on end of September storage, that the storage account associated with the selected category of water is “full” (more than 90% of its capacity).
B76: § Percent of years, based on end of September storage, that the storage account associated with the selected category of water is “empty” (less than 10% of its capacity).
B77: § Percentage of water released as related to water filled in reservoir and delivered as related to released.
B78: Assumed losses, such as carriage water for SOD refuge deliveries, are applied to deliveries for each caegory of State water in the CalSim II model.
B79: § Probability of exceedance graph shows percent of each category's full capacity at end of September.
A80: o State_Data Tab
A81: § The State_Data tab provides all data shown for the category of water selected on the State tab.
B82: § Columns K through T provide monthly data for the selected category for each Alternative.
B83: § Columns Z through AF provide annual data for the selected category for each Alternative.
B84: § Utilization statistics are below the monthly data and begin in Cell K1008.
A85: · Federal Tab
A86: o Figures on Left Side:
A87: § The Federal storage account is not separated into different categories of water for use.
A88: § The three graphs summarize monthly storage volume, annual diversions, and annual releases (all in TAF) for the Federal water in Alternatives 1B and 3B.
A89: § Note water year 2003 is not included in Diversions and Release figures as the CalSim II model does not cover the entire 2003 contract year (i.e., CalSim II goes through September 2003).
A90: o Information on Right Side:
A91: § Summary of Assumptions for Federal water.
A92: § Table summarizes Releases and Deliveries. Averages for long-term, dry and critically dry, and each water year type are included in the table; along with the number of years in the model and frequency of occurrence associated with that average.
B93: § Example – There are 10 above normal years in the 82 years summarized in the Dashboard, representing 12% of the years.
B94: § Note that the CVP may store water released from the Sites Federal account. Therefore, increases in CVP deliveries may not occur in the same year (or water year type) as Sites releases from the federal account.
B95: This leads to some occurrences when Sites releases in a given water year type are lower than the increase to CVP deliveries.
A96: § Utilization statistics provide summary of use of Sites Federal water.
B97: § Percent of years, based on end of September storage, that the Federal storage account is “full” (more than 90% of its capacity).
B98: § Percent of years, based on end of September storage, that the Federal storage account is “empty” (less than 10% of its capacity).
B99: § Percentage of water released as related to water filled in reservoir and delivered as related to released.
B100: Assumed losses, such as carriage water, are applied to deliveries of Federal water in the CalSim II model. Note that most releases from Sites Federal account supplement Shasta storage.
B101: As such, only a small portion of releases from the Sites Federal account increase CVP deliveries.
B102: § Probability of exceedance graph shows percent of the Federal account's full capacity at end of September.
A103: o Federal Data
A104: § The monthly and annual data used for the figures and tables on the Federal tab to illustrate Alternative 1B and Alternative 3B are located in the Alt 1B 051722 and Alt 3B 04122 tabs, respectively.
B105: § Columns BB and BC provide monthly data.
B106: § Columns EU and EV provide annual data.

Sheet Demand Assumptions
A1: Sites Storage Partner Demand Assumptions
A2: · North of Delta – Settlement Contractors
A3: o Demand assumption:
A4: § Assume NoD Settlement Contractor storage partners want water to make-up for settlement contractor shortages (in Shasta critical years)
A5: § Assume transfers to South of Delta Storage Partners in May in non-Shasta critical years, and non-Wet years
A6: o Constraint assumptions:
A7: § Subject to water available in storage partner account
A8: § Subject to conveyance capacity at Sites facilities
A9: · North of Delta – Service Contractors
A10: o Demand assumption:
A11: § Assume NoD Service Contractor storage partners want water to make-up for shortages
A12: § Assume transfers to South of Delta Storage Partners in May when TCCA storage is greater than 67% of capacity, and water year is Above Normal or Below Normal
A13: o Constraint assumptions:
A14: § Subject to water available in storage partner account
A15: § Subject to conveyance capacity at Sites facilities
A16: · North of Delta – Colusa County Groundwater
A17: o Demand assumption:
A18: § Supplement groundwater recharge with up to 2.5 TAF/month in Jun – Sep of all years
A19: o Constraint assumptions:
A20: § Subject to water available in storage partner account
A21: § Subject to conveyance capacity at Sites facilities
A22: · South of Delta
A23: o Demand assumption:
A24: § Assume SoD storage partners want Sites water every year
A25: o Constraint assumptions:
A26: § Subject to water available in storage partner account
A27: § Water may only be delivered during the transfer window (July – November)
A28: § Subject to available conveyance capacity at Sites facilities and Banks Pumping Plant
A29: · State Prop 1
A30: o Yolo Bypass
A31: § Demand assumption
A32: · Release up to 20 TAF/month in Aug – Oct of all years
A33: § Constraint assumptions:
A34: · Subject to water available in storage partner account
A35: · Subject to conveyance capacity at Sites facilities
A36: o Incremental Level 4 Refuges
A37: § Demand assumption
A38: · Release available storage to supplement Incremental Level 4 refuge deliveries in Jan – Dec (mostly Jul – Dec)
A39: § Constraint assumptions:
A40: · Subject to water available in storage partner account
A41: · Subject to conveyance capacity at Sites facilities and Banks/Jones Pumping Plants (if destined to South of Delta refuges)
A42: · Federal – CVP Operational Flexibility
A43: o Demand assumptions
A44: § Release water from Sites to improve:
A45: · anadromous fish populations (by relieving CVP withdrawals from Shasta to increase cold water pool storage, support fall flow stability, and spring pulse flows)
A46: · CVP contractor water supply
A47: · Delta water quality
A48: o Constraint assumptions:
A49: § Subject to water available in storage partner account
A50: § Subject to conveyance capacity at Sites facilities and, if delivering South of Delta, Jones Pumping Plant

Sheet NOD
J1: Sites NOD Total
AF2: 1
W3: Select Participant:
X27: Releases (TAF) | Z27: Transfers (TAF) | AB27: Deliveries (TAF)
W28: Year Type Avg | X28: =Control!B5 -> ALT 1B 051722 | Y28: =Control!B6 -> ALT 3B 041222 | Z28: =X28 -> ALT 1B 051722 | AA28: =Y28 -> ALT 3B 041222 | AB28: =X28 -> ALT 1B 051722 | AC28: =Y28 -> ALT 3B 041222 | AD28: # of Yrs | AE28: Frequency
J30: =_xlfn.CONCAT("NOD - ", NOD_Data!$L$7) -> NOD - Colusa County WD | W30: Long-term | X30: =NOD_Data!AD96 -> 6.920534499 | Y30: =NOD_Data!AE96 -> 6.531012845 | Z30: =NOD_Data!AF96 -> 0.5686237984 | AA30: =NOD_Data!AG96 -> 0.587268148 | AB30: =NOD_Data!AI96 -> 6.920534499 | AC30: =NOD_Data!AJ96 -> 6.531012845 | AD30: =COUNT('WYT_40-30-30'!$A$3:$A$84) -> 82 | AE30: =AD30/$AD$30 -> 1
W31: Dry and Critically Dry | X31: =NOD_Data!AD97 -> 15.36752256 | Y31: =NOD_Data!AE97 -> 14.52446479 | Z31: =NOD_Data!AF97 -> 0 | AA31: =NOD_Data!AG97 -> 0 | AB31: =NOD_Data!AI97 -> 15.36752256 | AC31: =NOD_Data!AJ97 -> 14.52446479 | AD31: =COUNTIF('WYT_40-30-30'!$C$3:$C$84,">3") -> 30 | AE31: 0.3658536585
W32: Wet | X32: =NOD_Data!AD98 -> 1.508195654 | Y32: =NOD_Data!AE98 -> 1.457707426 | Z32: =NOD_Data!AF98 -> 0 | AA32: =NOD_Data!AG98 -> 0 | AB32: =NOD_Data!AI98 -> 1.508195654 | AC32: =NOD_Data!AJ98 -> 1.457707426 | AD32: =COUNTIF('WYT_40-30-30'!$C$3:$C$84,1) -> 27 | AE32: 0.3292682927
W33: Above Normal | X33: =NOD_Data!AD99 -> 0.3036297947 | Y33: =NOD_Data!AE99 -> 0.3036297984 | Z33: =NOD_Data!AF99 -> 4.187138879 | AA33: =NOD_Data!AG99 -> 4.203624937 | AB33: =NOD_Data!AI99 -> 0.3036297947 | AC33: =NOD_Data!AJ99 -> 0.3036297984 | AD33: =COUNTIF('WYT_40-30-30'!$C$3:$C$84,2) -> 10 | AE33: 0.1219512195
W34: Below Normal | X34: =NOD_Data!AD100 -> 4.070328778 | Y34: =NOD_Data!AE100 -> 3.71698399 | Z34: =NOD_Data!AF100 -> 0 | AA34: =NOD_Data!AG100 -> 0.09491754864 | AB34: =NOD_Data!AI100 -> 4.070328778 | AC34: =NOD_Data!AJ100 -> 3.71698399 | AD34: =COUNTIF('WYT_40-30-30'!$C$3:$C$84,3) -> 15 | AE34: 0.1829268293
W35: Dry | X35: =NOD_Data!AD101 -> 15.14550301 | Y35: =NOD_Data!AE101 -> 15.14723922 | Z35: =NOD_Data!AF101 -> 0 | AA35: =NOD_Data!AG101 -> 0 | AB35: =NOD_Data!AI101 -> 15.14550301 | AC35: =NOD_Data!AJ101 -> 15.14723922 | AD35: =COUNTIF('WYT_40-30-30'!$C$3:$C$84,4) -> 18 | AE35: 0.2195121951
W36: Critically Dry | X36: =NOD_Data!AD102 -> 15.70055188 | Y36: =NOD_Data!AE102 -> 13.59030315 | Z36: =NOD_Data!AF102 -> 0 | AA36: =NOD_Data!AG102 -> 0 | AB36: =NOD_Data!AI102 -> 15.70055188 | AC36: =NOD_Data!AJ102 -> 13.59030315 | AD36: =COUNTIF('WYT_40-30-30'!$C$3:$C$84,5) -> 12 | AE36: 0.1463414634
X38: Percent of Time
X39: EO Sep Storage is:
X40: =X28 -> ALT 1B 051722 | Y40: =Y28 -> ALT 3B 041222 | AC40: =X40 -> ALT 1B 051722 | AD40: =Y40 -> ALT 3B 041222
W42: Greater than 90% Capacity | X42: =NOD_Data!L1008 -> 0.3536585366 | Y42: =NOD_Data!M1008 -> 0.3292682927 | AB42: Releases/Fills | AC42: =NOD_Data!S999/NOD_Data!Q999 -> 0.7631895 | AD42: =NOD_Data!T999/NOD_Data!R999 -> 0.7689684694
W43: Less than 10% Capacity | X43: =NOD_Data!L1011 -> 0.243902439 | Y43: =NOD_Data!M1011 -> 0.2682926829 | AB43: Transfers/Fills | AC43: =NOD_Data!U999/NOD_Data!Q999 -> 0.07524870441 | AD43: =NOD_Data!V999/NOD_Data!R999 -> 0.0825356581
AB44: Deliveries/Releases | AC44: =NOD_Data!AI96/NOD_Data!AD96 -> 1 | AD44: =NOD_Data!AJ96/NOD_Data!AE96 -> 1
J58: End of May CVP/SWP NoD Storage, SWP Contract Allocation and Sac Valley Water Year Type

Sheet SOD
J1: Sites SOD Total
AF2: 1
W3: Select Participant:
X27: Releases (TAF) | Z27: Deliveries (TAF)
W28: Year Type Avg | X28: =Control!B5 -> ALT 1B 051722 | Y28: =Control!B6 -> ALT 3B 041222 | Z28: =X28 -> ALT 1B 051722 | AA28: =Y28 -> ALT 3B 041222 | AB28: # of Yrs | AC28: Frequency
J30: =_xlfn.CONCAT("SOD - ", SOD_Data!$L$7) -> SOD - Antelope Valley East Kern WA | W30: Long-term | X30: =SOD_Data!AB96 -> 0.4090288192 | Y30: =SOD_Data!AC96 -> 0.3876762754 | Z30: =SOD_Data!AE96 -> 0.3398428813 | AA30: =SOD_Data!AF96 -> 0.3129680051 | AB30: =COUNT('WYT_40-30-30'!$A$3:$A$84) -> 82 | AC30: =AB30/$AB$30 -> 1
W31: Dry and Critically Dry | X31: =SOD_Data!AB97 -> 0.9725801235 | Y31: =SOD_Data!AC97 -> 0.8789634268 | Z31: =SOD_Data!AE97 -> 0.844388373 | AA31: =SOD_Data!AF97 -> 0.7544456164 | AB31: =COUNTIF('WYT_40-30-30'!$C$3:$C$84,">3") -> 30 | AC31: 0.3658536585
W32: Wet | X32: =SOD_Data!AB98 -> 0.02076798451 | Y32: =SOD_Data!AC98 -> 0.01416716953 | Z32: =SOD_Data!AE98 -> 0.002479225777 | AA32: =SOD_Data!AF98 -> 0.002292627981 | AB32: =COUNTIF('WYT_40-30-30'!$C$3:$C$84,1) -> 27 | AC32: 0.3292682927
W33: Above Normal | X33: =SOD_Data!AB99 -> 0.001845058501 | Y33: =SOD_Data!AC99 -> 0.03917681634 | Z33: =SOD_Data!AE99 -> 0 | AA33: =SOD_Data!AF99 -> 0 | AB33: =COUNTIF('WYT_40-30-30'!$C$3:$C$84,2) -> 10 | AC33: 0.1219512195
W34: Below Normal | X34: =SOD_Data!AB100 -> 0.2424048149 | Y34: =SOD_Data!AC100 -> 0.3023988652 | Z34: =SOD_Data!AE100 -> 0.1522258801 | AA34: =SOD_Data!AF100 -> 0.1898165424 | AB34: =COUNTIF('WYT_40-30-30'!$C$3:$C$84,3) -> 15 | AC34: 0.1829268293
W35: Dry | X35: =SOD_Data!AB101 -> 1.051278848 | Y35: =SOD_Data!AC101 -> 0.9772001632 | Z35: =SOD_Data!AE101 -> 0.9159727925 | AA35: =SOD_Data!AF101 -> 0.8379660643 | AB35: =COUNTIF('WYT_40-30-30'!$C$3:$C$84,4) -> 18 | AC35: 0.2195121951
W36: Critically Dry | X36: =SOD_Data!AB102 -> 0.854532036 | Y36: =SOD_Data!AC102 -> 0.7316083223 | Z36: =SOD_Data!AE102 -> 0.7370117438 | AA36: =SOD_Data!AF102 -> 0.6291649445 | AB36: =COUNTIF('WYT_40-30-30'!$C$3:$C$84,5) -> 12 | AC36: 0.1463414634
X38: Percent of Time
X39: EO Sep Storage is:
X40: =X28 -> ALT 1B 051722 | Y40: =Y28 -> ALT 3B 041222 | AB40: =X40 -> ALT 1B 051722 | AC40: =Y40 -> ALT 3B 041222
W42: Greater than 90% Capacity | X42: =SOD_Data!L1009 -> 0.3414634146 | Y42: =SOD_Data!M1009 -> 0.2804878049 | AA42: Releases/Fills | AB42: =SOD_Data!S999/SOD_Data!Q999 -> 0.8719442005 | AC42: =SOD_Data!T999/SOD_Data!R999 -> 0.8959592666
W43: Less than 10% Capacity | X43: =SOD_Data!L1012 -> 0.2195121951 | Y43: =SOD_Data!M1012 -> 0.243902439 | AA43: Deliveries/Releases2 | AB43: =SOD_Data!AE96/SOD_Data!AB96 -> 0.8308531461 | AC43: =SOD_Data!AF96/SOD_Data!AC96 -> 0.8072921274
J58: End of May CVP/SWP NoD Storage, SWP Contract Allocation and Sac Valley Water Year Type

Sheet State
J1: Sites StateTotal
AF2: 1
W3: Select Participant:
X15: Releases (TAF) | Z15: Deliveries (TAF)
W16: Year Type Avg | X16: =Control!B5 -> ALT 1B 051722 | Y16: =Control!B6 -> ALT 3B 041222 | Z16: =X16 -> ALT 1B 051722 | AA16: =Y16 -> ALT 3B 041222 | AB16: # of Yrs | AC16: Frequency
W18: Long-term | X18: =State_Data!AB96 -> 21.17069435 | Y18: =State_Data!AC96 -> 19.57606834 | Z18: =State_Data!AE96 -> 18.01005784 | AA18: =State_Data!AF96 -> 16.71313127 | AB18: =COUNT('WYT_40-30-30'!$A$3:$A$84) -> 82 | AC18: =AB18/$AB$18 -> 1
W19: Dry and Critically Dry | X19: =State_Data!AB97 -> 35.67016295 | Y19: =State_Data!AC97 -> 34.39960811 | Z19: =State_Data!AE97 -> 29.29905398 | AA19: =State_Data!AF97 -> 28.84110219 | AB19: =COUNTIF('WYT_40-30-30'!$C$3:$C$84,">3") -> 30 | AC19: 0.3658536585
W20: Wet | X20: =State_Data!AB98 -> 1.459475822 | Y20: =State_Data!AC98 -> 0.9673213359 | Z20: =State_Data!AE98 -> 0.8438461539 | AA20: =State_Data!AF98 -> 0.8800000001 | AB20: =COUNTIF('WYT_40-30-30'!$C$3:$C$84,1) -> 27 | AC20: 0.3292682927
W21: Above Normal | X21: =State_Data!AB99 -> 14.66783576 | Y21: =State_Data!AC99 -> 11.33854089 | Z21: =State_Data!AE99 -> 14.32181818 | AA21: =State_Data!AF99 -> 10.81583943 | AB21: =COUNTIF('WYT_40-30-30'!$C$3:$C$84,2) -> 10 | AC21: 0.1219512195
W22: Below Normal | X22: =State_Data!AB100 -> 31.81634206 | Y22: =State_Data!AC100 -> 28.84278485 | Z22: =State_Data!AE100 -> 28.59736184 | AA22: =State_Data!AF100 -> 24.76259526 | AB22: =COUNTIF('WYT_40-30-30'!$C$3:$C$84,3) -> 15 | AC22: 0.1829268293
W23: Dry | X23: =State_Data!AB101 -> 42.26901988 | Y23: =State_Data!AC101 -> 42.60032113 | Z23: =State_Data!AE101 -> 35.43535783 | AA23: =State_Data!AF101 -> 35.85486787 | AB23: =COUNTIF('WYT_40-30-30'!$C$3:$C$84,4) -> 18 | AC23: 0.2195121951
W24: Critically Dry | X24: =State_Data!AB102 -> 25.77187756 | Y24: =State_Data!AC102 -> 22.09853858 | Z24: =State_Data!AE102 -> 20.09459821 | AA24: =State_Data!AF102 -> 18.32045365 | AB24: =COUNTIF('WYT_40-30-30'!$C$3:$C$84,5) -> 12 | AC24: 0.1463414634
X27: Percent of Time
X28: EO Sep Storage is:
X29: =X16 -> ALT 1B 051722 | Y29: =Y16 -> ALT 3B 041222 | AB29: =X29 -> ALT 1B 051722 | AC29: =Y29 -> ALT 3B 041222
J30: =State_Data!L6 -> Sites Public Storage - State - Refuge L4
W31: Greater than 90% Capacity | X31: =State_Data!L1009 -> 0.3170731707 | Y31: =State_Data!M1009 -> 0.3048780488 | AA31: Releases/Fills | AB31: =State_Data!S1000/State_Data!Q1000 -> 0.9085486466 | AC31: =State_Data!T1000/State_Data!R1000 -> 0.9143933756
W32: Less than 10% Capacity | X32: =State_Data!L1012 -> 0.2317073171 | Y32: =State_Data!M1012 -> 0.243902439 | AA32: Deliveries/Releases | AB32: =State_Data!AE96/State_Data!AB96 -> 0.8507069984 | AC32: =State_Data!AF96/State_Data!AC96 -> 0.8537532144

Sheet Federal
J1: Sites Federal Total
X8: Releases (TAF) | Z8: Deliveries (TAF)
W9: Year Type Avg | X9: =Control!B5 -> ALT 1B 051722 | Y9: =Control!B6 -> ALT 3B 041222 | Z9: =X9 -> ALT 1B 051722 | AA9: =Y9 -> ALT 3B 041222 | AB9: # of Yrs | AC9: Frequency
W11: Long-term | X11: ='ALT 1B 051722'!EW96 -> 27.6168282 | Y11: ='ALT 3B 041222'!EW96 -> 59.4430261 | Z11: =ALT1_CalcAnn_Deliveries!AL96 -> 6.816233055 | AA11: =ALT2_CalcAnn_Deliveries!AL96 -> 14.09302423 | AB11: =COUNT('WYT_40-30-30'!$A$3:$A$84) -> 82 | AC11: =AB11/$AB$11 -> 1
W12: Dry and Critically Dry | X12: ='ALT 1B 051722'!EW97 -> 29.80931655 | Y12: ='ALT 3B 041222'!EW97 -> 59.41046805 | Z12: =ALT1_CalcAnn_Deliveries!AL97 -> 14.39316619 | AA12: =ALT2_CalcAnn_Deliveries!AL97 -> 19.52051001 | AB12: =COUNTIF('WYT_40-30-30'!$C$3:$C$84,">3") -> 30 | AC12: 0.3658536585
W13: Wet | X13: ='ALT 1B 051722'!EW98 -> 1.458642855 | Y13: ='ALT 3B 041222'!EW98 -> 1.458642855 | Z13: =ALT1_CalcAnn_Deliveries!AL98 -> -1.924893774 | AA13: =ALT2_CalcAnn_Deliveries!AL98 -> 3.42367893 | AB13: =COUNTIF('WYT_40-30-30'!$C$3:$C$84,1) -> 27 | AC13: 0.3292682927
W14: Above Normal | X14: ='ALT 1B 051722'!EW99 -> 70.75865229 | Y14: ='ALT 3B 041222'!EW99 -> 160.7505154 | Z14: =ALT1_CalcAnn_Deliveries!AL99 -> 6.347965099 | AA14: =ALT2_CalcAnn_Deliveries!AL99 -> 20.43785988 | AB14: =COUNTIF('WYT_40-30-30'!$C$3:$C$84,2) -> 10 | AC14: 0.1219512195
W15: Below Normal | X15: ='ALT 1B 051722'!EW100 -> 37.60097845 | Y15: ='ALT 3B 041222'!EW100 -> 87.59933491 | Z15: =ALT1_CalcAnn_Deliveries!AL100 -> 7.181393836 | AA15: =ALT2_CalcAnn_Deliveries!AL100 -> 17.29196796 | AB15: =COUNTIF('WYT_40-30-30'!$C$3:$C$84,3) -> 15 | AC15: 0.1829268293
W16: Dry | X16: ='ALT 1B 051722'!EW101 -> 42.24779458 | Y16: ='ALT 3B 041222'!EW101 -> 82.15462672 | Z16: =ALT1_CalcAnn_Deliveries!AL101 -> 12.18328963 | AA16: =ALT2_CalcAnn_Deliveries!AL101 -> 26.53622063 | AB16: =COUNTIF('WYT_40-30-30'!$C$3:$C$84,4) -> 18 | AC16: 0.2195121951
W17: Critically Dry | X17: ='ALT 1B 051722'!EW102 -> 11.15159952 | Y17: ='ALT 3B 041222'!EW102 -> 25.29423003 | Z17: =ALT1_CalcAnn_Deliveries!AL102 -> 17.70798103 | AA17: =ALT2_CalcAnn_Deliveries!AL102 -> 8.996944065 | AB17: =COUNTIF('WYT_40-30-30'!$C$3:$C$84,5) -> 12 | AC17: 0.1463414634
X20: Percent of Time
X21: EO Sep Storage is:
X22: =X9 -> ALT 1B 051722 | Y22: =Y9 -> ALT 3B 041222 | AB22: =X22 -> ALT 1B 051722 | AC22: =Y22 -> ALT 3B 041222
W24: Greater than 90% Capacity | X24: ='ALT 1B 051722'!K1084 -> 0.243902439 | Y24: ='ALT 3B 041222'!K1084 -> 0.2317073171 | AA24: Releases/Fills | AB24: ='ALT 3B 041222'!EW96/'ALT 3B 041222'!EV96 -> 0.9810531806 | AC24: ='ALT 3B 041222'!EW96/'ALT 3B 041222'!EV96 -> 0.9810531806
W25: Less than 10% Capacity | X25: ='ALT 1B 051722'!K1085 -> 0.6829268293 | Y25: ='ALT 3B 041222'!K1085 -> 0.6707317073 | AA25: Deliveries/Releases | AB25: =ALT1_CalcAnn_Deliveries!AL96/'ALT 1B 051722'!BD998 -> 0.2468144787 | AC25: =ALT2_CalcAnn_Deliveries!AL96/'ALT 3B 041222'!BD998 -> 0.2370845691

Sheet __

Sheet NOD_Data
L1: STORAGE | Q1: FILL | S1: RELEASE | U1: TRANSFERS | AD1: ANNUAL RELEASE | AF1: ANNUAL TRANSFERS | AI1: ANNUAL DELIVERIES | AM1: NOD CVP/SWP Storage | AR1: SWP Allocation | AT1: 40-30-30 Water Year Type
A2: Matrix | L2: =Control!$B$5 -> ALT 1B 051722 | M2: =Control!$B$6 -> ALT 3B 041222 | Q2: =L2 -> ALT 1B 051722 | R2: =M2 -> ALT 3B 041222 | S2: =L2 -> ALT 1B 051722 | T2: =M2 -> ALT 3B 041222 | U2: =S2 -> ALT 1B 051722 | V2: =T2 -> ALT 3B 041222 | AD2: =L2 -> ALT 1B 051722 | AE2: =M2 -> ALT 3B 041222 | AF2: =AD2 -> ALT 1B 051722 | AG2: =AE2 -> ALT 3B 041222 | AI2: =L2 -> ALT 1B 051722 | AJ2: =M2 -> ALT 3B 041222
A3: Number | B3: Storage Index | C3: Fill Index | D3: Release Index | E3: Transfer Index | F3: Delivery Index | G3: Participant | H3: Region | K3: Matrix Number: | L3: =NOD!AF2 -> 1 | M3: =L3 -> 1 | Q3: =L3 -> 1 | R3: =M3 -> 1 | S3: =L3 -> 1 | T3: =L3 -> 1 | U3: =S3 -> 1 | V3: =T3 -> 1 | AD3: =L3 -> 1 | AE3: =L3 -> 1 | AF3: =AD3 -> 1 | AG3: =AE3 -> 1 | AI3: =L3 -> 1 | AJ3: =L3 -> 1
A4: 1 | B4: =DSSPathnames!H64 -> 60 | C4: =B13+1 -> 70 | D4: =DSSPathnames!H84 -> 80 | E4: =D13+1 -> 90 | F4: 4 | G4: Colusa County WD | H4: NOD | K4: Index Number: | L4: =VLOOKUP(L3,$A$4:$D$13,2) -> 60 | M4: =L4 -> 60 | Q4: =INDEX($C$4:$C$13,MATCH(Q3,$A$4:$A$13,0)) -> 70 | R4: =Q4 -> 70 | S4: =VLOOKUP(S3,$A$4:$D$13,4) -> 80 | T4: =S4 -> 80 | U4: =VLOOKUP(S3,$A$4:$E$13,5) -> 90 | V4: =U4 -> 90 | AD4: =_xlfn.CONCAT(AD2," - ","Release") -> ALT 1B 051722 - Release | AE4: =_xlfn.CONCAT(AE2," - ","Release") -> ALT 3B 041222 - Release | AF4: =_xlfn.CONCAT(AF2," - ","Transfer") -> ALT 1B 051722 - Transfer | AG4: =_xlfn.CONCAT(AG2," - ","Transfer") -> ALT 3B 041222 - Transfer | AI4: =VLOOKUP(AI3,$A$4:$F$13,6) -> 4 | AJ4: =VLOOKUP(AJ3,$A$4:$F$13,6) -> 4
A5: =A4+1 -> 2 | B5: =B4+1 -> 61 | C5: =C4+1 -> 71 | D5: =D4+1 -> 81 | E5: =E4+1 -> 91 | F5: 5 | G5: Cortina WD | H5: NOD | K5: Column: | L5: =TRIM(VLOOKUP(L$4,DSSPathnames!$H$10:$K225,2)) -> BH | M5: =L5 -> BH | Q5: =TRIM(VLOOKUP(Q$4,DSSPathnames!$H$10:$K225,2)) -> BR | R5: =Q5 -> BR | S5: =TRIM(VLOOKUP(S$4,DSSPathnames!$H$10:$K225,2)) -> CB | T5: =S5 -> CB | U5: =TRIM(VLOOKUP(U$4,DSSPathnames!$H$10:$K225,2)) -> CL | V5: =U5 -> CL | AI5: =SUBSTITUTE(ADDRESS(1,AI4,4),"1","") -> D | AJ5: =SUBSTITUTE(ADDRESS(1,AJ4,4),"1","") -> D
A6: =A5+1 -> 3 | B6: 62 | C6: 72 | D6: 82 | E6: 92 | F6: 6 | G6: Davis Water District | H6: NOD | K6: Title: | L6: =TRIM(VLOOKUP(L$4,DSSPathnames!$H$10:$K$135,4)) -> Colusa County WD Storage | M6: =TRIM(VLOOKUP(M$4,DSSPathnames!$H$10:$K$135,4)) -> Colusa County WD Storage | N6: =_xlfn.CONCAT(L2, " MAX STORAGE") -> ALT 1B 051722 MAX STORAGE | O6: =_xlfn.CONCAT(M2, " MAX STORAGE") -> ALT 3B 041222 MAX STORAGE | Q6: Colusa County WD Storage | R6: Colusa County WD Storage | S6: =TRIM(VLOOKUP(S$4,DSSPathnames!$H$10:$K$135,4)) -> Colusa County WD Release | T6: =TRIM(VLOOKUP(T$4,DSSPathnames!$H$10:$K$135,4)) -> Colusa County WD Release | U6: =TRIM(VLOOKUP(U$4,DSSPathnames!$H$10:$K$135,4)) -> Colusa County WD Transfer | V6: =TRIM(VLOOKUP(V$4,DSSPathnames!$H$10:$K$135,4)) -> Colusa County WD Transfer | AD6: =S6 -> Colusa County WD Release | AE6: Colusa County WD Release | AF6: Colusa County WD Transfer | AG6: Colusa County WD Transfer
A7: 4 | B7: 63 | C7: 73 | D7: 83 | E7: 93 | F7: 7 | G7: Dunnigan WD | H7: NOD | K7: Parameter: | L7: =INDIRECT(CONCATENATE("'",L$2,"'!",L$5,2)) -> Colusa County WD | M7: =INDIRECT(CONCATENATE("'",M$2,"'!",M$5,2)) -> Colusa County WD | Q7: Colusa County WD | R7: Colusa County WD | S7: =INDIRECT(CONCATENATE("'",S$2,"'!",S$5,2)) -> Colusa County WD | T7: =S7 -> Colusa County WD | U7: =INDIRECT(CONCATENATE("'",U$2,"'!",U$5,2)) -> Colusa County WD | V7: =U7 -> Colusa County WD | AD7: Colusa County WD | AE7: Colusa County WD | AF7: Colusa County WD | AG7: Colusa County WD
A8: 5 | B8: 64 | C8: 74 | D8: 84 | E8: 94 | F8: 8 | G8: LaGrande Water District | H8: NOD | L8: =INDIRECT(CONCATENATE("'",L$2,"'!",L$5,3)) -> STORAGE | M8: =INDIRECT(CONCATENATE("'",M$2,"'!",M$5,3)) -> STORAGE | N8: Participant Storage Capacity | O8: Participant Storage Capacity | Q8: FILL | R8: FILL | S8: =INDIRECT(CONCATENATE("'",S$2,"'!",S$5,3)) -> RELEASE | T8: RELEASE | U8: =INDIRECT(CONCATENATE("'",U$2,"'!",U$5,3)) -> TRANSFER | V8: TRANSFER | Z8: >>> | AA8: Annual | AD8: RELEASE | AE8: RELEASE | AF8: TRANSFER | AG8: TRANSFER | AI8: FLOW-DELIVERY | AJ8: FLOW-DELIVERY
A9: 6 | B9: 65 | C9: 75 | D9: 85 | E9: 95 | F9: 9 | G9: Westside W.D. | H9: NOD | K9: Type: | L9: =TRIM(VLOOKUP(L$4+2,DSSPathnames!$H$10:$K$62,3)) -> PER-AVER | M9: =TRIM(VLOOKUP(M$4+2,DSSPathnames!$H$10:$K$62,3)) -> PER-AVER | Q9: PER-AVER | R9: PER-AVER | S9: =TRIM(VLOOKUP(S$4+2,DSSPathnames!$H$10:$K$140,3)) -> PER-AVER | T9: =TRIM(VLOOKUP(T$4+2,DSSPathnames!$H$10:$K$140,3)) -> PER-AVER | U9: =TRIM(VLOOKUP(U$4+2,DSSPathnames!$H$10:$K$140,3)) -> PER-AVER | V9: =TRIM(VLOOKUP(V$4+2,DSSPathnames!$H$10:$K$140,3)) -> PER-AVER | AD9: PER-AVER | AE9: PER-AVER | AF9: PER-AVER | AG9: PER-AVER
A10: 7 | B10: 66 | C10: 76 | D10: 86 | E10: 96 | F10: 10 | G10: Glenn Colusa Irrigation District | H10: NOD | K10: Units: | L10: =TRIM(INDIRECT(CONCATENATE("'",L$2,"'!",L$5,11))) -> TAF | M10: =TRIM(INDIRECT(CONCATENATE("'",M$2,"'!",M$5,11))) -> TAF | Q10: TAF | R10: TAF | S10: =TRIM(INDIRECT(CONCATENATE("'",S$2,"'!",S$5,11))) -> TAF | T10: =TRIM(INDIRECT(CONCATENATE("'",T$2,"'!",T$5,11))) -> TAF | U10: =TRIM(INDIRECT(CONCATENATE("'",U$2,"'!",U$5,11))) -> TAF | V10: =TRIM(INDIRECT(CONCATENATE("'",V$2,"'!",V$5,11))) -> TAF | X10: Water Year | AD10: TAF | AE10: TAF | AF10: TAF | AG10: TAF | AI10: TAF | AJ10: TAF | AN10: =Control!B5 -> ALT 1B 051722 | AO10: =AN10 -> ALT 1B 051722 | AP10: =Control!B6 -> ALT 3B 041222 | AQ10: =AP10 -> ALT 3B 041222 | AR10: =AO10 -> ALT 1B 051722 | AS10: =AQ10 -> ALT 3B 041222
A11: 8 | B11: 67 | C11: 77 | D11: 87 | E11: 97 | F11: 11 | G11: Carter Mutual Water Company | H11: NOD | K11: Date | L11: =IF(ISNUMBER(FIND("PRV",L$7)),"SHIFTED","") ->  | M11: =IF(ISNUMBER(FIND("PRV",M$7)),"SHIFTED","") ->  | Q11: =L11 ->  | R11: =M11 ->  | S11: 1MON | T11: 1MON | U11: 1MON | V11: 1MON | X11: Mar-Feb | AB11: Year | AC11: WY Index Value | AD11: 1YR | AE11: 1YR | AF11: =AD11 -> 1YR | AG11: =AE11 -> 1YR | AN11: CVP | AO11: SWP | AP11: CVP | AQ11: SWP | AR11: SWP Alloc | AS11: SWP Alloc | AT11: Wet | AU11: Above Normal | AV11: Below Normal | AW11: Dry | AX11: Critically Dry
A12: 9 | B12: 68 | C12: 78 | D12: 88 | E12: 98 | F12: 12 | G12: RD-108​ | H12: NOD | J12: =MONTH(K12) -> 9 | K12: 1921-09-30 | AB12: 1922 | AC12: =INDEX('WYT_40-30-30'!$B$3:$G$84,MATCH(NOD_Data!AB12,'WYT_40-30-30'!$A$3:$A$84,0),Control!$P$5) -> 2 | AD12: =SUMIF($X$13:$X$996,AB12,$S$13:$S$996) -> 0 | AE12: =SUMIF($X$13:$X$996,AB12,$T$13:$T$996) -> 0 | AF12: =SUMIF($X$13:$X$996,AB12,$U$13:$U$996) -> 9.211705533 | AG12: =SUMIF($X$13:$X$996,AB12,$V$13:$V$996) -> 9.211705533 | AI12: =INDEX(ALT1_CalcAnn_Deliveries!$A$13:$AE$93,MATCH(NOD_Data!$AB12,ALT1_CalcAnn_Deliveries!$A$13:$A$93,0),NOD_Data!AI$4) -> 0 | AJ12: =INDEX(ALT2_CalcAnn_Deliveries!$A$13:$AE$93,MATCH(NOD_Data!$AB12,ALT2_CalcAnn_Deliveries!$A$13:$A$93,0),NOD_Data!AJ$4) -> 0 | AL12: 0
A13: 10 | B13: 69 | C13: 79 | D13: 89 | E13: 99 | F13: 13 | G13: County of Colusa | H13: NOD | J13: =MONTH(K13) -> 10 | K13: 1921-10-31 | L13: =INDIRECT(CONCATENATE("'",L$2,"'!",L$5,(MATCH(NOD_Data!$K13,'ALT 1B 051722'!$B:$B,0)))) -> 41.29577961 | M13: =INDIRECT(CONCATENATE("'",M$2,"'!",M$5,(MATCH(NOD_Data!$K13,'ALT 1B 051722'!$B:$B,0)))) -> 36.70607467 | N13: =MAX(L13:L996) -> 65.86369456 | O13: =MAX(M13:M996) -> 58.03374486 | Q13: =INDIRECT(CONCATENATE("'",Q$2,"'!",Q$5,(MATCH(NOD_Data!$K13,'ALT 1B 051722'!$B:$B,0)))) -> 0 | R13: =INDIRECT(CONCATENATE("'",R$2,"'!",R$5,(MATCH(NOD_Data!$K13,'ALT 1B 051722'!$B:$B,0)))) -> 0 | S13: =INDIRECT(CONCATENATE("'",S$2,"'!",S$5,(MATCH(NOD_Data!$K13,'ALT 1B 051722'!$B:$B,0)))) -> 0 | T13: =INDIRECT(CONCATENATE("'",T$2,"'!",T$5,(MATCH(NOD_Data!$K13,'ALT 1B 051722'!$B:$B,0)))) -> 0 | U13: =INDIRECT(CONCATENATE("'",U$2,"'!",U$5,(MATCH(NOD_Data!$K13,'ALT 1B 051722'!$B:$B,0)))) -> 0 | V13: =INDIRECT(CONCATENATE("'",V$2,"'!",V$5,(MATCH(NOD_Data!$K13,'ALT 1B 051722'!$B:$B,0)))) -> 0 | X13: =IF(MONTH(K13)<3,YEAR(K13)-1,YEAR(K13)) -> 1921 | AB13: 1923 | AC13: =INDEX('WYT_40-30-30'!$B$3:$G$84,MATCH(NOD_Data!AB13,'WYT_40-30-30'!$A$3:$A$84,0),Control!$P$5) -> 3 | AD13: 1.258199666 | AE13: 1.224445589 | AF13: =SUMIF($X$13:$X$996,AB13,$U$13:$U$996) -> 0 | AG13: =SUMIF($X$13:$X$996,AB13,$V$13:$V$996) -> 0 | AI13: =INDEX(ALT1_CalcAnn_Deliveries!$A$13:$AE$93,MATCH(NOD_Data!$AB13,ALT1_CalcAnn_Deliveries!$A$13:$A$93,0),NOD_Data!AI$4) -> 1.258199666 | AJ13: =INDEX(ALT2_CalcAnn_Deliveries!$A$13:$AE$93,MATCH(NOD_Data!$AB13,ALT2_CalcAnn_Deliveries!$A$13:$A$93,0),NOD_Data!AJ$4) -> 1.224445589 | AL13: 1 | AM13: 1922 | AN13: =IF(AM13="","",OFFSET('ALT 1B 051722'!ES$13,$AL13-1,0)) -> 5519 | AO13: =IF(AN13="","",OFFSET('ALT 1B 051722'!ET$13,$AL13-1,0)) -> 3538 | AP13: =OFFSET('ALT 3B 041222'!ES$13,$AL13-1,0) -> 5519 | AQ13: =OFFSET('ALT 3B 041222'!ET$13,$AL13-1,0) -> 3538 | AR13: =IF(AM13="","",INDEX('ALT 1B 051722'!$AT$13:$AT$996,MATCH(EOMONTH(DATE($AM13,5,1),0),'ALT 1B 051722'!$B$13:$B$996,0))) -> 0.7258641104 | AS13: =IF(AM13="","",INDEX('ALT 3B 041222'!$AT$13:$AT$996,MATCH(EOMONTH(DATE($AM13,5,1),0),'ALT 3B 041222'!$B$13:$B$996,0))) -> 0.7230870122 | AT13: =IFERROR(999999*OFFSET('WYT_40-30-30'!O$3,$AL13-1,0),NA()) ->  | AU13: =IFERROR(999999*OFFSET('WYT_40-30-30'!P$3,$AL13-1,0),NA()) -> 1999998 | AV13: =IFERROR(999999*OFFSET('WYT_40-30-30'!Q$3,$AL13-1,0),NA()) ->  | AW13: =IFERROR(999999*OFFSET('WYT_40-30-30'!R$3,$AL13-1,0),NA()) ->  | AX13: =IFERROR(999999*OFFSET('WYT_40-30-30'!S$3,$AL13-1,0),NA()) -> 
J14: 11 | K14: 1921-11-30 | L14: =INDIRECT(CONCATENATE("'",L$2,"'!",L$5,(MATCH(NOD_Data!$K14,'ALT 1B 051722'!$B:$B,0)))) -> 41.28019199 | M14: =INDIRECT(CONCATENATE("'",M$2,"'!",M$5,(MATCH(NOD_Data!$K14,'ALT 1B 051722'!$B:$B,0)))) -> 36.69209135 | N14: =N$13 -> 65.86369456 | O14: =O$13 -> 58.03374486 | Q14: =INDIRECT(CONCATENATE("'",Q$2,"'!",Q$5,(MATCH(NOD_Data!$K14,'ALT 1B 051722'!$B:$B,0)))) -> 0 | R14: =INDIRECT(CONCATENATE("'",R$2,"'!",R$5,(MATCH(NOD_Data!$K14,'ALT 1B 051722'!$B:$B,0)))) -> 0 | S14: =INDIRECT(CONCATENATE("'",S$2,"'!",S$5,(MATCH(NOD_Data!$K14,'ALT 1B 051722'!$B:$B,0)))) -> 0 | T14: =INDIRECT(CONCATENATE("'",T$2,"'!",T$5,(MATCH(NOD_Data!$K14,'ALT 1B 051722'!$B:$B,0)))) -> 0 | U14: =INDIRECT(CONCATENATE("'",U$2,"'!",U$5,(MATCH(NOD_Data!$K14,'ALT 1B 051722'!$B:$B,0)))) -> 0 | V14: =INDIRECT(CONCATENATE("'",V$2,"'!",V$5,(MATCH(NOD_Data!$K14,'ALT 1B 051722'!$B:$B,0)))) -> 0 | X14: 1921 | AB14: 1924 | AC14: =INDEX('WYT_40-30-30'!$B$3:$G$84,MATCH(NOD_Data!AB14,'WYT_40-30-30'!$A$3:$A$84,0),Control!$P$5) -> 5 | AD14: 35.10819838 | AE14: 30.0552432 | AF14: 0 | AG14: 0 | AI14: =INDEX(ALT1_CalcAnn_Deliveries!$A$13:$AE$93,MATCH(NOD_Data!$AB14,ALT1_CalcAnn_Deliveries!$A$13:$A$93,0),NOD_Data!AI$4) -> 35.10819838 | AJ14: =INDEX(ALT2_CalcAnn_Deliveries!$A$13:$AE$93,MATCH(NOD_Data!$AB14,ALT2_CalcAnn_Deliveries!$A$13:$A$93,0),NOD_Data!AJ$4) -> 30.0552432 | AL14: 1 | AN14: =OFFSET('ALT 1B 051722'!ES$13,$AL14-1,0) -> 5519 | AO14: =OFFSET('ALT 1B 051722'!ET$13,$AL14-1,0) -> 3538 | AP14: =OFFSET('ALT 3B 041222'!ES$13,$AL14-1,0) -> 5519 | AQ14: =OFFSET('ALT 3B 041222'!ET$13,$AL14-1,0) -> 3538 | AR14: =IF(AM14="",AR13,INDEX('ALT 1B 051722'!$AT$13:$AT$996,MATCH(EOMONTH(DATE($AM14,5,1),0),'ALT 1B 051722'!$B$13:$B$996,0))) -> 0.7258641104 | AS14: =IF(AM14="",AS13,INDEX('ALT 3B 041222'!$AT$13:$AT$996,MATCH(EOMONTH(DATE($AM14,5,1),0),'ALT 3B 041222'!$B$13:$B$996,0))) -> 0.7230870122 | AT14: =IFERROR(999999*OFFSET('WYT_40-30-30'!O$3,$AL14-1,0),NA()) ->  | AU14: =IFERROR(999999*OFFSET('WYT_40-30-30'!P$3,$AL14-1,0),NA()) -> 1999998 | AV14: =IFERROR(999999*OFFSET('WYT_40-30-30'!Q$3,$AL14-1,0),NA()) ->  | AW14: =IFERROR(999999*OFFSET('WYT_40-30-30'!R$3,$AL14-1,0),NA()) ->  | AX14: =IFERROR(999999*OFFSET('WYT_40-30-30'!S$3,$AL14-1,0),NA()) -> 
J15: 12 | K15: 1921-12-31 | L15: =INDIRECT(CONCATENATE("'",L$2,"'!",L$5,(MATCH(NOD_Data!$K15,'ALT 1B 051722'!$B:$B,0)))) -> 41.4530228 | M15: =INDIRECT(CONCATENATE("'",M$2,"'!",M$5,(MATCH(NOD_Data!$K15,'ALT 1B 051722'!$B:$B,0)))) -> 36.84713423 | N15: =N$13 -> 65.86369456 | O15: 58.03374486 | Q15: =INDIRECT(CONCATENATE("'",Q$2,"'!",Q$5,(MATCH(NOD_Data!$K15,'ALT 1B 051722'!$B:$B,0)))) -> 0 | R15: =INDIRECT(CONCATENATE("'",R$2,"'!",R$5,(MATCH(NOD_Data!$K15,'ALT 1B 051722'!$B:$B,0)))) -> 0 | S15: =INDIRECT(CONCATENATE("'",S$2,"'!",S$5,(MATCH(NOD_Data!$K15,'ALT 1B 051722'!$B:$B,0)))) -> 0 | T15: =INDIRECT(CONCATENATE("'",T$2,"'!",T$5,(MATCH(NOD_Data!$K15,'ALT 1B 051722'!$B:$B,0)))) -> 0 | U15: =INDIRECT(CONCATENATE("'",U$2,"'!",U$5,(MATCH(NOD_Data!$K15,'ALT 1B 051722'!$B:$B,0)))) -> 0 | V15: =INDIRECT(CONCATENATE("'",V$2,"'!",V$5,(MATCH(NOD_Data!$K15,'ALT 1B 051722'!$B:$B,0)))) -> 0 | X15: 1921 | AB15: 1925 | AC15: =INDEX('WYT_40-30-30'!$B$3:$G$84,MATCH(NOD_Data!AB15,'WYT_40-30-30'!$A$3:$A$84,0),Control!$P$5) -> 4 | AD15: 0.7388794421 | AE15: 0.7301852063 | AF15: 0 | AG15: 0 | AI15: =INDEX(ALT1_CalcAnn_Deliveries!$A$13:$AE$93,MATCH(NOD_Data!$AB15,ALT1_CalcAnn_Deliveries!$A$13:$A$93,0),NOD_Data!AI$4) -> 0.7388794421 | AJ15: =INDEX(ALT2_CalcAnn_Deliveries!$A$13:$AE$93,MATCH(NOD_Data!$AB15,ALT2_CalcAnn_Deliveries!$A$13:$A$93,0),NOD_Data!AJ$4) -> 0.7301852063 | AL15: =AL13+1 -> 2 | AM15: =IF(AM13="","",AM13+1) -> 1923 | AN15: =OFFSET('ALT 1B 051722'!ES$13,$AL15-1,0) -> 4942.541307 | AO15: =OFFSET('ALT 1B 051722'!ET$13,$AL15-1,0) -> 2904.210305 | AP15: =OFFSET('ALT 3B 041222'!ES$13,$AL15-1,0) -> 4965.277509 | AQ15: =OFFSET('ALT 3B 041222'!ET$13,$AL15-1,0) -> 2936.08317 | AR15: =IF(AM15="",AR14,INDEX('ALT 1B 051722'!$AT$13:$AT$996,MATCH(EOMONTH(DATE($AM15,5,1),0),'ALT 1B 051722'!$B$13:$B$996,0))) -> 0.7423814106 | AS15: =IF(AM15="",AS14,INDEX('ALT 3B 041222'!$AT$13:$AT$996,MATCH(EOMONTH(DATE($AM15,5,1),0),'ALT 3B 041222'!$B$13:$B$996,0))) -> 0.7426255245 | AT15: =IFERROR(999999*OFFSET('WYT_40-30-30'!O$3,$AL15-1,0),NA()) ->  | AU15: =IFERROR(999999*OFFSET('WYT_40-30-30'!P$3,$AL15-1,0),NA()) ->  | AV15: =IFERROR(999999*OFFSET('WYT_40-30-30'!Q$3,$AL15-1,0),NA()) -> 2999997 | AW15: =IFERROR(999999*OFFSET('WYT_40-30-30'!R$3,$AL15-1,0),NA()) ->  | AX15: =IFERROR(999999*OFFSET('WYT_40-30-30'!S$3,$AL15-1,0),NA()) -> 
J16: 1 | K16: 1922-01-31 | L16: =INDIRECT(CONCATENATE("'",L$2,"'!",L$5,(MATCH(NOD_Data!$K16,'ALT 1B 051722'!$B:$B,0)))) -> 41.47392612 | M16: =INDIRECT(CONCATENATE("'",M$2,"'!",M$5,(MATCH(NOD_Data!$K16,'ALT 1B 051722'!$B:$B,0)))) -> 36.86588615 | N16: 65.86369456 | O16: 58.03374486 | Q16: =INDIRECT(CONCATENATE("'",Q$2,"'!",Q$5,(MATCH(NOD_Data!$K16,'ALT 1B 051722'!$B:$B,0)))) -> 0 | R16: =INDIRECT(CONCATENATE("'",R$2,"'!",R$5,(MATCH(NOD_Data!$K16,'ALT 1B 051722'!$B:$B,0)))) -> 0 | S16: =INDIRECT(CONCATENATE("'",S$2,"'!",S$5,(MATCH(NOD_Data!$K16,'ALT 1B 051722'!$B:$B,0)))) -> 0 | T16: =INDIRECT(CONCATENATE("'",T$2,"'!",T$5,(MATCH(NOD_Data!$K16,'ALT 1B 051722'!$B:$B,0)))) -> 0 | U16: =INDIRECT(CONCATENATE("'",U$2,"'!",U$5,(MATCH(NOD_Data!$K16,'ALT 1B 051722'!$B:$B,0)))) -> 0 | V16: =INDIRECT(CONCATENATE("'",V$2,"'!",V$5,(MATCH(NOD_Data!$K16,'ALT 1B 051722'!$B:$B,0)))) -> 0 | X16: 1921 | AB16: 1926 | AC16: =INDEX('WYT_40-30-30'!$B$3:$G$84,MATCH(NOD_Data!AB16,'WYT_40-30-30'!$A$3:$A$84,0),Control!$P$5) -> 4 | AD16: 14.50812357 | AE16: 12.57886067 | AF16: 0 | AG16: 0 | AI16: =INDEX(ALT1_CalcAnn_Deliveries!$A$13:$AE$93,MATCH(NOD_Data!$AB16,ALT1_CalcAnn_Deliveries!$A$13:$A$93,0),NOD_Data!AI$4) -> 14.50812357 | AJ16: =INDEX(ALT2_CalcAnn_Deliveries!$A$13:$AE$93,MATCH(NOD_Data!$AB16,ALT2_CalcAnn_Deliveries!$A$13:$A$93,0),NOD_Data!AJ$4) -> 12.57886067 | AL16: =AL14+1 -> 2 | AM16: =IF(AM14="","",AM14+1) ->  | AN16: =OFFSET('ALT 1B 051722'!ES$13,$AL16-1,0) -> 4942.541307 | AO16: =OFFSET('ALT 1B 051722'!ET$13,$AL16-1,0) -> 2904.210305 | AP16: =OFFSET('ALT 3B 041222'!ES$13,$AL16-1,0) -> 4965.277509 | AQ16: =OFFSET('ALT 3B 041222'!ET$13,$AL16-1,0) -> 2936.08317 | AR16: =IF(AM16="",AR15,INDEX('ALT 1B 051722'!$AT$13:$AT$996,MATCH(EOMONTH(DATE($AM16,5,1),0),'ALT 1B 051722'!$B$13:$B$996,0))) -> 0.7423814106 | AS16: =IF(AM16="",AS15,INDEX('ALT 3B 041222'!$AT$13:$AT$996,MATCH(EOMONTH(DATE($AM16,5,1),0),'ALT 3B 041222'!$B$13:$B$996,0))) -> 0.7426255245 | AT16: =IFERROR(999999*OFFSET('WYT_40-30-30'!O$3,$AL16-1,0),NA()) ->  | AU16: =IFERROR(999999*OFFSET('WYT_40-30-30'!P$3,$AL16-1,0),NA()) ->  | AV16: =IFERROR(999999*OFFSET('WYT_40-30-30'!Q$3,$AL16-1,0),NA()) -> 2999997 | AW16: =IFERROR(999999*OFFSET('WYT_40-30-30'!R$3,$AL16-1,0),NA()) ->  | AX16: =IFERROR(999999*OFFSET('WYT_40-30-30'!S$3,$AL16-1,0),NA()) -> 
J17: 2 | K17: 1922-02-28 | L17: =INDIRECT(CONCATENATE("'",L$2,"'!",L$5,(MATCH(NOD_Data!$K17,'ALT 1B 051722'!$B:$B,0)))) -> 47.01114713 | M17: =INDIRECT(CONCATENATE("'",M$2,"'!",M$5,(MATCH(NOD_Data!$K17,'ALT 1B 051722'!$B:$B,0)))) -> 41.74438768 | N17: 65.86369456 | O17: 58.03374486 | Q17: =INDIRECT(CONCATENATE("'",Q$2,"'!",Q$5,(MATCH(NOD_Data!$K17,'ALT 1B 051722'!$B:$B,0)))) -> 5.365297326 | R17: =INDIRECT(CONCATENATE("'",R$2,"'!",R$5,(MATCH(NOD_Data!$K17,'ALT 1B 051722'!$B:$B,0)))) -> 4.724278545 | S17: =INDIRECT(CONCATENATE("'",S$2,"'!",S$5,(MATCH(NOD_Data!$K17,'ALT 1B 051722'!$B:$B,0)))) -> 0 | T17: =INDIRECT(CONCATENATE("'",T$2,"'!",T$5,(MATCH(NOD_Data!$K17,'ALT 1B 051722'!$B:$B,0)))) -> 0 | U17: =INDIRECT(CONCATENATE("'",U$2,"'!",U$5,(MATCH(NOD_Data!$K17,'ALT 1B 051722'!$B:$B,0)))) -> 0 | V17: =INDIRECT(CONCATENATE("'",V$2,"'!",V$5,(MATCH(NOD_Data!$K17,'ALT 1B 051722'!$B:$B,0)))) -> 0 | X17: 1921 | AB17: 1927 | AC17: =INDEX('WYT_40-30-30'!$B$3:$G$84,MATCH(NOD_Data!AB17,'WYT_40-30-30'!$A$3:$A$84,0),Control!$P$5) -> 1 | AD17: 0 | AE17: 0 | AF17: 0 | AG17: 0 | AI17: =INDEX(ALT1_CalcAnn_Deliveries!$A$13:$AE$93,MATCH(NOD_Data!$AB17,ALT1_CalcAnn_Deliveries!$A$13:$A$93,0),NOD_Data!AI$4) -> 0 | AJ17: =INDEX(ALT2_CalcAnn_Deliveries!$A$13:$AE$93,MATCH(NOD_Data!$AB17,ALT2_CalcAnn_Deliveries!$A$13:$A$93,0),NOD_Data!AJ$4) -> 0 | AL17: 3 | AM17: 1924 | AN17: =OFFSET('ALT 1B 051722'!ES$13,$AL17-1,0) -> 2856.888387 | AO17: =OFFSET('ALT 1B 051722'!ET$13,$AL17-1,0) -> 1285.709074 | AP17: =OFFSET('ALT 3B 041222'!ES$13,$AL17-1,0) -> 2899.33403 | AQ17: =OFFSET('ALT 3B 041222'!ET$13,$AL17-1,0) -> 1239.485349 | AR17: =IF(AM17="",AR16,INDEX('ALT 1B 051722'!$AT$13:$AT$996,MATCH(EOMONTH(DATE($AM17,5,1),0),'ALT 1B 051722'!$B$13:$B$996,0))) -> 0.1243680121 | AS17: =IF(AM17="",AS16,INDEX('ALT 3B 041222'!$AT$13:$AT$996,MATCH(EOMONTH(DATE($AM17,5,1),0),'ALT 3B 041222'!$B$13:$B$996,0))) -> 0.129366641 | AT17: =IFERROR(999999*OFFSET('WYT_40-30-30'!O$3,$AL17-1,0),NA()) ->  | AU17: =IFERROR(999999*OFFSET('WYT_40-30-30'!P$3,$AL17-1,0),NA()) ->  | AV17: =IFERROR(999999*OFFSET('WYT_40-30-30'!Q$3,$AL17-1,0),NA()) ->  | AW17: =IFERROR(999999*OFFSET('WYT_40-30-30'!R$3,$AL17-1,0),NA()) ->  | AX17: =IFERROR(999999*OFFSET('WYT_40-30-30'!S$3,$AL17-1,0),NA()) -> 4999995
J18: 3 | K18: 1922-03-31 | L18: =INDIRECT(CONCATENATE("'",L$2,"'!",L$5,(MATCH(NOD_Data!$K18,'ALT 1B 051722'!$B:$B,0)))) -> 46.93500725 | M18: =INDIRECT(CONCATENATE("'",M$2,"'!",M$5,(MATCH(NOD_Data!$K18,'ALT 1B 051722'!$B:$B,0)))) -> 41.67622144 | N18: 65.86369456 | O18: 58.03374486 | Q18: =INDIRECT(CONCATENATE("'",Q$2,"'!",Q$5,(MATCH(NOD_Data!$K18,'ALT 1B 051722'!$B:$B,0)))) -> 0 | R18: =INDIRECT(CONCATENATE("'",R$2,"'!",R$5,(MATCH(NOD_Data!$K18,'ALT 1B 051722'!$B:$B,0)))) -> 0 | S18: =INDIRECT(CONCATENATE("'",S$2,"'!",S$5,(MATCH(NOD_Data!$K18,'ALT 1B 051722'!$B:$B,0)))) -> 0 | T18: =INDIRECT(CONCATENATE("'",T$2,"'!",T$5,(MATCH(NOD_Data!$K18,'ALT 1B 051722'!$B:$B,0)))) -> 0 | U18: =INDIRECT(CONCATENATE("'",U$2,"'!",U$5,(MATCH(NOD_Data!$K18,'ALT 1B 051722'!$B:$B,0)))) -> 0 | V18: =INDIRECT(CONCATENATE("'",V$2,"'!",V$5,(MATCH(NOD_Data!$K18,'ALT 1B 051722'!$B:$B,0)))) -> 0 | X18: 1922 | AB18: 1928 | AC18: =INDEX('WYT_40-30-30'!$B$3:$G$84,MATCH(NOD_Data!AB18,'WYT_40-30-30'!$A$3:$A$84,0),Control!$P$5) -> 2 | AD18: 0.8291672906 | AE18: 0.8291672906 | AF18: 9.211705533 | AG18: 9.211705533 | AI18: =INDEX(ALT1_CalcAnn_Deliveries!$A$13:$AE$93,MATCH(NOD_Data!$AB18,ALT1_CalcAnn_Deliveries!$A$13:$A$93,0),NOD_Data!AI$4) -> 0.8291672906 | AJ18: =INDEX(ALT2_CalcAnn_Deliveries!$A$13:$AE$93,MATCH(NOD_Data!$AB18,ALT2_CalcAnn_Deliveries!$A$13:$A$93,0),NOD_Data!AJ$4) -> 0.8291672906 | AL18: 3 | AN18: =OFFSET('ALT 1B 051722'!ES$13,$AL18-1,0) -> 2856.888387 | AO18: =OFFSET('ALT 1B 051722'!ET$13,$AL18-1,0) -> 1285.709074 | AP18: =OFFSET('ALT 3B 041222'!ES$13,$AL18-1,0) -> 2899.33403 | AQ18: =OFFSET('ALT 3B 041222'!ET$13,$AL18-1,0) -> 1239.485349 | AR18: =IF(AM18="",AR17,INDEX('ALT 1B 051722'!$AT$13:$AT$996,MATCH(EOMONTH(DATE($AM18,5,1),0),'ALT 1B 051722'!$B$13:$B$996,0))) -> 0.1243680121 | AS18: =IF(AM18="",AS17,INDEX('ALT 3B 041222'!$AT$13:$AT$996,MATCH(EOMONTH(DATE($AM18,5,1),0),'ALT 3B 041222'!$B$13:$B$996,0))) -> 0.129366641 | AT18: =IFERROR(999999*OFFSET('WYT_40-30-30'!O$3,$AL18-1,0),NA()) ->  | AU18: =IFERROR(999999*OFFSET('WYT_40-30-30'!P$3,$AL18-1,0),NA()) ->  | AV18: =IFERROR(999999*OFFSET('WYT_40-30-30'!Q$3,$AL18-1,0),NA()) ->  | AW18: =IFERROR(999999*OFFSET('WYT_40-30-30'!R$3,$AL18-1,0),NA()) ->  | AX18: =IFERROR(999999*OFFSET('WYT_40-30-30'!S$3,$AL18-1,0),NA()) -> 4999995
J19: 4 | K19: 1922-04-30 | L19: =INDIRECT(CONCATENATE("'",L$2,"'!",L$5,(MATCH(NOD_Data!$K19,'ALT 1B 051722'!$B:$B,0)))) -> 46.77671352 | M19: =INDIRECT(CONCATENATE("'",M$2,"'!",M$5,(MATCH(NOD_Data!$K19,'ALT 1B 051722'!$B:$B,0)))) -> 41.53450472 | N19: 65.86369456 | O19: 58.03374486 | Q19: =INDIRECT(CONCATENATE("'",Q$2,"'!",Q$5,(MATCH(NOD_Data!$K19,'ALT 1B 051722'!$B:$B,0)))) -> 0 | R19: =INDIRECT(CONCATENATE("'",R$2,"'!",R$5,(MATCH(NOD_Data!$K19,'ALT 1B 051722'!$B:$B,0)))) -> 0 | S19: =INDIRECT(CONCATENATE("'",S$2,"'!",S$5,(MATCH(NOD_Data!$K19,'ALT 1B 051722'!$B:$B,0)))) -> 0 | T19: =INDIRECT(CONCATENATE("'",T$2,"'!",T$5,(MATCH(NOD_Data!$K19,'ALT 1B 051722'!$B:$B,0)))) -> 0 | U19: =INDIRECT(CONCATENATE("'",U$2,"'!",U$5,(MATCH(NOD_Data!$K19,'ALT 1B 051722'!$B:$B,0)))) -> 0 | V19: =INDIRECT(CONCATENATE("'",V$2,"'!",V$5,(MATCH(NOD_Data!$K19,'ALT 1B 051722'!$B:$B,0)))) -> 0 | X19: 1922 | AB19: 1929 | AC19: =INDEX('WYT_40-30-30'!$B$3:$G$84,MATCH(NOD_Data!AB19,'WYT_40-30-30'!$A$3:$A$84,0),Control!$P$5) -> 5 | AD19: 42.98860228 | AE19: 37.29307703 | AF19: 0 | AG19: 0 | AI19: =INDEX(ALT1_CalcAnn_Deliveries!$A$13:$AE$93,MATCH(NOD_Data!$AB19,ALT1_CalcAnn_Deliveries!$A$13:$A$93,0),NOD_Data!AI$4) -> 42.98860228 | AJ19: =INDEX(ALT2_CalcAnn_Deliveries!$A$13:$AE$93,MATCH(NOD_Data!$AB19,ALT2_CalcAnn_Deliveries!$A$13:$A$93,0),NOD_Data!AJ$4) -> 37.29307703 | AL19: 4 | AM19: 1925 | AN19: =OFFSET('ALT 1B 051722'!ES$13,$AL19-1,0) -> 5397.00002 | AO19: =OFFSET('ALT 1B 051722'!ET$13,$AL19-1,0) -> 2154.28906 | AP19: =OFFSET('ALT 3B 041222'!ES$13,$AL19-1,0) -> 5434.571292 | AQ19: =OFFSET('ALT 3B 041222'!ET$13,$AL19-1,0) -> 2108.543057 | AR19: =IF(AM19="",AR18,INDEX('ALT 1B 051722'!$AT$13:$AT$996,MATCH(EOMONTH(DATE($AM19,5,1),0),'ALT 1B 051722'!$B$13:$B$996,0))) -> 0.2861334508 | AS19: =IF(AM19="",AS18,INDEX('ALT 3B 041222'!$AT$13:$AT$996,MATCH(EOMONTH(DATE($AM19,5,1),0),'ALT 3B 041222'!$B$13:$B$996,0))) -> 0.2789471626 | AT19: =IFERROR(999999*OFFSET('WYT_40-30-30'!O$3,$AL19-1,0),NA()) ->  | AU19: =IFERROR(999999*OFFSET('WYT_40-30-30'!P$3,$AL19-1,0),NA()) ->  | AV19: =IFERROR(999999*OFFSET('WYT_40-30-30'!Q$3,$AL19-1,0),NA()) ->  | AW19: =IFERROR(999999*OFFSET('WYT_40-30-30'!R$3,$AL19-1,0),NA()) -> 3999996 | AX19: =IFERROR(999999*OFFSET('WYT_40-30-30'!S$3,$AL19-1,0),NA()) -> 
J20: 5 | K20: 1922-05-31 | L20: =INDIRECT(CONCATENATE("'",L$2,"'!",L$5,(MATCH(NOD_Data!$K20,'ALT 1B 051722'!$B:$B,0)))) -> 37.29600514 | M20: =INDIRECT(CONCATENATE("'",M$2,"'!",M$5,(MATCH(NOD_Data!$K20,'ALT 1B 051722'!$B:$B,0)))) -> 32.08196687 | N20: 65.86369456 | O20: 58.03374486 | Q20: =INDIRECT(CONCATENATE("'",Q$2,"'!",Q$5,(MATCH(NOD_Data!$K20,'ALT 1B 051722'!$B:$B,0)))) -> 0 | R20: =INDIRECT(CONCATENATE("'",R$2,"'!",R$5,(MATCH(NOD_Data!$K20,'ALT 1B 051722'!$B:$B,0)))) -> 0 | S20: =INDIRECT(CONCATENATE("'",S$2,"'!",S$5,(MATCH(NOD_Data!$K20,'ALT 1B 051722'!$B:$B,0)))) -> 0 | T20: =INDIRECT(CONCATENATE("'",T$2,"'!",T$5,(MATCH(NOD_Data!$K20,'ALT 1B 051722'!$B:$B,0)))) -> 0 | U20: =INDIRECT(CONCATENATE("'",U$2,"'!",U$5,(MATCH(NOD_Data!$K20,'ALT 1B 051722'!$B:$B,0)))) -> 9.211705533 | V20: =INDIRECT(CONCATENATE("'",V$2,"'!",V$5,(MATCH(NOD_Data!$K20,'ALT 1B 051722'!$B:$B,0)))) -> 9.211705533 | X20: 1922 | AB20: 1930 | AC20: =INDEX('WYT_40-30-30'!$B$3:$G$84,MATCH(NOD_Data!AB20,'WYT_40-30-30'!$A$3:$A$84,0),Control!$P$5) -> 4 | AD20: 7.043748238 | AE20: 6.185413436 | AF20: 0 | AG20: 0 | AI20: =INDEX(ALT1_CalcAnn_Deliveries!$A$13:$AE$93,MATCH(NOD_Data!$AB20,ALT1_CalcAnn_Deliveries!$A$13:$A$93,0),NOD_Data!AI$4) -> 7.043748238 | AJ20: =INDEX(ALT2_CalcAnn_Deliveries!$A$13:$AE$93,MATCH(NOD_Data!$AB20,ALT2_CalcAnn_Deliveries!$A$13:$A$93,0),NOD_Data!AJ$4) -> 6.185413436 | AL20: 4 | AN20: =OFFSET('ALT 1B 051722'!ES$13,$AL20-1,0) -> 5397.00002 | AO20: =OFFSET('ALT 1B 051722'!ET$13,$AL20-1,0) -> 2154.28906 | AP20: =OFFSET('ALT 3B 041222'!ES$13,$AL20-1,0) -> 5434.571292 | AQ20: =OFFSET('ALT 3B 041222'!ET$13,$AL20-1,0) -> 2108.543057 | AR20: =IF(AM20="",AR19,INDEX('ALT 1B 051722'!$AT$13:$AT$996,MATCH(EOMONTH(DATE($AM20,5,1),0),'ALT 1B 051722'!$B$13:$B$996,0))) -> 0.2861334508 | AS20: =IF(AM20="",AS19,INDEX('ALT 3B 041222'!$AT$13:$AT$996,MATCH(EOMONTH(DATE($AM20,5,1),0),'ALT 3B 041222'!$B$13:$B$996,0))) -> 0.2789471626 | AT20: =IFERROR(999999*OFFSET('WYT_40-30-30'!O$3,$AL20-1,0),NA()) ->  | AU20: =IFERROR(999999*OFFSET('WYT_40-30-30'!P$3,$AL20-1,0),NA()) ->  | AV20: =IFERROR(999999*OFFSET('WYT_40-30-30'!Q$3,$AL20-1,0),NA()) ->  | AW20: =IFERROR(999999*OFFSET('WYT_40-30-30'!R$3,$AL20-1,0),NA()) -> 3999996 | AX20: =IFERROR(999999*OFFSET('WYT_40-30-30'!S$3,$AL20-1,0),NA()) -> 
J21: 6 | K21: 1922-06-30 | L21: =INDIRECT(CONCATENATE("'",L$2,"'!",L$5,(MATCH(NOD_Data!$K21,'ALT 1B 051722'!$B:$B,0)))) -> 37.00167759 | M21: =INDIRECT(CONCATENATE("'",M$2,"'!",M$5,(MATCH(NOD_Data!$K21,'ALT 1B 051722'!$B:$B,0)))) -> 31.8266791 | N21: 65.86369456 | O21: 58.03374486 | Q21: =INDIRECT(CONCATENATE("'",Q$2,"'!",Q$5,(MATCH(NOD_Data!$K21,'ALT 1B 051722'!$B:$B,0)))) -> 0 | R21: =INDIRECT(CONCATENATE("'",R$2,"'!",R$5,(MATCH(NOD_Data!$K21,'ALT 1B 051722'!$B:$B,0)))) -> 0 | S21: =INDIRECT(CONCATENATE("'",S$2,"'!",S$5,(MATCH(NOD_Data!$K21,'ALT 1B 051722'!$B:$B,0)))) -> 0 | T21: =INDIRECT(CONCATENATE("'",T$2,"'!",T$5,(MATCH(NOD_Data!$K21,'ALT 1B 051722'!$B:$B,0)))) -> 0 | U21: =INDIRECT(CONCATENATE("'",U$2,"'!",U$5,(MATCH(NOD_Data!$K21,'ALT 1B 051722'!$B:$B,0)))) -> 0 | V21: =INDIRECT(CONCATENATE("'",V$2,"'!",V$5,(MATCH(NOD_Data!$K21,'ALT 1B 051722'!$B:$B,0)))) -> 0 | X21: 1922 | AB21: 1931 | AC21: =INDEX('WYT_40-30-30'!$B$3:$G$84,MATCH(NOD_Data!AB21,'WYT_40-30-30'!$A$3:$A$84,0),Control!$P$5) -> 5 | AD21: 0 | AE21: 0 | AF21: 0 | AG21: 0 | AI21: =INDEX(ALT1_CalcAnn_Deliveries!$A$13:$AE$93,MATCH(NOD_Data!$AB21,ALT1_CalcAnn_Deliveries!$A$13:$A$93,0),NOD_Data!AI$4) -> 0 | AJ21: =INDEX(ALT2_CalcAnn_Deliveries!$A$13:$AE$93,MATCH(NOD_Data!$AB21,ALT2_CalcAnn_Deliveries!$A$13:$A$93,0),NOD_Data!AJ$4) -> 0 | AL21: 5 | AM21: 1926 | AN21: =OFFSET('ALT 1B 051722'!ES$13,$AL21-1,0) -> 4677.064605 | AO21: =OFFSET('ALT 1B 051722'!ET$13,$AL21-1,0) -> 2501.684901 | AP21: =OFFSET('ALT 3B 041222'!ES$13,$AL21-1,0) -> 4748.029944 | AQ21: =OFFSET('ALT 3B 041222'!ET$13,$AL21-1,0) -> 2503.484727 | AR21: =IF(AM21="",AR20,INDEX('ALT 1B 051722'!$AT$13:$AT$996,MATCH(EOMONTH(DATE($AM21,5,1),0),'ALT 1B 051722'!$B$13:$B$996,0))) -> 0.3420014972 | AS21: =IF(AM21="",AS20,INDEX('ALT 3B 041222'!$AT$13:$AT$996,MATCH(EOMONTH(DATE($AM21,5,1),0),'ALT 3B 041222'!$B$13:$B$996,0))) -> 0.3286101124 | AT21: =IFERROR(999999*OFFSET('WYT_40-30-30'!O$3,$AL21-1,0),NA()) ->  | AU21: =IFERROR(999999*OFFSET('WYT_40-30-30'!P$3,$AL21-1,0),NA()) ->  | AV21: =IFERROR(999999*OFFSET('WYT_40-30-30'!Q$3,$AL21-1,0),NA()) ->  | AW21: =IFERROR(999999*OFFSET('WYT_40-30-30'!R$3,$AL21-1,0),NA()) -> 3999996 | AX21: =IFERROR(999999*OFFSET('WYT_40-30-30'!S$3,$AL21-1,0),NA()) -> 
J22: 7 | K22: 1922-07-31 | L22: =INDIRECT(CONCATENATE("'",L$2,"'!",L$5,(MATCH(NOD_Data!$K22,'ALT 1B 051722'!$B:$B,0)))) -> 36.65635811 | M22: =INDIRECT(CONCATENATE("'",M$2,"'!",M$5,(MATCH(NOD_Data!$K22,'ALT 1B 051722'!$B:$B,0)))) -> 31.52856595 | N22: 65.86369456 | O22: 58.03374486 | Q22: =INDIRECT(CONCATENATE("'",Q$2,"'!",Q$5,(MATCH(NOD_Data!$K22,'ALT 1B 051722'!$B:$B,0)))) -> 0 | R22: =INDIRECT(CONCATENATE("'",R$2,"'!",R$5,(MATCH(NOD_Data!$K22,'ALT 1B 051722'!$B:$B,0)))) -> 0 | S22: =INDIRECT(CONCATENATE("'",S$2,"'!",S$5,(MATCH(NOD_Data!$K22,'ALT 1B 051722'!$B:$B,0)))) -> 0 | T22: =INDIRECT(CONCATENATE("'",T$2,"'!",T$5,(MATCH(NOD_Data!$K22,'ALT 1B 051722'!$B:$B,0)))) -> 0 | U22: =INDIRECT(CONCATENATE("'",U$2,"'!",U$5,(MATCH(NOD_Data!$K22,'ALT 1B 051722'!$B:$B,0)))) -> 0 | V22: =INDIRECT(CONCATENATE("'",V$2,"'!",V$5,(MATCH(NOD_Data!$K22,'ALT 1B 051722'!$B:$B,0)))) -> 0 | X22: 1922 | AB22: 1932 | AC22: =INDEX('WYT_40-30-30'!$B$3:$G$84,MATCH(NOD_Data!AB22,'WYT_40-30-30'!$A$3:$A$84,0),Control!$P$5) -> 4 | AD22: 0.0002788465489 | AE22: 0.0004392995909 | AF22: 0 | AG22: 0 | AI22: =INDEX(ALT1_CalcAnn_Deliveries!$A$13:$AE$93,MATCH(NOD_Data!$AB22,ALT1_CalcAnn_Deliveries!$A$13:$A$93,0),NOD_Data!AI$4) -> 0.0002788465489 | AJ22: =INDEX(ALT2_CalcAnn_Deliveries!$A$13:$AE$93,MATCH(NOD_Data!$AB22,ALT2_CalcAnn_Deliveries!$A$13:$A$93,0),NOD_Data!AJ$4) -> 0.0004392995909 | AL22: 5 | AN22: =OFFSET('ALT 1B 051722'!ES$13,$AL22-1,0) -> 4677.064605 | AO22: =OFFSET('ALT 1B 051722'!ET$13,$AL22-1,0) -> 2501.684901 | AP22: =OFFSET('ALT 3B 041222'!ES$13,$AL22-1,0) -> 4748.029944 | AQ22: =OFFSET('ALT 3B 041222'!ET$13,$AL22-1,0) -> 2503.484727 | AR22: =IF(AM22="",AR21,INDEX('ALT 1B 051722'!$AT$13:$AT$996,MATCH(EOMONTH(DATE($AM22,5,1),0),'ALT 1B 051722'!$B$13:$B$996,0))) -> 0.3420014972 | AS22: =IF(AM22="",AS21,INDEX('ALT 3B 041222'!$AT$13:$AT$996,MATCH(EOMONTH(DATE($AM22,5,1),0),'ALT 3B 041222'!$B$13:$B$996,0))) -> 0.3286101124 | AT22: =IFERROR(999999*OFFSET('WYT_40-30-30'!O$3,$AL22-1,0),NA()) ->  | AU22: =IFERROR(999999*OFFSET('WYT_40-30-30'!P$3,$AL22-1,0),NA()) ->  | AV22: =IFERROR(999999*OFFSET('WYT_40-30-30'!Q$3,$AL22-1,0),NA()) ->  | AW22: =IFERROR(999999*OFFSET('WYT_40-30-30'!R$3,$AL22-1,0),NA()) -> 3999996 | AX22: =IFERROR(999999*OFFSET('WYT_40-30-30'!S$3,$AL22-1,0),NA()) -> 
J23: 8 | K23: 1922-08-31 | L23: =INDIRECT(CONCATENATE("'",L$2,"'!",L$5,(MATCH(NOD_Data!$K23,'ALT 1B 051722'!$B:$B,0)))) -> 36.34294472 | M23: =INDIRECT(CONCATENATE("'",M$2,"'!",M$5,(MATCH(NOD_Data!$K23,'ALT 1B 051722'!$B:$B,0)))) -> 31.25494945 | N23: 65.86369456 | O23: 58.03374486 | Q23: =INDIRECT(CONCATENATE("'",Q$2,"'!",Q$5,(MATCH(NOD_Data!$K23,'ALT 1B 051722'!$B:$B,0)))) -> 0 | R23: =INDIRECT(CONCATENATE("'",R$2,"'!",R$5,(MATCH(NOD_Data!$K23,'ALT 1B 051722'!$B:$B,0)))) -> 0 | S23: =INDIRECT(CONCATENATE("'",S$2,"'!",S$5,(MATCH(NOD_Data!$K23,'ALT 1B 051722'!$B:$B,0)))) -> 0 | T23: =INDIRECT(CONCATENATE("'",T$2,"'!",T$5,(MATCH(NOD_Data!$K23,'ALT 1B 051722'!$B:$B,0)))) -> 0 | U23: =INDIRECT(CONCATENATE("'",U$2,"'!",U$5,(MATCH(NOD_Data!$K23,'ALT 1B 051722'!$B:$B,0)))) -> 0 | V23: =INDIRECT(CONCATENATE("'",V$2,"'!",V$5,(MATCH(NOD_Data!$K23,'ALT 1B 051722'!$B:$B,0)))) -> 0 | X23: 1922 | AB23: 1933 | AC23: =INDEX('WYT_40-30-30'!$B$3:$G$84,MATCH(NOD_Data!AB23,'WYT_40-30-30'!$A$3:$A$84,0),Control!$P$5) -> 5 | AD23: 0 | AE23: 0 | AF23: 0 | AG23: 0 | AI23: =INDEX(ALT1_CalcAnn_Deliveries!$A$13:$AE$93,MATCH(NOD_Data!$AB23,ALT1_CalcAnn_Deliveries!$A$13:$A$93,0),NOD_Data!AI$4) -> 0 | AJ23: =INDEX(ALT2_CalcAnn_Deliveries!$A$13:$AE$93,MATCH(NOD_Data!$AB23,ALT2_CalcAnn_Deliveries!$A$13:$A$93,0),NOD_Data!AJ$4) -> 0 | AL23: 6 | AM23: 1927 | AN23: =OFFSET('ALT 1B 051722'!ES$13,$AL23-1,0) -> 5519 | AO23: =OFFSET('ALT 1B 051722'!ET$13,$AL23-1,0) -> 3538 | AP23: =OFFSET('ALT 3B 041222'!ES$13,$AL23-1,0) -> 5519 | AQ23: =OFFSET('ALT 3B 041222'!ET$13,$AL23-1,0) -> 3538 | AR23: =IF(AM23="",AR22,INDEX('ALT 1B 051722'!$AT$13:$AT$996,MATCH(EOMONTH(DATE($AM23,5,1),0),'ALT 1B 051722'!$B$13:$B$996,0))) -> 0.8034893725 | AS23: =IF(AM23="",AS22,INDEX('ALT 3B 041222'!$AT$13:$AT$996,MATCH(EOMONTH(DATE($AM23,5,1),0),'ALT 3B 041222'!$B$13:$B$996,0))) -> 0.8219599132 | AT23: =IFERROR(999999*OFFSET('WYT_40-30-30'!O$3,$AL23-1,0),NA()) -> 999999 | AU23: =IFERROR(999999*OFFSET('WYT_40-30-30'!P$3,$AL23-1,0),NA()) ->  | AV23: =IFERROR(999999*OFFSET('WYT_40-30-30'!Q$3,$AL23-1,0),NA()) ->  | AW23: =IFERROR(999999*OFFSET('WYT_40-30-30'!R$3,$AL23-1,0),NA()) ->  | AX23: =IFERROR(999999*OFFSET('WYT_40-30-30'!S$3,$AL23-1,0),NA()) -> 
J24: 9 | K24: 1922-09-30 | L24: =INDIRECT(CONCATENATE("'",L$2,"'!",L$5,(MATCH(NOD_Data!$K24,'ALT 1B 051722'!$B:$B,0)))) -> 36.07991745 | M24: =INDIRECT(CONCATENATE("'",M$2,"'!",M$5,(MATCH(NOD_Data!$K24,'ALT 1B 051722'!$B:$B,0)))) -> 31.01821832 | N24: 65.86369456 | O24: 58.03374486 | Q24: =INDIRECT(CONCATENATE("'",Q$2,"'!",Q$5,(MATCH(NOD_Data!$K24,'ALT 1B 051722'!$B:$B,0)))) -> 0 | R24: =INDIRECT(CONCATENATE("'",R$2,"'!",R$5,(MATCH(NOD_Data!$K24,'ALT 1B 051722'!$B:$B,0)))) -> 0 | S24: =INDIRECT(CONCATENATE("'",S$2,"'!",S$5,(MATCH(NOD_Data!$K24,'ALT 1B 051722'!$B:$B,0)))) -> 0 | T24: =INDIRECT(CONCATENATE("'",T$2,"'!",T$5,(MATCH(NOD_Data!$K24,'ALT 1B 051722'!$B:$B,0)))) -> 0 | U24: =INDIRECT(CONCATENATE("'",U$2,"'!",U$5,(MATCH(NOD_Data!$K24,'ALT 1B 051722'!$B:$B,0)))) -> 0 | V24: =INDIRECT(CONCATENATE("'",V$2,"'!",V$5,(MATCH(NOD_Data!$K24,'ALT 1B 051722'!$B:$B,0)))) -> 0 | X24: 1922 | AB24: 1934 | AC24: =INDEX('WYT_40-30-30'!$B$3:$G$84,MATCH(NOD_Data!AB24,'WYT_40-30-30'!$A$3:$A$84,0),Control!$P$5) -> 5 | AD24: 0 | AE24: 0 | AF24: 0 | AG24: 0 | AI24: =INDEX(ALT1_CalcAnn_Deliveries!$A$13:$AE$93,MATCH(NOD_Data!$AB24,ALT1_CalcAnn_Deliveries!$A$13:$A$93,0),NOD_Data!AI$4) -> 0 | AJ24: =INDEX(ALT2_CalcAnn_Deliveries!$A$13:$AE$93,MATCH(NOD_Data!$AB24,ALT2_CalcAnn_Deliveries!$A$13:$A$93,0),NOD_Data!AJ$4) -> 0 | AL24: 6 | AN24: =OFFSET('ALT 1B 051722'!ES$13,$AL24-1,0) -> 5519 | AO24: =OFFSET('ALT 1B 051722'!ET$13,$AL24-1,0) -> 3538 | AP24: =OFFSET('ALT 3B 041222'!ES$13,$AL24-1,0) -> 5519 | AQ24: =OFFSET('ALT 3B 041222'!ET$13,$AL24-1,0) -> 3538 | AR24: =IF(AM24="",AR23,INDEX('ALT 1B 051722'!$AT$13:$AT$996,MATCH(EOMONTH(DATE($AM24,5,1),0),'ALT 1B 051722'!$B$13:$B$996,0))) -> 0.8034893725 | AS24: =IF(AM24="",AS23,INDEX('ALT 3B 041222'!$AT$13:$AT$996,MATCH(EOMONTH(DATE($AM24,5,1),0),'ALT 3B 041222'!$B$13:$B$996,0))) -> 0.8219599132 | AT24: =IFERROR(999999*OFFSET('WYT_40-30-30'!O$3,$AL24-1,0),NA()) -> 999999 | AU24: =IFERROR(999999*OFFSET('WYT_40-30-30'!P$3,$AL24-1,0),NA()) ->  | AV24: =IFERROR(999999*OFFSET('WYT_40-30-30'!Q$3,$AL24-1,0),NA()) ->  | AW24: =IFERROR(999999*OFFSET('WYT_40-30-30'!R$3,$AL24-1,0),NA()) ->  | AX24: =IFERROR(999999*OFFSET('WYT_40-30-30'!S$3,$AL24-1,0),NA()) -> 
J25: 10 | K25: 1922-10-31 | L25: =INDIRECT(CONCATENATE("'",L$2,"'!",L$5,(MATCH(NOD_Data!$K25,'ALT 1B 051722'!$B:$B,0)))) -> 36.03019674 | M25: =INDIRECT(CONCATENATE("'",M$2,"'!",M$5,(MATCH(NOD_Data!$K25,'ALT 1B 051722'!$B:$B,0)))) -> 30.97315851 | N25: 65.86369456 | O25: 58.03374486 | Q25: =INDIRECT(CONCATENATE("'",Q$2,"'!",Q$5,(MATCH(NOD_Data!$K25,'ALT 1B 051722'!$B:$B,0)))) -> 0 | R25: =INDIRECT(CONCATENATE("'",R$2,"'!",R$5,(MATCH(NOD_Data!$K25,'ALT 1B 051722'!$B:$B,0)))) -> 0 | S25: =INDIRECT(CONCATENATE("'",S$2,"'!",S$5,(MATCH(NOD_Data!$K25,'ALT 1B 051722'!$B:$B,0)))) -> 0 | T25: =INDIRECT(CONCATENATE("'",T$2,"'!",T$5,(MATCH(NOD_Data!$K25,'ALT 1B 051722'!$B:$B,0)))) -> 0 | U25: =INDIRECT(CONCATENATE("'",U$2,"'!",U$5,(MATCH(NOD_Data!$K25,'ALT 1B 051722'!$B:$B,0)))) -> 0 | V25: =INDIRECT(CONCATENATE("'",V$2,"'!",V$5,(MATCH(NOD_Data!$K25,'ALT 1B 051722'!$B:$B,0)))) -> 0 | X25: 1922 | AB25: 1935 | AC25: =INDEX('WYT_40-30-30'!$B$3:$G$84,MATCH(NOD_Data!AB25,'WYT_40-30-30'!$A$3:$A$84,0),Control!$P$5) -> 3 | AD25: 14.72841234 | AE25: 12.88125719 | AF25: 0 | AG25: 0 | AI25: =INDEX(ALT1_CalcAnn_Deliveries!$A$13:$AE$93,MATCH(NOD_Data!$AB25,ALT1_CalcAnn_Deliveries!$A$13:$A$93,0),NOD_Data!AI$4) -> 14.72841234 | AJ25: =INDEX(ALT2_CalcAnn_Deliveries!$A$13:$AE$93,MATCH(NOD_Data!$AB25,ALT2_CalcAnn_Deliveries!$A$13:$A$93,0),NOD_Data!AJ$4) -> 12.88125719 | AL25: 7 | AM25: 1928 | AN25: =OFFSET('ALT 1B 051722'!ES$13,$AL25-1,0) -> 5428.445081 | AO25: =OFFSET('ALT 1B 051722'!ET$13,$AL25-1,0) -> 3358.896791 | AP25: =OFFSET('ALT 3B 041222'!ES$13,$AL25-1,0) -> 5370.270655 | AQ25: =OFFSET('ALT 3B 041222'!ET$13,$AL25-1,0) -> 3358.896791 | AR25: =IF(AM25="",AR24,INDEX('ALT 1B 051722'!$AT$13:$AT$996,MATCH(EOMONTH(DATE($AM25,5,1),0),'ALT 1B 051722'!$B$13:$B$996,0))) -> 0.6376093926 | AS25: =IF(AM25="",AS24,INDEX('ALT 3B 041222'!$AT$13:$AT$996,MATCH(EOMONTH(DATE($AM25,5,1),0),'ALT 3B 041222'!$B$13:$B$996,0))) -> 0.6259839755 | AT25: =IFERROR(999999*OFFSET('WYT_40-30-30'!O$3,$AL25-1,0),NA()) ->  | AU25: =IFERROR(999999*OFFSET('WYT_40-30-30'!P$3,$AL25-1,0),NA()) -> 1999998 | AV25: =IFERROR(999999*OFFSET('WYT_40-30-30'!Q$3,$AL25-1,0),NA()) ->  | AW25: =IFERROR(999999*OFFSET('WYT_40-30-30'!R$3,$AL25-1,0),NA()) ->  | AX25: =IFERROR(999999*OFFSET('WYT_40-30-30'!S$3,$AL25-1,0),NA()) -> 
J26: 11 | K26: 1922-11-30 | L26: =INDIRECT(CONCATENATE("'",L$2,"'!",L$5,(MATCH(NOD_Data!$K26,'ALT 1B 051722'!$B:$B,0)))) -> 36.11950646 | M26: =INDIRECT(CONCATENATE("'",M$2,"'!",M$5,(MATCH(NOD_Data!$K26,'ALT 1B 051722'!$B:$B,0)))) -> 31.05353215 | N26: 65.86369456 | O26: 58.03374486 | Q26: =INDIRECT(CONCATENATE("'",Q$2,"'!",Q$5,(MATCH(NOD_Data!$K26,'ALT 1B 051722'!$B:$B,0)))) -> 0 | R26: =INDIRECT(CONCATENATE("'",R$2,"'!",R$5,(MATCH(NOD_Data!$K26,'ALT 1B 051722'!$B:$B,0)))) -> 0 | S26: =INDIRECT(CONCATENATE("'",S$2,"'!",S$5,(MATCH(NOD_Data!$K26,'ALT 1B 051722'!$B:$B,0)))) -> 0 | T26: =INDIRECT(CONCATENATE("'",T$2,"'!",T$5,(MATCH(NOD_Data!$K26,'ALT 1B 051722'!$B:$B,0)))) -> 0 | U26: =INDIRECT(CONCATENATE("'",U$2,"'!",U$5,(MATCH(NOD_Data!$K26,'ALT 1B 051722'!$B:$B,0)))) -> 0 | V26: =INDIRECT(CONCATENATE("'",V$2,"'!",V$5,(MATCH(NOD_Data!$K26,'ALT 1B 051722'!$B:$B,0)))) -> 0 | X26: 1922 | AB26: 1936 | AC26: =INDEX('WYT_40-30-30'!$B$3:$G$84,MATCH(NOD_Data!AB26,'WYT_40-30-30'!$A$3:$A$84,0),Control!$P$5) -> 3 | AD26: 7.65279384 | AE26: 6.550001325 | AF26: 0 | AG26: 0 | AI26: =INDEX(ALT1_CalcAnn_Deliveries!$A$13:$AE$93,MATCH(NOD_Data!$AB26,ALT1_CalcAnn_Deliveries!$A$13:$A$93,0),NOD_Data!AI$4) -> 7.65279384 | AJ26: =INDEX(ALT2_CalcAnn_Deliveries!$A$13:$AE$93,MATCH(NOD_Data!$AB26,ALT2_CalcAnn_Deliveries!$A$13:$A$93,0),NOD_Data!AJ$4) -> 6.550001325 | AL26: 7 | AN26: =OFFSET('ALT 1B 051722'!ES$13,$AL26-1,0) -> 5428.445081 | AO26: =OFFSET('ALT 1B 051722'!ET$13,$AL26-1,0) -> 3358.896791 | AP26: =OFFSET('ALT 3B 041222'!ES$13,$AL26-1,0) -> 5370.270655 | AQ26: =OFFSET('ALT 3B 041222'!ET$13,$AL26-1,0) -> 3358.896791 | AR26: =IF(AM26="",AR25,INDEX('ALT 1B 051722'!$AT$13:$AT$996,MATCH(EOMONTH(DATE($AM26,5,1),0),'ALT 1B 051722'!$B$13:$B$996,0))) -> 0.6376093926 | AS26: =IF(AM26="",AS25,INDEX('ALT 3B 041222'!$AT$13:$AT$996,MATCH(EOMONTH(DATE($AM26,5,1),0),'ALT 3B 041222'!$B$13:$B$996,0))) -> 0.6259839755 | AT26: =IFERROR(999999*OFFSET('WYT_40-30-30'!O$3,$AL26-1,0),NA()) ->  | AU26: =IFERROR(999999*OFFSET('WYT_40-30-30'!P$3,$AL26-1,0),NA()) -> 1999998 | AV26: =IFERROR(999999*OFFSET('WYT_40-30-30'!Q$3,$AL26-1,0),NA()) ->  | AW26: =IFERROR(999999*OFFSET('WYT_40-30-30'!R$3,$AL26-1,0),NA()) ->  | AX26: =IFERROR(999999*OFFSET('WYT_40-30-30'!S$3,$AL26-1,0),NA()) -> 
J27: 12 | K27: 1922-12-31 | L27: =INDIRECT(CONCATENATE("'",L$2,"'!",L$5,(MATCH(NOD_Data!$K27,'ALT 1B 051722'!$B:$B,0)))) -> 38.44140841 | M27: =INDIRECT(CONCATENATE("'",M$2,"'!",M$5,(MATCH(NOD_Data!$K27,'ALT 1B 051722'!$B:$B,0)))) -> 33.10535744 | N27: 65.86369456 | O27: 58.03374486 | Q27: =INDIRECT(CONCATENATE("'",Q$2,"'!",Q$5,(MATCH(NOD_Data!$K27,'ALT 1B 051722'!$B:$B,0)))) -> 2.128546319 | R27: =INDIRECT(CONCATENATE("'",R$2,"'!",R$5,(MATCH(NOD_Data!$K27,'ALT 1B 051722'!$B:$B,0)))) -> 1.877510226 | S27: =INDIRECT(CONCATENATE("'",S$2,"'!",S$5,(MATCH(NOD_Data!$K27,'ALT 1B 051722'!$B:$B,0)))) -> 0 | T27: =INDIRECT(CONCATENATE("'",T$2,"'!",T$5,(MATCH(NOD_Data!$K27,'ALT 1B 051722'!$B:$B,0)))) -> 0 | U27: =INDIRECT(CONCATENATE("'",U$2,"'!",U$5,(MATCH(NOD_Data!$K27,'ALT 1B 051722'!$B:$B,0)))) -> 0 | V27: =INDIRECT(CONCATENATE("'",V$2,"'!",V$5,(MATCH(NOD_Data!$K27,'ALT 1B 051722'!$B:$B,0)))) -> 0 | X27: 1922 | AB27: 1937 | AC27: =INDEX('WYT_40-30-30'!$B$3:$G$84,MATCH(NOD_Data!AB27,'WYT_40-30-30'!$A$3:$A$84,0),Control!$P$5) -> 3 | AD27: 8.462387515 | AE27: 7.445880177 | AF27: 0 | AG27: 0 | AI27: =INDEX(ALT1_CalcAnn_Deliveries!$A$13:$AE$93,MATCH(NOD_Data!$AB27,ALT1_CalcAnn_Deliveries!$A$13:$A$93,0),NOD_Data!AI$4) -> 8.462387515 | AJ27: =INDEX(ALT2_CalcAnn_Deliveries!$A$13:$AE$93,MATCH(NOD_Data!$AB27,ALT2_CalcAnn_Deliveries!$A$13:$A$93,0),NOD_Data!AJ$4) -> 7.445880177 | AL27: 8 | AM27: 1929 | AN27: =OFFSET('ALT 1B 051722'!ES$13,$AL27-1,0) -> 3382.673787 | AO27: =OFFSET('ALT 1B 051722'!ET$13,$AL27-1,0) -> 1497.359648 | AP27: =OFFSET('ALT 3B 041222'!ES$13,$AL27-1,0) -> 3611.047419 | AQ27: =OFFSET('ALT 3B 041222'!ET$13,$AL27-1,0) -> 1557.040393 | AR27: =IF(AM27="",AR26,INDEX('ALT 1B 051722'!$AT$13:$AT$996,MATCH(EOMONTH(DATE($AM27,5,1),0),'ALT 1B 051722'!$B$13:$B$996,0))) -> 0.2719669301 | AS27: =IF(AM27="",AS26,INDEX('ALT 3B 041222'!$AT$13:$AT$996,MATCH(EOMONTH(DATE($AM27,5,1),0),'ALT 3B 041222'!$B$13:$B$996,0))) -> 0.2568298045 | AT27: =IFERROR(999999*OFFSET('WYT_40-30-30'!O$3,$AL27-1,0),NA()) ->  | AU27: =IFERROR(999999*OFFSET('WYT_40-30-30'!P$3,$AL27-1,0),NA()) ->  | AV27: =IFERROR(999999*OFFSET('WYT_40-30-30'!Q$3,$AL27-1,0),NA()) ->  | AW27: =IFERROR(999999*OFFSET('WYT_40-30-30'!R$3,$AL27-1,0),NA()) ->  | AX27: =IFERROR(999999*OFFSET('WYT_40-30-30'!S$3,$AL27-1,0),NA()) -> 4999995
J28: 1 | K28: 1923-01-31 | L28: =INDIRECT(CONCATENATE("'",L$2,"'!",L$5,(MATCH(NOD_Data!$K28,'ALT 1B 051722'!$B:$B,0)))) -> 38.48837496 | M28: =INDIRECT(CONCATENATE("'",M$2,"'!",M$5,(MATCH(NOD_Data!$K28,'ALT 1B 051722'!$B:$B,0)))) -> 33.1475715 | N28: 65.86369456 | O28: 58.03374486 | Q28: =INDIRECT(CONCATENATE("'",Q$2,"'!",Q$5,(MATCH(NOD_Data!$K28,'ALT 1B 051722'!$B:$B,0)))) -> 0 | R28: =INDIRECT(CONCATENATE("'",R$2,"'!",R$5,(MATCH(NOD_Data!$K28,'ALT 1B 051722'!$B:$B,0)))) -> 0 | S28: =INDIRECT(CONCATENATE("'",S$2,"'!",S$5,(MATCH(NOD_Data!$K28,'ALT 1B 051722'!$B:$B,0)))) -> 0 | T28: =INDIRECT(CONCATENATE("'",T$2,"'!",T$5,(MATCH(NOD_Data!$K28,'ALT 1B 051722'!$B:$B,0)))) -> 0 | U28: =INDIRECT(CONCATENATE("'",U$2,"'!",U$5,(MATCH(NOD_Data!$K28,'ALT 1B 051722'!$B:$B,0)))) -> 0 | V28: =INDIRECT(CONCATENATE("'",V$2,"'!",V$5,(MATCH(NOD_Data!$K28,'ALT 1B 051722'!$B:$B,0)))) -> 0 | X28: 1922 | AB28: 1938 | AC28: =INDEX('WYT_40-30-30'!$B$3:$G$84,MATCH(NOD_Data!AB28,'WYT_40-30-30'!$A$3:$A$84,0),Control!$P$5) -> 1 | AD28: 0 | AE28: 0 | AF28: 0 | AG28: 0 | AI28: =INDEX(ALT1_CalcAnn_Deliveries!$A$13:$AE$93,MATCH(NOD_Data!$AB28,ALT1_CalcAnn_Deliveries!$A$13:$A$93,0),NOD_Data!AI$4) -> 0 | AJ28: =INDEX(ALT2_CalcAnn_Deliveries!$A$13:$AE$93,MATCH(NOD_Data!$AB28,ALT2_CalcAnn_Deliveries!$A$13:$A$93,0),NOD_Data!AJ$4) -> 0 | AL28: 8 | AN28: =OFFSET('ALT 1B 051722'!ES$13,$AL28-1,0) -> 3382.673787 | AO28: =OFFSET('ALT 1B 051722'!ET$13,$AL28-1,0) -> 1497.359648 | AP28: =OFFSET('ALT 3B 041222'!ES$13,$AL28-1,0) -> 3611.047419 | AQ28: =OFFSET('ALT 3B 041222'!ET$13,$AL28-1,0) -> 1557.040393 | AR28: =IF(AM28="",AR27,INDEX('ALT 1B 051722'!$AT$13:$AT$996,MATCH(EOMONTH(DATE($AM28,5,1),0),'ALT 1B 051722'!$B$13:$B$996,0))) -> 0.2719669301 | AS28: =IF(AM28="",AS27,INDEX('ALT 3B 041222'!$AT$13:$AT$996,MATCH(EOMONTH(DATE($AM28,5,1),0),'ALT 3B 041222'!$B$13:$B$996,0))) -> 0.2568298045 | AT28: =IFERROR(999999*OFFSET('WYT_40-30-30'!O$3,$AL28-1,0),NA()) ->  | AU28: =IFERROR(999999*OFFSET('WYT_40-30-30'!P$3,$AL28-1,0),NA()) ->  | AV28: =IFERROR(999999*OFFSET('WYT_40-30-30'!Q$3,$AL28-1,0),NA()) ->  | AW28: =IFERROR(999999*OFFSET('WYT_40-30-30'!R$3,$AL28-1,0),NA()) ->  | AX28: =IFERROR(999999*OFFSET('WYT_40-30-30'!S$3,$AL28-1,0),NA()) -> 4999995
J29: 2 | K29: 1923-02-28 | L29: =INDIRECT(CONCATENATE("'",L$2,"'!",L$5,(MATCH(NOD_Data!$K29,'ALT 1B 051722'!$B:$B,0)))) -> 38.45432484 | M29: =INDIRECT(CONCATENATE("'",M$2,"'!",M$5,(MATCH(NOD_Data!$K29,'ALT 1B 051722'!$B:$B,0)))) -> 33.11696687 | N29: 65.86369456 | O29: 58.03374486 | Q29: =INDIRECT(CONCATENATE("'",Q$2,"'!",Q$5,(MATCH(NOD_Data!$K29,'ALT 1B 051722'!$B:$B,0)))) -> 0 | R29: =INDIRECT(CONCATENATE("'",R$2,"'!",R$5,(MATCH(NOD_Data!$K29,'ALT 1B 051722'!$B:$B,0)))) -> 0 | S29: =INDIRECT(CONCATENATE("'",S$2,"'!",S$5,(MATCH(NOD_Data!$K29,'ALT 1B 051722'!$B:$B,0)))) -> 0 | T29: =INDIRECT(CONCATENATE("'",T$2,"'!",T$5,(MATCH(NOD_Data!$K29,'ALT 1B 051722'!$B:$B,0)))) -> 0 | U29: =INDIRECT(CONCATENATE("'",U$2,"'!",U$5,(MATCH(NOD_Data!$K29,'ALT 1B 051722'!$B:$B,0)))) -> 0 | V29: =INDIRECT(CONCATENATE("'",V$2,"'!",V$5,(MATCH(NOD_Data!$K29,'ALT 1B 051722'!$B:$B,0)))) -> 0 | X29: 1922 | AB29: 1939 | AC29: =INDEX('WYT_40-30-30'!$B$3:$G$84,MATCH(NOD_Data!AB29,'WYT_40-30-30'!$A$3:$A$84,0),Control!$P$5) -> 4 | AD29: 30.29943146 | AE29: 30.32413892 | AF29: 0 | AG29: 0 | AI29: =INDEX(ALT1_CalcAnn_Deliveries!$A$13:$AE$93,MATCH(NOD_Data!$AB29,ALT1_CalcAnn_Deliveries!$A$13:$A$93,0),NOD_Data!AI$4) -> 30.29943146 | AJ29: =INDEX(ALT2_CalcAnn_Deliveries!$A$13:$AE$93,MATCH(NOD_Data!$AB29,ALT2_CalcAnn_Deliveries!$A$13:$A$93,0),NOD_Data!AJ$4) -> 30.32413892 | AL29: 9 | AM29: 1930 | AN29: =OFFSET('ALT 1B 051722'!ES$13,$AL29-1,0) -> 4627.572042 | AO29: =OFFSET('ALT 1B 051722'!ET$13,$AL29-1,0) -> 2653.326623 | AP29: =OFFSET('ALT 3B 041222'!ES$13,$AL29-1,0) -> 4824.072572 | AQ29: =OFFSET('ALT 3B 041222'!ET$13,$AL29-1,0) -> 2708.27496 | AR29: =IF(AM29="",AR28,INDEX('ALT 1B 051722'!$AT$13:$AT$996,MATCH(EOMONTH(DATE($AM29,5,1),0),'ALT 1B 051722'!$B$13:$B$996,0))) -> 0.1389863286 | AS29: =IF(AM29="",AS28,INDEX('ALT 3B 041222'!$AT$13:$AT$996,MATCH(EOMONTH(DATE($AM29,5,1),0),'ALT 3B 041222'!$B$13:$B$996,0))) -> 0.155530564 | AT29: =IFERROR(999999*OFFSET('WYT_40-30-30'!O$3,$AL29-1,0),NA()) ->  | AU29: =IFERROR(999999*OFFSET('WYT_40-30-30'!P$3,$AL29-1,0),NA()) ->  | AV29: =IFERROR(999999*OFFSET('WYT_40-30-30'!Q$3,$AL29-1,0),NA()) ->  | AW29: =IFERROR(999999*OFFSET('WYT_40-30-30'!R$3,$AL29-1,0),NA()) -> 3999996 | AX29: =IFERROR(999999*OFFSET('WYT_40-30-30'!S$3,$AL29-1,0),NA()) -> 
J30: 3 | K30: 1923-03-31 | L30: =INDIRECT(CONCATENATE("'",L$2,"'!",L$5,(MATCH(NOD_Data!$K30,'ALT 1B 051722'!$B:$B,0)))) -> 38.12502199 | M30: =INDIRECT(CONCATENATE("'",M$2,"'!",M$5,(MATCH(NOD_Data!$K30,'ALT 1B 051722'!$B:$B,0)))) -> 32.80500194 | N30: 65.86369456 | O30: 58.03374486 | Q30: =INDIRECT(CONCATENATE("'",Q$2,"'!",Q$5,(MATCH(NOD_Data!$K30,'ALT 1B 051722'!$B:$B,0)))) -> 0 | R30: =INDIRECT(CONCATENATE("'",R$2,"'!",R$5,(MATCH(NOD_Data!$K30,'ALT 1B 051722'!$B:$B,0)))) -> 0 | S30: =INDIRECT(CONCATENATE("'",S$2,"'!",S$5,(MATCH(NOD_Data!$K30,'ALT 1B 051722'!$B:$B,0)))) -> 0.2149470303 | T30: =INDIRECT(CONCATENATE("'",T$2,"'!",T$5,(MATCH(NOD_Data!$K30,'ALT 1B 051722'!$B:$B,0)))) -> 0.2091805857 | U30: =INDIRECT(CONCATENATE("'",U$2,"'!",U$5,(MATCH(NOD_Data!$K30,'ALT 1B 051722'!$B:$B,0)))) -> 0 | V30: =INDIRECT(CONCATENATE("'",V$2,"'!",V$5,(MATCH(NOD_Data!$K30,'ALT 1B 051722'!$B:$B,0)))) -> 0 | X30: 1923 | AB30: 1940 | AC30: =INDEX('WYT_40-30-30'!$B$3:$G$84,MATCH(NOD_Data!AB30,'WYT_40-30-30'!$A$3:$A$84,0),Control!$P$5) -> 2 | AD30: 0 | AE30: 0 | AF30: 9.211705533 | AG30: 9.211705533 | AI30: =INDEX(ALT1_CalcAnn_Deliveries!$A$13:$AE$93,MATCH(NOD_Data!$AB30,ALT1_CalcAnn_Deliveries!$A$13:$A$93,0),NOD_Data!AI$4) -> 0 | AJ30: =INDEX(ALT2_CalcAnn_Deliveries!$A$13:$AE$93,MATCH(NOD_Data!$AB30,ALT2_CalcAnn_Deliveries!$A$13:$A$93,0),NOD_Data!AJ$4) -> 0 | AL30: 9 | AN30: =OFFSET('ALT 1B 051722'!ES$13,$AL30-1,0) -> 4627.572042 | AO30: =OFFSET('ALT 1B 051722'!ET$13,$AL30-1,0) -> 2653.326623 | AP30: =OFFSET('ALT 3B 041222'!ES$13,$AL30-1,0) -> 4824.072572 | AQ30: =OFFSET('ALT 3B 041222'!ET$13,$AL30-1,0) -> 2708.27496 | AR30: =IF(AM30="",AR29,INDEX('ALT 1B 051722'!$AT$13:$AT$996,MATCH(EOMONTH(DATE($AM30,5,1),0),'ALT 1B 051722'!$B$13:$B$996,0))) -> 0.1389863286 | AS30: =IF(AM30="",AS29,INDEX('ALT 3B 041222'!$AT$13:$AT$996,MATCH(EOMONTH(DATE($AM30,5,1),0),'ALT 3B 041222'!$B$13:$B$996,0))) -> 0.155530564 | AT30: =IFERROR(999999*OFFSET('WYT_40-30-30'!O$3,$AL30-1,0),NA()) ->  | AU30: =IFERROR(999999*OFFSET('WYT_40-30-30'!P$3,$AL30-1,0),NA()) ->  | AV30: =IFERROR(999999*OFFSET('WYT_40-30-30'!Q$3,$AL30-1,0),NA()) ->  | AW30: =IFERROR(999999*OFFSET('WYT_40-30-30'!R$3,$AL30-1,0),NA()) -> 3999996 | AX30: =IFERROR(999999*OFFSET('WYT_40-30-30'!S$3,$AL30-1,0),NA()) -> 
J31: 4 | K31: 1923-04-30 | L31: =INDIRECT(CONCATENATE("'",L$2,"'!",L$5,(MATCH(NOD_Data!$K31,'ALT 1B 051722'!$B:$B,0)))) -> 37.03428422 | M31: =INDIRECT(CONCATENATE("'",M$2,"'!",M$5,(MATCH(NOD_Data!$K31,'ALT 1B 051722'!$B:$B,0)))) -> 31.74708688 | N31: 65.86369456 | O31: 58.03374486 | Q31: =INDIRECT(CONCATENATE("'",Q$2,"'!",Q$5,(MATCH(NOD_Data!$K31,'ALT 1B 051722'!$B:$B,0)))) -> 0 | R31: =INDIRECT(CONCATENATE("'",R$2,"'!",R$5,(MATCH(NOD_Data!$K31,'ALT 1B 051722'!$B:$B,0)))) -> 0 | S31: =INDIRECT(CONCATENATE("'",S$2,"'!",S$5,(MATCH(NOD_Data!$K31,'ALT 1B 051722'!$B:$B,0)))) -> 1.043252635 | T31: =INDIRECT(CONCATENATE("'",T$2,"'!",T$5,(MATCH(NOD_Data!$K31,'ALT 1B 051722'!$B:$B,0)))) -> 1.015265003 | U31: =INDIRECT(CONCATENATE("'",U$2,"'!",U$5,(MATCH(NOD_Data!$K31,'ALT 1B 051722'!$B:$B,0)))) -> 0 | V31: =INDIRECT(CONCATENATE("'",V$2,"'!",V$5,(MATCH(NOD_Data!$K31,'ALT 1B 051722'!$B:$B,0)))) -> 0 | X31: 1923 | AB31: 1941 | AC31: =INDEX('WYT_40-30-30'!$B$3:$G$84,MATCH(NOD_Data!AB31,'WYT_40-30-30'!$A$3:$A$84,0),Control!$P$5) -> 1 | AD31: 0 | AE31: 0 | AF31: 0 | AG31: 0 | AI31: =INDEX(ALT1_CalcAnn_Deliveries!$A$13:$AE$93,MATCH(NOD_Data!$AB31,ALT1_CalcAnn_Deliveries!$A$13:$A$93,0),NOD_Data!AI$4) -> 0 | AJ31: =INDEX(ALT2_CalcAnn_Deliveries!$A$13:$AE$93,MATCH(NOD_Data!$AB31,ALT2_CalcAnn_Deliveries!$A$13:$A$93,0),NOD_Data!AJ$4) -> 0 | AL31: 10 | AM31: 1931 | AN31: =OFFSET('ALT 1B 051722'!ES$13,$AL31-1,0) -> 2902.297992 | AO31: =OFFSET('ALT 1B 051722'!ET$13,$AL31-1,0) -> 1449.008074 | AP31: =OFFSET('ALT 3B 041222'!ES$13,$AL31-1,0) -> 3040.003397 | AQ31: =OFFSET('ALT 3B 041222'!ET$13,$AL31-1,0) -> 1506.244213 | AR31: =IF(AM31="",AR30,INDEX('ALT 1B 051722'!$AT$13:$AT$996,MATCH(EOMONTH(DATE($AM31,5,1),0),'ALT 1B 051722'!$B$13:$B$996,0))) -> 0.3777269306 | AS31: =IF(AM31="",AS30,INDEX('ALT 3B 041222'!$AT$13:$AT$996,MATCH(EOMONTH(DATE($AM31,5,1),0),'ALT 3B 041222'!$B$13:$B$996,0))) -> 0.3778318618 | AT31: =IFERROR(999999*OFFSET('WYT_40-30-30'!O$3,$AL31-1,0),NA()) ->  | AU31: =IFERROR(999999*OFFSET('WYT_40-30-30'!P$3,$AL31-1,0),NA()) ->  | AV31: =IFERROR(999999*OFFSET('WYT_40-30-30'!Q$3,$AL31-1,0),NA()) ->  | AW31: =IFERROR(999999*OFFSET('WYT_40-30-30'!R$3,$AL31-1,0),NA()) ->  | AX31: =IFERROR(999999*OFFSET('WYT_40-30-30'!S$3,$AL31-1,0),NA()) -> 4999995
J32: 5 | K32: 1923-05-31 | L32: =INDIRECT(CONCATENATE("'",L$2,"'!",L$5,(MATCH(NOD_Data!$K32,'ALT 1B 051722'!$B:$B,0)))) -> 36.80279348 | M32: =INDIRECT(CONCATENATE("'",M$2,"'!",M$5,(MATCH(NOD_Data!$K32,'ALT 1B 051722'!$B:$B,0)))) -> 31.53990904 | N32: 65.86369456 | O32: 58.03374486 | Q32: =INDIRECT(CONCATENATE("'",Q$2,"'!",Q$5,(MATCH(NOD_Data!$K32,'ALT 1B 051722'!$B:$B,0)))) -> 0 | R32: =INDIRECT(CONCATENATE("'",R$2,"'!",R$5,(MATCH(NOD_Data!$K32,'ALT 1B 051722'!$B:$B,0)))) -> 0 | S32: =INDIRECT(CONCATENATE("'",S$2,"'!",S$5,(MATCH(NOD_Data!$K32,'ALT 1B 051722'!$B:$B,0)))) -> 0 | T32: =INDIRECT(CONCATENATE("'",T$2,"'!",T$5,(MATCH(NOD_Data!$K32,'ALT 1B 051722'!$B:$B,0)))) -> 0 | U32: =INDIRECT(CONCATENATE("'",U$2,"'!",U$5,(MATCH(NOD_Data!$K32,'ALT 1B 051722'!$B:$B,0)))) -> 0 | V32: =INDIRECT(CONCATENATE("'",V$2,"'!",V$5,(MATCH(NOD_Data!$K32,'ALT 1B 051722'!$B:$B,0)))) -> 0 | X32: 1923 | AB32: 1942 | AC32: =INDEX('WYT_40-30-30'!$B$3:$G$84,MATCH(NOD_Data!AB32,'WYT_40-30-30'!$A$3:$A$84,0),Control!$P$5) -> 1 | AD32: 0 | AE32: 0 | AF32: 0 | AG32: 0 | AI32: =INDEX(ALT1_CalcAnn_Deliveries!$A$13:$AE$93,MATCH(NOD_Data!$AB32,ALT1_CalcAnn_Deliveries!$A$13:$A$93,0),NOD_Data!AI$4) -> 0 | AJ32: =INDEX(ALT2_CalcAnn_Deliveries!$A$13:$AE$93,MATCH(NOD_Data!$AB32,ALT2_CalcAnn_Deliveries!$A$13:$A$93,0),NOD_Data!AJ$4) -> 0 | AL32: 10 | AN32: =OFFSET('ALT 1B 051722'!ES$13,$AL32-1,0) -> 2902.297992 | AO32: =OFFSET('ALT 1B 051722'!ET$13,$AL32-1,0) -> 1449.008074 | AP32: =OFFSET('ALT 3B 041222'!ES$13,$AL32-1,0) -> 3040.003397 | AQ32: =OFFSET('ALT 3B 041222'!ET$13,$AL32-1,0) -> 1506.244213 | AR32: =IF(AM32="",AR31,INDEX('ALT 1B 051722'!$AT$13:$AT$996,MATCH(EOMONTH(DATE($AM32,5,1),0),'ALT 1B 051722'!$B$13:$B$996,0))) -> 0.3777269306 | AS32: =IF(AM32="",AS31,INDEX('ALT 3B 041222'!$AT$13:$AT$996,MATCH(EOMONTH(DATE($AM32,5,1),0),'ALT 3B 041222'!$B$13:$B$996,0))) -> 0.3778318618 | AT32: =IFERROR(999999*OFFSET('WYT_40-30-30'!O$3,$AL32-1,0),NA()) ->  | AU32: =IFERROR(999999*OFFSET('WYT_40-30-30'!P$3,$AL32-1,0),NA()) ->  | AV32: =IFERROR(999999*OFFSET('WYT_40-30-30'!Q$3,$AL32-1,0),NA()) ->  | AW32: =IFERROR(999999*OFFSET('WYT_40-30-30'!R$3,$AL32-1,0),NA()) ->  | AX32: =IFERROR(999999*OFFSET('WYT_40-30-30'!S$3,$AL32-1,0),NA()) -> 4999995
J33: 6 | K33: 1923-06-30 | L33: =INDIRECT(CONCATENATE("'",L$2,"'!",L$5,(MATCH(NOD_Data!$K33,'ALT 1B 051722'!$B:$B,0)))) -> 36.58486009 | M33: =INDIRECT(CONCATENATE("'",M$2,"'!",M$5,(MATCH(NOD_Data!$K33,'ALT 1B 051722'!$B:$B,0)))) -> 31.34722619 | N33: 65.86369456 | O33: 58.03374486 | Q33: =INDIRECT(CONCATENATE("'",Q$2,"'!",Q$5,(MATCH(NOD_Data!$K33,'ALT 1B 051722'!$B:$B,0)))) -> 0 | R33: =INDIRECT(CONCATENATE("'",R$2,"'!",R$5,(MATCH(NOD_Data!$K33,'ALT 1B 051722'!$B:$B,0)))) -> 0 | S33: =INDIRECT(CONCATENATE("'",S$2,"'!",S$5,(MATCH(NOD_Data!$K33,'ALT 1B 051722'!$B:$B,0)))) -> 0 | T33: =INDIRECT(CONCATENATE("'",T$2,"'!",T$5,(MATCH(NOD_Data!$K33,'ALT 1B 051722'!$B:$B,0)))) -> 0 | U33: =INDIRECT(CONCATENATE("'",U$2,"'!",U$5,(MATCH(NOD_Data!$K33,'ALT 1B 051722'!$B:$B,0)))) -> 0 | V33: =INDIRECT(CONCATENATE("'",V$2,"'!",V$5,(MATCH(NOD_Data!$K33,'ALT 1B 051722'!$B:$B,0)))) -> 0 | X33: 1923 | AB33: 1943 | AC33: =INDEX('WYT_40-30-30'!$B$3:$G$84,MATCH(NOD_Data!AB33,'WYT_40-30-30'!$A$3:$A$84,0),Control!$P$5) -> 1 | AD33: 0.742539723 | AE33: 0.742539723 | AF33: 0 | AG33: 0 | AI33: =INDEX(ALT1_CalcAnn_Deliveries!$A$13:$AE$93,MATCH(NOD_Data!$AB33,ALT1_CalcAnn_Deliveries!$A$13:$A$93,0),NOD_Data!AI$4) -> 0.742539723 | AJ33: =INDEX(ALT2_CalcAnn_Deliveries!$A$13:$AE$93,MATCH(NOD_Data!$AB33,ALT2_CalcAnn_Deliveries!$A$13:$A$93,0),NOD_Data!AJ$4) -> 0.742539723 | AL33: 11 | AM33: 1932 | AN33: =OFFSET('ALT 1B 051722'!ES$13,$AL33-1,0) -> 3484.245135 | AO33: =OFFSET('ALT 1B 051722'!ET$13,$AL33-1,0) -> 1926.375655 | AP33: =OFFSET('ALT 3B 041222'!ES$13,$AL33-1,0) -> 3638.596578 | AQ33: =OFFSET('ALT 3B 041222'!ET$13,$AL33-1,0) -> 1983.496132 | AR33: =IF(AM33="",AR32,INDEX('ALT 1B 051722'!$AT$13:$AT$996,MATCH(EOMONTH(DATE($AM33,5,1),0),'ALT 1B 051722'!$B$13:$B$996,0))) -> 0.3584917618 | AS33: =IF(AM33="",AS32,INDEX('ALT 3B 041222'!$AT$13:$AT$996,MATCH(EOMONTH(DATE($AM33,5,1),0),'ALT 3B 041222'!$B$13:$B$996,0))) -> 0.3477723914 | AT33: =IFERROR(999999*OFFSET('WYT_40-30-30'!O$3,$AL33-1,0),NA()) ->  | AU33: =IFERROR(999999*OFFSET('WYT_40-30-30'!P$3,$AL33-1,0),NA()) ->  | AV33: =IFERROR(999999*OFFSET('WYT_40-30-30'!Q$3,$AL33-1,0),NA()) ->  | AW33: =IFERROR(999999*OFFSET('WYT_40-30-30'!R$3,$AL33-1,0),NA()) -> 3999996 | AX33: =IFERROR(999999*OFFSET('WYT_40-30-30'!S$3,$AL33-1,0),NA()) -> 
J34: 7 | K34: 1923-07-31 | L34: =INDIRECT(CONCATENATE("'",L$2,"'!",L$5,(MATCH(NOD_Data!$K34,'ALT 1B 051722'!$B:$B,0)))) -> 36.22413131 | M34: =INDIRECT(CONCATENATE("'",M$2,"'!",M$5,(MATCH(NOD_Data!$K34,'ALT 1B 051722'!$B:$B,0)))) -> 31.01284305 | N34: 65.86369456 | O34: 58.03374486 | Q34: =INDIRECT(CONCATENATE("'",Q$2,"'!",Q$5,(MATCH(NOD_Data!$K34,'ALT 1B 051722'!$B:$B,0)))) -> 0 | R34: =INDIRECT(CONCATENATE("'",R$2,"'!",R$5,(MATCH(NOD_Data!$K34,'ALT 1B 051722'!$B:$B,0)))) -> 0 | S34: =INDIRECT(CONCATENATE("'",S$2,"'!",S$5,(MATCH(NOD_Data!$K34,'ALT 1B 051722'!$B:$B,0)))) -> 0 | T34: =INDIRECT(CONCATENATE("'",T$2,"'!",T$5,(MATCH(NOD_Data!$K34,'ALT 1B 051722'!$B:$B,0)))) -> 0 | U34: =INDIRECT(CONCATENATE("'",U$2,"'!",U$5,(MATCH(NOD_Data!$K34,'ALT 1B 051722'!$B:$B,0)))) -> 0 | V34: =INDIRECT(CONCATENATE("'",V$2,"'!",V$5,(MATCH(NOD_Data!$K34,'ALT 1B 051722'!$B:$B,0)))) -> 0 | X34: 1923 | AB34: 1944 | AC34: =INDEX('WYT_40-30-30'!$B$3:$G$84,MATCH(NOD_Data!AB34,'WYT_40-30-30'!$A$3:$A$84,0),Control!$P$5) -> 4 | AD34: 47.95510607 | AE34: 49.76892124 | AF34: 0 | AG34: 0 | AI34: =INDEX(ALT1_CalcAnn_Deliveries!$A$13:$AE$93,MATCH(NOD_Data!$AB34,ALT1_CalcAnn_Deliveries!$A$13:$A$93,0),NOD_Data!AI$4) -> 47.95510607 | AJ34: =INDEX(ALT2_CalcAnn_Deliveries!$A$13:$AE$93,MATCH(NOD_Data!$AB34,ALT2_CalcAnn_Deliveries!$A$13:$A$93,0),NOD_Data!AJ$4) -> 49.76892124 | AL34: 11 | AN34: =OFFSET('ALT 1B 051722'!ES$13,$AL34-1,0) -> 3484.245135 | AO34: =OFFSET('ALT 1B 051722'!ET$13,$AL34-1,0) -> 1926.375655 | AP34: =OFFSET('ALT 3B 041222'!ES$13,$AL34-1,0) -> 3638.596578 | AQ34: =OFFSET('ALT 3B 041222'!ET$13,$AL34-1,0) -> 1983.496132 | AR34: =IF(AM34="",AR33,INDEX('ALT 1B 051722'!$AT$13:$AT$996,MATCH(EOMONTH(DATE($AM34,5,1),0),'ALT 1B 051722'!$B$13:$B$996,0))) -> 0.3584917618 | AS34: =IF(AM34="",AS33,INDEX('ALT 3B 041222'!$AT$13:$AT$996,MATCH(EOMONTH(DATE($AM34,5,1),0),'ALT 3B 041222'!$B$13:$B$996,0))) -> 0.3477723914 | AT34: =IFERROR(999999*OFFSET('WYT_40-30-30'!O$3,$AL34-1,0),NA()) ->  | AU34: =IFERROR(999999*OFFSET('WYT_40-30-30'!P$3,$AL34-1,0),NA()) ->  | AV34: =IFERROR(999999*OFFSET('WYT_40-30-30'!Q$3,$AL34-1,0),NA()) ->  | AW34: =IFERROR(999999*OFFSET('WYT_40-30-30'!R$3,$AL34-1,0),NA()) -> 3999996 | AX34: =IFERROR(999999*OFFSET('WYT_40-30-30'!S$3,$AL34-1,0),NA()) -> 
J35: 8 | K35: 1923-08-31 | L35: =INDIRECT(CONCATENATE("'",L$2,"'!",L$5,(MATCH(NOD_Data!$K35,'ALT 1B 051722'!$B:$B,0)))) -> 35.89641749 | M35: =INDIRECT(CONCATENATE("'",M$2,"'!",M$5,(MATCH(NOD_Data!$K35,'ALT 1B 051722'!$B:$B,0)))) -> 30.71039081 | N35: 65.86369456 | O35: 58.03374486 | Q35: =INDIRECT(CONCATENATE("'",Q$2,"'!",Q$5,(MATCH(NOD_Data!$K35,'ALT 1B 051722'!$B:$B,0)))) -> 0 | R35: =INDIRECT(CONCATENATE("'",R$2,"'!",R$5,(MATCH(NOD_Data!$K35,'ALT 1B 051722'!$B:$B,0)))) -> 0 | S35: =INDIRECT(CONCATENATE("'",S$2,"'!",S$5,(MATCH(NOD_Data!$K35,'ALT 1B 051722'!$B:$B,0)))) -> 0 | T35: =INDIRECT(CONCATENATE("'",T$2,"'!",T$5,(MATCH(NOD_Data!$K35,'ALT 1B 051722'!$B:$B,0)))) -> 0 | U35: =INDIRECT(CONCATENATE("'",U$2,"'!",U$5,(MATCH(NOD_Data!$K35,'ALT 1B 051722'!$B:$B,0)))) -> 0 | V35: =INDIRECT(CONCATENATE("'",V$2,"'!",V$5,(MATCH(NOD_Data!$K35,'ALT 1B 051722'!$B:$B,0)))) -> 0 | X35: 1923 | AB35: 1945 | AC35: =INDEX('WYT_40-30-30'!$B$3:$G$84,MATCH(NOD_Data!AB35,'WYT_40-30-30'!$A$3:$A$84,0),Control!$P$5) -> 3 | AD35: 3.15023876 | AE35: 3.150236143 | AF35: 0 | AG35: 0 | AI35: =INDEX(ALT1_CalcAnn_Deliveries!$A$13:$AE$93,MATCH(NOD_Data!$AB35,ALT1_CalcAnn_Deliveries!$A$13:$A$93,0),NOD_Data!AI$4) -> 3.15023876 | AJ35: =INDEX(ALT2_CalcAnn_Deliveries!$A$13:$AE$93,MATCH(NOD_Data!$AB35,ALT2_CalcAnn_Deliveries!$A$13:$A$93,0),NOD_Data!AJ$4) -> 3.150236143 | AL35: 12 | AM35: 1933 | AN35: =OFFSET('ALT 1B 051722'!ES$13,$AL35-1,0) -> 2962.326638 | AO35: =OFFSET('ALT 1B 051722'!ET$13,$AL35-1,0) -> 1532.552772 | AP35: =OFFSET('ALT 3B 041222'!ES$13,$AL35-1,0) -> 3072.21798 | AQ35: =OFFSET('ALT 3B 041222'!ET$13,$AL35-1,0) -> 1522.800999 | AR35: =IF(AM35="",AR34,INDEX('ALT 1B 051722'!$AT$13:$AT$996,MATCH(EOMONTH(DATE($AM35,5,1),0),'ALT 1B 051722'!$B$13:$B$996,0))) -> 0.396695844 | AS35: =IF(AM35="",AS34,INDEX('ALT 3B 041222'!$AT$13:$AT$996,MATCH(EOMONTH(DATE($AM35,5,1),0),'ALT 3B 041222'!$B$13:$B$996,0))) -> 0.396934466 | AT35: =IFERROR(999999*OFFSET('WYT_40-30-30'!O$3,$AL35-1,0),NA()) ->  | AU35: =IFERROR(999999*OFFSET('WYT_40-30-30'!P$3,$AL35-1,0),NA()) ->  | AV35: =IFERROR(999999*OFFSET('WYT_40-30-30'!Q$3,$AL35-1,0),NA()) ->  | AW35: =IFERROR(999999*OFFSET('WYT_40-30-30'!R$3,$AL35-1,0),NA()) ->  | AX35: =IFERROR(999999*OFFSET('WYT_40-30-30'!S$3,$AL35-1,0),NA()) -> 4999995
J36: 9 | K36: 1923-09-30 | L36: =INDIRECT(CONCATENATE("'",L$2,"'!",L$5,(MATCH(NOD_Data!$K36,'ALT 1B 051722'!$B:$B,0)))) -> 35.70795856 | M36: =INDIRECT(CONCATENATE("'",M$2,"'!",M$5,(MATCH(NOD_Data!$K36,'ALT 1B 051722'!$B:$B,0)))) -> 30.53643143 | N36: 65.86369456 | O36: 58.03374486 | Q36: =INDIRECT(CONCATENATE("'",Q$2,"'!",Q$5,(MATCH(NOD_Data!$K36,'ALT 1B 051722'!$B:$B,0)))) -> 0 | R36: =INDIRECT(CONCATENATE("'",R$2,"'!",R$5,(MATCH(NOD_Data!$K36,'ALT 1B 051722'!$B:$B,0)))) -> 0 | S36: =INDIRECT(CONCATENATE("'",S$2,"'!",S$5,(MATCH(NOD_Data!$K36,'ALT 1B 051722'!$B:$B,0)))) -> 0 | T36: =INDIRECT(CONCATENATE("'",T$2,"'!",T$5,(MATCH(NOD_Data!$K36,'ALT 1B 051722'!$B:$B,0)))) -> 0 | U36: =INDIRECT(CONCATENATE("'",U$2,"'!",U$5,(MATCH(NOD_Data!$K36,'ALT 1B 051722'!$B:$B,0)))) -> 0 | V36: =INDIRECT(CONCATENATE("'",V$2,"'!",V$5,(MATCH(NOD_Data!$K36,'ALT 1B 051722'!$B:$B,0)))) -> 0 | X36: 1923 | AB36: 1946 | AC36: =INDEX('WYT_40-30-30'!$B$3:$G$84,MATCH(NOD_Data!AB36,'WYT_40-30-30'!$A$3:$A$84,0),Control!$P$5) -> 3 | AD36: 0.02595164433 | AE36: 0.02595164022 | AF36: 0 | AG36: 0 | AI36: =INDEX(ALT1_CalcAnn_Deliveries!$A$13:$AE$93,MATCH(NOD_Data!$AB36,ALT1_CalcAnn_Deliveries!$A$13:$A$93,0),NOD_Data!AI$4) -> 0.02595164433 | AJ36: =INDEX(ALT2_CalcAnn_Deliveries!$A$13:$AE$93,MATCH(NOD_Data!$AB36,ALT2_CalcAnn_Deliveries!$A$13:$A$93,0),NOD_Data!AJ$4) -> 0.02595164022 | AL36: 12 | AN36: =OFFSET('ALT 1B 051722'!ES$13,$AL36-1,0) -> 2962.326638 | AO36: =OFFSET('ALT 1B 051722'!ET$13,$AL36-1,0) -> 1532.552772 | AP36: =OFFSET('ALT 3B 041222'!ES$13,$AL36-1,0) -> 3072.21798 | AQ36: =OFFSET('ALT 3B 041222'!ET$13,$AL36-1,0) -> 1522.800999 | AR36: =IF(AM36="",AR35,INDEX('ALT 1B 051722'!$AT$13:$AT$996,MATCH(EOMONTH(DATE($AM36,5,1),0),'ALT 1B 051722'!$B$13:$B$996,0))) -> 0.396695844 | AS36: =IF(AM36="",AS35,INDEX('ALT 3B 041222'!$AT$13:$AT$996,MATCH(EOMONTH(DATE($AM36,5,1),0),'ALT 3B 041222'!$B$13:$B$996,0))) -> 0.396934466 | AT36: =IFERROR(999999*OFFSET('WYT_40-30-30'!O$3,$AL36-1,0),NA()) ->  | AU36: =IFERROR(999999*OFFSET('WYT_40-30-30'!P$3,$AL36-1,0),NA()) ->  | AV36: =IFERROR(999999*OFFSET('WYT_40-30-30'!Q$3,$AL36-1,0),NA()) ->  | AW36: =IFERROR(999999*OFFSET('WYT_40-30-30'!R$3,$AL36-1,0),NA()) ->  | AX36: =IFERROR(999999*OFFSET('WYT_40-30-30'!S$3,$AL36-1,0),NA()) -> 4999995
J37: 10 | K37: 1923-10-31 | L37: =INDIRECT(CONCATENATE("'",L$2,"'!",L$5,(MATCH(NOD_Data!$K37,'ALT 1B 051722'!$B:$B,0)))) -> 35.59636721 | M37: =INDIRECT(CONCATENATE("'",M$2,"'!",M$5,(MATCH(NOD_Data!$K37,'ALT 1B 051722'!$B:$B,0)))) -> 30.43307398 | N37: 65.86369456 | O37: 58.03374486 | Q37: =INDIRECT(CONCATENATE("'",Q$2,"'!",Q$5,(MATCH(NOD_Data!$K37,'ALT 1B 051722'!$B:$B,0)))) -> 0 | R37: =INDIRECT(CONCATENATE("'",R$2,"'!",R$5,(MATCH(NOD_Data!$K37,'ALT 1B 051722'!$B:$B,0)))) -> 0 | S37: =INDIRECT(CONCATENATE("'",S$2,"'!",S$5,(MATCH(NOD_Data!$K37,'ALT 1B 051722'!$B:$B,0)))) -> 0 | T37: =INDIRECT(CONCATENATE("'",T$2,"'!",T$5,(MATCH(NOD_Data!$K37,'ALT 1B 051722'!$B:$B,0)))) -> 0 | U37: =INDIRECT(CONCATENATE("'",U$2,"'!",U$5,(MATCH(NOD_Data!$K37,'ALT 1B 051722'!$B:$B,0)))) -> 0 | V37: =INDIRECT(CONCATENATE("'",V$2,"'!",V$5,(MATCH(NOD_Data!$K37,'ALT 1B 051722'!$B:$B,0)))) -> 0 | X37: 1923 | AB37: 1947 | AC37: =INDEX('WYT_40-30-30'!$B$3:$G$84,MATCH(NOD_Data!AB37,'WYT_40-30-30'!$A$3:$A$84,0),Control!$P$5) -> 4 | AD37: 17.35668426 | AE37: 15.99983274 | AF37: 0 | AG37: 0 | AI37: =INDEX(ALT1_CalcAnn_Deliveries!$A$13:$AE$93,MATCH(NOD_Data!$AB37,ALT1_CalcAnn_Deliveries!$A$13:$A$93,0),NOD_Data!AI$4) -> 17.35668426 | AJ37: =INDEX(ALT2_CalcAnn_Deliveries!$A$13:$AE$93,MATCH(NOD_Data!$AB37,ALT2_CalcAnn_Deliveries!$A$13:$A$93,0),NOD_Data!AJ$4) -> 15.99983274 | AL37: 13 | AM37: 1934 | AN37: =OFFSET('ALT 1B 051722'!ES$13,$AL37-1,0) -> 2711.50556 | AO37: =OFFSET('ALT 1B 051722'!ET$13,$AL37-1,0) -> 1330.518631 | AP37: =OFFSET('ALT 3B 041222'!ES$13,$AL37-1,0) -> 2815.83078 | AQ37: =OFFSET('ALT 3B 041222'!ET$13,$AL37-1,0) -> 1323.119279 | AR37: =IF(AM37="",AR36,INDEX('ALT 1B 051722'!$AT$13:$AT$996,MATCH(EOMONTH(DATE($AM37,5,1),0),'ALT 1B 051722'!$B$13:$B$996,0))) -> 0.1426488231 | AS37: =IF(AM37="",AS36,INDEX('ALT 3B 041222'!$AT$13:$AT$996,MATCH(EOMONTH(DATE($AM37,5,1),0),'ALT 3B 041222'!$B$13:$B$996,0))) -> 0.1474039256 | AT37: =IFERROR(999999*OFFSET('WYT_40-30-30'!O$3,$AL37-1,0),NA()) ->  | AU37: =IFERROR(999999*OFFSET('WYT_40-30-30'!P$3,$AL37-1,0),NA()) ->  | AV37: =IFERROR(999999*OFFSET('WYT_40-30-30'!Q$3,$AL37-1,0),NA()) ->  | AW37: =IFERROR(999999*OFFSET('WYT_40-30-30'!R$3,$AL37-1,0),NA()) ->  | AX37: =IFERROR(999999*OFFSET('WYT_40-30-30'!S$3,$AL37-1,0),NA()) -> 4999995
J38: 11 | K38: 1923-11-30 | L38: =INDIRECT(CONCATENATE("'",L$2,"'!",L$5,(MATCH(NOD_Data!$K38,'ALT 1B 051722'!$B:$B,0)))) -> 35.53470171 | M38: =INDIRECT(CONCATENATE("'",M$2,"'!",M$5,(MATCH(NOD_Data!$K38,'ALT 1B 051722'!$B:$B,0)))) -> 30.37709131 | N38: 65.86369456 | O38: 58.03374486 | Q38: =INDIRECT(CONCATENATE("'",Q$2,"'!",Q$5,(MATCH(NOD_Data!$K38,'ALT 1B 051722'!$B:$B,0)))) -> 0 | R38: =INDIRECT(CONCATENATE("'",R$2,"'!",R$5,(MATCH(NOD_Data!$K38,'ALT 1B 051722'!$B:$B,0)))) -> 0 | S38: =INDIRECT(CONCATENATE("'",S$2,"'!",S$5,(MATCH(NOD_Data!$K38,'ALT 1B 051722'!$B:$B,0)))) -> 0 | T38: =INDIRECT(CONCATENATE("'",T$2,"'!",T$5,(MATCH(NOD_Data!$K38,'ALT 1B 051722'!$B:$B,0)))) -> 0 | U38: =INDIRECT(CONCATENATE("'",U$2,"'!",U$5,(MATCH(NOD_Data!$K38,'ALT 1B 051722'!$B:$B,0)))) -> 0 | V38: =INDIRECT(CONCATENATE("'",V$2,"'!",V$5,(MATCH(NOD_Data!$K38,'ALT 1B 051722'!$B:$B,0)))) -> 0 | X38: 1923 | AB38: 1948 | AC38: =INDEX('WYT_40-30-30'!$B$3:$G$84,MATCH(NOD_Data!AB38,'WYT_40-30-30'!$A$3:$A$84,0),Control!$P$5) -> 3 | AD38: 2.115150014 | AE38: 2.076686139 | AF38: 0 | AG38: 0 | AI38: =INDEX(ALT1_CalcAnn_Deliveries!$A$13:$AE$93,MATCH(NOD_Data!$AB38,ALT1_CalcAnn_Deliveries!$A$13:$A$93,0),NOD_Data!AI$4) -> 2.115150014 | AJ38: =INDEX(ALT2_CalcAnn_Deliveries!$A$13:$AE$93,MATCH(NOD_Data!$AB38,ALT2_CalcAnn_Deliveries!$A$13:$A$93,0),NOD_Data!AJ$4) -> 2.076686139 | AL38: 13 | AN38: =OFFSET('ALT 1B 051722'!ES$13,$AL38-1,0) -> 2711.50556 | AO38: =OFFSET('ALT 1B 051722'!ET$13,$AL38-1,0) -> 1330.518631 | AP38: =OFFSET('ALT 3B 041222'!ES$13,$AL38-1,0) -> 2815.83078 | AQ38: =OFFSET('ALT 3B 041222'!ET$13,$AL38-1,0) -> 1323.119279 | AR38: =IF(AM38="",AR37,INDEX('ALT 1B 051722'!$AT$13:$AT$996,MATCH(EOMONTH(DATE($AM38,5,1),0),'ALT 1B 051722'!$B$13:$B$996,0))) -> 0.1426488231 | AS38: =IF(AM38="",AS37,INDEX('ALT 3B 041222'!$AT$13:$AT$996,MATCH(EOMONTH(DATE($AM38,5,1),0),'ALT 3B 041222'!$B$13:$B$996,0))) -> 0.1474039256 | AT38: =IFERROR(999999*OFFSET('WYT_40-30-30'!O$3,$AL38-1,0),NA()) ->  | AU38: =IFERROR(999999*OFFSET('WYT_40-30-30'!P$3,$AL38-1,0),NA()) ->  | AV38: =IFERROR(999999*OFFSET('WYT_40-30-30'!Q$3,$AL38-1,0),NA()) ->  | AW38: =IFERROR(999999*OFFSET('WYT_40-30-30'!R$3,$AL38-1,0),NA()) ->  | AX38: =IFERROR(999999*OFFSET('WYT_40-30-30'!S$3,$AL38-1,0),NA()) -> 4999995
J39: 12 | K39: 1923-12-31 | L39: =INDIRECT(CONCATENATE("'",L$2,"'!",L$5,(MATCH(NOD_Data!$K39,'ALT 1B 051722'!$B:$B,0)))) -> 35.53667129 | M39: =INDIRECT(CONCATENATE("'",M$2,"'!",M$5,(MATCH(NOD_Data!$K39,'ALT 1B 051722'!$B:$B,0)))) -> 30.37890747 | N39: 65.86369456 | O39: 58.03374486 | Q39: =INDIRECT(CONCATENATE("'",Q$2,"'!",Q$5,(MATCH(NOD_Data!$K39,'ALT 1B 051722'!$B:$B,0)))) -> 0 | R39: =INDIRECT(CONCATENATE("'",R$2,"'!",R$5,(MATCH(NOD_Data!$K39,'ALT 1B 051722'!$B:$B,0)))) -> 0 | S39: =INDIRECT(CONCATENATE("'",S$2,"'!",S$5,(MATCH(NOD_Data!$K39,'ALT 1B 051722'!$B:$B,0)))) -> 0 | T39: =INDIRECT(CONCATENATE("'",T$2,"'!",T$5,(MATCH(NOD_Data!$K39,'ALT 1B 051722'!$B:$B,0)))) -> 0 | U39: =INDIRECT(CONCATENATE("'",U$2,"'!",U$5,(MATCH(NOD_Data!$K39,'ALT 1B 051722'!$B:$B,0)))) -> 0 | V39: =INDIRECT(CONCATENATE("'",V$2,"'!",V$5,(MATCH(NOD_Data!$K39,'ALT 1B 051722'!$B:$B,0)))) -> 0 | X39: 1923 | AB39: 1949 | AC39: =INDEX('WYT_40-30-30'!$B$3:$G$84,MATCH(NOD_Data!AB39,'WYT_40-30-30'!$A$3:$A$84,0),Control!$P$5) -> 4 | AD39: 5.074237916 | AE39: 5.147781019 | AF39: 0 | AG39: 0 | AI39: =INDEX(ALT1_CalcAnn_Deliveries!$A$13:$AE$93,MATCH(NOD_Data!$AB39,ALT1_CalcAnn_Deliveries!$A$13:$A$93,0),NOD_Data!AI$4) -> 5.074237916 | AJ39: =INDEX(ALT2_CalcAnn_Deliveries!$A$13:$AE$93,MATCH(NOD_Data!$AB39,ALT2_CalcAnn_Deliveries!$A$13:$A$93,0),NOD_Data!AJ$4) -> 5.147781019 | AL39: 14 | AM39: 1935 | AN39: =OFFSET('ALT 1B 051722'!ES$13,$AL39-1,0) -> 4493.80009 | AO39: =OFFSET('ALT 1B 051722'!ET$13,$AL39-1,0) -> 2821.853185 | AP39: =OFFSET('ALT 3B 041222'!ES$13,$AL39-1,0) -> 4621.654783 | AQ39: =OFFSET('ALT 3B 041222'!ET$13,$AL39-1,0) -> 2814.691037 | AR39: =IF(AM39="",AR38,INDEX('ALT 1B 051722'!$AT$13:$AT$996,MATCH(EOMONTH(DATE($AM39,5,1),0),'ALT 1B 051722'!$B$13:$B$996,0))) -> 0.8767067612 | AS39: =IF(AM39="",AS38,INDEX('ALT 3B 041222'!$AT$13:$AT$996,MATCH(EOMONTH(DATE($AM39,5,1),0),'ALT 3B 041222'!$B$13:$B$996,0))) -> 0.8741707116 | AT39: =IFERROR(999999*OFFSET('WYT_40-30-30'!O$3,$AL39-1,0),NA()) ->  | AU39: =IFERROR(999999*OFFSET('WYT_40-30-30'!P$3,$AL39-1,0),NA()) ->  | AV39: =IFERROR(999999*OFFSET('WYT_40-30-30'!Q$3,$AL39-1,0),NA()) -> 2999997 | AW39: =IFERROR(999999*OFFSET('WYT_40-30-30'!R$3,$AL39-1,0),NA()) ->  | AX39: =IFERROR(999999*OFFSET('WYT_40-30-30'!S$3,$AL39-1,0),NA()) -> 
J40: 1 | K40: 1924-01-31 | L40: =INDIRECT(CONCATENATE("'",L$2,"'!",L$5,(MATCH(NOD_Data!$K40,'ALT 1B 051722'!$B:$B,0)))) -> 35.61875227 | M40: =INDIRECT(CONCATENATE("'",M$2,"'!",M$5,(MATCH(NOD_Data!$K40,'ALT 1B 051722'!$B:$B,0)))) -> 30.45462098 | N40: 65.86369456 | O40: 58.03374486 | Q40: =INDIRECT(CONCATENATE("'",Q$2,"'!",Q$5,(MATCH(NOD_Data!$K40,'ALT 1B 051722'!$B:$B,0)))) -> 0 | R40: =INDIRECT(CONCATENATE("'",R$2,"'!",R$5,(MATCH(NOD_Data!$K40,'ALT 1B 051722'!$B:$B,0)))) -> 0 | S40: =INDIRECT(CONCATENATE("'",S$2,"'!",S$5,(MATCH(NOD_Data!$K40,'ALT 1B 051722'!$B:$B,0)))) -> 0 | T40: =INDIRECT(CONCATENATE("'",T$2,"'!",T$5,(MATCH(NOD_Data!$K40,'ALT 1B 051722'!$B:$B,0)))) -> 0 | U40: =INDIRECT(CONCATENATE("'",U$2,"'!",U$5,(MATCH(NOD_Data!$K40,'ALT 1B 051722'!$B:$B,0)))) -> 0 | V40: =INDIRECT(CONCATENATE("'",V$2,"'!",V$5,(MATCH(NOD_Data!$K40,'ALT 1B 051722'!$B:$B,0)))) -> 0 | X40: 1923 | AB40: 1950 | AC40: =INDEX('WYT_40-30-30'!$B$3:$G$84,MATCH(NOD_Data!AB40,'WYT_40-30-30'!$A$3:$A$84,0),Control!$P$5) -> 3 | AD40: 8.312131051 | AE40: 8.26777659 | AF40: 0 | AG40: 0 | AI40: =INDEX(ALT1_CalcAnn_Deliveries!$A$13:$AE$93,MATCH(NOD_Data!$AB40,ALT1_CalcAnn_Deliveries!$A$13:$A$93,0),NOD_Data!AI$4) -> 8.312131051 | AJ40: =INDEX(ALT2_CalcAnn_Deliveries!$A$13:$AE$93,MATCH(NOD_Data!$AB40,ALT2_CalcAnn_Deliveries!$A$13:$A$93,0),NOD_Data!AJ$4) -> 8.26777659 | AL40: 14 | AN40: =OFFSET('ALT 1B 051722'!ES$13,$AL40-1,0) -> 4493.80009 | AO40: =OFFSET('ALT 1B 051722'!ET$13,$AL40-1,0) -> 2821.853185 | AP40: =OFFSET('ALT 3B 041222'!ES$13,$AL40-1,0) -> 4621.654783 | AQ40: =OFFSET('ALT 3B 041222'!ET$13,$AL40-1,0) -> 2814.691037 | AR40: =IF(AM40="",AR39,INDEX('ALT 1B 051722'!$AT$13:$AT$996,MATCH(EOMONTH(DATE($AM40,5,1),0),'ALT 1B 051722'!$B$13:$B$996,0))) -> 0.8767067612 | AS40: =IF(AM40="",AS39,INDEX('ALT 3B 041222'!$AT$13:$AT$996,MATCH(EOMONTH(DATE($AM40,5,1),0),'ALT 3B 041222'!$B$13:$B$996,0))) -> 0.8741707116 | AT40: =IFERROR(999999*OFFSET('WYT_40-30-30'!O$3,$AL40-1,0),NA()) ->  | AU40: =IFERROR(999999*OFFSET('WYT_40-30-30'!P$3,$AL40-1,0),NA()) ->  | AV40: =IFERROR(999999*OFFSET('WYT_40-30-30'!Q$3,$AL40-1,0),NA()) -> 2999997 | AW40: =IFERROR(999999*OFFSET('WYT_40-30-30'!R$3,$AL40-1,0),NA()) ->  | AX40: =IFERROR(999999*OFFSET('WYT_40-30-30'!S$3,$AL40-1,0),NA()) -> 
J41: 2 | K41: 1924-02-29 | L41: =INDIRECT(CONCATENATE("'",L$2,"'!",L$5,(MATCH(NOD_Data!$K41,'ALT 1B 051722'!$B:$B,0)))) -> 35.62987901 | M41: =INDIRECT(CONCATENATE("'",M$2,"'!",M$5,(MATCH(NOD_Data!$K41,'ALT 1B 051722'!$B:$B,0)))) -> 30.46488673 | N41: 65.86369456 | O41: 58.03374486 | Q41: =INDIRECT(CONCATENATE("'",Q$2,"'!",Q$5,(MATCH(NOD_Data!$K41,'ALT 1B 051722'!$B:$B,0)))) -> 0 | R41: =INDIRECT(CONCATENATE("'",R$2,"'!",R$5,(MATCH(NOD_Data!$K41,'ALT 1B 051722'!$B:$B,0)))) -> 0 | S41: =INDIRECT(CONCATENATE("'",S$2,"'!",S$5,(MATCH(NOD_Data!$K41,'ALT 1B 051722'!$B:$B,0)))) -> 0 | T41: =INDIRECT(CONCATENATE("'",T$2,"'!",T$5,(MATCH(NOD_Data!$K41,'ALT 1B 051722'!$B:$B,0)))) -> 0 | U41: =INDIRECT(CONCATENATE("'",U$2,"'!",U$5,(MATCH(NOD_Data!$K41,'ALT 1B 051722'!$B:$B,0)))) -> 0 | V41: =INDIRECT(CONCATENATE("'",V$2,"'!",V$5,(MATCH(NOD_Data!$K41,'ALT 1B 051722'!$B:$B,0)))) -> 0 | X41: 1923 | AB41: 1951 | AC41: =INDEX('WYT_40-30-30'!$B$3:$G$84,MATCH(NOD_Data!AB41,'WYT_40-30-30'!$A$3:$A$84,0),Control!$P$5) -> 2 | AD41: 0.1276606565 | AE41: 0.1276606969 | AF41: 9.211705533 | AG41: 0 | AI41: =INDEX(ALT1_CalcAnn_Deliveries!$A$13:$AE$93,MATCH(NOD_Data!$AB41,ALT1_CalcAnn_Deliveries!$A$13:$A$93,0),NOD_Data!AI$4) -> 0.1276606565 | AJ41: =INDEX(ALT2_CalcAnn_Deliveries!$A$13:$AE$93,MATCH(NOD_Data!$AB41,ALT2_CalcAnn_Deliveries!$A$13:$A$93,0),NOD_Data!AJ$4) -> 0.1276606969 | AL41: 15 | AM41: 1936 | AN41: =OFFSET('ALT 1B 051722'!ES$13,$AL41-1,0) -> 5143.417509 | AO41: =OFFSET('ALT 1B 051722'!ET$13,$AL41-1,0) -> 3459.773566 | AP41: =OFFSET('ALT 3B 041222'!ES$13,$AL41-1,0) -> 5153.576612 | AQ41: =OFFSET('ALT 3B 041222'!ET$13,$AL41-1,0) -> 3446.706605 | AR41: =IF(AM41="",AR40,INDEX('ALT 1B 051722'!$AT$13:$AT$996,MATCH(EOMONTH(DATE($AM41,5,1),0),'ALT 1B 051722'!$B$13:$B$996,0))) -> 0.6496274016 | AS41: =IF(AM41="",AS40,INDEX('ALT 3B 041222'!$AT$13:$AT$996,MATCH(EOMONTH(DATE($AM41,5,1),0),'ALT 3B 041222'!$B$13:$B$996,0))) -> 0.6496232374 | AT41: =IFERROR(999999*OFFSET('WYT_40-30-30'!O$3,$AL41-1,0),NA()) ->  | AU41: =IFERROR(999999*OFFSET('WYT_40-30-30'!P$3,$AL41-1,0),NA()) ->  | AV41: =IFERROR(999999*OFFSET('WYT_40-30-30'!Q$3,$AL41-1,0),NA()) -> 2999997 | AW41: =IFERROR(999999*OFFSET('WYT_40-30-30'!R$3,$AL41-1,0),NA()) ->  | AX41: =IFERROR(999999*OFFSET('WYT_40-30-30'!S$3,$AL41-1,0),NA()) -> 
J42: 3 | K42: 1924-03-31 | L42: =INDIRECT(CONCATENATE("'",L$2,"'!",L$5,(MATCH(NOD_Data!$K42,'ALT 1B 051722'!$B:$B,0)))) -> 33.2490361 | M42: =INDIRECT(CONCATENATE("'",M$2,"'!",M$5,(MATCH(NOD_Data!$K42,'ALT 1B 051722'!$B:$B,0)))) -> 28.08896665 | N42: 65.86369456 | O42: 58.03374486 | Q42: =INDIRECT(CONCATENATE("'",Q$2,"'!",Q$5,(MATCH(NOD_Data!$K42,'ALT 1B 051722'!$B:$B,0)))) -> 0 | R42: =INDIRECT(CONCATENATE("'",R$2,"'!",R$5,(MATCH(NOD_Data!$K42,'ALT 1B 051722'!$B:$B,0)))) -> 0 | S42: =INDIRECT(CONCATENATE("'",S$2,"'!",S$5,(MATCH(NOD_Data!$K42,'ALT 1B 051722'!$B:$B,0)))) -> 2.317912658 | T42: =INDIRECT(CONCATENATE("'",T$2,"'!",T$5,(MATCH(NOD_Data!$K42,'ALT 1B 051722'!$B:$B,0)))) -> 2.317912658 | U42: =INDIRECT(CONCATENATE("'",U$2,"'!",U$5,(MATCH(NOD_Data!$K42,'ALT 1B 051722'!$B:$B,0)))) -> 0 | V42: =INDIRECT(CONCATENATE("'",V$2,"'!",V$5,(MATCH(NOD_Data!$K42,'ALT 1B 051722'!$B:$B,0)))) -> 0 | X42: 1924 | AB42: 1952 | AC42: =INDEX('WYT_40-30-30'!$B$3:$G$84,MATCH(NOD_Data!AB42,'WYT_40-30-30'!$A$3:$A$84,0),Control!$P$5) -> 1 | AD42: 0 | AE42: 0 | AF42: 0 | AG42: 0 | AI42: =INDEX(ALT1_CalcAnn_Deliveries!$A$13:$AE$93,MATCH(NOD_Data!$AB42,ALT1_CalcAnn_Deliveries!$A$13:$A$93,0),NOD_Data!AI$4) -> 0 | AJ42: =INDEX(ALT2_CalcAnn_Deliveries!$A$13:$AE$93,MATCH(NOD_Data!$AB42,ALT2_CalcAnn_Deliveries!$A$13:$A$93,0),NOD_Data!AJ$4) -> 0 | AL42: 15 | AN42: =OFFSET('ALT 1B 051722'!ES$13,$AL42-1,0) -> 5143.417509 | AO42: =OFFSET('ALT 1B 051722'!ET$13,$AL42-1,0) -> 3459.773566 | AP42: =OFFSET('ALT 3B 041222'!ES$13,$AL42-1,0) -> 5153.576612 | AQ42: =OFFSET('ALT 3B 041222'!ET$13,$AL42-1,0) -> 3446.706605 | AR42: =IF(AM42="",AR41,INDEX('ALT 1B 051722'!$AT$13:$AT$996,MATCH(EOMONTH(DATE($AM42,5,1),0),'ALT 1B 051722'!$B$13:$B$996,0))) -> 0.6496274016 | AS42: =IF(AM42="",AS41,INDEX('ALT 3B 041222'!$AT$13:$AT$996,MATCH(EOMONTH(DATE($AM42,5,1),0),'ALT 3B 041222'!$B$13:$B$996,0))) -> 0.6496232374 | AT42: =IFERROR(999999*OFFSET('WYT_40-30-30'!O$3,$AL42-1,0),NA()) ->  | AU42: =IFERROR(999999*OFFSET('WYT_40-30-30'!P$3,$AL42-1,0),NA()) ->  | AV42: =IFERROR(999999*OFFSET('WYT_40-30-30'!Q$3,$AL42-1,0),NA()) -> 2999997 | AW42: =IFERROR(999999*OFFSET('WYT_40-30-30'!R$3,$AL42-1,0),NA()) ->  | AX42: =IFERROR(999999*OFFSET('WYT_40-30-30'!S$3,$AL42-1,0),NA()) -> 
J43: 4 | K43: 1924-04-30 | L43: =INDIRECT(CONCATENATE("'",L$2,"'!",L$5,(MATCH(NOD_Data!$K43,'ALT 1B 051722'!$B:$B,0)))) -> 21.70775379 | M43: =INDIRECT(CONCATENATE("'",M$2,"'!",M$5,(MATCH(NOD_Data!$K43,'ALT 1B 051722'!$B:$B,0)))) -> 16.56560958 | N43: 65.86369456 | O43: 58.03374486 | Q43: =INDIRECT(CONCATENATE("'",Q$2,"'!",Q$5,(MATCH(NOD_Data!$K43,'ALT 1B 051722'!$B:$B,0)))) -> 0 | R43: =INDIRECT(CONCATENATE("'",R$2,"'!",R$5,(MATCH(NOD_Data!$K43,'ALT 1B 051722'!$B:$B,0)))) -> 0 | S43: =INDIRECT(CONCATENATE("'",S$2,"'!",S$5,(MATCH(NOD_Data!$K43,'ALT 1B 051722'!$B:$B,0)))) -> 11.36668692 | T43: =INDIRECT(CONCATENATE("'",T$2,"'!",T$5,(MATCH(NOD_Data!$K43,'ALT 1B 051722'!$B:$B,0)))) -> 11.36668692 | U43: =INDIRECT(CONCATENATE("'",U$2,"'!",U$5,(MATCH(NOD_Data!$K43,'ALT 1B 051722'!$B:$B,0)))) -> 0 | V43: =INDIRECT(CONCATENATE("'",V$2,"'!",V$5,(MATCH(NOD_Data!$K43,'ALT 1B 051722'!$B:$B,0)))) -> 0 | X43: 1924 | AB43: 1953 | AC43: =INDEX('WYT_40-30-30'!$B$3:$G$84,MATCH(NOD_Data!AB43,'WYT_40-30-30'!$A$3:$A$84,0),Control!$P$5) -> 1 | AD43: 0.1582736513 | AE43: 0.212753897 | AF43: 0 | AG43: 0 | AI43: =INDEX(ALT1_CalcAnn_Deliveries!$A$13:$AE$93,MATCH(NOD_Data!$AB43,ALT1_CalcAnn_Deliveries!$A$13:$A$93,0),NOD_Data!AI$4) -> 0.1582736513 | AJ43: =INDEX(ALT2_CalcAnn_Deliveries!$A$13:$AE$93,MATCH(NOD_Data!$AB43,ALT2_CalcAnn_Deliveries!$A$13:$A$93,0),NOD_Data!AJ$4) -> 0.212753897 | AL43: 16 | AM43: 1937 | AN43: =OFFSET('ALT 1B 051722'!ES$13,$AL43-1,0) -> 5139.572617 | AO43: =OFFSET('ALT 1B 051722'!ET$13,$AL43-1,0) -> 2680.884083 | AP43: =OFFSET('ALT 3B 041222'!ES$13,$AL43-1,0) -> 5180.044539 | AQ43: =OFFSET('ALT 3B 041222'!ET$13,$AL43-1,0) -> 2638.851143 | AR43: =IF(AM43="",AR42,INDEX('ALT 1B 051722'!$AT$13:$AT$996,MATCH(EOMONTH(DATE($AM43,5,1),0),'ALT 1B 051722'!$B$13:$B$996,0))) -> 0.698445796 | AS43: =IF(AM43="",AS42,INDEX('ALT 3B 041222'!$AT$13:$AT$996,MATCH(EOMONTH(DATE($AM43,5,1),0),'ALT 3B 041222'!$B$13:$B$996,0))) -> 0.6802499814 | AT43: =IFERROR(999999*OFFSET('WYT_40-30-30'!O$3,$AL43-1,0),NA()) ->  | AU43: =IFERROR(999999*OFFSET('WYT_40-30-30'!P$3,$AL43-1,0),NA()) ->  | AV43: =IFERROR(999999*OFFSET('WYT_40-30-30'!Q$3,$AL43-1,0),NA()) -> 2999997 | AW43: =IFERROR(999999*OFFSET('WYT_40-30-30'!R$3,$AL43-1,0),NA()) ->  | AX43: =IFERROR(999999*OFFSET('WYT_40-30-30'!S$3,$AL43-1,0),NA()) -> 
J44: 5 | K44: 1924-05-31 | L44: =INDIRECT(CONCATENATE("'",L$2,"'!",L$5,(MATCH(NOD_Data!$K44,'ALT 1B 051722'!$B:$B,0)))) -> 7.376559035 | M44: =INDIRECT(CONCATENATE("'",M$2,"'!",M$5,(MATCH(NOD_Data!$K44,'ALT 1B 051722'!$B:$B,0)))) -> 2.268703838 | N44: 65.86369456 | O44: 58.03374486 | Q44: =INDIRECT(CONCATENATE("'",Q$2,"'!",Q$5,(MATCH(NOD_Data!$K44,'ALT 1B 051722'!$B:$B,0)))) -> 0 | R44: =INDIRECT(CONCATENATE("'",R$2,"'!",R$5,(MATCH(NOD_Data!$K44,'ALT 1B 051722'!$B:$B,0)))) -> 0 | S44: =INDIRECT(CONCATENATE("'",S$2,"'!",S$5,(MATCH(NOD_Data!$K44,'ALT 1B 051722'!$B:$B,0)))) -> 14.13035232 | T44: =INDIRECT(CONCATENATE("'",T$2,"'!",T$5,(MATCH(NOD_Data!$K44,'ALT 1B 051722'!$B:$B,0)))) -> 14.13035232 | U44: =INDIRECT(CONCATENATE("'",U$2,"'!",U$5,(MATCH(NOD_Data!$K44,'ALT 1B 051722'!$B:$B,0)))) -> 0 | V44: =INDIRECT(CONCATENATE("'",V$2,"'!",V$5,(MATCH(NOD_Data!$K44,'ALT 1B 051722'!$B:$B,0)))) -> 0 | X44: 1924 | AB44: 1954 | AC44: =INDEX('WYT_40-30-30'!$B$3:$G$84,MATCH(NOD_Data!AB44,'WYT_40-30-30'!$A$3:$A$84,0),Control!$P$5) -> 2 | AD44: =SUMIF($X$13:$X$996,AB44,$S$13:$S$996) -> 0 | AE44: =SUMIF($X$13:$X$996,AB44,$T$13:$T$996) -> 0 | AF44: 0 | AG44: 0 | AI44: =INDEX(ALT1_CalcAnn_Deliveries!$A$13:$AE$93,MATCH(NOD_Data!$AB44,ALT1_CalcAnn_Deliveries!$A$13:$A$93,0),NOD_Data!AI$4) -> 0 | AJ44: =INDEX(ALT2_CalcAnn_Deliveries!$A$13:$AE$93,MATCH(NOD_Data!$AB44,ALT2_CalcAnn_Deliveries!$A$13:$A$93,0),NOD_Data!AJ$4) -> 0 | AL44: 16 | AN44: =OFFSET('ALT 1B 051722'!ES$13,$AL44-1,0) -> 5139.572617 | AO44: =OFFSET('ALT 1B 051722'!ET$13,$AL44-1,0) -> 2680.884083 | AP44: =OFFSET('ALT 3B 041222'!ES$13,$AL44-1,0) -> 5180.044539 | AQ44: =OFFSET('ALT 3B 041222'!ET$13,$AL44-1,0) -> 2638.851143 | AR44: =IF(AM44="",AR43,INDEX('ALT 1B 051722'!$AT$13:$AT$996,MATCH(EOMONTH(DATE($AM44,5,1),0),'ALT 1B 051722'!$B$13:$B$996,0))) -> 0.698445796 | AS44: =IF(AM44="",AS43,INDEX('ALT 3B 041222'!$AT$13:$AT$996,MATCH(EOMONTH(DATE($AM44,5,1),0),'ALT 3B 041222'!$B$13:$B$996,0))) -> 0.6802499814 | AT44: =IFERROR(999999*OFFSET('WYT_40-30-30'!O$3,$AL44-1,0),NA()) ->  | AU44: =IFERROR(999999*OFFSET('WYT_40-30-30'!P$3,$AL44-1,0),NA()) ->  | AV44: =IFERROR(999999*OFFSET('WYT_40-30-30'!Q$3,$AL44-1,0),NA()) -> 2999997 | AW44: =IFERROR(999999*OFFSET('WYT_40-30-30'!R$3,$AL44-1,0),NA()) ->  | AX44: =IFERROR(999999*OFFSET('WYT_40-30-30'!S$3,$AL44-1,0),NA()) -> 
J45: 6 | K45: 1924-06-30 | L45: =INDIRECT(CONCATENATE("'",L$2,"'!",L$5,(MATCH(NOD_Data!$K45,'ALT 1B 051722'!$B:$B,0)))) -> 0.003697584053 | M45: =INDIRECT(CONCATENATE("'",M$2,"'!",M$5,(MATCH(NOD_Data!$K45,'ALT 1B 051722'!$B:$B,0)))) -> 0.001381930878 | N45: 65.86369456 | O45: 58.03374486 | Q45: =INDIRECT(CONCATENATE("'",Q$2,"'!",Q$5,(MATCH(NOD_Data!$K45,'ALT 1B 051722'!$B:$B,0)))) -> 0 | R45: =INDIRECT(CONCATENATE("'",R$2,"'!",R$5,(MATCH(NOD_Data!$K45,'ALT 1B 051722'!$B:$B,0)))) -> 0 | S45: =INDIRECT(CONCATENATE("'",S$2,"'!",S$5,(MATCH(NOD_Data!$K45,'ALT 1B 051722'!$B:$B,0)))) -> 7.289602545 | T45: =INDIRECT(CONCATENATE("'",T$2,"'!",T$5,(MATCH(NOD_Data!$K45,'ALT 1B 051722'!$B:$B,0)))) -> 2.238932006 | U45: =INDIRECT(CONCATENATE("'",U$2,"'!",U$5,(MATCH(NOD_Data!$K45,'ALT 1B 051722'!$B:$B,0)))) -> 0 | V45: =INDIRECT(CONCATENATE("'",V$2,"'!",V$5,(MATCH(NOD_Data!$K45,'ALT 1B 051722'!$B:$B,0)))) -> 0 | X45: 1924 | AB45: 1955 | AC45: =INDEX('WYT_40-30-30'!$B$3:$G$84,MATCH(NOD_Data!AB45,'WYT_40-30-30'!$A$3:$A$84,0),Control!$P$5) -> 4 | AD45: 3.138754943 | AE45: 6.775862732 | AF45: 0 | AG45: 0 | AI45: =INDEX(ALT1_CalcAnn_Deliveries!$A$13:$AE$93,MATCH(NOD_Data!$AB45,ALT1_CalcAnn_Deliveries!$A$13:$A$93,0),NOD_Data!AI$4) -> 3.138754943 | AJ45: =INDEX(ALT2_CalcAnn_Deliveries!$A$13:$AE$93,MATCH(NOD_Data!$AB45,ALT2_CalcAnn_Deliveries!$A$13:$A$93,0),NOD_Data!AJ$4) -> 6.775862732 | AL45: 17 | AM45: 1938 | AN45: =OFFSET('ALT 1B 051722'!ES$13,$AL45-1,0) -> 5519 | AO45: =OFFSET('ALT 1B 051722'!ET$13,$AL45-1,0) -> 3538 | AP45: =OFFSET('ALT 3B 041222'!ES$13,$AL45-1,0) -> 5519 | AQ45: =OFFSET('ALT 3B 041222'!ET$13,$AL45-1,0) -> 3538 | AR45: =IF(AM45="",AR44,INDEX('ALT 1B 051722'!$AT$13:$AT$996,MATCH(EOMONTH(DATE($AM45,5,1),0),'ALT 1B 051722'!$B$13:$B$996,0))) -> 0.9105637264 | AS45: =IF(AM45="",AS44,INDEX('ALT 3B 041222'!$AT$13:$AT$996,MATCH(EOMONTH(DATE($AM45,5,1),0),'ALT 3B 041222'!$B$13:$B$996,0))) -> 0.9105637264 | AT45: =IFERROR(999999*OFFSET('WYT_40-30-30'!O$3,$AL45-1,0),NA()) -> 999999 | AU45: =IFERROR(999999*OFFSET('WYT_40-30-30'!P$3,$AL45-1,0),NA()) ->  | AV45: =IFERROR(999999*OFFSET('WYT_40-30-30'!Q$3,$AL45-1,0),NA()) ->  | AW45: =IFERROR(999999*OFFSET('WYT_40-30-30'!R$3,$AL45-1,0),NA()) ->  | AX45: =IFERROR(999999*OFFSET('WYT_40-30-30'!S$3,$AL45-1,0),NA()) -> 
J46: 7 | K46: 1924-07-31 | L46: =INDIRECT(CONCATENATE("'",L$2,"'!",L$5,(MATCH(NOD_Data!$K46,'ALT 1B 051722'!$B:$B,0)))) -> 3.831218333e-06 | M46: =INDIRECT(CONCATENATE("'",M$2,"'!",M$5,(MATCH(NOD_Data!$K46,'ALT 1B 051722'!$B:$B,0)))) -> 0 | N46: 65.86369456 | O46: 58.03374486 | Q46: =INDIRECT(CONCATENATE("'",Q$2,"'!",Q$5,(MATCH(NOD_Data!$K46,'ALT 1B 051722'!$B:$B,0)))) -> 0 | R46: =INDIRECT(CONCATENATE("'",R$2,"'!",R$5,(MATCH(NOD_Data!$K46,'ALT 1B 051722'!$B:$B,0)))) -> 0 | S46: =INDIRECT(CONCATENATE("'",S$2,"'!",S$5,(MATCH(NOD_Data!$K46,'ALT 1B 051722'!$B:$B,0)))) -> 0.003640168732 | T46: =INDIRECT(CONCATENATE("'",T$2,"'!",T$5,(MATCH(NOD_Data!$K46,'ALT 1B 051722'!$B:$B,0)))) -> 0.001359289488 | U46: =INDIRECT(CONCATENATE("'",U$2,"'!",U$5,(MATCH(NOD_Data!$K46,'ALT 1B 051722'!$B:$B,0)))) -> 0 | V46: =INDIRECT(CONCATENATE("'",V$2,"'!",V$5,(MATCH(NOD_Data!$K46,'ALT 1B 051722'!$B:$B,0)))) -> 0 | X46: 1924 | AB46: 1956 | AC46: =INDEX('WYT_40-30-30'!$B$3:$G$84,MATCH(NOD_Data!AB46,'WYT_40-30-30'!$A$3:$A$84,0),Control!$P$5) -> 1 | AD46: 0 | AE46: 0 | AF46: 0 | AG46: 0 | AI46: =INDEX(ALT1_CalcAnn_Deliveries!$A$13:$AE$93,MATCH(NOD_Data!$AB46,ALT1_CalcAnn_Deliveries!$A$13:$A$93,0),NOD_Data!AI$4) -> 0 | AJ46: =INDEX(ALT2_CalcAnn_Deliveries!$A$13:$AE$93,MATCH(NOD_Data!$AB46,ALT2_CalcAnn_Deliveries!$A$13:$A$93,0),NOD_Data!AJ$4) -> 0 | AL46: 17 | AN46: =OFFSET('ALT 1B 051722'!ES$13,$AL46-1,0) -> 5519 | AO46: =OFFSET('ALT 1B 051722'!ET$13,$AL46-1,0) -> 3538 | AP46: =OFFSET('ALT 3B 041222'!ES$13,$AL46-1,0) -> 5519 | AQ46: =OFFSET('ALT 3B 041222'!ET$13,$AL46-1,0) -> 3538 | AR46: =IF(AM46="",AR45,INDEX('ALT 1B 051722'!$AT$13:$AT$996,MATCH(EOMONTH(DATE($AM46,5,1),0),'ALT 1B 051722'!$B$13:$B$996,0))) -> 0.9105637264 | AS46: =IF(AM46="",AS45,INDEX('ALT 3B 041222'!$AT$13:$AT$996,MATCH(EOMONTH(DATE($AM46,5,1),0),'ALT 3B 041222'!$B$13:$B$996,0))) -> 0.9105637264 | AT46: =IFERROR(999999*OFFSET('WYT_40-30-30'!O$3,$AL46-1,0),NA()) -> 999999 | AU46: =IFERROR(999999*OFFSET('WYT_40-30-30'!P$3,$AL46-1,0),NA()) ->  | AV46: =IFERROR(999999*OFFSET('WYT_40-30-30'!Q$3,$AL46-1,0),NA()) ->  | AW46: =IFERROR(999999*OFFSET('WYT_40-30-30'!R$3,$AL46-1,0),NA()) ->  | AX46: =IFERROR(999999*OFFSET('WYT_40-30-30'!S$3,$AL46-1,0),NA()) -> 
J47: 8 | K47: 1924-08-31 | L47: =INDIRECT(CONCATENATE("'",L$2,"'!",L$5,(MATCH(NOD_Data!$K47,'ALT 1B 051722'!$B:$B,0)))) -> 0 | M47: =INDIRECT(CONCATENATE("'",M$2,"'!",M$5,(MATCH(NOD_Data!$K47,'ALT 1B 051722'!$B:$B,0)))) -> 0 | N47: 65.86369456 | O47: 58.03374486 | Q47: =INDIRECT(CONCATENATE("'",Q$2,"'!",Q$5,(MATCH(NOD_Data!$K47,'ALT 1B 051722'!$B:$B,0)))) -> 0 | R47: =INDIRECT(CONCATENATE("'",R$2,"'!",R$5,(MATCH(NOD_Data!$K47,'ALT 1B 051722'!$B:$B,0)))) -> 0 | S47: =INDIRECT(CONCATENATE("'",S$2,"'!",S$5,(MATCH(NOD_Data!$K47,'ALT 1B 051722'!$B:$B,0)))) -> 3.769213638e-06 | T47: =INDIRECT(CONCATENATE("'",T$2,"'!",T$5,(MATCH(NOD_Data!$K47,'ALT 1B 051722'!$B:$B,0)))) -> 0 | U47: =INDIRECT(CONCATENATE("'",U$2,"'!",U$5,(MATCH(NOD_Data!$K47,'ALT 1B 051722'!$B:$B,0)))) -> 0 | V47: =INDIRECT(CONCATENATE("'",V$2,"'!",V$5,(MATCH(NOD_Data!$K47,'ALT 1B 051722'!$B:$B,0)))) -> 0 | X47: 1924 | AB47: 1957 | AC47: =INDEX('WYT_40-30-30'!$B$3:$G$84,MATCH(NOD_Data!AB47,'WYT_40-30-30'!$A$3:$A$84,0),Control!$P$5) -> 2 | AD47: 1.753232515 | AE47: 1.753232515 | AF47: 0 | AG47: 9.211705533 | AI47: =INDEX(ALT1_CalcAnn_Deliveries!$A$13:$AE$93,MATCH(NOD_Data!$AB47,ALT1_CalcAnn_Deliveries!$A$13:$A$93,0),NOD_Data!AI$4) -> 1.753232515 | AJ47: =INDEX(ALT2_CalcAnn_Deliveries!$A$13:$AE$93,MATCH(NOD_Data!$AB47,ALT2_CalcAnn_Deliveries!$A$13:$A$93,0),NOD_Data!AJ$4) -> 1.753232515 | AL47: 18 | AM47: 1939 | AN47: =OFFSET('ALT 1B 051722'!ES$13,$AL47-1,0) -> 4246.472428 | AO47: =OFFSET('ALT 1B 051722'!ET$13,$AL47-1,0) -> 2739.255465 | AP47: =OFFSET('ALT 3B 041222'!ES$13,$AL47-1,0) -> 4267.454324 | AQ47: =OFFSET('ALT 3B 041222'!ET$13,$AL47-1,0) -> 2746.659995 | AR47: =IF(AM47="",AR46,INDEX('ALT 1B 051722'!$AT$13:$AT$996,MATCH(EOMONTH(DATE($AM47,5,1),0),'ALT 1B 051722'!$B$13:$B$996,0))) -> 0.7888085997 | AS47: =IF(AM47="",AS46,INDEX('ALT 3B 041222'!$AT$13:$AT$996,MATCH(EOMONTH(DATE($AM47,5,1),0),'ALT 3B 041222'!$B$13:$B$996,0))) -> 0.7895805287 | AT47: =IFERROR(999999*OFFSET('WYT_40-30-30'!O$3,$AL47-1,0),NA()) ->  | AU47: =IFERROR(999999*OFFSET('WYT_40-30-30'!P$3,$AL47-1,0),NA()) ->  | AV47: =IFERROR(999999*OFFSET('WYT_40-30-30'!Q$3,$AL47-1,0),NA()) ->  | AW47: =IFERROR(999999*OFFSET('WYT_40-30-30'!R$3,$AL47-1,0),NA()) -> 3999996 | AX47: =IFERROR(999999*OFFSET('WYT_40-30-30'!S$3,$AL47-1,0),NA()) -> 
J48: 9 | K48: 1924-09-30 | L48: =INDIRECT(CONCATENATE("'",L$2,"'!",L$5,(MATCH(NOD_Data!$K48,'ALT 1B 051722'!$B:$B,0)))) -> 0 | M48: =INDIRECT(CONCATENATE("'",M$2,"'!",M$5,(MATCH(NOD_Data!$K48,'ALT 1B 051722'!$B:$B,0)))) -> 0 | N48: 65.86369456 | O48: 58.03374486 | Q48: =INDIRECT(CONCATENATE("'",Q$2,"'!",Q$5,(MATCH(NOD_Data!$K48,'ALT 1B 051722'!$B:$B,0)))) -> 0 | R48: =INDIRECT(CONCATENATE("'",R$2,"'!",R$5,(MATCH(NOD_Data!$K48,'ALT 1B 051722'!$B:$B,0)))) -> 0 | S48: =INDIRECT(CONCATENATE("'",S$2,"'!",S$5,(MATCH(NOD_Data!$K48,'ALT 1B 051722'!$B:$B,0)))) -> 0 | T48: =INDIRECT(CONCATENATE("'",T$2,"'!",T$5,(MATCH(NOD_Data!$K48,'ALT 1B 051722'!$B:$B,0)))) -> 0 | U48: =INDIRECT(CONCATENATE("'",U$2,"'!",U$5,(MATCH(NOD_Data!$K48,'ALT 1B 051722'!$B:$B,0)))) -> 0 | V48: =INDIRECT(CONCATENATE("'",V$2,"'!",V$5,(MATCH(NOD_Data!$K48,'ALT 1B 051722'!$B:$B,0)))) -> 0 | X48: 1924 | AB48: 1958 | AC48: =INDEX('WYT_40-30-30'!$B$3:$G$84,MATCH(NOD_Data!AB48,'WYT_40-30-30'!$A$3:$A$84,0),Control!$P$5) -> 1 | AD48: 0 | AE48: 0 | AF48: 0 | AG48: 0 | AI48: =INDEX(ALT1_CalcAnn_Deliveries!$A$13:$AE$93,MATCH(NOD_Data!$AB48,ALT1_CalcAnn_Deliveries!$A$13:$A$93,0),NOD_Data!AI$4) -> 0 | AJ48: =INDEX(ALT2_CalcAnn_Deliveries!$A$13:$AE$93,MATCH(NOD_Data!$AB48,ALT2_CalcAnn_Deliveries!$A$13:$A$93,0),NOD_Data!AJ$4) -> 0 | AL48: 18 | AN48: =OFFSET('ALT 1B 051722'!ES$13,$AL48-1,0) -> 4246.472428 | AO48: =OFFSET('ALT 1B 051722'!ET$13,$AL48-1,0) -> 2739.255465 | AP48: =OFFSET('ALT 3B 041222'!ES$13,$AL48-1,0) -> 4267.454324 | AQ48: =OFFSET('ALT 3B 041222'!ET$13,$AL48-1,0) -> 2746.659995 | AR48: =IF(AM48="",AR47,INDEX('ALT 1B 051722'!$AT$13:$AT$996,MATCH(EOMONTH(DATE($AM48,5,1),0),'ALT 1B 051722'!$B$13:$B$996,0))) -> 0.7888085997 | AS48: =IF(AM48="",AS47,INDEX('ALT 3B 041222'!$AT$13:$AT$996,MATCH(EOMONTH(DATE($AM48,5,1),0),'ALT 3B 041222'!$B$13:$B$996,0))) -> 0.7895805287 | AT48: =IFERROR(999999*OFFSET('WYT_40-30-30'!O$3,$AL48-1,0),NA()) ->  | AU48: =IFERROR(999999*OFFSET('WYT_40-30-30'!P$3,$AL48-1,0),NA()) ->  | AV48: =IFERROR(999999*OFFSET('WYT_40-30-30'!Q$3,$AL48-1,0),NA()) ->  | AW48: =IFERROR(999999*OFFSET('WYT_40-30-30'!R$3,$AL48-1,0),NA()) -> 3999996 | AX48: =IFERROR(999999*OFFSET('WYT_40-30-30'!S$3,$AL48-1,0),NA()) -> 
J49: 10 | K49: 1924-10-31 | L49: =INDIRECT(CONCATENATE("'",L$2,"'!",L$5,(MATCH(NOD_Data!$K49,'ALT 1B 051722'!$B:$B,0)))) -> 0 | M49: =INDIRECT(CONCATENATE("'",M$2,"'!",M$5,(MATCH(NOD_Data!$K49,'ALT 1B 051722'!$B:$B,0)))) -> 0 | N49: 65.86369456 | O49: 58.03374486 | Q49: =INDIRECT(CONCATENATE("'",Q$2,"'!",Q$5,(MATCH(NOD_Data!$K49,'ALT 1B 051722'!$B:$B,0)))) -> 0 | R49: =INDIRECT(CONCATENATE("'",R$2,"'!",R$5,(MATCH(NOD_Data!$K49,'ALT 1B 051722'!$B:$B,0)))) -> 0 | S49: =INDIRECT(CONCATENATE("'",S$2,"'!",S$5,(MATCH(NOD_Data!$K49,'ALT 1B 051722'!$B:$B,0)))) -> 0 | T49: =INDIRECT(CONCATENATE("'",T$2,"'!",T$5,(MATCH(NOD_Data!$K49,'ALT 1B 051722'!$B:$B,0)))) -> 0 | U49: =INDIRECT(CONCATENATE("'",U$2,"'!",U$5,(MATCH(NOD_Data!$K49,'ALT 1B 051722'!$B:$B,0)))) -> 0 | V49: =INDIRECT(CONCATENATE("'",V$2,"'!",V$5,(MATCH(NOD_Data!$K49,'ALT 1B 051722'!$B:$B,0)))) -> 0 | X49: 1924 | AB49: 1959 | AC49: =INDEX('WYT_40-30-30'!$B$3:$G$84,MATCH(NOD_Data!AB49,'WYT_40-30-30'!$A$3:$A$84,0),Control!$P$5) -> 3 | AD49: 0.6469919603 | AE49: 0.6469919612 | AF49: 0 | AG49: 0.7898619355 | AI49: =INDEX(ALT1_CalcAnn_Deliveries!$A$13:$AE$93,MATCH(NOD_Data!$AB49,ALT1_CalcAnn_Deliveries!$A$13:$A$93,0),NOD_Data!AI$4) -> 0.6469919603 | AJ49: =INDEX(ALT2_CalcAnn_Deliveries!$A$13:$AE$93,MATCH(NOD_Data!$AB49,ALT2_CalcAnn_Deliveries!$A$13:$A$93,0),NOD_Data!AJ$4) -> 0.6469919612 | AL49: 19 | AM49: 1940 | AN49: =OFFSET('ALT 1B 051722'!ES$13,$AL49-1,0) -> 5230.68531 | AO49: =OFFSET('ALT 1B 051722'!ET$13,$AL49-1,0) -> 3410.742736 | AP49: =OFFSET('ALT 3B 041222'!ES$13,$AL49-1,0) -> 5250.329913 | AQ49: =OFFSET('ALT 3B 041222'!ET$13,$AL49-1,0) -> 3410.742736 | AR49: =IF(AM49="",AR48,INDEX('ALT 1B 051722'!$AT$13:$AT$996,MATCH(EOMONTH(DATE($AM49,5,1),0),'ALT 1B 051722'!$B$13:$B$996,0))) -> 0.6085829341 | AS49: =IF(AM49="",AS48,INDEX('ALT 3B 041222'!$AT$13:$AT$996,MATCH(EOMONTH(DATE($AM49,5,1),0),'ALT 3B 041222'!$B$13:$B$996,0))) -> 0.6085334532 | AT49: =IFERROR(999999*OFFSET('WYT_40-30-30'!O$3,$AL49-1,0),NA()) ->  | AU49: =IFERROR(999999*OFFSET('WYT_40-30-30'!P$3,$AL49-1,0),NA()) -> 1999998 | AV49: =IFERROR(999999*OFFSET('WYT_40-30-30'!Q$3,$AL49-1,0),NA()) ->  | AW49: =IFERROR(999999*OFFSET('WYT_40-30-30'!R$3,$AL49-1,0),NA()) ->  | AX49: =IFERROR(999999*OFFSET('WYT_40-30-30'!S$3,$AL49-1,0),NA()) -> 
J50: 11 | K50: 1924-11-30 | L50: =INDIRECT(CONCATENATE("'",L$2,"'!",L$5,(MATCH(NOD_Data!$K50,'ALT 1B 051722'!$B:$B,0)))) -> 0 | M50: =INDIRECT(CONCATENATE("'",M$2,"'!",M$5,(MATCH(NOD_Data!$K50,'ALT 1B 051722'!$B:$B,0)))) -> 0 | N50: 65.86369456 | O50: 58.03374486 | Q50: =INDIRECT(CONCATENATE("'",Q$2,"'!",Q$5,(MATCH(NOD_Data!$K50,'ALT 1B 051722'!$B:$B,0)))) -> 0 | R50: =INDIRECT(CONCATENATE("'",R$2,"'!",R$5,(MATCH(NOD_Data!$K50,'ALT 1B 051722'!$B:$B,0)))) -> 0 | S50: =INDIRECT(CONCATENATE("'",S$2,"'!",S$5,(MATCH(NOD_Data!$K50,'ALT 1B 051722'!$B:$B,0)))) -> 0 | T50: =INDIRECT(CONCATENATE("'",T$2,"'!",T$5,(MATCH(NOD_Data!$K50,'ALT 1B 051722'!$B:$B,0)))) -> 0 | U50: =INDIRECT(CONCATENATE("'",U$2,"'!",U$5,(MATCH(NOD_Data!$K50,'ALT 1B 051722'!$B:$B,0)))) -> 0 | V50: =INDIRECT(CONCATENATE("'",V$2,"'!",V$5,(MATCH(NOD_Data!$K50,'ALT 1B 051722'!$B:$B,0)))) -> 0 | X50: 1924 | AB50: 1960 | AC50: =INDEX('WYT_40-30-30'!$B$3:$G$84,MATCH(NOD_Data!AB50,'WYT_40-30-30'!$A$3:$A$84,0),Control!$P$5) -> 4 | AD50: 34.40894504 | AE50: 34.88212199 | AF50: 0 | AG50: 0 | AI50: =INDEX(ALT1_CalcAnn_Deliveries!$A$13:$AE$93,MATCH(NOD_Data!$AB50,ALT1_CalcAnn_Deliveries!$A$13:$A$93,0),NOD_Data!AI$4) -> 34.40894504 | AJ50: =INDEX(ALT2_CalcAnn_Deliveries!$A$13:$AE$93,MATCH(NOD_Data!$AB50,ALT2_CalcAnn_Deliveries!$A$13:$A$93,0),NOD_Data!AJ$4) -> 34.88212199 | AL50: 19 | AN50: =OFFSET('ALT 1B 051722'!ES$13,$AL50-1,0) -> 5230.68531 | AO50: =OFFSET('ALT 1B 051722'!ET$13,$AL50-1,0) -> 3410.742736 | AP50: =OFFSET('ALT 3B 041222'!ES$13,$AL50-1,0) -> 5250.329913 | AQ50: =OFFSET('ALT 3B 041222'!ET$13,$AL50-1,0) -> 3410.742736 | AR50: =IF(AM50="",AR49,INDEX('ALT 1B 051722'!$AT$13:$AT$996,MATCH(EOMONTH(DATE($AM50,5,1),0),'ALT 1B 051722'!$B$13:$B$996,0))) -> 0.6085829341 | AS50: =IF(AM50="",AS49,INDEX('ALT 3B 041222'!$AT$13:$AT$996,MATCH(EOMONTH(DATE($AM50,5,1),0),'ALT 3B 041222'!$B$13:$B$996,0))) -> 0.6085334532 | AT50: =IFERROR(999999*OFFSET('WYT_40-30-30'!O$3,$AL50-1,0),NA()) ->  | AU50: =IFERROR(999999*OFFSET('WYT_40-30-30'!P$3,$AL50-1,0),NA()) -> 1999998 | AV50: =IFERROR(999999*OFFSET('WYT_40-30-30'!Q$3,$AL50-1,0),NA()) ->  | AW50: =IFERROR(999999*OFFSET('WYT_40-30-30'!R$3,$AL50-1,0),NA()) ->  | AX50: =IFERROR(999999*OFFSET('WYT_40-30-30'!S$3,$AL50-1,0),NA()) -> 
J51: 12 | K51: 1924-12-31 | L51: =INDIRECT(CONCATENATE("'",L$2,"'!",L$5,(MATCH(NOD_Data!$K51,'ALT 1B 051722'!$B:$B,0)))) -> 0 | M51: =INDIRECT(CONCATENATE("'",M$2,"'!",M$5,(MATCH(NOD_Data!$K51,'ALT 1B 051722'!$B:$B,0)))) -> 0 | N51: 65.86369456 | O51: 58.03374486 | Q51: =INDIRECT(CONCATENATE("'",Q$2,"'!",Q$5,(MATCH(NOD_Data!$K51,'ALT 1B 051722'!$B:$B,0)))) -> 0 | R51: =INDIRECT(CONCATENATE("'",R$2,"'!",R$5,(MATCH(NOD_Data!$K51,'ALT 1B 051722'!$B:$B,0)))) -> 0 | S51: =INDIRECT(CONCATENATE("'",S$2,"'!",S$5,(MATCH(NOD_Data!$K51,'ALT 1B 051722'!$B:$B,0)))) -> 0 | T51: =INDIRECT(CONCATENATE("'",T$2,"'!",T$5,(MATCH(NOD_Data!$K51,'ALT 1B 051722'!$B:$B,0)))) -> 0 | U51: =INDIRECT(CONCATENATE("'",U$2,"'!",U$5,(MATCH(NOD_Data!$K51,'ALT 1B 051722'!$B:$B,0)))) -> 0 | V51: =INDIRECT(CONCATENATE("'",V$2,"'!",V$5,(MATCH(NOD_Data!$K51,'ALT 1B 051722'!$B:$B,0)))) -> 0 | X51: 1924 | AB51: 1961 | AC51: =INDEX('WYT_40-30-30'!$B$3:$G$84,MATCH(NOD_Data!AB51,'WYT_40-30-30'!$A$3:$A$84,0),Control!$P$5) -> 4 | AD51: 1.700296642 | AE51: 1.728491132 | AF51: 0 | AG51: 0 | AI51: =INDEX(ALT1_CalcAnn_Deliveries!$A$13:$AE$93,MATCH(NOD_Data!$AB51,ALT1_CalcAnn_Deliveries!$A$13:$A$93,0),NOD_Data!AI$4) -> 1.700296642 | AJ51: =INDEX(ALT2_CalcAnn_Deliveries!$A$13:$AE$93,MATCH(NOD_Data!$AB51,ALT2_CalcAnn_Deliveries!$A$13:$A$93,0),NOD_Data!AJ$4) -> 1.728491132 | AL51: 20 | AM51: 1941 | AN51: =OFFSET('ALT 1B 051722'!ES$13,$AL51-1,0) -> 5519 | AO51: =OFFSET('ALT 1B 051722'!ET$13,$AL51-1,0) -> 3538 | AP51: =OFFSET('ALT 3B 041222'!ES$13,$AL51-1,0) -> 5519 | AQ51: =OFFSET('ALT 3B 041222'!ET$13,$AL51-1,0) -> 3538 | AR51: =IF(AM51="",AR50,INDEX('ALT 1B 051722'!$AT$13:$AT$996,MATCH(EOMONTH(DATE($AM51,5,1),0),'ALT 1B 051722'!$B$13:$B$996,0))) -> 0.8665899278 | AS51: =IF(AM51="",AS50,INDEX('ALT 3B 041222'!$AT$13:$AT$996,MATCH(EOMONTH(DATE($AM51,5,1),0),'ALT 3B 041222'!$B$13:$B$996,0))) -> 0.8707034578 | AT51: =IFERROR(999999*OFFSET('WYT_40-30-30'!O$3,$AL51-1,0),NA()) -> 999999 | AU51: =IFERROR(999999*OFFSET('WYT_40-30-30'!P$3,$AL51-1,0),NA()) ->  | AV51: =IFERROR(999999*OFFSET('WYT_40-30-30'!Q$3,$AL51-1,0),NA()) ->  | AW51: =IFERROR(999999*OFFSET('WYT_40-30-30'!R$3,$AL51-1,0),NA()) ->  | AX51: =IFERROR(999999*OFFSET('WYT_40-30-30'!S$3,$AL51-1,0),NA()) -> 
J52: 1 | K52: 1925-01-31 | L52: =INDIRECT(CONCATENATE("'",L$2,"'!",L$5,(MATCH(NOD_Data!$K52,'ALT 1B 051722'!$B:$B,0)))) -> 0 | M52: =INDIRECT(CONCATENATE("'",M$2,"'!",M$5,(MATCH(NOD_Data!$K52,'ALT 1B 051722'!$B:$B,0)))) -> 0 | N52: 65.86369456 | O52: 58.03374486 | Q52: =INDIRECT(CONCATENATE("'",Q$2,"'!",Q$5,(MATCH(NOD_Data!$K52,'ALT 1B 051722'!$B:$B,0)))) -> 0 | R52: =INDIRECT(CONCATENATE("'",R$2,"'!",R$5,(MATCH(NOD_Data!$K52,'ALT 1B 051722'!$B:$B,0)))) -> 0 | S52: =INDIRECT(CONCATENATE("'",S$2,"'!",S$5,(MATCH(NOD_Data!$K52,'ALT 1B 051722'!$B:$B,0)))) -> 0 | T52: =INDIRECT(CONCATENATE("'",T$2,"'!",T$5,(MATCH(NOD_Data!$K52,'ALT 1B 051722'!$B:$B,0)))) -> 0 | U52: =INDIRECT(CONCATENATE("'",U$2,"'!",U$5,(MATCH(NOD_Data!$K52,'ALT 1B 051722'!$B:$B,0)))) -> 0 | V52: =INDIRECT(CONCATENATE("'",V$2,"'!",V$5,(MATCH(NOD_Data!$K52,'ALT 1B 051722'!$B:$B,0)))) -> 0 | X52: 1924 | AB52: 1962 | AC52: =INDEX('WYT_40-30-30'!$B$3:$G$84,MATCH(NOD_Data!AB52,'WYT_40-30-30'!$A$3:$A$84,0),Control!$P$5) -> 3 | AD52: 0.6577678959 | AE52: 0.6577678965 | AF52: 0 | AG52: 0 | AI52: =INDEX(ALT1_CalcAnn_Deliveries!$A$13:$AE$93,MATCH(NOD_Data!$AB52,ALT1_CalcAnn_Deliveries!$A$13:$A$93,0),NOD_Data!AI$4) -> 0.6577678959 | AJ52: =INDEX(ALT2_CalcAnn_Deliveries!$A$13:$AE$93,MATCH(NOD_Data!$AB52,ALT2_CalcAnn_Deliveries!$A$13:$A$93,0),NOD_Data!AJ$4) -> 0.6577678965 | AL52: 20 | AN52: =OFFSET('ALT 1B 051722'!ES$13,$AL52-1,0) -> 5519 | AO52: =OFFSET('ALT 1B 051722'!ET$13,$AL52-1,0) -> 3538 | AP52: =OFFSET('ALT 3B 041222'!ES$13,$AL52-1,0) -> 5519 | AQ52: =OFFSET('ALT 3B 041222'!ET$13,$AL52-1,0) -> 3538 | AR52: =IF(AM52="",AR51,INDEX('ALT 1B 051722'!$AT$13:$AT$996,MATCH(EOMONTH(DATE($AM52,5,1),0),'ALT 1B 051722'!$B$13:$B$996,0))) -> 0.8665899278 | AS52: =IF(AM52="",AS51,INDEX('ALT 3B 041222'!$AT$13:$AT$996,MATCH(EOMONTH(DATE($AM52,5,1),0),'ALT 3B 041222'!$B$13:$B$996,0))) -> 0.8707034578 | AT52: =IFERROR(999999*OFFSET('WYT_40-30-30'!O$3,$AL52-1,0),NA()) -> 999999 | AU52: =IFERROR(999999*OFFSET('WYT_40-30-30'!P$3,$AL52-1,0),NA()) ->  | AV52: =IFERROR(999999*OFFSET('WYT_40-30-30'!Q$3,$AL52-1,0),NA()) ->  | AW52: =IFERROR(999999*OFFSET('WYT_40-30-30'!R$3,$AL52-1,0),NA()) ->  | AX52: =IFERROR(999999*OFFSET('WYT_40-30-30'!S$3,$AL52-1,0),NA()) -> 
J53: 2 | K53: 1925-02-28 | L53: =INDIRECT(CONCATENATE("'",L$2,"'!",L$5,(MATCH(NOD_Data!$K53,'ALT 1B 051722'!$B:$B,0)))) -> 7.511851553 | M53: =INDIRECT(CONCATENATE("'",M$2,"'!",M$5,(MATCH(NOD_Data!$K53,'ALT 1B 051722'!$B:$B,0)))) -> 6.618996521 | N53: 65.86369456 | O53: 58.03374486 | Q53: =INDIRECT(CONCATENATE("'",Q$2,"'!",Q$5,(MATCH(NOD_Data!$K53,'ALT 1B 051722'!$B:$B,0)))) -> 7.511566946 | R53: =INDIRECT(CONCATENATE("'",R$2,"'!",R$5,(MATCH(NOD_Data!$K53,'ALT 1B 051722'!$B:$B,0)))) -> 6.618570582 | S53: =INDIRECT(CONCATENATE("'",S$2,"'!",S$5,(MATCH(NOD_Data!$K53,'ALT 1B 051722'!$B:$B,0)))) -> 0 | T53: =INDIRECT(CONCATENATE("'",T$2,"'!",T$5,(MATCH(NOD_Data!$K53,'ALT 1B 051722'!$B:$B,0)))) -> 0 | U53: =INDIRECT(CONCATENATE("'",U$2,"'!",U$5,(MATCH(NOD_Data!$K53,'ALT 1B 051722'!$B:$B,0)))) -> 0 | V53: =INDIRECT(CONCATENATE("'",V$2,"'!",V$5,(MATCH(NOD_Data!$K53,'ALT 1B 051722'!$B:$B,0)))) -> 0 | X53: 1924 | AB53: 1963 | AC53: =INDEX('WYT_40-30-30'!$B$3:$G$84,MATCH(NOD_Data!AB53,'WYT_40-30-30'!$A$3:$A$84,0),Control!$P$5) -> 1 | AD53: 0 | AE53: 0 | AF53: 0 | AG53: 0 | AI53: =INDEX(ALT1_CalcAnn_Deliveries!$A$13:$AE$93,MATCH(NOD_Data!$AB53,ALT1_CalcAnn_Deliveries!$A$13:$A$93,0),NOD_Data!AI$4) -> 0 | AJ53: =INDEX(ALT2_CalcAnn_Deliveries!$A$13:$AE$93,MATCH(NOD_Data!$AB53,ALT2_CalcAnn_Deliveries!$A$13:$A$93,0),NOD_Data!AJ$4) -> 0 | AL53: 21 | AM53: 1942 | AN53: =OFFSET('ALT 1B 051722'!ES$13,$AL53-1,0) -> 5519 | AO53: =OFFSET('ALT 1B 051722'!ET$13,$AL53-1,0) -> 3538 | AP53: =OFFSET('ALT 3B 041222'!ES$13,$AL53-1,0) -> 5519 | AQ53: =OFFSET('ALT 3B 041222'!ET$13,$AL53-1,0) -> 3538 | AR53: =IF(AM53="",AR52,INDEX('ALT 1B 051722'!$AT$13:$AT$996,MATCH(EOMONTH(DATE($AM53,5,1),0),'ALT 1B 051722'!$B$13:$B$996,0))) -> 0.7607110233 | AS53: =IF(AM53="",AS52,INDEX('ALT 3B 041222'!$AT$13:$AT$996,MATCH(EOMONTH(DATE($AM53,5,1),0),'ALT 3B 041222'!$B$13:$B$996,0))) -> 0.7549299702 | AT53: =IFERROR(999999*OFFSET('WYT_40-30-30'!O$3,$AL53-1,0),NA()) -> 999999 | AU53: =IFERROR(999999*OFFSET('WYT_40-30-30'!P$3,$AL53-1,0),NA()) ->  | AV53: =IFERROR(999999*OFFSET('WYT_40-30-30'!Q$3,$AL53-1,0),NA()) ->  | AW53: =IFERROR(999999*OFFSET('WYT_40-30-30'!R$3,$AL53-1,0),NA()) ->  | AX53: =IFERROR(999999*OFFSET('WYT_40-30-30'!S$3,$AL53-1,0),NA()) -> 
J54: 3 | K54: 1925-03-31 | L54: =INDIRECT(CONCATENATE("'",L$2,"'!",L$5,(MATCH(NOD_Data!$K54,'ALT 1B 051722'!$B:$B,0)))) -> 7.501216691 | M54: =INDIRECT(CONCATENATE("'",M$2,"'!",M$5,(MATCH(NOD_Data!$K54,'ALT 1B 051722'!$B:$B,0)))) -> 6.608758907 | N54: 65.86369456 | O54: 58.03374486 | Q54: =INDIRECT(CONCATENATE("'",Q$2,"'!",Q$5,(MATCH(NOD_Data!$K54,'ALT 1B 051722'!$B:$B,0)))) -> 0 | R54: =INDIRECT(CONCATENATE("'",R$2,"'!",R$5,(MATCH(NOD_Data!$K54,'ALT 1B 051722'!$B:$B,0)))) -> 0 | S54: =INDIRECT(CONCATENATE("'",S$2,"'!",S$5,(MATCH(NOD_Data!$K54,'ALT 1B 051722'!$B:$B,0)))) -> 0 | T54: =INDIRECT(CONCATENATE("'",T$2,"'!",T$5,(MATCH(NOD_Data!$K54,'ALT 1B 051722'!$B:$B,0)))) -> 0 | U54: =INDIRECT(CONCATENATE("'",U$2,"'!",U$5,(MATCH(NOD_Data!$K54,'ALT 1B 051722'!$B:$B,0)))) -> 0 | V54: =INDIRECT(CONCATENATE("'",V$2,"'!",V$5,(MATCH(NOD_Data!$K54,'ALT 1B 051722'!$B:$B,0)))) -> 0 | X54: 1925 | AB54: 1964 | AC54: =INDEX('WYT_40-30-30'!$B$3:$G$84,MATCH(NOD_Data!AB54,'WYT_40-30-30'!$A$3:$A$84,0),Control!$P$5) -> 4 | AD54: 29.43702086 | AE54: 29.35842122 | AF54: 0 | AG54: 0 | AI54: =INDEX(ALT1_CalcAnn_Deliveries!$A$13:$AE$93,MATCH(NOD_Data!$AB54,ALT1_CalcAnn_Deliveries!$A$13:$A$93,0),NOD_Data!AI$4) -> 29.43702086 | AJ54: =INDEX(ALT2_CalcAnn_Deliveries!$A$13:$AE$93,MATCH(NOD_Data!$AB54,ALT2_CalcAnn_Deliveries!$A$13:$A$93,0),NOD_Data!AJ$4) -> 29.35842122 | AL54: 21 | AN54: =OFFSET('ALT 1B 051722'!ES$13,$AL54-1,0) -> 5519 | AO54: =OFFSET('ALT 1B 051722'!ET$13,$AL54-1,0) -> 3538 | AP54: =OFFSET('ALT 3B 041222'!ES$13,$AL54-1,0) -> 5519 | AQ54: =OFFSET('ALT 3B 041222'!ET$13,$AL54-1,0) -> 3538 | AR54: =IF(AM54="",AR53,INDEX('ALT 1B 051722'!$AT$13:$AT$996,MATCH(EOMONTH(DATE($AM54,5,1),0),'ALT 1B 051722'!$B$13:$B$996,0))) -> 0.7607110233 | AS54: =IF(AM54="",AS53,INDEX('ALT 3B 041222'!$AT$13:$AT$996,MATCH(EOMONTH(DATE($AM54,5,1),0),'ALT 3B 041222'!$B$13:$B$996,0))) -> 0.7549299702 | AT54: =IFERROR(999999*OFFSET('WYT_40-30-30'!O$3,$AL54-1,0),NA()) -> 999999 | AU54: =IFERROR(999999*OFFSET('WYT_40-30-30'!P$3,$AL54-1,0),NA()) ->  | AV54: =IFERROR(999999*OFFSET('WYT_40-30-30'!Q$3,$AL54-1,0),NA()) ->  | AW54: =IFERROR(999999*OFFSET('WYT_40-30-30'!R$3,$AL54-1,0),NA()) ->  | AX54: =IFERROR(999999*OFFSET('WYT_40-30-30'!S$3,$AL54-1,0),NA()) -> 
J55: 4 | K55: 1925-04-30 | L55: =INDIRECT(CONCATENATE("'",L$2,"'!",L$5,(MATCH(NOD_Data!$K55,'ALT 1B 051722'!$B:$B,0)))) -> 6.718950692 | M55: =INDIRECT(CONCATENATE("'",M$2,"'!",M$5,(MATCH(NOD_Data!$K55,'ALT 1B 051722'!$B:$B,0)))) -> 5.836808778 | N55: 65.86369456 | O55: 58.03374486 | Q55: =INDIRECT(CONCATENATE("'",Q$2,"'!",Q$5,(MATCH(NOD_Data!$K55,'ALT 1B 051722'!$B:$B,0)))) -> 0 | R55: =INDIRECT(CONCATENATE("'",R$2,"'!",R$5,(MATCH(NOD_Data!$K55,'ALT 1B 051722'!$B:$B,0)))) -> 0 | S55: =INDIRECT(CONCATENATE("'",S$2,"'!",S$5,(MATCH(NOD_Data!$K55,'ALT 1B 051722'!$B:$B,0)))) -> 0.7388794421 | T55: =INDIRECT(CONCATENATE("'",T$2,"'!",T$5,(MATCH(NOD_Data!$K55,'ALT 1B 051722'!$B:$B,0)))) -> 0.7301852063 | U55: =INDIRECT(CONCATENATE("'",U$2,"'!",U$5,(MATCH(NOD_Data!$K55,'ALT 1B 051722'!$B:$B,0)))) -> 0 | V55: =INDIRECT(CONCATENATE("'",V$2,"'!",V$5,(MATCH(NOD_Data!$K55,'ALT 1B 051722'!$B:$B,0)))) -> 0 | X55: 1925 | AB55: 1965 | AC55: =INDEX('WYT_40-30-30'!$B$3:$G$84,MATCH(NOD_Data!AB55,'WYT_40-30-30'!$A$3:$A$84,0),Control!$P$5) -> 1 | AD55: 2.210372122 | AE55: 2.210372122 | AF55: 0 | AG55: 0 | AI55: =INDEX(ALT1_CalcAnn_Deliveries!$A$13:$AE$93,MATCH(NOD_Data!$AB55,ALT1_CalcAnn_Deliveries!$A$13:$A$93,0),NOD_Data!AI$4) -> 2.210372122 | AJ55: =INDEX(ALT2_CalcAnn_Deliveries!$A$13:$AE$93,MATCH(NOD_Data!$AB55,ALT2_CalcAnn_Deliveries!$A$13:$A$93,0),NOD_Data!AJ$4) -> 2.210372122 | AL55: 22 | AM55: 1943 | AN55: =OFFSET('ALT 1B 051722'!ES$13,$AL55-1,0) -> 5519 | AO55: =OFFSET('ALT 1B 051722'!ET$13,$AL55-1,0) -> 3525.006148 | AP55: =OFFSET('ALT 3B 041222'!ES$13,$AL55-1,0) -> 5519 | AQ55: =OFFSET('ALT 3B 041222'!ET$13,$AL55-1,0) -> 3525.006148 | AR55: =IF(AM55="",AR54,INDEX('ALT 1B 051722'!$AT$13:$AT$996,MATCH(EOMONTH(DATE($AM55,5,1),0),'ALT 1B 051722'!$B$13:$B$996,0))) -> 0.8627685803 | AS55: =IF(AM55="",AS54,INDEX('ALT 3B 041222'!$AT$13:$AT$996,MATCH(EOMONTH(DATE($AM55,5,1),0),'ALT 3B 041222'!$B$13:$B$996,0))) -> 0.8627685803 | AT55: =IFERROR(999999*OFFSET('WYT_40-30-30'!O$3,$AL55-1,0),NA()) -> 999999 | AU55: =IFERROR(999999*OFFSET('WYT_40-30-30'!P$3,$AL55-1,0),NA()) ->  | AV55: =IFERROR(999999*OFFSET('WYT_40-30-30'!Q$3,$AL55-1,0),NA()) ->  | AW55: =IFERROR(999999*OFFSET('WYT_40-30-30'!R$3,$AL55-1,0),NA()) ->  | AX55: =IFERROR(999999*OFFSET('WYT_40-30-30'!S$3,$AL55-1,0),NA()) -> 
J56: 5 | K56: 1925-05-31 | L56: =INDIRECT(CONCATENATE("'",L$2,"'!",L$5,(MATCH(NOD_Data!$K56,'ALT 1B 051722'!$B:$B,0)))) -> 6.652530417 | M56: =INDIRECT(CONCATENATE("'",M$2,"'!",M$5,(MATCH(NOD_Data!$K56,'ALT 1B 051722'!$B:$B,0)))) -> 5.773650145 | N56: 65.86369456 | O56: 58.03374486 | Q56: =INDIRECT(CONCATENATE("'",Q$2,"'!",Q$5,(MATCH(NOD_Data!$K56,'ALT 1B 051722'!$B:$B,0)))) -> 0 | R56: =INDIRECT(CONCATENATE("'",R$2,"'!",R$5,(MATCH(NOD_Data!$K56,'ALT 1B 051722'!$B:$B,0)))) -> 0 | S56: =INDIRECT(CONCATENATE("'",S$2,"'!",S$5,(MATCH(NOD_Data!$K56,'ALT 1B 051722'!$B:$B,0)))) -> 0 | T56: =INDIRECT(CONCATENATE("'",T$2,"'!",T$5,(MATCH(NOD_Data!$K56,'ALT 1B 051722'!$B:$B,0)))) -> 0 | U56: =INDIRECT(CONCATENATE("'",U$2,"'!",U$5,(MATCH(NOD_Data!$K56,'ALT 1B 051722'!$B:$B,0)))) -> 0 | V56: =INDIRECT(CONCATENATE("'",V$2,"'!",V$5,(MATCH(NOD_Data!$K56,'ALT 1B 051722'!$B:$B,0)))) -> 0 | X56: 1925 | AB56: 1966 | AC56: =INDEX('WYT_40-30-30'!$B$3:$G$84,MATCH(NOD_Data!AB56,'WYT_40-30-30'!$A$3:$A$84,0),Control!$P$5) -> 3 | AD56: 0 | AE56: 0 | AF56: 0 | AG56: 0.2758529457 | AI56: =INDEX(ALT1_CalcAnn_Deliveries!$A$13:$AE$93,MATCH(NOD_Data!$AB56,ALT1_CalcAnn_Deliveries!$A$13:$A$93,0),NOD_Data!AI$4) -> 0 | AJ56: =INDEX(ALT2_CalcAnn_Deliveries!$A$13:$AE$93,MATCH(NOD_Data!$AB56,ALT2_CalcAnn_Deliveries!$A$13:$A$93,0),NOD_Data!AJ$4) -> 0 | AL56: 22 | AN56: =OFFSET('ALT 1B 051722'!ES$13,$AL56-1,0) -> 5519 | AO56: =OFFSET('ALT 1B 051722'!ET$13,$AL56-1,0) -> 3525.006148 | AP56: =OFFSET('ALT 3B 041222'!ES$13,$AL56-1,0) -> 5519 | AQ56: =OFFSET('ALT 3B 041222'!ET$13,$AL56-1,0) -> 3525.006148 | AR56: =IF(AM56="",AR55,INDEX('ALT 1B 051722'!$AT$13:$AT$996,MATCH(EOMONTH(DATE($AM56,5,1),0),'ALT 1B 051722'!$B$13:$B$996,0))) -> 0.8627685803 | AS56: =IF(AM56="",AS55,INDEX('ALT 3B 041222'!$AT$13:$AT$996,MATCH(EOMONTH(DATE($AM56,5,1),0),'ALT 3B 041222'!$B$13:$B$996,0))) -> 0.8627685803 | AT56: =IFERROR(999999*OFFSET('WYT_40-30-30'!O$3,$AL56-1,0),NA()) -> 999999 | AU56: =IFERROR(999999*OFFSET('WYT_40-30-30'!P$3,$AL56-1,0),NA()) ->  | AV56: =IFERROR(999999*OFFSET('WYT_40-30-30'!Q$3,$AL56-1,0),NA()) ->  | AW56: =IFERROR(999999*OFFSET('WYT_40-30-30'!R$3,$AL56-1,0),NA()) ->  | AX56: =IFERROR(999999*OFFSET('WYT_40-30-30'!S$3,$AL56-1,0),NA()) -> 
J57: 6 | K57: 1925-06-30 | L57: =INDIRECT(CONCATENATE("'",L$2,"'!",L$5,(MATCH(NOD_Data!$K57,'ALT 1B 051722'!$B:$B,0)))) -> 6.527141906 | M57: =INDIRECT(CONCATENATE("'",M$2,"'!",M$5,(MATCH(NOD_Data!$K57,'ALT 1B 051722'!$B:$B,0)))) -> 5.65685986 | N57: 65.86369456 | O57: 58.03374486 | Q57: =INDIRECT(CONCATENATE("'",Q$2,"'!",Q$5,(MATCH(NOD_Data!$K57,'ALT 1B 051722'!$B:$B,0)))) -> 0 | R57: =INDIRECT(CONCATENATE("'",R$2,"'!",R$5,(MATCH(NOD_Data!$K57,'ALT 1B 051722'!$B:$B,0)))) -> 0 | S57: =INDIRECT(CONCATENATE("'",S$2,"'!",S$5,(MATCH(NOD_Data!$K57,'ALT 1B 051722'!$B:$B,0)))) -> 0 | T57: =INDIRECT(CONCATENATE("'",T$2,"'!",T$5,(MATCH(NOD_Data!$K57,'ALT 1B 051722'!$B:$B,0)))) -> 0 | U57: =INDIRECT(CONCATENATE("'",U$2,"'!",U$5,(MATCH(NOD_Data!$K57,'ALT 1B 051722'!$B:$B,0)))) -> 0 | V57: =INDIRECT(CONCATENATE("'",V$2,"'!",V$5,(MATCH(NOD_Data!$K57,'ALT 1B 051722'!$B:$B,0)))) -> 0 | X57: 1925 | AB57: 1967 | AC57: =INDEX('WYT_40-30-30'!$B$3:$G$84,MATCH(NOD_Data!AB57,'WYT_40-30-30'!$A$3:$A$84,0),Control!$P$5) -> 1 | AD57: 0 | AE57: 0 | AF57: 0 | AG57: 0 | AI57: =INDEX(ALT1_CalcAnn_Deliveries!$A$13:$AE$93,MATCH(NOD_Data!$AB57,ALT1_CalcAnn_Deliveries!$A$13:$A$93,0),NOD_Data!AI$4) -> 0 | AJ57: =INDEX(ALT2_CalcAnn_Deliveries!$A$13:$AE$93,MATCH(NOD_Data!$AB57,ALT2_CalcAnn_Deliveries!$A$13:$A$93,0),NOD_Data!AJ$4) -> 0 | AL57: 23 | AM57: 1944 | AN57: =OFFSET('ALT 1B 051722'!ES$13,$AL57-1,0) -> 4499.692586 | AO57: =OFFSET('ALT 1B 051722'!ET$13,$AL57-1,0) -> 2464.330958 | AP57: =OFFSET('ALT 3B 041222'!ES$13,$AL57-1,0) -> 4425.85975 | AQ57: =OFFSET('ALT 3B 041222'!ET$13,$AL57-1,0) -> 2450.919897 | AR57: =IF(AM57="",AR56,INDEX('ALT 1B 051722'!$AT$13:$AT$996,MATCH(EOMONTH(DATE($AM57,5,1),0),'ALT 1B 051722'!$B$13:$B$996,0))) -> 0.3941577048 | AS57: =IF(AM57="",AS56,INDEX('ALT 3B 041222'!$AT$13:$AT$996,MATCH(EOMONTH(DATE($AM57,5,1),0),'ALT 3B 041222'!$B$13:$B$996,0))) -> 0.3939719092 | AT57: =IFERROR(999999*OFFSET('WYT_40-30-30'!O$3,$AL57-1,0),NA()) ->  | AU57: =IFERROR(999999*OFFSET('WYT_40-30-30'!P$3,$AL57-1,0),NA()) ->  | AV57: =IFERROR(999999*OFFSET('WYT_40-30-30'!Q$3,$AL57-1,0),NA()) ->  | AW57: =IFERROR(999999*OFFSET('WYT_40-30-30'!R$3,$AL57-1,0),NA()) -> 3999996 | AX57: =IFERROR(999999*OFFSET('WYT_40-30-30'!S$3,$AL57-1,0),NA()) -> 
J58: 7 | K58: 1925-07-31 | L58: =INDIRECT(CONCATENATE("'",L$2,"'!",L$5,(MATCH(NOD_Data!$K58,'ALT 1B 051722'!$B:$B,0)))) -> 6.361365863 | M58: =INDIRECT(CONCATENATE("'",M$2,"'!",M$5,(MATCH(NOD_Data!$K58,'ALT 1B 051722'!$B:$B,0)))) -> 5.49303996 | N58: 65.86369456 | O58: 58.03374486 | Q58: =INDIRECT(CONCATENATE("'",Q$2,"'!",Q$5,(MATCH(NOD_Data!$K58,'ALT 1B 051722'!$B:$B,0)))) -> 0 | R58: =INDIRECT(CONCATENATE("'",R$2,"'!",R$5,(MATCH(NOD_Data!$K58,'ALT 1B 051722'!$B:$B,0)))) -> 0 | S58: =INDIRECT(CONCATENATE("'",S$2,"'!",S$5,(MATCH(NOD_Data!$K58,'ALT 1B 051722'!$B:$B,0)))) -> 0 | T58: =INDIRECT(CONCATENATE("'",T$2,"'!",T$5,(MATCH(NOD_Data!$K58,'ALT 1B 051722'!$B:$B,0)))) -> 0 | U58: =INDIRECT(CONCATENATE("'",U$2,"'!",U$5,(MATCH(NOD_Data!$K58,'ALT 1B 051722'!$B:$B,0)))) -> 0 | V58: =INDIRECT(CONCATENATE("'",V$2,"'!",V$5,(MATCH(NOD_Data!$K58,'ALT 1B 051722'!$B:$B,0)))) -> 0 | X58: 1925 | AB58: 1968 | AC58: =INDEX('WYT_40-30-30'!$B$3:$G$84,MATCH(NOD_Data!AB58,'WYT_40-30-30'!$A$3:$A$84,0),Control!$P$5) -> 3 | AD58: 4.205788354 | AE58: 3.34164828 | AF58: 0 | AG58: 0.2631307998 | AI58: =INDEX(ALT1_CalcAnn_Deliveries!$A$13:$AE$93,MATCH(NOD_Data!$AB58,ALT1_CalcAnn_Deliveries!$A$13:$A$93,0),NOD_Data!AI$4) -> 4.205788354 | AJ58: =INDEX(ALT2_CalcAnn_Deliveries!$A$13:$AE$93,MATCH(NOD_Data!$AB58,ALT2_CalcAnn_Deliveries!$A$13:$A$93,0),NOD_Data!AJ$4) -> 3.34164828 | AL58: 23 | AN58: =OFFSET('ALT 1B 051722'!ES$13,$AL58-1,0) -> 4499.692586 | AO58: =OFFSET('ALT 1B 051722'!ET$13,$AL58-1,0) -> 2464.330958 | AP58: =OFFSET('ALT 3B 041222'!ES$13,$AL58-1,0) -> 4425.85975 | AQ58: =OFFSET('ALT 3B 041222'!ET$13,$AL58-1,0) -> 2450.919897 | AR58: =IF(AM58="",AR57,INDEX('ALT 1B 051722'!$AT$13:$AT$996,MATCH(EOMONTH(DATE($AM58,5,1),0),'ALT 1B 051722'!$B$13:$B$996,0))) -> 0.3941577048 | AS58: =IF(AM58="",AS57,INDEX('ALT 3B 041222'!$AT$13:$AT$996,MATCH(EOMONTH(DATE($AM58,5,1),0),'ALT 3B 041222'!$B$13:$B$996,0))) -> 0.3939719092 | AT58: =IFERROR(999999*OFFSET('WYT_40-30-30'!O$3,$AL58-1,0),NA()) ->  | AU58: =IFERROR(999999*OFFSET('WYT_40-30-30'!P$3,$AL58-1,0),NA()) ->  | AV58: =IFERROR(999999*OFFSET('WYT_40-30-30'!Q$3,$AL58-1,0),NA()) ->  | AW58: =IFERROR(999999*OFFSET('WYT_40-30-30'!R$3,$AL58-1,0),NA()) -> 3999996 | AX58: =IFERROR(999999*OFFSET('WYT_40-30-30'!S$3,$AL58-1,0),NA()) -> 
J59: 8 | K59: 1925-08-31 | L59: =INDIRECT(CONCATENATE("'",L$2,"'!",L$5,(MATCH(NOD_Data!$K59,'ALT 1B 051722'!$B:$B,0)))) -> 6.21612018 | M59: =INDIRECT(CONCATENATE("'",M$2,"'!",M$5,(MATCH(NOD_Data!$K59,'ALT 1B 051722'!$B:$B,0)))) -> 5.249168881 | N59: 65.86369456 | O59: 58.03374486 | Q59: =INDIRECT(CONCATENATE("'",Q$2,"'!",Q$5,(MATCH(NOD_Data!$K59,'ALT 1B 051722'!$B:$B,0)))) -> 0 | R59: =INDIRECT(CONCATENATE("'",R$2,"'!",R$5,(MATCH(NOD_Data!$K59,'ALT 1B 051722'!$B:$B,0)))) -> 0 | S59: =INDIRECT(CONCATENATE("'",S$2,"'!",S$5,(MATCH(NOD_Data!$K59,'ALT 1B 051722'!$B:$B,0)))) -> 0 | T59: =INDIRECT(CONCATENATE("'",T$2,"'!",T$5,(MATCH(NOD_Data!$K59,'ALT 1B 051722'!$B:$B,0)))) -> 0 | U59: =INDIRECT(CONCATENATE("'",U$2,"'!",U$5,(MATCH(NOD_Data!$K59,'ALT 1B 051722'!$B:$B,0)))) -> 0 | V59: =INDIRECT(CONCATENATE("'",V$2,"'!",V$5,(MATCH(NOD_Data!$K59,'ALT 1B 051722'!$B:$B,0)))) -> 0 | X59: 1925 | AB59: 1969 | AC59: =INDEX('WYT_40-30-30'!$B$3:$G$84,MATCH(NOD_Data!AB59,'WYT_40-30-30'!$A$3:$A$84,0),Control!$P$5) -> 1 | AD59: 0 | AE59: 0 | AF59: 0 | AG59: 0 | AI59: =INDEX(ALT1_CalcAnn_Deliveries!$A$13:$AE$93,MATCH(NOD_Data!$AB59,ALT1_CalcAnn_Deliveries!$A$13:$A$93,0),NOD_Data!AI$4) -> 0 | AJ59: =INDEX(ALT2_CalcAnn_Deliveries!$A$13:$AE$93,MATCH(NOD_Data!$AB59,ALT2_CalcAnn_Deliveries!$A$13:$A$93,0),NOD_Data!AJ$4) -> 0 | AL59: 24 | AM59: 1945 | AN59: =OFFSET('ALT 1B 051722'!ES$13,$AL59-1,0) -> 5519 | AO59: =OFFSET('ALT 1B 051722'!ET$13,$AL59-1,0) -> 2763.465735 | AP59: =OFFSET('ALT 3B 041222'!ES$13,$AL59-1,0) -> 5519 | AQ59: =OFFSET('ALT 3B 041222'!ET$13,$AL59-1,0) -> 2744.487991 | AR59: =IF(AM59="",AR58,INDEX('ALT 1B 051722'!$AT$13:$AT$996,MATCH(EOMONTH(DATE($AM59,5,1),0),'ALT 1B 051722'!$B$13:$B$996,0))) -> 0.7247536676 | AS59: =IF(AM59="",AS58,INDEX('ALT 3B 041222'!$AT$13:$AT$996,MATCH(EOMONTH(DATE($AM59,5,1),0),'ALT 3B 041222'!$B$13:$B$996,0))) -> 0.7165385002 | AT59: =IFERROR(999999*OFFSET('WYT_40-30-30'!O$3,$AL59-1,0),NA()) ->  | AU59: =IFERROR(999999*OFFSET('WYT_40-30-30'!P$3,$AL59-1,0),NA()) ->  | AV59: =IFERROR(999999*OFFSET('WYT_40-30-30'!Q$3,$AL59-1,0),NA()) -> 2999997 | AW59: =IFERROR(999999*OFFSET('WYT_40-30-30'!R$3,$AL59-1,0),NA()) ->  | AX59: =IFERROR(999999*OFFSET('WYT_40-30-30'!S$3,$AL59-1,0),NA()) -> 
J60: 9 | K60: 1925-09-30 | L60: =INDIRECT(CONCATENATE("'",L$2,"'!",L$5,(MATCH(NOD_Data!$K60,'ALT 1B 051722'!$B:$B,0)))) -> 6.036424455 | M60: =INDIRECT(CONCATENATE("'",M$2,"'!",M$5,(MATCH(NOD_Data!$K60,'ALT 1B 051722'!$B:$B,0)))) -> 5.076299628 | N60: 65.86369456 | O60: 58.03374486 | Q60: =INDIRECT(CONCATENATE("'",Q$2,"'!",Q$5,(MATCH(NOD_Data!$K60,'ALT 1B 051722'!$B:$B,0)))) -> 0 | R60: =INDIRECT(CONCATENATE("'",R$2,"'!",R$5,(MATCH(NOD_Data!$K60,'ALT 1B 051722'!$B:$B,0)))) -> 0 | S60: =INDIRECT(CONCATENATE("'",S$2,"'!",S$5,(MATCH(NOD_Data!$K60,'ALT 1B 051722'!$B:$B,0)))) -> 0 | T60: =INDIRECT(CONCATENATE("'",T$2,"'!",T$5,(MATCH(NOD_Data!$K60,'ALT 1B 051722'!$B:$B,0)))) -> 0 | U60: =INDIRECT(CONCATENATE("'",U$2,"'!",U$5,(MATCH(NOD_Data!$K60,'ALT 1B 051722'!$B:$B,0)))) -> 0 | V60: =INDIRECT(CONCATENATE("'",V$2,"'!",V$5,(MATCH(NOD_Data!$K60,'ALT 1B 051722'!$B:$B,0)))) -> 0 | X60: 1925 | AB60: 1970 | AC60: =INDEX('WYT_40-30-30'!$B$3:$G$84,MATCH(NOD_Data!AB60,'WYT_40-30-30'!$A$3:$A$84,0),Control!$P$5) -> 1 | AD60: 6.482003495 | AE60: 6.021472955 | AF60: 0 | AG60: 0 | AI60: =INDEX(ALT1_CalcAnn_Deliveries!$A$13:$AE$93,MATCH(NOD_Data!$AB60,ALT1_CalcAnn_Deliveries!$A$13:$A$93,0),NOD_Data!AI$4) -> 6.482003495 | AJ60: =INDEX(ALT2_CalcAnn_Deliveries!$A$13:$AE$93,MATCH(NOD_Data!$AB60,ALT2_CalcAnn_Deliveries!$A$13:$A$93,0),NOD_Data!AJ$4) -> 6.021472955 | AL60: 24 | AN60: =OFFSET('ALT 1B 051722'!ES$13,$AL60-1,0) -> 5519 | AO60: =OFFSET('ALT 1B 051722'!ET$13,$AL60-1,0) -> 2763.465735 | AP60: =OFFSET('ALT 3B 041222'!ES$13,$AL60-1,0) -> 5519 | AQ60: =OFFSET('ALT 3B 041222'!ET$13,$AL60-1,0) -> 2744.487991 | AR60: =IF(AM60="",AR59,INDEX('ALT 1B 051722'!$AT$13:$AT$996,MATCH(EOMONTH(DATE($AM60,5,1),0),'ALT 1B 051722'!$B$13:$B$996,0))) -> 0.7247536676 | AS60: =IF(AM60="",AS59,INDEX('ALT 3B 041222'!$AT$13:$AT$996,MATCH(EOMONTH(DATE($AM60,5,1),0),'ALT 3B 041222'!$B$13:$B$996,0))) -> 0.7165385002 | AT60: =IFERROR(999999*OFFSET('WYT_40-30-30'!O$3,$AL60-1,0),NA()) ->  | AU60: =IFERROR(999999*OFFSET('WYT_40-30-30'!P$3,$AL60-1,0),NA()) ->  | AV60: =IFERROR(999999*OFFSET('WYT_40-30-30'!Q$3,$AL60-1,0),NA()) -> 2999997 | AW60: =IFERROR(999999*OFFSET('WYT_40-30-30'!R$3,$AL60-1,0),NA()) ->  | AX60: =IFERROR(999999*OFFSET('WYT_40-30-30'!S$3,$AL60-1,0),NA()) -> 
J61: 10 | K61: 1925-10-31 | L61: =INDIRECT(CONCATENATE("'",L$2,"'!",L$5,(MATCH(NOD_Data!$K61,'ALT 1B 051722'!$B:$B,0)))) -> 5.9147773 | M61: =INDIRECT(CONCATENATE("'",M$2,"'!",M$5,(MATCH(NOD_Data!$K61,'ALT 1B 051722'!$B:$B,0)))) -> 4.959875609 | N61: 65.86369456 | O61: 58.03374486 | Q61: =INDIRECT(CONCATENATE("'",Q$2,"'!",Q$5,(MATCH(NOD_Data!$K61,'ALT 1B 051722'!$B:$B,0)))) -> 0 | R61: =INDIRECT(CONCATENATE("'",R$2,"'!",R$5,(MATCH(NOD_Data!$K61,'ALT 1B 051722'!$B:$B,0)))) -> 0 | S61: =INDIRECT(CONCATENATE("'",S$2,"'!",S$5,(MATCH(NOD_Data!$K61,'ALT 1B 051722'!$B:$B,0)))) -> 0 | T61: =INDIRECT(CONCATENATE("'",T$2,"'!",T$5,(MATCH(NOD_Data!$K61,'ALT 1B 051722'!$B:$B,0)))) -> 0 | U61: =INDIRECT(CONCATENATE("'",U$2,"'!",U$5,(MATCH(NOD_Data!$K61,'ALT 1B 051722'!$B:$B,0)))) -> 0 | V61: =INDIRECT(CONCATENATE("'",V$2,"'!",V$5,(MATCH(NOD_Data!$K61,'ALT 1B 051722'!$B:$B,0)))) -> 0 | X61: 1925 | AB61: 1971 | AC61: =INDEX('WYT_40-30-30'!$B$3:$G$84,MATCH(NOD_Data!AB61,'WYT_40-30-30'!$A$3:$A$84,0),Control!$P$5) -> 1 | AD61: 0.006669185403 | AE61: 0.00666918785 | AF61: 0 | AG61: 0 | AI61: =INDEX(ALT1_CalcAnn_Deliveries!$A$13:$AE$93,MATCH(NOD_Data!$AB61,ALT1_CalcAnn_Deliveries!$A$13:$A$93,0),NOD_Data!AI$4) -> 0.006669185403 | AJ61: =INDEX(ALT2_CalcAnn_Deliveries!$A$13:$AE$93,MATCH(NOD_Data!$AB61,ALT2_CalcAnn_Deliveries!$A$13:$A$93,0),NOD_Data!AJ$4) -> 0.00666918785 | AL61: 25 | AM61: 1946 | AN61: =OFFSET('ALT 1B 051722'!ES$13,$AL61-1,0) -> 5485.861006 | AO61: =OFFSET('ALT 1B 051722'!ET$13,$AL61-1,0) -> 3405.805374 | AP61: =OFFSET('ALT 3B 041222'!ES$13,$AL61-1,0) -> 5497.259136 | AQ61: =OFFSET('ALT 3B 041222'!ET$13,$AL61-1,0) -> 3385.83612 | AR61: =IF(AM61="",AR60,INDEX('ALT 1B 051722'!$AT$13:$AT$996,MATCH(EOMONTH(DATE($AM61,5,1),0),'ALT 1B 051722'!$B$13:$B$996,0))) -> 0.6992720651 | AS61: =IF(AM61="",AS60,INDEX('ALT 3B 041222'!$AT$13:$AT$996,MATCH(EOMONTH(DATE($AM61,5,1),0),'ALT 3B 041222'!$B$13:$B$996,0))) -> 0.7040899468 | AT61: =IFERROR(999999*OFFSET('WYT_40-30-30'!O$3,$AL61-1,0),NA()) ->  | AU61: =IFERROR(999999*OFFSET('WYT_40-30-30'!P$3,$AL61-1,0),NA()) ->  | AV61: =IFERROR(999999*OFFSET('WYT_40-30-30'!Q$3,$AL61-1,0),NA()) -> 2999997 | AW61: =IFERROR(999999*OFFSET('WYT_40-30-30'!R$3,$AL61-1,0),NA()) ->  | AX61: =IFERROR(999999*OFFSET('WYT_40-30-30'!S$3,$AL61-1,0),NA()) -> 
J62: 11 | K62: 1925-11-30 | L62: =INDIRECT(CONCATENATE("'",L$2,"'!",L$5,(MATCH(NOD_Data!$K62,'ALT 1B 051722'!$B:$B,0)))) -> 5.897168329 | M62: =INDIRECT(CONCATENATE("'",M$2,"'!",M$5,(MATCH(NOD_Data!$K62,'ALT 1B 051722'!$B:$B,0)))) -> 4.943202904 | N62: 65.86369456 | O62: 58.03374486 | Q62: =INDIRECT(CONCATENATE("'",Q$2,"'!",Q$5,(MATCH(NOD_Data!$K62,'ALT 1B 051722'!$B:$B,0)))) -> 0 | R62: =INDIRECT(CONCATENATE("'",R$2,"'!",R$5,(MATCH(NOD_Data!$K62,'ALT 1B 051722'!$B:$B,0)))) -> 0 | S62: =INDIRECT(CONCATENATE("'",S$2,"'!",S$5,(MATCH(NOD_Data!$K62,'ALT 1B 051722'!$B:$B,0)))) -> 0 | T62: =INDIRECT(CONCATENATE("'",T$2,"'!",T$5,(MATCH(NOD_Data!$K62,'ALT 1B 051722'!$B:$B,0)))) -> 0 | U62: =INDIRECT(CONCATENATE("'",U$2,"'!",U$5,(MATCH(NOD_Data!$K62,'ALT 1B 051722'!$B:$B,0)))) -> 0 | V62: =INDIRECT(CONCATENATE("'",V$2,"'!",V$5,(MATCH(NOD_Data!$K62,'ALT 1B 051722'!$B:$B,0)))) -> 0 | X62: 1925 | AB62: 1972 | AC62: =INDEX('WYT_40-30-30'!$B$3:$G$84,MATCH(NOD_Data!AB62,'WYT_40-30-30'!$A$3:$A$84,0),Control!$P$5) -> 3 | AD62: 4.811972581 | AE62: 4.811972602 | AF62: 0 | AG62: 0 | AI62: =INDEX(ALT1_CalcAnn_Deliveries!$A$13:$AE$93,MATCH(NOD_Data!$AB62,ALT1_CalcAnn_Deliveries!$A$13:$A$93,0),NOD_Data!AI$4) -> 4.811972581 | AJ62: =INDEX(ALT2_CalcAnn_Deliveries!$A$13:$AE$93,MATCH(NOD_Data!$AB62,ALT2_CalcAnn_Deliveries!$A$13:$A$93,0),NOD_Data!AJ$4) -> 4.811972602 | AL62: 25 | AN62: =OFFSET('ALT 1B 051722'!ES$13,$AL62-1,0) -> 5485.861006 | AO62: =OFFSET('ALT 1B 051722'!ET$13,$AL62-1,0) -> 3405.805374 | AP62: =OFFSET('ALT 3B 041222'!ES$13,$AL62-1,0) -> 5497.259136 | AQ62: =OFFSET('ALT 3B 041222'!ET$13,$AL62-1,0) -> 3385.83612 | AR62: =IF(AM62="",AR61,INDEX('ALT 1B 051722'!$AT$13:$AT$996,MATCH(EOMONTH(DATE($AM62,5,1),0),'ALT 1B 051722'!$B$13:$B$996,0))) -> 0.6992720651 | AS62: =IF(AM62="",AS61,INDEX('ALT 3B 041222'!$AT$13:$AT$996,MATCH(EOMONTH(DATE($AM62,5,1),0),'ALT 3B 041222'!$B$13:$B$996,0))) -> 0.7040899468 | AT62: =IFERROR(999999*OFFSET('WYT_40-30-30'!O$3,$AL62-1,0),NA()) ->  | AU62: =IFERROR(999999*OFFSET('WYT_40-30-30'!P$3,$AL62-1,0),NA()) ->  | AV62: =IFERROR(999999*OFFSET('WYT_40-30-30'!Q$3,$AL62-1,0),NA()) -> 2999997 | AW62: =IFERROR(999999*OFFSET('WYT_40-30-30'!R$3,$AL62-1,0),NA()) ->  | AX62: =IFERROR(999999*OFFSET('WYT_40-30-30'!S$3,$AL62-1,0),NA()) -> 
J63: 12 | K63: 1925-12-31 | L63: =INDIRECT(CONCATENATE("'",L$2,"'!",L$5,(MATCH(NOD_Data!$K63,'ALT 1B 051722'!$B:$B,0)))) -> 5.920220243 | M63: =INDIRECT(CONCATENATE("'",M$2,"'!",M$5,(MATCH(NOD_Data!$K63,'ALT 1B 051722'!$B:$B,0)))) -> 4.965027085 | N63: 65.86369456 | O63: 58.03374486 | Q63: =INDIRECT(CONCATENATE("'",Q$2,"'!",Q$5,(MATCH(NOD_Data!$K63,'ALT 1B 051722'!$B:$B,0)))) -> 0 | R63: =INDIRECT(CONCATENATE("'",R$2,"'!",R$5,(MATCH(NOD_Data!$K63,'ALT 1B 051722'!$B:$B,0)))) -> 0 | S63: =INDIRECT(CONCATENATE("'",S$2,"'!",S$5,(MATCH(NOD_Data!$K63,'ALT 1B 051722'!$B:$B,0)))) -> 0 | T63: =INDIRECT(CONCATENATE("'",T$2,"'!",T$5,(MATCH(NOD_Data!$K63,'ALT 1B 051722'!$B:$B,0)))) -> 0 | U63: =INDIRECT(CONCATENATE("'",U$2,"'!",U$5,(MATCH(NOD_Data!$K63,'ALT 1B 051722'!$B:$B,0)))) -> 0 | V63: =INDIRECT(CONCATENATE("'",V$2,"'!",V$5,(MATCH(NOD_Data!$K63,'ALT 1B 051722'!$B:$B,0)))) -> 0 | X63: 1925 | AB63: 1973 | AC63: =INDEX('WYT_40-30-30'!$B$3:$G$84,MATCH(NOD_Data!AB63,'WYT_40-30-30'!$A$3:$A$84,0),Control!$P$5) -> 2 | AD63: 0 | AE63: 0 | AF63: 0 | AG63: 0.1813466381 | AI63: =INDEX(ALT1_CalcAnn_Deliveries!$A$13:$AE$93,MATCH(NOD_Data!$AB63,ALT1_CalcAnn_Deliveries!$A$13:$A$93,0),NOD_Data!AI$4) -> 0 | AJ63: =INDEX(ALT2_CalcAnn_Deliveries!$A$13:$AE$93,MATCH(NOD_Data!$AB63,ALT2_CalcAnn_Deliveries!$A$13:$A$93,0),NOD_Data!AJ$4) -> 0 | AL63: 26 | AM63: 1947 | AN63: =OFFSET('ALT 1B 051722'!ES$13,$AL63-1,0) -> 4680.528699 | AO63: =OFFSET('ALT 1B 051722'!ET$13,$AL63-1,0) -> 2206.644025 | AP63: =OFFSET('ALT 3B 041222'!ES$13,$AL63-1,0) -> 4697.88811 | AQ63: =OFFSET('ALT 3B 041222'!ET$13,$AL63-1,0) -> 2199.624057 | AR63: =IF(AM63="",AR62,INDEX('ALT 1B 051722'!$AT$13:$AT$996,MATCH(EOMONTH(DATE($AM63,5,1),0),'ALT 1B 051722'!$B$13:$B$996,0))) -> 0.3559996342 | AS63: =IF(AM63="",AS62,INDEX('ALT 3B 041222'!$AT$13:$AT$996,MATCH(EOMONTH(DATE($AM63,5,1),0),'ALT 3B 041222'!$B$13:$B$996,0))) -> 0.3445844016 | AT63: =IFERROR(999999*OFFSET('WYT_40-30-30'!O$3,$AL63-1,0),NA()) ->  | AU63: =IFERROR(999999*OFFSET('WYT_40-30-30'!P$3,$AL63-1,0),NA()) ->  | AV63: =IFERROR(999999*OFFSET('WYT_40-30-30'!Q$3,$AL63-1,0),NA()) ->  | AW63: =IFERROR(999999*OFFSET('WYT_40-30-30'!R$3,$AL63-1,0),NA()) -> 3999996 | AX63: =IFERROR(999999*OFFSET('WYT_40-30-30'!S$3,$AL63-1,0),NA()) -> 
J64: 1 | K64: 1926-01-31 | L64: =INDIRECT(CONCATENATE("'",L$2,"'!",L$5,(MATCH(NOD_Data!$K64,'ALT 1B 051722'!$B:$B,0)))) -> 6.082577825 | M64: =INDIRECT(CONCATENATE("'",M$2,"'!",M$5,(MATCH(NOD_Data!$K64,'ALT 1B 051722'!$B:$B,0)))) -> 5.118864322 | N64: 65.86369456 | O64: 58.03374486 | Q64: =INDIRECT(CONCATENATE("'",Q$2,"'!",Q$5,(MATCH(NOD_Data!$K64,'ALT 1B 051722'!$B:$B,0)))) -> 0 | R64: =INDIRECT(CONCATENATE("'",R$2,"'!",R$5,(MATCH(NOD_Data!$K64,'ALT 1B 051722'!$B:$B,0)))) -> 0 | S64: =INDIRECT(CONCATENATE("'",S$2,"'!",S$5,(MATCH(NOD_Data!$K64,'ALT 1B 051722'!$B:$B,0)))) -> 0 | T64: =INDIRECT(CONCATENATE("'",T$2,"'!",T$5,(MATCH(NOD_Data!$K64,'ALT 1B 051722'!$B:$B,0)))) -> 0 | U64: =INDIRECT(CONCATENATE("'",U$2,"'!",U$5,(MATCH(NOD_Data!$K64,'ALT 1B 051722'!$B:$B,0)))) -> 0 | V64: =INDIRECT(CONCATENATE("'",V$2,"'!",V$5,(MATCH(NOD_Data!$K64,'ALT 1B 051722'!$B:$B,0)))) -> 0 | X64: 1925 | AB64: 1974 | AC64: =INDEX('WYT_40-30-30'!$B$3:$G$84,MATCH(NOD_Data!AB64,'WYT_40-30-30'!$A$3:$A$84,0),Control!$P$5) -> 1 | AD64: 0 | AE64: 0 | AF64: 0 | AG64: 0 | AI64: =INDEX(ALT1_CalcAnn_Deliveries!$A$13:$AE$93,MATCH(NOD_Data!$AB64,ALT1_CalcAnn_Deliveries!$A$13:$A$93,0),NOD_Data!AI$4) -> 0 | AJ64: =INDEX(ALT2_CalcAnn_Deliveries!$A$13:$AE$93,MATCH(NOD_Data!$AB64,ALT2_CalcAnn_Deliveries!$A$13:$A$93,0),NOD_Data!AJ$4) -> 0 | AL64: 26 | AN64: =OFFSET('ALT 1B 051722'!ES$13,$AL64-1,0) -> 4680.528699 | AO64: =OFFSET('ALT 1B 051722'!ET$13,$AL64-1,0) -> 2206.644025 | AP64: =OFFSET('ALT 3B 041222'!ES$13,$AL64-1,0) -> 4697.88811 | AQ64: =OFFSET('ALT 3B 041222'!ET$13,$AL64-1,0) -> 2199.624057 | AR64: =IF(AM64="",AR63,INDEX('ALT 1B 051722'!$AT$13:$AT$996,MATCH(EOMONTH(DATE($AM64,5,1),0),'ALT 1B 051722'!$B$13:$B$996,0))) -> 0.3559996342 | AS64: =IF(AM64="",AS63,INDEX('ALT 3B 041222'!$AT$13:$AT$996,MATCH(EOMONTH(DATE($AM64,5,1),0),'ALT 3B 041222'!$B$13:$B$996,0))) -> 0.3445844016 | AT64: =IFERROR(999999*OFFSET('WYT_40-30-30'!O$3,$AL64-1,0),NA()) ->  | AU64: =IFERROR(999999*OFFSET('WYT_40-30-30'!P$3,$AL64-1,0),NA()) ->  | AV64: =IFERROR(999999*OFFSET('WYT_40-30-30'!Q$3,$AL64-1,0),NA()) ->  | AW64: =IFERROR(999999*OFFSET('WYT_40-30-30'!R$3,$AL64-1,0),NA()) -> 3999996 | AX64: =IFERROR(999999*OFFSET('WYT_40-30-30'!S$3,$AL64-1,0),NA()) -> 
J65: 2 | K65: 1926-02-28 | L65: =INDIRECT(CONCATENATE("'",L$2,"'!",L$5,(MATCH(NOD_Data!$K65,'ALT 1B 051722'!$B:$B,0)))) -> 14.95963852 | M65: =INDIRECT(CONCATENATE("'",M$2,"'!",M$5,(MATCH(NOD_Data!$K65,'ALT 1B 051722'!$B:$B,0)))) -> 12.97069809 | N65: 65.86369456 | O65: 58.03374486 | Q65: =INDIRECT(CONCATENATE("'",Q$2,"'!",Q$5,(MATCH(NOD_Data!$K65,'ALT 1B 051722'!$B:$B,0)))) -> 8.656806234 | R65: =INDIRECT(CONCATENATE("'",R$2,"'!",R$5,(MATCH(NOD_Data!$K65,'ALT 1B 051722'!$B:$B,0)))) -> 7.627653534 | S65: =INDIRECT(CONCATENATE("'",S$2,"'!",S$5,(MATCH(NOD_Data!$K65,'ALT 1B 051722'!$B:$B,0)))) -> 0 | T65: =INDIRECT(CONCATENATE("'",T$2,"'!",T$5,(MATCH(NOD_Data!$K65,'ALT 1B 051722'!$B:$B,0)))) -> 0 | U65: =INDIRECT(CONCATENATE("'",U$2,"'!",U$5,(MATCH(NOD_Data!$K65,'ALT 1B 051722'!$B:$B,0)))) -> 0 | V65: =INDIRECT(CONCATENATE("'",V$2,"'!",V$5,(MATCH(NOD_Data!$K65,'ALT 1B 051722'!$B:$B,0)))) -> 0 | X65: 1925 | AB65: 1975 | AC65: =INDEX('WYT_40-30-30'!$B$3:$G$84,MATCH(NOD_Data!AB65,'WYT_40-30-30'!$A$3:$A$84,0),Control!$P$5) -> 1 | AD65: 0 | AE65: 0 | AF65: 0 | AG65: 0 | AI65: =INDEX(ALT1_CalcAnn_Deliveries!$A$13:$AE$93,MATCH(NOD_Data!$AB65,ALT1_CalcAnn_Deliveries!$A$13:$A$93,0),NOD_Data!AI$4) -> 0 | AJ65: =INDEX(ALT2_CalcAnn_Deliveries!$A$13:$AE$93,MATCH(NOD_Data!$AB65,ALT2_CalcAnn_Deliveries!$A$13:$A$93,0),NOD_Data!AJ$4) -> 0 | AL65: 27 | AM65: 1948 | AN65: =OFFSET('ALT 1B 051722'!ES$13,$AL65-1,0) -> 5519 | AO65: =OFFSET('ALT 1B 051722'!ET$13,$AL65-1,0) -> 2785.877748 | AP65: =OFFSET('ALT 3B 041222'!ES$13,$AL65-1,0) -> 5519 | AQ65: =OFFSET('ALT 3B 041222'!ET$13,$AL65-1,0) -> 2785.466294 | AR65: =IF(AM65="",AR64,INDEX('ALT 1B 051722'!$AT$13:$AT$996,MATCH(EOMONTH(DATE($AM65,5,1),0),'ALT 1B 051722'!$B$13:$B$996,0))) -> 0.5962010737 | AS65: =IF(AM65="",AS64,INDEX('ALT 3B 041222'!$AT$13:$AT$996,MATCH(EOMONTH(DATE($AM65,5,1),0),'ALT 3B 041222'!$B$13:$B$996,0))) -> 0.6042693894 | AT65: =IFERROR(999999*OFFSET('WYT_40-30-30'!O$3,$AL65-1,0),NA()) ->  | AU65: =IFERROR(999999*OFFSET('WYT_40-30-30'!P$3,$AL65-1,0),NA()) ->  | AV65: =IFERROR(999999*OFFSET('WYT_40-30-30'!Q$3,$AL65-1,0),NA()) -> 2999997 | AW65: =IFERROR(999999*OFFSET('WYT_40-30-30'!R$3,$AL65-1,0),NA()) ->  | AX65: =IFERROR(999999*OFFSET('WYT_40-30-30'!S$3,$AL65-1,0),NA()) -> 
J66: 3 | K66: 1926-03-31 | L66: =INDIRECT(CONCATENATE("'",L$2,"'!",L$5,(MATCH(NOD_Data!$K66,'ALT 1B 051722'!$B:$B,0)))) -> 14.59373977 | M66: =INDIRECT(CONCATENATE("'",M$2,"'!",M$5,(MATCH(NOD_Data!$K66,'ALT 1B 051722'!$B:$B,0)))) -> 12.62347177 | N66: 65.86369456 | O66: 58.03374486 | Q66: =INDIRECT(CONCATENATE("'",Q$2,"'!",Q$5,(MATCH(NOD_Data!$K66,'ALT 1B 051722'!$B:$B,0)))) -> 0 | R66: =INDIRECT(CONCATENATE("'",R$2,"'!",R$5,(MATCH(NOD_Data!$K66,'ALT 1B 051722'!$B:$B,0)))) -> 0 | S66: =INDIRECT(CONCATENATE("'",S$2,"'!",S$5,(MATCH(NOD_Data!$K66,'ALT 1B 051722'!$B:$B,0)))) -> 0.258223405 | T66: =INDIRECT(CONCATENATE("'",T$2,"'!",T$5,(MATCH(NOD_Data!$K66,'ALT 1B 051722'!$B:$B,0)))) -> 0.2497546731 | U66: =INDIRECT(CONCATENATE("'",U$2,"'!",U$5,(MATCH(NOD_Data!$K66,'ALT 1B 051722'!$B:$B,0)))) -> 0 | V66: =INDIRECT(CONCATENATE("'",V$2,"'!",V$5,(MATCH(NOD_Data!$K66,'ALT 1B 051722'!$B:$B,0)))) -> 0 | X66: 1926 | AB66: 1976 | AC66: =INDEX('WYT_40-30-30'!$B$3:$G$84,MATCH(NOD_Data!AB66,'WYT_40-30-30'!$A$3:$A$84,0),Control!$P$5) -> 5 | AD66: 56.41254116 | AE66: 54.93401546 | AF66: 0 | AG66: 0 | AI66: =INDEX(ALT1_CalcAnn_Deliveries!$A$13:$AE$93,MATCH(NOD_Data!$AB66,ALT1_CalcAnn_Deliveries!$A$13:$A$93,0),NOD_Data!AI$4) -> 56.41254116 | AJ66: =INDEX(ALT2_CalcAnn_Deliveries!$A$13:$AE$93,MATCH(NOD_Data!$AB66,ALT2_CalcAnn_Deliveries!$A$13:$A$93,0),NOD_Data!AJ$4) -> 54.93401546 | AL66: 27 | AN66: =OFFSET('ALT 1B 051722'!ES$13,$AL66-1,0) -> 5519 | AO66: =OFFSET('ALT 1B 051722'!ET$13,$AL66-1,0) -> 2785.877748 | AP66: =OFFSET('ALT 3B 041222'!ES$13,$AL66-1,0) -> 5519 | AQ66: =OFFSET('ALT 3B 041222'!ET$13,$AL66-1,0) -> 2785.466294 | AR66: =IF(AM66="",AR65,INDEX('ALT 1B 051722'!$AT$13:$AT$996,MATCH(EOMONTH(DATE($AM66,5,1),0),'ALT 1B 051722'!$B$13:$B$996,0))) -> 0.5962010737 | AS66: =IF(AM66="",AS65,INDEX('ALT 3B 041222'!$AT$13:$AT$996,MATCH(EOMONTH(DATE($AM66,5,1),0),'ALT 3B 041222'!$B$13:$B$996,0))) -> 0.6042693894 | AT66: =IFERROR(999999*OFFSET('WYT_40-30-30'!O$3,$AL66-1,0),NA()) ->  | AU66: =IFERROR(999999*OFFSET('WYT_40-30-30'!P$3,$AL66-1,0),NA()) ->  | AV66: =IFERROR(999999*OFFSET('WYT_40-30-30'!Q$3,$AL66-1,0),NA()) -> 2999997 | AW66: =IFERROR(999999*OFFSET('WYT_40-30-30'!R$3,$AL66-1,0),NA()) ->  | AX66: =IFERROR(999999*OFFSET('WYT_40-30-30'!S$3,$AL66-1,0),NA()) -> 
J67: 4 | K67: 1926-04-30 | L67: =INDIRECT(CONCATENATE("'",L$2,"'!",L$5,(MATCH(NOD_Data!$K67,'ALT 1B 051722'!$B:$B,0)))) -> 13.84045135 | M67: =INDIRECT(CONCATENATE("'",M$2,"'!",M$5,(MATCH(NOD_Data!$K67,'ALT 1B 051722'!$B:$B,0)))) -> 11.89557849 | N67: 65.86369456 | O67: 58.03374486 | Q67: =INDIRECT(CONCATENATE("'",Q$2,"'!",Q$5,(MATCH(NOD_Data!$K67,'ALT 1B 051722'!$B:$B,0)))) -> 0 | R67: =INDIRECT(CONCATENATE("'",R$2,"'!",R$5,(MATCH(NOD_Data!$K67,'ALT 1B 051722'!$B:$B,0)))) -> 0 | S67: =INDIRECT(CONCATENATE("'",S$2,"'!",S$5,(MATCH(NOD_Data!$K67,'ALT 1B 051722'!$B:$B,0)))) -> 0.7424150393 | T67: =INDIRECT(CONCATENATE("'",T$2,"'!",T$5,(MATCH(NOD_Data!$K67,'ALT 1B 051722'!$B:$B,0)))) -> 0.7180684973 | U67: =INDIRECT(CONCATENATE("'",U$2,"'!",U$5,(MATCH(NOD_Data!$K67,'ALT 1B 051722'!$B:$B,0)))) -> 0 | V67: =INDIRECT(CONCATENATE("'",V$2,"'!",V$5,(MATCH(NOD_Data!$K67,'ALT 1B 051722'!$B:$B,0)))) -> 0 | X67: 1926 | AB67: 1977 | AC67: =INDEX('WYT_40-30-30'!$B$3:$G$84,MATCH(NOD_Data!AB67,'WYT_40-30-30'!$A$3:$A$84,0),Control!$P$5) -> 5 | AD67: 5.701670631 | AE67: 0 | AF67: 0 | AG67: 0 | AI67: =INDEX(ALT1_CalcAnn_Deliveries!$A$13:$AE$93,MATCH(NOD_Data!$AB67,ALT1_CalcAnn_Deliveries!$A$13:$A$93,0),NOD_Data!AI$4) -> 5.701670631 | AJ67: =INDEX(ALT2_CalcAnn_Deliveries!$A$13:$AE$93,MATCH(NOD_Data!$AB67,ALT2_CalcAnn_Deliveries!$A$13:$A$93,0),NOD_Data!AJ$4) -> 0 | AL67: 28 | AM67: 1949 | AN67: =OFFSET('ALT 1B 051722'!ES$13,$AL67-1,0) -> 5490.384007 | AO67: =OFFSET('ALT 1B 051722'!ET$13,$AL67-1,0) -> 2237.200432 | AP67: =OFFSET('ALT 3B 041222'!ES$13,$AL67-1,0) -> 5514.119166 | AQ67: =OFFSET('ALT 3B 041222'!ET$13,$AL67-1,0) -> 2251.796551 | AR67: =IF(AM67="",AR66,INDEX('ALT 1B 051722'!$AT$13:$AT$996,MATCH(EOMONTH(DATE($AM67,5,1),0),'ALT 1B 051722'!$B$13:$B$996,0))) -> 0.1903710762 | AS67: =IF(AM67="",AS66,INDEX('ALT 3B 041222'!$AT$13:$AT$996,MATCH(EOMONTH(DATE($AM67,5,1),0),'ALT 3B 041222'!$B$13:$B$996,0))) -> 0.2038713424 | AT67: =IFERROR(999999*OFFSET('WYT_40-30-30'!O$3,$AL67-1,0),NA()) ->  | AU67: =IFERROR(999999*OFFSET('WYT_40-30-30'!P$3,$AL67-1,0),NA()) ->  | AV67: =IFERROR(999999*OFFSET('WYT_40-30-30'!Q$3,$AL67-1,0),NA()) ->  | AW67: =IFERROR(999999*OFFSET('WYT_40-30-30'!R$3,$AL67-1,0),NA()) -> 3999996 | AX67: =IFERROR(999999*OFFSET('WYT_40-30-30'!S$3,$AL67-1,0),NA()) -> 
J68: 5 | K68: 1926-05-31 | L68: =INDIRECT(CONCATENATE("'",L$2,"'!",L$5,(MATCH(NOD_Data!$K68,'ALT 1B 051722'!$B:$B,0)))) -> 6.614380252 | M68: =INDIRECT(CONCATENATE("'",M$2,"'!",M$5,(MATCH(NOD_Data!$K68,'ALT 1B 051722'!$B:$B,0)))) -> 4.921957344 | N68: 65.86369456 | O68: 58.03374486 | Q68: =INDIRECT(CONCATENATE("'",Q$2,"'!",Q$5,(MATCH(NOD_Data!$K68,'ALT 1B 051722'!$B:$B,0)))) -> 0 | R68: =INDIRECT(CONCATENATE("'",R$2,"'!",R$5,(MATCH(NOD_Data!$K68,'ALT 1B 051722'!$B:$B,0)))) -> 0 | S68: =INDIRECT(CONCATENATE("'",S$2,"'!",S$5,(MATCH(NOD_Data!$K68,'ALT 1B 051722'!$B:$B,0)))) -> 7.036568836 | T68: =INDIRECT(CONCATENATE("'",T$2,"'!",T$5,(MATCH(NOD_Data!$K68,'ALT 1B 051722'!$B:$B,0)))) -> 6.805795022 | U68: =INDIRECT(CONCATENATE("'",U$2,"'!",U$5,(MATCH(NOD_Data!$K68,'ALT 1B 051722'!$B:$B,0)))) -> 0 | V68: =INDIRECT(CONCATENATE("'",V$2,"'!",V$5,(MATCH(NOD_Data!$K68,'ALT 1B 051722'!$B:$B,0)))) -> 0 | X68: 1926 | AB68: 1978 | AC68: =INDEX('WYT_40-30-30'!$B$3:$G$84,MATCH(NOD_Data!AB68,'WYT_40-30-30'!$A$3:$A$84,0),Control!$P$5) -> 2 | AD68: 0 | AE68: 0 | AF68: 0 | AG68: 0 | AI68: =INDEX(ALT1_CalcAnn_Deliveries!$A$13:$AE$93,MATCH(NOD_Data!$AB68,ALT1_CalcAnn_Deliveries!$A$13:$A$93,0),NOD_Data!AI$4) -> 0 | AJ68: =INDEX(ALT2_CalcAnn_Deliveries!$A$13:$AE$93,MATCH(NOD_Data!$AB68,ALT2_CalcAnn_Deliveries!$A$13:$A$93,0),NOD_Data!AJ$4) -> 0 | AL68: 28 | AN68: =OFFSET('ALT 1B 051722'!ES$13,$AL68-1,0) -> 5490.384007 | AO68: =OFFSET('ALT 1B 051722'!ET$13,$AL68-1,0) -> 2237.200432 | AP68: =OFFSET('ALT 3B 041222'!ES$13,$AL68-1,0) -> 5514.119166 | AQ68: =OFFSET('ALT 3B 041222'!ET$13,$AL68-1,0) -> 2251.796551 | AR68: =IF(AM68="",AR67,INDEX('ALT 1B 051722'!$AT$13:$AT$996,MATCH(EOMONTH(DATE($AM68,5,1),0),'ALT 1B 051722'!$B$13:$B$996,0))) -> 0.1903710762 | AS68: =IF(AM68="",AS67,INDEX('ALT 3B 041222'!$AT$13:$AT$996,MATCH(EOMONTH(DATE($AM68,5,1),0),'ALT 3B 041222'!$B$13:$B$996,0))) -> 0.2038713424 | AT68: =IFERROR(999999*OFFSET('WYT_40-30-30'!O$3,$AL68-1,0),NA()) ->  | AU68: =IFERROR(999999*OFFSET('WYT_40-30-30'!P$3,$AL68-1,0),NA()) ->  | AV68: =IFERROR(999999*OFFSET('WYT_40-30-30'!Q$3,$AL68-1,0),NA()) ->  | AW68: =IFERROR(999999*OFFSET('WYT_40-30-30'!R$3,$AL68-1,0),NA()) -> 3999996 | AX68: =IFERROR(999999*OFFSET('WYT_40-30-30'!S$3,$AL68-1,0),NA()) -> 
J69: 6 | K69: 1926-06-30 | L69: =INDIRECT(CONCATENATE("'",L$2,"'!",L$5,(MATCH(NOD_Data!$K69,'ALT 1B 051722'!$B:$B,0)))) -> 0.002228420735 | M69: =INDIRECT(CONCATENATE("'",M$2,"'!",M$5,(MATCH(NOD_Data!$K69,'ALT 1B 051722'!$B:$B,0)))) -> 0 | N69: 65.86369456 | O69: 58.03374486 | Q69: =INDIRECT(CONCATENATE("'",Q$2,"'!",Q$5,(MATCH(NOD_Data!$K69,'ALT 1B 051722'!$B:$B,0)))) -> 0 | R69: =INDIRECT(CONCATENATE("'",R$2,"'!",R$5,(MATCH(NOD_Data!$K69,'ALT 1B 051722'!$B:$B,0)))) -> 0 | S69: =INDIRECT(CONCATENATE("'",S$2,"'!",S$5,(MATCH(NOD_Data!$K69,'ALT 1B 051722'!$B:$B,0)))) -> 6.468744991 | T69: =INDIRECT(CONCATENATE("'",T$2,"'!",T$5,(MATCH(NOD_Data!$K69,'ALT 1B 051722'!$B:$B,0)))) -> 4.805242474 | U69: =INDIRECT(CONCATENATE("'",U$2,"'!",U$5,(MATCH(NOD_Data!$K69,'ALT 1B 051722'!$B:$B,0)))) -> 0 | V69: =INDIRECT(CONCATENATE("'",V$2,"'!",V$5,(MATCH(NOD_Data!$K69,'ALT 1B 051722'!$B:$B,0)))) -> 0 | X69: 1926 | AB69: 1979 | AC69: =INDEX('WYT_40-30-30'!$B$3:$G$84,MATCH(NOD_Data!AB69,'WYT_40-30-30'!$A$3:$A$84,0),Control!$P$5) -> 3 | AD69: 0.9568172694 | AE69: 0.9571603251 | AF69: 0 | AG69: 0 | AI69: =INDEX(ALT1_CalcAnn_Deliveries!$A$13:$AE$93,MATCH(NOD_Data!$AB69,ALT1_CalcAnn_Deliveries!$A$13:$A$93,0),NOD_Data!AI$4) -> 0.9568172694 | AJ69: =INDEX(ALT2_CalcAnn_Deliveries!$A$13:$AE$93,MATCH(NOD_Data!$AB69,ALT2_CalcAnn_Deliveries!$A$13:$A$93,0),NOD_Data!AJ$4) -> 0.9571603251 | AL69: 29 | AM69: 1950 | AN69: =OFFSET('ALT 1B 051722'!ES$13,$AL69-1,0) -> 5336.084768 | AO69: =OFFSET('ALT 1B 051722'!ET$13,$AL69-1,0) -> 2958.983712 | AP69: =OFFSET('ALT 3B 041222'!ES$13,$AL69-1,0) -> 5346.126889 | AQ69: =OFFSET('ALT 3B 041222'!ET$13,$AL69-1,0) -> 2957.869567 | AR69: =IF(AM69="",AR68,INDEX('ALT 1B 051722'!$AT$13:$AT$996,MATCH(EOMONTH(DATE($AM69,5,1),0),'ALT 1B 051722'!$B$13:$B$996,0))) -> 0.5486356143 | AS69: =IF(AM69="",AS68,INDEX('ALT 3B 041222'!$AT$13:$AT$996,MATCH(EOMONTH(DATE($AM69,5,1),0),'ALT 3B 041222'!$B$13:$B$996,0))) -> 0.5329511371 | AT69: =IFERROR(999999*OFFSET('WYT_40-30-30'!O$3,$AL69-1,0),NA()) ->  | AU69: =IFERROR(999999*OFFSET('WYT_40-30-30'!P$3,$AL69-1,0),NA()) ->  | AV69: =IFERROR(999999*OFFSET('WYT_40-30-30'!Q$3,$AL69-1,0),NA()) -> 2999997 | AW69: =IFERROR(999999*OFFSET('WYT_40-30-30'!R$3,$AL69-1,0),NA()) ->  | AX69: =IFERROR(999999*OFFSET('WYT_40-30-30'!S$3,$AL69-1,0),NA()) -> 
J70: 7 | K70: 1926-07-31 | L70: =INDIRECT(CONCATENATE("'",L$2,"'!",L$5,(MATCH(NOD_Data!$K70,'ALT 1B 051722'!$B:$B,0)))) -> 0 | M70: =INDIRECT(CONCATENATE("'",M$2,"'!",M$5,(MATCH(NOD_Data!$K70,'ALT 1B 051722'!$B:$B,0)))) -> 0 | N70: 65.86369456 | O70: 58.03374486 | Q70: =INDIRECT(CONCATENATE("'",Q$2,"'!",Q$5,(MATCH(NOD_Data!$K70,'ALT 1B 051722'!$B:$B,0)))) -> 0 | R70: =INDIRECT(CONCATENATE("'",R$2,"'!",R$5,(MATCH(NOD_Data!$K70,'ALT 1B 051722'!$B:$B,0)))) -> 0 | S70: =INDIRECT(CONCATENATE("'",S$2,"'!",S$5,(MATCH(NOD_Data!$K70,'ALT 1B 051722'!$B:$B,0)))) -> 0.002171300433 | T70: =INDIRECT(CONCATENATE("'",T$2,"'!",T$5,(MATCH(NOD_Data!$K70,'ALT 1B 051722'!$B:$B,0)))) -> 0 | U70: =INDIRECT(CONCATENATE("'",U$2,"'!",U$5,(MATCH(NOD_Data!$K70,'ALT 1B 051722'!$B:$B,0)))) -> 0 | V70: =INDIRECT(CONCATENATE("'",V$2,"'!",V$5,(MATCH(NOD_Data!$K70,'ALT 1B 051722'!$B:$B,0)))) -> 0 | X70: 1926 | AB70: 1980 | AC70: =INDEX('WYT_40-30-30'!$B$3:$G$84,MATCH(NOD_Data!AB70,'WYT_40-30-30'!$A$3:$A$84,0),Control!$P$5) -> 2 | AD70: 0.6298672794 | AE70: 0.6298672794 | AF70: 9.211705533 | AG70: 9.211705533 | AI70: =INDEX(ALT1_CalcAnn_Deliveries!$A$13:$AE$93,MATCH(NOD_Data!$AB70,ALT1_CalcAnn_Deliveries!$A$13:$A$93,0),NOD_Data!AI$4) -> 0.6298672794 | AJ70: =INDEX(ALT2_CalcAnn_Deliveries!$A$13:$AE$93,MATCH(NOD_Data!$AB70,ALT2_CalcAnn_Deliveries!$A$13:$A$93,0),NOD_Data!AJ$4) -> 0.6298672794 | AL70: 29 | AN70: =OFFSET('ALT 1B 051722'!ES$13,$AL70-1,0) -> 5336.084768 | AO70: =OFFSET('ALT 1B 051722'!ET$13,$AL70-1,0) -> 2958.983712 | AP70: =OFFSET('ALT 3B 041222'!ES$13,$AL70-1,0) -> 5346.126889 | AQ70: =OFFSET('ALT 3B 041222'!ET$13,$AL70-1,0) -> 2957.869567 | AR70: =IF(AM70="",AR69,INDEX('ALT 1B 051722'!$AT$13:$AT$996,MATCH(EOMONTH(DATE($AM70,5,1),0),'ALT 1B 051722'!$B$13:$B$996,0))) -> 0.5486356143 | AS70: =IF(AM70="",AS69,INDEX('ALT 3B 041222'!$AT$13:$AT$996,MATCH(EOMONTH(DATE($AM70,5,1),0),'ALT 3B 041222'!$B$13:$B$996,0))) -> 0.5329511371 | AT70: =IFERROR(999999*OFFSET('WYT_40-30-30'!O$3,$AL70-1,0),NA()) ->  | AU70: =IFERROR(999999*OFFSET('WYT_40-30-30'!P$3,$AL70-1,0),NA()) ->  | AV70: =IFERROR(999999*OFFSET('WYT_40-30-30'!Q$3,$AL70-1,0),NA()) -> 2999997 | AW70: =IFERROR(999999*OFFSET('WYT_40-30-30'!R$3,$AL70-1,0),NA()) ->  | AX70: =IFERROR(999999*OFFSET('WYT_40-30-30'!S$3,$AL70-1,0),NA()) -> 
J71: 8 | K71: 1926-08-31 | L71: =INDIRECT(CONCATENATE("'",L$2,"'!",L$5,(MATCH(NOD_Data!$K71,'ALT 1B 051722'!$B:$B,0)))) -> 0 | M71: =INDIRECT(CONCATENATE("'",M$2,"'!",M$5,(MATCH(NOD_Data!$K71,'ALT 1B 051722'!$B:$B,0)))) -> 0 | N71: 65.86369456 | O71: 58.03374486 | Q71: =INDIRECT(CONCATENATE("'",Q$2,"'!",Q$5,(MATCH(NOD_Data!$K71,'ALT 1B 051722'!$B:$B,0)))) -> 0 | R71: =INDIRECT(CONCATENATE("'",R$2,"'!",R$5,(MATCH(NOD_Data!$K71,'ALT 1B 051722'!$B:$B,0)))) -> 0 | S71: =INDIRECT(CONCATENATE("'",S$2,"'!",S$5,(MATCH(NOD_Data!$K71,'ALT 1B 051722'!$B:$B,0)))) -> 0 | T71: =INDIRECT(CONCATENATE("'",T$2,"'!",T$5,(MATCH(NOD_Data!$K71,'ALT 1B 051722'!$B:$B,0)))) -> 0 | U71: =INDIRECT(CONCATENATE("'",U$2,"'!",U$5,(MATCH(NOD_Data!$K71,'ALT 1B 051722'!$B:$B,0)))) -> 0 | V71: =INDIRECT(CONCATENATE("'",V$2,"'!",V$5,(MATCH(NOD_Data!$K71,'ALT 1B 051722'!$B:$B,0)))) -> 0 | X71: 1926 | AB71: 1981 | AC71: =INDEX('WYT_40-30-30'!$B$3:$G$84,MATCH(NOD_Data!AB71,'WYT_40-30-30'!$A$3:$A$84,0),Control!$P$5) -> 4 | AD71: 0.3510660406 | AE71: 0.3344809934 | AF71: 0 | AG71: 0 | AI71: =INDEX(ALT1_CalcAnn_Deliveries!$A$13:$AE$93,MATCH(NOD_Data!$AB71,ALT1_CalcAnn_Deliveries!$A$13:$A$93,0),NOD_Data!AI$4) -> 0.3510660406 | AJ71: =INDEX(ALT2_CalcAnn_Deliveries!$A$13:$AE$93,MATCH(NOD_Data!$AB71,ALT2_CalcAnn_Deliveries!$A$13:$A$93,0),NOD_Data!AJ$4) -> 0.3344809934 | AL71: 30 | AM71: 1951 | AN71: =OFFSET('ALT 1B 051722'!ES$13,$AL71-1,0) -> 5519 | AO71: =OFFSET('ALT 1B 051722'!ET$13,$AL71-1,0) -> 3538 | AP71: =OFFSET('ALT 3B 041222'!ES$13,$AL71-1,0) -> 5519 | AQ71: =OFFSET('ALT 3B 041222'!ET$13,$AL71-1,0) -> 3538 | AR71: =IF(AM71="",AR70,INDEX('ALT 1B 051722'!$AT$13:$AT$996,MATCH(EOMONTH(DATE($AM71,5,1),0),'ALT 1B 051722'!$B$13:$B$996,0))) -> 0.8283892927 | AS71: =IF(AM71="",AS70,INDEX('ALT 3B 041222'!$AT$13:$AT$996,MATCH(EOMONTH(DATE($AM71,5,1),0),'ALT 3B 041222'!$B$13:$B$996,0))) -> 0.8284126941 | AT71: =IFERROR(999999*OFFSET('WYT_40-30-30'!O$3,$AL71-1,0),NA()) ->  | AU71: =IFERROR(999999*OFFSET('WYT_40-30-30'!P$3,$AL71-1,0),NA()) -> 1999998 | AV71: =IFERROR(999999*OFFSET('WYT_40-30-30'!Q$3,$AL71-1,0),NA()) ->  | AW71: =IFERROR(999999*OFFSET('WYT_40-30-30'!R$3,$AL71-1,0),NA()) ->  | AX71: =IFERROR(999999*OFFSET('WYT_40-30-30'!S$3,$AL71-1,0),NA()) -> 
J72: 9 | K72: 1926-09-30 | L72: =INDIRECT(CONCATENATE("'",L$2,"'!",L$5,(MATCH(NOD_Data!$K72,'ALT 1B 051722'!$B:$B,0)))) -> 0 | M72: =INDIRECT(CONCATENATE("'",M$2,"'!",M$5,(MATCH(NOD_Data!$K72,'ALT 1B 051722'!$B:$B,0)))) -> 0 | N72: 65.86369456 | O72: 58.03374486 | Q72: =INDIRECT(CONCATENATE("'",Q$2,"'!",Q$5,(MATCH(NOD_Data!$K72,'ALT 1B 051722'!$B:$B,0)))) -> 0 | R72: =INDIRECT(CONCATENATE("'",R$2,"'!",R$5,(MATCH(NOD_Data!$K72,'ALT 1B 051722'!$B:$B,0)))) -> 0 | S72: =INDIRECT(CONCATENATE("'",S$2,"'!",S$5,(MATCH(NOD_Data!$K72,'ALT 1B 051722'!$B:$B,0)))) -> 0 | T72: =INDIRECT(CONCATENATE("'",T$2,"'!",T$5,(MATCH(NOD_Data!$K72,'ALT 1B 051722'!$B:$B,0)))) -> 0 | U72: =INDIRECT(CONCATENATE("'",U$2,"'!",U$5,(MATCH(NOD_Data!$K72,'ALT 1B 051722'!$B:$B,0)))) -> 0 | V72: =INDIRECT(CONCATENATE("'",V$2,"'!",V$5,(MATCH(NOD_Data!$K72,'ALT 1B 051722'!$B:$B,0)))) -> 0 | X72: 1926 | AB72: 1982 | AC72: =INDEX('WYT_40-30-30'!$B$3:$G$84,MATCH(NOD_Data!AB72,'WYT_40-30-30'!$A$3:$A$84,0),Control!$P$5) -> 1 | AD72: 0 | AE72: 0 | AF72: 0 | AG72: 0 | AI72: =INDEX(ALT1_CalcAnn_Deliveries!$A$13:$AE$93,MATCH(NOD_Data!$AB72,ALT1_CalcAnn_Deliveries!$A$13:$A$93,0),NOD_Data!AI$4) -> 0 | AJ72: =INDEX(ALT2_CalcAnn_Deliveries!$A$13:$AE$93,MATCH(NOD_Data!$AB72,ALT2_CalcAnn_Deliveries!$A$13:$A$93,0),NOD_Data!AJ$4) -> 0 | AL72: 30 | AN72: =OFFSET('ALT 1B 051722'!ES$13,$AL72-1,0) -> 5519 | AO72: =OFFSET('ALT 1B 051722'!ET$13,$AL72-1,0) -> 3538 | AP72: =OFFSET('ALT 3B 041222'!ES$13,$AL72-1,0) -> 5519 | AQ72: =OFFSET('ALT 3B 041222'!ET$13,$AL72-1,0) -> 3538 | AR72: =IF(AM72="",AR71,INDEX('ALT 1B 051722'!$AT$13:$AT$996,MATCH(EOMONTH(DATE($AM72,5,1),0),'ALT 1B 051722'!$B$13:$B$996,0))) -> 0.8283892927 | AS72: =IF(AM72="",AS71,INDEX('ALT 3B 041222'!$AT$13:$AT$996,MATCH(EOMONTH(DATE($AM72,5,1),0),'ALT 3B 041222'!$B$13:$B$996,0))) -> 0.8284126941 | AT72: =IFERROR(999999*OFFSET('WYT_40-30-30'!O$3,$AL72-1,0),NA()) ->  | AU72: =IFERROR(999999*OFFSET('WYT_40-30-30'!P$3,$AL72-1,0),NA()) -> 1999998 | AV72: =IFERROR(999999*OFFSET('WYT_40-30-30'!Q$3,$AL72-1,0),NA()) ->  | AW72: =IFERROR(999999*OFFSET('WYT_40-30-30'!R$3,$AL72-1,0),NA()) ->  | AX72: =IFERROR(999999*OFFSET('WYT_40-30-30'!S$3,$AL72-1,0),NA()) -> 
J73: 10 | K73: 1926-10-31 | L73: =INDIRECT(CONCATENATE("'",L$2,"'!",L$5,(MATCH(NOD_Data!$K73,'ALT 1B 051722'!$B:$B,0)))) -> 0 | M73: =INDIRECT(CONCATENATE("'",M$2,"'!",M$5,(MATCH(NOD_Data!$K73,'ALT 1B 051722'!$B:$B,0)))) -> 0 | N73: 65.86369456 | O73: 58.03374486 | Q73: =INDIRECT(CONCATENATE("'",Q$2,"'!",Q$5,(MATCH(NOD_Data!$K73,'ALT 1B 051722'!$B:$B,0)))) -> 0 | R73: =INDIRECT(CONCATENATE("'",R$2,"'!",R$5,(MATCH(NOD_Data!$K73,'ALT 1B 051722'!$B:$B,0)))) -> 0 | S73: =INDIRECT(CONCATENATE("'",S$2,"'!",S$5,(MATCH(NOD_Data!$K73,'ALT 1B 051722'!$B:$B,0)))) -> 0 | T73: =INDIRECT(CONCATENATE("'",T$2,"'!",T$5,(MATCH(NOD_Data!$K73,'ALT 1B 051722'!$B:$B,0)))) -> 0 | U73: =INDIRECT(CONCATENATE("'",U$2,"'!",U$5,(MATCH(NOD_Data!$K73,'ALT 1B 051722'!$B:$B,0)))) -> 0 | V73: =INDIRECT(CONCATENATE("'",V$2,"'!",V$5,(MATCH(NOD_Data!$K73,'ALT 1B 051722'!$B:$B,0)))) -> 0 | X73: 1926 | AB73: 1983 | AC73: =INDEX('WYT_40-30-30'!$B$3:$G$84,MATCH(NOD_Data!AB73,'WYT_40-30-30'!$A$3:$A$84,0),Control!$P$5) -> 1 | AD73: 0 | AE73: 0 | AF73: 0 | AG73: 0 | AI73: =INDEX(ALT1_CalcAnn_Deliveries!$A$13:$AE$93,MATCH(NOD_Data!$AB73,ALT1_CalcAnn_Deliveries!$A$13:$A$93,0),NOD_Data!AI$4) -> 0 | AJ73: =INDEX(ALT2_CalcAnn_Deliveries!$A$13:$AE$93,MATCH(NOD_Data!$AB73,ALT2_CalcAnn_Deliveries!$A$13:$A$93,0),NOD_Data!AJ$4) -> 0 | AL73: 31 | AM73: 1952 | AN73: =OFFSET('ALT 1B 051722'!ES$13,$AL73-1,0) -> 5519 | AO73: =OFFSET('ALT 1B 051722'!ET$13,$AL73-1,0) -> 3538 | AP73: =OFFSET('ALT 3B 041222'!ES$13,$AL73-1,0) -> 5519 | AQ73: =OFFSET('ALT 3B 041222'!ET$13,$AL73-1,0) -> 3538 | AR73: =IF(AM73="",AR72,INDEX('ALT 1B 051722'!$AT$13:$AT$996,MATCH(EOMONTH(DATE($AM73,5,1),0),'ALT 1B 051722'!$B$13:$B$996,0))) -> 0.8490637745 | AS73: =IF(AM73="",AS72,INDEX('ALT 3B 041222'!$AT$13:$AT$996,MATCH(EOMONTH(DATE($AM73,5,1),0),'ALT 3B 041222'!$B$13:$B$996,0))) -> 0.8483753198 | AT73: =IFERROR(999999*OFFSET('WYT_40-30-30'!O$3,$AL73-1,0),NA()) -> 999999 | AU73: =IFERROR(999999*OFFSET('WYT_40-30-30'!P$3,$AL73-1,0),NA()) ->  | AV73: =IFERROR(999999*OFFSET('WYT_40-30-30'!Q$3,$AL73-1,0),NA()) ->  | AW73: =IFERROR(999999*OFFSET('WYT_40-30-30'!R$3,$AL73-1,0),NA()) ->  | AX73: =IFERROR(999999*OFFSET('WYT_40-30-30'!S$3,$AL73-1,0),NA()) -> 
J74: 11 | K74: 1926-11-30 | L74: =INDIRECT(CONCATENATE("'",L$2,"'!",L$5,(MATCH(NOD_Data!$K74,'ALT 1B 051722'!$B:$B,0)))) -> 0 | M74: =INDIRECT(CONCATENATE("'",M$2,"'!",M$5,(MATCH(NOD_Data!$K74,'ALT 1B 051722'!$B:$B,0)))) -> 0 | N74: 65.86369456 | O74: 58.03374486 | Q74: =INDIRECT(CONCATENATE("'",Q$2,"'!",Q$5,(MATCH(NOD_Data!$K74,'ALT 1B 051722'!$B:$B,0)))) -> 0 | R74: =INDIRECT(CONCATENATE("'",R$2,"'!",R$5,(MATCH(NOD_Data!$K74,'ALT 1B 051722'!$B:$B,0)))) -> 0 | S74: =INDIRECT(CONCATENATE("'",S$2,"'!",S$5,(MATCH(NOD_Data!$K74,'ALT 1B 051722'!$B:$B,0)))) -> 0 | T74: =INDIRECT(CONCATENATE("'",T$2,"'!",T$5,(MATCH(NOD_Data!$K74,'ALT 1B 051722'!$B:$B,0)))) -> 0 | U74: =INDIRECT(CONCATENATE("'",U$2,"'!",U$5,(MATCH(NOD_Data!$K74,'ALT 1B 051722'!$B:$B,0)))) -> 0 | V74: =INDIRECT(CONCATENATE("'",V$2,"'!",V$5,(MATCH(NOD_Data!$K74,'ALT 1B 051722'!$B:$B,0)))) -> 0 | X74: 1926 | AB74: 1984 | AC74: =INDEX('WYT_40-30-30'!$B$3:$G$84,MATCH(NOD_Data!AB74,'WYT_40-30-30'!$A$3:$A$84,0),Control!$P$5) -> 1 | AD74: 0.4146771522 | AE74: 0.4146771522 | AF74: 0 | AG74: 0 | AI74: =INDEX(ALT1_CalcAnn_Deliveries!$A$13:$AE$93,MATCH(NOD_Data!$AB74,ALT1_CalcAnn_Deliveries!$A$13:$A$93,0),NOD_Data!AI$4) -> 0.4146771522 | AJ74: =INDEX(ALT2_CalcAnn_Deliveries!$A$13:$AE$93,MATCH(NOD_Data!$AB74,ALT2_CalcAnn_Deliveries!$A$13:$A$93,0),NOD_Data!AJ$4) -> 0.4146771522 | AL74: 31 | AN74: =OFFSET('ALT 1B 051722'!ES$13,$AL74-1,0) -> 5519 | AO74: =OFFSET('ALT 1B 051722'!ET$13,$AL74-1,0) -> 3538 | AP74: =OFFSET('ALT 3B 041222'!ES$13,$AL74-1,0) -> 5519 | AQ74: =OFFSET('ALT 3B 041222'!ET$13,$AL74-1,0) -> 3538 | AR74: =IF(AM74="",AR73,INDEX('ALT 1B 051722'!$AT$13:$AT$996,MATCH(EOMONTH(DATE($AM74,5,1),0),'ALT 1B 051722'!$B$13:$B$996,0))) -> 0.8490637745 | AS74: =IF(AM74="",AS73,INDEX('ALT 3B 041222'!$AT$13:$AT$996,MATCH(EOMONTH(DATE($AM74,5,1),0),'ALT 3B 041222'!$B$13:$B$996,0))) -> 0.8483753198 | AT74: =IFERROR(999999*OFFSET('WYT_40-30-30'!O$3,$AL74-1,0),NA()) -> 999999 | AU74: =IFERROR(999999*OFFSET('WYT_40-30-30'!P$3,$AL74-1,0),NA()) ->  | AV74: =IFERROR(999999*OFFSET('WYT_40-30-30'!Q$3,$AL74-1,0),NA()) ->  | AW74: =IFERROR(999999*OFFSET('WYT_40-30-30'!R$3,$AL74-1,0),NA()) ->  | AX74: =IFERROR(999999*OFFSET('WYT_40-30-30'!S$3,$AL74-1,0),NA()) -> 
J75: 12 | K75: 1926-12-31 | L75: =INDIRECT(CONCATENATE("'",L$2,"'!",L$5,(MATCH(NOD_Data!$K75,'ALT 1B 051722'!$B:$B,0)))) -> 8.044605748 | M75: =INDIRECT(CONCATENATE("'",M$2,"'!",M$5,(MATCH(NOD_Data!$K75,'ALT 1B 051722'!$B:$B,0)))) -> 7.780076629 | N75: 65.86369456 | O75: 58.03374486 | Q75: =INDIRECT(CONCATENATE("'",Q$2,"'!",Q$5,(MATCH(NOD_Data!$K75,'ALT 1B 051722'!$B:$B,0)))) -> 8.044605748 | R75: =INDIRECT(CONCATENATE("'",R$2,"'!",R$5,(MATCH(NOD_Data!$K75,'ALT 1B 051722'!$B:$B,0)))) -> 7.780076629 | S75: =INDIRECT(CONCATENATE("'",S$2,"'!",S$5,(MATCH(NOD_Data!$K75,'ALT 1B 051722'!$B:$B,0)))) -> 0 | T75: =INDIRECT(CONCATENATE("'",T$2,"'!",T$5,(MATCH(NOD_Data!$K75,'ALT 1B 051722'!$B:$B,0)))) -> 0 | U75: =INDIRECT(CONCATENATE("'",U$2,"'!",U$5,(MATCH(NOD_Data!$K75,'ALT 1B 051722'!$B:$B,0)))) -> 0 | V75: =INDIRECT(CONCATENATE("'",V$2,"'!",V$5,(MATCH(NOD_Data!$K75,'ALT 1B 051722'!$B:$B,0)))) -> 0 | X75: 1926 | AB75: 1985 | AC75: =INDEX('WYT_40-30-30'!$B$3:$G$84,MATCH(NOD_Data!AB75,'WYT_40-30-30'!$A$3:$A$84,0),Control!$P$5) -> 4 | AD75: 5.43776617 | AE75: 16.88073939 | AF75: 0 | AG75: 0 | AI75: =INDEX(ALT1_CalcAnn_Deliveries!$A$13:$AE$93,MATCH(NOD_Data!$AB75,ALT1_CalcAnn_Deliveries!$A$13:$A$93,0),NOD_Data!AI$4) -> 5.43776617 | AJ75: =INDEX(ALT2_CalcAnn_Deliveries!$A$13:$AE$93,MATCH(NOD_Data!$AB75,ALT2_CalcAnn_Deliveries!$A$13:$A$93,0),NOD_Data!AJ$4) -> 16.88073939 | AL75: 32 | AM75: 1953 | AN75: =OFFSET('ALT 1B 051722'!ES$13,$AL75-1,0) -> 5519 | AO75: =OFFSET('ALT 1B 051722'!ET$13,$AL75-1,0) -> 3538 | AP75: =OFFSET('ALT 3B 041222'!ES$13,$AL75-1,0) -> 5519 | AQ75: =OFFSET('ALT 3B 041222'!ET$13,$AL75-1,0) -> 3538 | AR75: =IF(AM75="",AR74,INDEX('ALT 1B 051722'!$AT$13:$AT$996,MATCH(EOMONTH(DATE($AM75,5,1),0),'ALT 1B 051722'!$B$13:$B$996,0))) -> 0.70424145 | AS75: =IF(AM75="",AS74,INDEX('ALT 3B 041222'!$AT$13:$AT$996,MATCH(EOMONTH(DATE($AM75,5,1),0),'ALT 3B 041222'!$B$13:$B$996,0))) -> 0.7043843462 | AT75: =IFERROR(999999*OFFSET('WYT_40-30-30'!O$3,$AL75-1,0),NA()) -> 999999 | AU75: =IFERROR(999999*OFFSET('WYT_40-30-30'!P$3,$AL75-1,0),NA()) ->  | AV75: =IFERROR(999999*OFFSET('WYT_40-30-30'!Q$3,$AL75-1,0),NA()) ->  | AW75: =IFERROR(999999*OFFSET('WYT_40-30-30'!R$3,$AL75-1,0),NA()) ->  | AX75: =IFERROR(999999*OFFSET('WYT_40-30-30'!S$3,$AL75-1,0),NA()) -> 
J76: 1 | K76: 1927-01-31 | L76: =INDIRECT(CONCATENATE("'",L$2,"'!",L$5,(MATCH(NOD_Data!$K76,'ALT 1B 051722'!$B:$B,0)))) -> 17.41453447 | M76: =INDIRECT(CONCATENATE("'",M$2,"'!",M$5,(MATCH(NOD_Data!$K76,'ALT 1B 051722'!$B:$B,0)))) -> 16.03974612 | N76: 65.86369456 | O76: 58.03374486 | Q76: =INDIRECT(CONCATENATE("'",Q$2,"'!",Q$5,(MATCH(NOD_Data!$K76,'ALT 1B 051722'!$B:$B,0)))) -> 9.313303278 | R76: =INDIRECT(CONCATENATE("'",R$2,"'!",R$5,(MATCH(NOD_Data!$K76,'ALT 1B 051722'!$B:$B,0)))) -> 8.206117356 | S76: =INDIRECT(CONCATENATE("'",S$2,"'!",S$5,(MATCH(NOD_Data!$K76,'ALT 1B 051722'!$B:$B,0)))) -> 0 | T76: =INDIRECT(CONCATENATE("'",T$2,"'!",T$5,(MATCH(NOD_Data!$K76,'ALT 1B 051722'!$B:$B,0)))) -> 0 | U76: =INDIRECT(CONCATENATE("'",U$2,"'!",U$5,(MATCH(NOD_Data!$K76,'ALT 1B 051722'!$B:$B,0)))) -> 0 | V76: =INDIRECT(CONCATENATE("'",V$2,"'!",V$5,(MATCH(NOD_Data!$K76,'ALT 1B 051722'!$B:$B,0)))) -> 0 | X76: 1926 | AB76: 1986 | AC76: =INDEX('WYT_40-30-30'!$B$3:$G$84,MATCH(NOD_Data!AB76,'WYT_40-30-30'!$A$3:$A$84,0),Control!$P$5) -> 1 | AD76: =SUMIF($X$13:$X$996,AB76,$S$13:$S$996) -> 28.03869334 | AE76: =SUMIF($X$13:$X$996,AB76,$T$13:$T$996) -> 27.13204971 | AF76: 0 | AG76: 0 | AI76: =INDEX(ALT1_CalcAnn_Deliveries!$A$13:$AE$93,MATCH(NOD_Data!$AB76,ALT1_CalcAnn_Deliveries!$A$13:$A$93,0),NOD_Data!AI$4) -> 28.03869334 | AJ76: =INDEX(ALT2_CalcAnn_Deliveries!$A$13:$AE$93,MATCH(NOD_Data!$AB76,ALT2_CalcAnn_Deliveries!$A$13:$A$93,0),NOD_Data!AJ$4) -> 27.13204971 | AL76: 32 | AN76: =OFFSET('ALT 1B 051722'!ES$13,$AL76-1,0) -> 5519 | AO76: =OFFSET('ALT 1B 051722'!ET$13,$AL76-1,0) -> 3538 | AP76: =OFFSET('ALT 3B 041222'!ES$13,$AL76-1,0) -> 5519 | AQ76: =OFFSET('ALT 3B 041222'!ET$13,$AL76-1,0) -> 3538 | AR76: =IF(AM76="",AR75,INDEX('ALT 1B 051722'!$AT$13:$AT$996,MATCH(EOMONTH(DATE($AM76,5,1),0),'ALT 1B 051722'!$B$13:$B$996,0))) -> 0.70424145 | AS76: =IF(AM76="",AS75,INDEX('ALT 3B 041222'!$AT$13:$AT$996,MATCH(EOMONTH(DATE($AM76,5,1),0),'ALT 3B 041222'!$B$13:$B$996,0))) -> 0.7043843462 | AT76: =IFERROR(999999*OFFSET('WYT_40-30-30'!O$3,$AL76-1,0),NA()) -> 999999 | AU76: =IFERROR(999999*OFFSET('WYT_40-30-30'!P$3,$AL76-1,0),NA()) ->  | AV76: =IFERROR(999999*OFFSET('WYT_40-30-30'!Q$3,$AL76-1,0),NA()) ->  | AW76: =IFERROR(999999*OFFSET('WYT_40-30-30'!R$3,$AL76-1,0),NA()) ->  | AX76: =IFERROR(999999*OFFSET('WYT_40-30-30'!S$3,$AL76-1,0),NA()) -> 
J77: =MONTH(K77) -> 2 | K77: 1927-02-28 | L77: =INDIRECT(CONCATENATE("'",L$2,"'!",L$5,(MATCH(NOD_Data!$K77,'ALT 1B 051722'!$B:$B,0)))) -> 26.24415998 | M77: =INDIRECT(CONCATENATE("'",M$2,"'!",M$5,(MATCH(NOD_Data!$K77,'ALT 1B 051722'!$B:$B,0)))) -> 23.82603091 | N77: 65.86369456 | O77: 58.03374486 | Q77: =INDIRECT(CONCATENATE("'",Q$2,"'!",Q$5,(MATCH(NOD_Data!$K77,'ALT 1B 051722'!$B:$B,0)))) -> 8.656854198 | R77: =INDIRECT(CONCATENATE("'",R$2,"'!",R$5,(MATCH(NOD_Data!$K77,'ALT 1B 051722'!$B:$B,0)))) -> 7.627708383 | S77: =INDIRECT(CONCATENATE("'",S$2,"'!",S$5,(MATCH(NOD_Data!$K77,'ALT 1B 051722'!$B:$B,0)))) -> 0 | T77: =INDIRECT(CONCATENATE("'",T$2,"'!",T$5,(MATCH(NOD_Data!$K77,'ALT 1B 051722'!$B:$B,0)))) -> 0 | U77: =INDIRECT(CONCATENATE("'",U$2,"'!",U$5,(MATCH(NOD_Data!$K77,'ALT 1B 051722'!$B:$B,0)))) -> 0 | V77: =INDIRECT(CONCATENATE("'",V$2,"'!",V$5,(MATCH(NOD_Data!$K77,'ALT 1B 051722'!$B:$B,0)))) -> 0 | X77: =IF(MONTH(K77)<3,YEAR(K77)-1,YEAR(K77)) -> 1926 | AB77: 1987 | AC77: =INDEX('WYT_40-30-30'!$B$3:$G$84,MATCH(NOD_Data!AB77,'WYT_40-30-30'!$A$3:$A$84,0),Control!$P$5) -> 4 | AD77: 37.30712391 | AE77: 27.4075212 | AF77: =SUMIF($X$13:$X$996,AB77,$U$13:$U$996) -> 0 | AG77: =SUMIF($X$13:$X$996,AB77,$V$13:$V$996) -> 0 | AI77: =INDEX(ALT1_CalcAnn_Deliveries!$A$13:$AE$93,MATCH(NOD_Data!$AB77,ALT1_CalcAnn_Deliveries!$A$13:$A$93,0),NOD_Data!AI$4) -> 37.30712391 | AJ77: =INDEX(ALT2_CalcAnn_Deliveries!$A$13:$AE$93,MATCH(NOD_Data!$AB77,ALT2_CalcAnn_Deliveries!$A$13:$A$93,0),NOD_Data!AJ$4) -> 27.4075212 | AL77: 33 | AM77: 1954 | AN77: =OFFSET('ALT 1B 051722'!ES$13,$AL77-1,0) -> 5519 | AO77: =OFFSET('ALT 1B 051722'!ET$13,$AL77-1,0) -> 3437.907148 | AP77: =OFFSET('ALT 3B 041222'!ES$13,$AL77-1,0) -> 5519 | AQ77: =OFFSET('ALT 3B 041222'!ET$13,$AL77-1,0) -> 3437.898655 | AR77: =IF(AM77="",AR76,INDEX('ALT 1B 051722'!$AT$13:$AT$996,MATCH(EOMONTH(DATE($AM77,5,1),0),'ALT 1B 051722'!$B$13:$B$996,0))) -> 0.6454024408 | AS77: =IF(AM77="",AS76,INDEX('ALT 3B 041222'!$AT$13:$AT$996,MATCH(EOMONTH(DATE($AM77,5,1),0),'ALT 3B 041222'!$B$13:$B$996,0))) -> 0.6448707569 | AT77: =IFERROR(999999*OFFSET('WYT_40-30-30'!O$3,$AL77-1,0),NA()) ->  | AU77: =IFERROR(999999*OFFSET('WYT_40-30-30'!P$3,$AL77-1,0),NA()) -> 1999998 | AV77: =IFERROR(999999*OFFSET('WYT_40-30-30'!Q$3,$AL77-1,0),NA()) ->  | AW77: =IFERROR(999999*OFFSET('WYT_40-30-30'!R$3,$AL77-1,0),NA()) ->  | AX77: =IFERROR(999999*OFFSET('WYT_40-30-30'!S$3,$AL77-1,0),NA()) -> 
J78: 3 | K78: 1927-03-31 | L78: =INDIRECT(CONCATENATE("'",L$2,"'!",L$5,(MATCH(NOD_Data!$K78,'ALT 1B 051722'!$B:$B,0)))) -> 33.64606124 | M78: =INDIRECT(CONCATENATE("'",M$2,"'!",M$5,(MATCH(NOD_Data!$K78,'ALT 1B 051722'!$B:$B,0)))) -> 30.32250778 | N78: 65.86369456 | O78: 58.03374486 | Q78: =INDIRECT(CONCATENATE("'",Q$2,"'!",Q$5,(MATCH(NOD_Data!$K78,'ALT 1B 051722'!$B:$B,0)))) -> 7.458362161 | R78: =INDIRECT(CONCATENATE("'",R$2,"'!",R$5,(MATCH(NOD_Data!$K78,'ALT 1B 051722'!$B:$B,0)))) -> 6.547494863 | S78: =INDIRECT(CONCATENATE("'",S$2,"'!",S$5,(MATCH(NOD_Data!$K78,'ALT 1B 051722'!$B:$B,0)))) -> 0 | T78: =INDIRECT(CONCATENATE("'",T$2,"'!",T$5,(MATCH(NOD_Data!$K78,'ALT 1B 051722'!$B:$B,0)))) -> 0 | U78: =INDIRECT(CONCATENATE("'",U$2,"'!",U$5,(MATCH(NOD_Data!$K78,'ALT 1B 051722'!$B:$B,0)))) -> 0 | V78: =INDIRECT(CONCATENATE("'",V$2,"'!",V$5,(MATCH(NOD_Data!$K78,'ALT 1B 051722'!$B:$B,0)))) -> 0 | X78: 1927 | AB78: 1988 | AC78: =INDEX('WYT_40-30-30'!$B$3:$G$84,MATCH(NOD_Data!AB78,'WYT_40-30-30'!$A$3:$A$84,0),Control!$P$5) -> 5 | AD78: 9.30495524 | AE78: 6.519898435 | AF78: 0 | AG78: 0 | AI78: =INDEX(ALT1_CalcAnn_Deliveries!$A$13:$AE$93,MATCH(NOD_Data!$AB78,ALT1_CalcAnn_Deliveries!$A$13:$A$93,0),NOD_Data!AI$4) -> 9.30495524 | AJ78: =INDEX(ALT2_CalcAnn_Deliveries!$A$13:$AE$93,MATCH(NOD_Data!$AB78,ALT2_CalcAnn_Deliveries!$A$13:$A$93,0),NOD_Data!AJ$4) -> 6.519898435 | AL78: 33 | AN78: =OFFSET('ALT 1B 051722'!ES$13,$AL78-1,0) -> 5519 | AO78: =OFFSET('ALT 1B 051722'!ET$13,$AL78-1,0) -> 3437.907148 | AP78: =OFFSET('ALT 3B 041222'!ES$13,$AL78-1,0) -> 5519 | AQ78: =OFFSET('ALT 3B 041222'!ET$13,$AL78-1,0) -> 3437.898655 | AR78: =IF(AM78="",AR77,INDEX('ALT 1B 051722'!$AT$13:$AT$996,MATCH(EOMONTH(DATE($AM78,5,1),0),'ALT 1B 051722'!$B$13:$B$996,0))) -> 0.6454024408 | AS78: =IF(AM78="",AS77,INDEX('ALT 3B 041222'!$AT$13:$AT$996,MATCH(EOMONTH(DATE($AM78,5,1),0),'ALT 3B 041222'!$B$13:$B$996,0))) -> 0.6448707569 | AT78: =IFERROR(999999*OFFSET('WYT_40-30-30'!O$3,$AL78-1,0),NA()) ->  | AU78: =IFERROR(999999*OFFSET('WYT_40-30-30'!P$3,$AL78-1,0),NA()) -> 1999998 | AV78: =IFERROR(999999*OFFSET('WYT_40-30-30'!Q$3,$AL78-1,0),NA()) ->  | AW78: =IFERROR(999999*OFFSET('WYT_40-30-30'!R$3,$AL78-1,0),NA()) ->  | AX78: =IFERROR(999999*OFFSET('WYT_40-30-30'!S$3,$AL78-1,0),NA()) -> 
J79: 4 | K79: 1927-04-30 | L79: =INDIRECT(CONCATENATE("'",L$2,"'!",L$5,(MATCH(NOD_Data!$K79,'ALT 1B 051722'!$B:$B,0)))) -> 42.5391139 | M79: =INDIRECT(CONCATENATE("'",M$2,"'!",M$5,(MATCH(NOD_Data!$K79,'ALT 1B 051722'!$B:$B,0)))) -> 38.15624625 | N79: =N$13 -> 65.86369456 | O79: 58.03374486 | Q79: =INDIRECT(CONCATENATE("'",Q$2,"'!",Q$5,(MATCH(NOD_Data!$K79,'ALT 1B 051722'!$B:$B,0)))) -> 9.007428369 | R79: =INDIRECT(CONCATENATE("'",R$2,"'!",R$5,(MATCH(NOD_Data!$K79,'ALT 1B 051722'!$B:$B,0)))) -> 7.936605531 | S79: =INDIRECT(CONCATENATE("'",S$2,"'!",S$5,(MATCH(NOD_Data!$K79,'ALT 1B 051722'!$B:$B,0)))) -> 0 | T79: =INDIRECT(CONCATENATE("'",T$2,"'!",T$5,(MATCH(NOD_Data!$K79,'ALT 1B 051722'!$B:$B,0)))) -> 0 | U79: =INDIRECT(CONCATENATE("'",U$2,"'!",U$5,(MATCH(NOD_Data!$K79,'ALT 1B 051722'!$B:$B,0)))) -> 0 | V79: =INDIRECT(CONCATENATE("'",V$2,"'!",V$5,(MATCH(NOD_Data!$K79,'ALT 1B 051722'!$B:$B,0)))) -> 0 | X79: 1927 | AB79: 1989 | AC79: =INDEX('WYT_40-30-30'!$B$3:$G$84,MATCH(NOD_Data!AB79,'WYT_40-30-30'!$A$3:$A$84,0),Control!$P$5) -> 4 | AD79: 8.258474901 | AE79: 7.274115278 | AF79: 0 | AG79: 0 | AI79: =INDEX(ALT1_CalcAnn_Deliveries!$A$13:$AE$93,MATCH(NOD_Data!$AB79,ALT1_CalcAnn_Deliveries!$A$13:$A$93,0),NOD_Data!AI$4) -> 8.258474901 | AJ79: =INDEX(ALT2_CalcAnn_Deliveries!$A$13:$AE$93,MATCH(NOD_Data!$AB79,ALT2_CalcAnn_Deliveries!$A$13:$A$93,0),NOD_Data!AJ$4) -> 7.274115278 | AL79: 34 | AM79: 1955 | AN79: =OFFSET('ALT 1B 051722'!ES$13,$AL79-1,0) -> 5090.558609 | AO79: =OFFSET('ALT 1B 051722'!ET$13,$AL79-1,0) -> 2151.525664 | AP79: =OFFSET('ALT 3B 041222'!ES$13,$AL79-1,0) -> 4950.905595 | AQ79: =OFFSET('ALT 3B 041222'!ET$13,$AL79-1,0) -> 2152.827904 | AR79: =IF(AM79="",AR78,INDEX('ALT 1B 051722'!$AT$13:$AT$996,MATCH(EOMONTH(DATE($AM79,5,1),0),'ALT 1B 051722'!$B$13:$B$996,0))) -> 0.2881344293 | AS79: =IF(AM79="",AS78,INDEX('ALT 3B 041222'!$AT$13:$AT$996,MATCH(EOMONTH(DATE($AM79,5,1),0),'ALT 3B 041222'!$B$13:$B$996,0))) -> 0.310189788 | AT79: =IFERROR(999999*OFFSET('WYT_40-30-30'!O$3,$AL79-1,0),NA()) ->  | AU79: =IFERROR(999999*OFFSET('WYT_40-30-30'!P$3,$AL79-1,0),NA()) ->  | AV79: =IFERROR(999999*OFFSET('WYT_40-30-30'!Q$3,$AL79-1,0),NA()) ->  | AW79: =IFERROR(999999*OFFSET('WYT_40-30-30'!R$3,$AL79-1,0),NA()) -> 3999996 | AX79: =IFERROR(999999*OFFSET('WYT_40-30-30'!S$3,$AL79-1,0),NA()) -> 
J80: 5 | K80: 1927-05-31 | L80: =INDIRECT(CONCATENATE("'",L$2,"'!",L$5,(MATCH(NOD_Data!$K80,'ALT 1B 051722'!$B:$B,0)))) -> 42.30747655 | M80: =INDIRECT(CONCATENATE("'",M$2,"'!",M$5,(MATCH(NOD_Data!$K80,'ALT 1B 051722'!$B:$B,0)))) -> 37.9483327 | N80: 65.86369456 | O80: 58.03374486 | Q80: =INDIRECT(CONCATENATE("'",Q$2,"'!",Q$5,(MATCH(NOD_Data!$K80,'ALT 1B 051722'!$B:$B,0)))) -> 0 | R80: =INDIRECT(CONCATENATE("'",R$2,"'!",R$5,(MATCH(NOD_Data!$K80,'ALT 1B 051722'!$B:$B,0)))) -> 0 | S80: =INDIRECT(CONCATENATE("'",S$2,"'!",S$5,(MATCH(NOD_Data!$K80,'ALT 1B 051722'!$B:$B,0)))) -> 0 | T80: =INDIRECT(CONCATENATE("'",T$2,"'!",T$5,(MATCH(NOD_Data!$K80,'ALT 1B 051722'!$B:$B,0)))) -> 0 | U80: =INDIRECT(CONCATENATE("'",U$2,"'!",U$5,(MATCH(NOD_Data!$K80,'ALT 1B 051722'!$B:$B,0)))) -> 0 | V80: =INDIRECT(CONCATENATE("'",V$2,"'!",V$5,(MATCH(NOD_Data!$K80,'ALT 1B 051722'!$B:$B,0)))) -> 0 | X80: 1927 | AB80: 1990 | AC80: =INDEX('WYT_40-30-30'!$B$3:$G$84,MATCH(NOD_Data!AB80,'WYT_40-30-30'!$A$3:$A$84,0),Control!$P$5) -> 5 | AD80: 0 | AE80: 0 | AF80: 0 | AG80: 0 | AI80: =INDEX(ALT1_CalcAnn_Deliveries!$A$13:$AE$93,MATCH(NOD_Data!$AB80,ALT1_CalcAnn_Deliveries!$A$13:$A$93,0),NOD_Data!AI$4) -> 0 | AJ80: =INDEX(ALT2_CalcAnn_Deliveries!$A$13:$AE$93,MATCH(NOD_Data!$AB80,ALT2_CalcAnn_Deliveries!$A$13:$A$93,0),NOD_Data!AJ$4) -> 0 | AL80: =AL78+1 -> 34 | AM80: =IF(AM78="","",AM78+1) ->  | AN80: =OFFSET('ALT 1B 051722'!ES$13,$AL80-1,0) -> 5090.558609 | AO80: =OFFSET('ALT 1B 051722'!ET$13,$AL80-1,0) -> 2151.525664 | AP80: =OFFSET('ALT 3B 041222'!ES$13,$AL80-1,0) -> 4950.905595 | AQ80: =OFFSET('ALT 3B 041222'!ET$13,$AL80-1,0) -> 2152.827904 | AR80: =IF(AM80="",AR79,INDEX('ALT 1B 051722'!$AT$13:$AT$996,MATCH(EOMONTH(DATE($AM80,5,1),0),'ALT 1B 051722'!$B$13:$B$996,0))) -> 0.2881344293 | AS80: =IF(AM80="",AS79,INDEX('ALT 3B 041222'!$AT$13:$AT$996,MATCH(EOMONTH(DATE($AM80,5,1),0),'ALT 3B 041222'!$B$13:$B$996,0))) -> 0.310189788 | AT80: =IFERROR(999999*OFFSET('WYT_40-30-30'!O$3,$AL80-1,0),NA()) ->  | AU80: =IFERROR(999999*OFFSET('WYT_40-30-30'!P$3,$AL80-1,0),NA()) ->  | AV80: =IFERROR(999999*OFFSET('WYT_40-30-30'!Q$3,$AL80-1,0),NA()) ->  | AW80: =IFERROR(999999*OFFSET('WYT_40-30-30'!R$3,$AL80-1,0),NA()) -> 3999996 | AX80: =IFERROR(999999*OFFSET('WYT_40-30-30'!S$3,$AL80-1,0),NA()) -> 
J81: 6 | K81: 1927-06-30 | L81: =INDIRECT(CONCATENATE("'",L$2,"'!",L$5,(MATCH(NOD_Data!$K81,'ALT 1B 051722'!$B:$B,0)))) -> 41.99704346 | M81: =INDIRECT(CONCATENATE("'",M$2,"'!",M$5,(MATCH(NOD_Data!$K81,'ALT 1B 051722'!$B:$B,0)))) -> 37.66968857 | N81: 65.86369456 | O81: 58.03374486 | Q81: =INDIRECT(CONCATENATE("'",Q$2,"'!",Q$5,(MATCH(NOD_Data!$K81,'ALT 1B 051722'!$B:$B,0)))) -> 0 | R81: =INDIRECT(CONCATENATE("'",R$2,"'!",R$5,(MATCH(NOD_Data!$K81,'ALT 1B 051722'!$B:$B,0)))) -> 0 | S81: =INDIRECT(CONCATENATE("'",S$2,"'!",S$5,(MATCH(NOD_Data!$K81,'ALT 1B 051722'!$B:$B,0)))) -> 0 | T81: =INDIRECT(CONCATENATE("'",T$2,"'!",T$5,(MATCH(NOD_Data!$K81,'ALT 1B 051722'!$B:$B,0)))) -> 0 | U81: =INDIRECT(CONCATENATE("'",U$2,"'!",U$5,(MATCH(NOD_Data!$K81,'ALT 1B 051722'!$B:$B,0)))) -> 0 | V81: =INDIRECT(CONCATENATE("'",V$2,"'!",V$5,(MATCH(NOD_Data!$K81,'ALT 1B 051722'!$B:$B,0)))) -> 0 | X81: 1927 | AB81: 1991 | AC81: =INDEX('WYT_40-30-30'!$B$3:$G$84,MATCH(NOD_Data!AB81,'WYT_40-30-30'!$A$3:$A$84,0),Control!$P$5) -> 5 | AD81: 6.866723203 | AE81: 6.04713184 | AF81: 0 | AG81: 0 | AI81: =INDEX(ALT1_CalcAnn_Deliveries!$A$13:$AE$93,MATCH(NOD_Data!$AB81,ALT1_CalcAnn_Deliveries!$A$13:$A$93,0),NOD_Data!AI$4) -> 6.866723203 | AJ81: =INDEX(ALT2_CalcAnn_Deliveries!$A$13:$AE$93,MATCH(NOD_Data!$AB81,ALT2_CalcAnn_Deliveries!$A$13:$A$93,0),NOD_Data!AJ$4) -> 6.04713184 | AL81: 35 | AM81: 1956 | AN81: =OFFSET('ALT 1B 051722'!ES$13,$AL81-1,0) -> 5519 | AO81: =OFFSET('ALT 1B 051722'!ET$13,$AL81-1,0) -> 3538 | AP81: =OFFSET('ALT 3B 041222'!ES$13,$AL81-1,0) -> 5519 | AQ81: =OFFSET('ALT 3B 041222'!ET$13,$AL81-1,0) -> 3538 | AR81: =IF(AM81="",AR80,INDEX('ALT 1B 051722'!$AT$13:$AT$996,MATCH(EOMONTH(DATE($AM81,5,1),0),'ALT 1B 051722'!$B$13:$B$996,0))) -> 0.8404252624 | AS81: =IF(AM81="",AS80,INDEX('ALT 3B 041222'!$AT$13:$AT$996,MATCH(EOMONTH(DATE($AM81,5,1),0),'ALT 3B 041222'!$B$13:$B$996,0))) -> 0.8403307247 | AT81: =IFERROR(999999*OFFSET('WYT_40-30-30'!O$3,$AL81-1,0),NA()) -> 999999 | AU81: =IFERROR(999999*OFFSET('WYT_40-30-30'!P$3,$AL81-1,0),NA()) ->  | AV81: =IFERROR(999999*OFFSET('WYT_40-30-30'!Q$3,$AL81-1,0),NA()) ->  | AW81: =IFERROR(999999*OFFSET('WYT_40-30-30'!R$3,$AL81-1,0),NA()) ->  | AX81: =IFERROR(999999*OFFSET('WYT_40-30-30'!S$3,$AL81-1,0),NA()) -> 
J82: 7 | K82: 1927-07-31 | L82: =INDIRECT(CONCATENATE("'",L$2,"'!",L$5,(MATCH(NOD_Data!$K82,'ALT 1B 051722'!$B:$B,0)))) -> 41.59777587 | M82: =INDIRECT(CONCATENATE("'",M$2,"'!",M$5,(MATCH(NOD_Data!$K82,'ALT 1B 051722'!$B:$B,0)))) -> 37.31129345 | N82: 65.86369456 | O82: 58.03374486 | Q82: =INDIRECT(CONCATENATE("'",Q$2,"'!",Q$5,(MATCH(NOD_Data!$K82,'ALT 1B 051722'!$B:$B,0)))) -> 0 | R82: =INDIRECT(CONCATENATE("'",R$2,"'!",R$5,(MATCH(NOD_Data!$K82,'ALT 1B 051722'!$B:$B,0)))) -> 0 | S82: =INDIRECT(CONCATENATE("'",S$2,"'!",S$5,(MATCH(NOD_Data!$K82,'ALT 1B 051722'!$B:$B,0)))) -> 0 | T82: =INDIRECT(CONCATENATE("'",T$2,"'!",T$5,(MATCH(NOD_Data!$K82,'ALT 1B 051722'!$B:$B,0)))) -> 0 | U82: =INDIRECT(CONCATENATE("'",U$2,"'!",U$5,(MATCH(NOD_Data!$K82,'ALT 1B 051722'!$B:$B,0)))) -> 0 | V82: =INDIRECT(CONCATENATE("'",V$2,"'!",V$5,(MATCH(NOD_Data!$K82,'ALT 1B 051722'!$B:$B,0)))) -> 0 | X82: 1927 | AB82: 1992 | AC82: =INDEX('WYT_40-30-30'!$B$3:$G$84,MATCH(NOD_Data!AB82,'WYT_40-30-30'!$A$3:$A$84,0),Control!$P$5) -> 5 | AD82: 6.791440431 | AE82: 6.003354795 | AF82: 0 | AG82: 0 | AI82: =INDEX(ALT1_CalcAnn_Deliveries!$A$13:$AE$93,MATCH(NOD_Data!$AB82,ALT1_CalcAnn_Deliveries!$A$13:$A$93,0),NOD_Data!AI$4) -> 6.791440431 | AJ82: =INDEX(ALT2_CalcAnn_Deliveries!$A$13:$AE$93,MATCH(NOD_Data!$AB82,ALT2_CalcAnn_Deliveries!$A$13:$A$93,0),NOD_Data!AJ$4) -> 6.003354795 | AL82: 35 | AN82: =OFFSET('ALT 1B 051722'!ES$13,$AL82-1,0) -> 5519 | AO82: =OFFSET('ALT 1B 051722'!ET$13,$AL82-1,0) -> 3538 | AP82: =OFFSET('ALT 3B 041222'!ES$13,$AL82-1,0) -> 5519 | AQ82: =OFFSET('ALT 3B 041222'!ET$13,$AL82-1,0) -> 3538 | AR82: =IF(AM82="",AR81,INDEX('ALT 1B 051722'!$AT$13:$AT$996,MATCH(EOMONTH(DATE($AM82,5,1),0),'ALT 1B 051722'!$B$13:$B$996,0))) -> 0.8404252624 | AS82: =IF(AM82="",AS81,INDEX('ALT 3B 041222'!$AT$13:$AT$996,MATCH(EOMONTH(DATE($AM82,5,1),0),'ALT 3B 041222'!$B$13:$B$996,0))) -> 0.8403307247 | AT82: =IFERROR(999999*OFFSET('WYT_40-30-30'!O$3,$AL82-1,0),NA()) -> 999999 | AU82: =IFERROR(999999*OFFSET('WYT_40-30-30'!P$3,$AL82-1,0),NA()) ->  | AV82: =IFERROR(999999*OFFSET('WYT_40-30-30'!Q$3,$AL82-1,0),NA()) ->  | AW82: =IFERROR(999999*OFFSET('WYT_40-30-30'!R$3,$AL82-1,0),NA()) ->  | AX82: =IFERROR(999999*OFFSET('WYT_40-30-30'!S$3,$AL82-1,0),NA()) -> 
J83: 8 | K83: 1927-08-31 | L83: =INDIRECT(CONCATENATE("'",L$2,"'!",L$5,(MATCH(NOD_Data!$K83,'ALT 1B 051722'!$B:$B,0)))) -> 41.26545138 | M83: =INDIRECT(CONCATENATE("'",M$2,"'!",M$5,(MATCH(NOD_Data!$K83,'ALT 1B 051722'!$B:$B,0)))) -> 37.01294536 | N83: 65.86369456 | O83: 58.03374486 | Q83: =INDIRECT(CONCATENATE("'",Q$2,"'!",Q$5,(MATCH(NOD_Data!$K83,'ALT 1B 051722'!$B:$B,0)))) -> 0 | R83: =INDIRECT(CONCATENATE("'",R$2,"'!",R$5,(MATCH(NOD_Data!$K83,'ALT 1B 051722'!$B:$B,0)))) -> 0 | S83: =INDIRECT(CONCATENATE("'",S$2,"'!",S$5,(MATCH(NOD_Data!$K83,'ALT 1B 051722'!$B:$B,0)))) -> 0 | T83: =INDIRECT(CONCATENATE("'",T$2,"'!",T$5,(MATCH(NOD_Data!$K83,'ALT 1B 051722'!$B:$B,0)))) -> 0 | U83: =INDIRECT(CONCATENATE("'",U$2,"'!",U$5,(MATCH(NOD_Data!$K83,'ALT 1B 051722'!$B:$B,0)))) -> 0 | V83: =INDIRECT(CONCATENATE("'",V$2,"'!",V$5,(MATCH(NOD_Data!$K83,'ALT 1B 051722'!$B:$B,0)))) -> 0 | X83: 1927 | AB83: 1993 | AC83: =INDEX('WYT_40-30-30'!$B$3:$G$84,MATCH(NOD_Data!AB83,'WYT_40-30-30'!$A$3:$A$84,0),Control!$P$5) -> 2 | AD83: 0 | AE83: 0 | AF83: 0 | AG83: 0 | AI83: =INDEX(ALT1_CalcAnn_Deliveries!$A$13:$AE$93,MATCH(NOD_Data!$AB83,ALT1_CalcAnn_Deliveries!$A$13:$A$93,0),NOD_Data!AI$4) -> 0 | AJ83: =INDEX(ALT2_CalcAnn_Deliveries!$A$13:$AE$93,MATCH(NOD_Data!$AB83,ALT2_CalcAnn_Deliveries!$A$13:$A$93,0),NOD_Data!AJ$4) -> 0 | AL83: 36 | AM83: 1957 | AN83: =OFFSET('ALT 1B 051722'!ES$13,$AL83-1,0) -> 5409.938786 | AO83: =OFFSET('ALT 1B 051722'!ET$13,$AL83-1,0) -> 3455.31318 | AP83: =OFFSET('ALT 3B 041222'!ES$13,$AL83-1,0) -> 5409.844165 | AQ83: =OFFSET('ALT 3B 041222'!ET$13,$AL83-1,0) -> 3455.352793 | AR83: =IF(AM83="",AR82,INDEX('ALT 1B 051722'!$AT$13:$AT$996,MATCH(EOMONTH(DATE($AM83,5,1),0),'ALT 1B 051722'!$B$13:$B$996,0))) -> 0.5875965332 | AS83: =IF(AM83="",AS82,INDEX('ALT 3B 041222'!$AT$13:$AT$996,MATCH(EOMONTH(DATE($AM83,5,1),0),'ALT 3B 041222'!$B$13:$B$996,0))) -> 0.5858102835 | AT83: =IFERROR(999999*OFFSET('WYT_40-30-30'!O$3,$AL83-1,0),NA()) ->  | AU83: =IFERROR(999999*OFFSET('WYT_40-30-30'!P$3,$AL83-1,0),NA()) -> 1999998 | AV83: =IFERROR(999999*OFFSET('WYT_40-30-30'!Q$3,$AL83-1,0),NA()) ->  | AW83: =IFERROR(999999*OFFSET('WYT_40-30-30'!R$3,$AL83-1,0),NA()) ->  | AX83: =IFERROR(999999*OFFSET('WYT_40-30-30'!S$3,$AL83-1,0),NA()) -> 
J84: 9 | K84: 1927-09-30 | L84: =INDIRECT(CONCATENATE("'",L$2,"'!",L$5,(MATCH(NOD_Data!$K84,'ALT 1B 051722'!$B:$B,0)))) -> 41.0131396 | M84: =INDIRECT(CONCATENATE("'",M$2,"'!",M$5,(MATCH(NOD_Data!$K84,'ALT 1B 051722'!$B:$B,0)))) -> 36.78652625 | N84: 65.86369456 | O84: 58.03374486 | Q84: =INDIRECT(CONCATENATE("'",Q$2,"'!",Q$5,(MATCH(NOD_Data!$K84,'ALT 1B 051722'!$B:$B,0)))) -> 0 | R84: =INDIRECT(CONCATENATE("'",R$2,"'!",R$5,(MATCH(NOD_Data!$K84,'ALT 1B 051722'!$B:$B,0)))) -> 0 | S84: =INDIRECT(CONCATENATE("'",S$2,"'!",S$5,(MATCH(NOD_Data!$K84,'ALT 1B 051722'!$B:$B,0)))) -> 0 | T84: =INDIRECT(CONCATENATE("'",T$2,"'!",T$5,(MATCH(NOD_Data!$K84,'ALT 1B 051722'!$B:$B,0)))) -> 0 | U84: =INDIRECT(CONCATENATE("'",U$2,"'!",U$5,(MATCH(NOD_Data!$K84,'ALT 1B 051722'!$B:$B,0)))) -> 0 | V84: =INDIRECT(CONCATENATE("'",V$2,"'!",V$5,(MATCH(NOD_Data!$K84,'ALT 1B 051722'!$B:$B,0)))) -> 0 | X84: 1927 | AB84: 1994 | AC84: =INDEX('WYT_40-30-30'!$B$3:$G$84,MATCH(NOD_Data!AB84,'WYT_40-30-30'!$A$3:$A$84,0),Control!$P$5) -> 5 | AD84: 25.23249128 | AE84: 22.23091706 | AF84: 0 | AG84: 0 | AI84: =INDEX(ALT1_CalcAnn_Deliveries!$A$13:$AE$93,MATCH(NOD_Data!$AB84,ALT1_CalcAnn_Deliveries!$A$13:$A$93,0),NOD_Data!AI$4) -> 25.23249128 | AJ84: =INDEX(ALT2_CalcAnn_Deliveries!$A$13:$AE$93,MATCH(NOD_Data!$AB84,ALT2_CalcAnn_Deliveries!$A$13:$A$93,0),NOD_Data!AJ$4) -> 22.23091706 | AL84: 36 | AN84: =OFFSET('ALT 1B 051722'!ES$13,$AL84-1,0) -> 5409.938786 | AO84: =OFFSET('ALT 1B 051722'!ET$13,$AL84-1,0) -> 3455.31318 | AP84: =OFFSET('ALT 3B 041222'!ES$13,$AL84-1,0) -> 5409.844165 | AQ84: =OFFSET('ALT 3B 041222'!ET$13,$AL84-1,0) -> 3455.352793 | AR84: =IF(AM84="",AR83,INDEX('ALT 1B 051722'!$AT$13:$AT$996,MATCH(EOMONTH(DATE($AM84,5,1),0),'ALT 1B 051722'!$B$13:$B$996,0))) -> 0.5875965332 | AS84: =IF(AM84="",AS83,INDEX('ALT 3B 041222'!$AT$13:$AT$996,MATCH(EOMONTH(DATE($AM84,5,1),0),'ALT 3B 041222'!$B$13:$B$996,0))) -> 0.5858102835 | AT84: =IFERROR(999999*OFFSET('WYT_40-30-30'!O$3,$AL84-1,0),NA()) ->  | AU84: =IFERROR(999999*OFFSET('WYT_40-30-30'!P$3,$AL84-1,0),NA()) -> 1999998 | AV84: =IFERROR(999999*OFFSET('WYT_40-30-30'!Q$3,$AL84-1,0),NA()) ->  | AW84: =IFERROR(999999*OFFSET('WYT_40-30-30'!R$3,$AL84-1,0),NA()) ->  | AX84: =IFERROR(999999*OFFSET('WYT_40-30-30'!S$3,$AL84-1,0),NA()) -> 
J85: 10 | K85: 1927-10-31 | L85: =INDIRECT(CONCATENATE("'",L$2,"'!",L$5,(MATCH(NOD_Data!$K85,'ALT 1B 051722'!$B:$B,0)))) -> 40.90665896 | M85: =INDIRECT(CONCATENATE("'",M$2,"'!",M$5,(MATCH(NOD_Data!$K85,'ALT 1B 051722'!$B:$B,0)))) -> 36.69069149 | N85: 65.86369456 | O85: 58.03374486 | Q85: =INDIRECT(CONCATENATE("'",Q$2,"'!",Q$5,(MATCH(NOD_Data!$K85,'ALT 1B 051722'!$B:$B,0)))) -> 0 | R85: =INDIRECT(CONCATENATE("'",R$2,"'!",R$5,(MATCH(NOD_Data!$K85,'ALT 1B 051722'!$B:$B,0)))) -> 0 | S85: =INDIRECT(CONCATENATE("'",S$2,"'!",S$5,(MATCH(NOD_Data!$K85,'ALT 1B 051722'!$B:$B,0)))) -> 0 | T85: =INDIRECT(CONCATENATE("'",T$2,"'!",T$5,(MATCH(NOD_Data!$K85,'ALT 1B 051722'!$B:$B,0)))) -> 0 | U85: =INDIRECT(CONCATENATE("'",U$2,"'!",U$5,(MATCH(NOD_Data!$K85,'ALT 1B 051722'!$B:$B,0)))) -> 0 | V85: =INDIRECT(CONCATENATE("'",V$2,"'!",V$5,(MATCH(NOD_Data!$K85,'ALT 1B 051722'!$B:$B,0)))) -> 0 | X85: 1927 | AB85: 1995 | AC85: =INDEX('WYT_40-30-30'!$B$3:$G$84,MATCH(NOD_Data!AB85,'WYT_40-30-30'!$A$3:$A$84,0),Control!$P$5) -> 1 | AD85: 0 | AE85: 0 | AF85: 0 | AG85: 0 | AI85: =INDEX(ALT1_CalcAnn_Deliveries!$A$13:$AE$93,MATCH(NOD_Data!$AB85,ALT1_CalcAnn_Deliveries!$A$13:$A$93,0),NOD_Data!AI$4) -> 0 | AJ85: =INDEX(ALT2_CalcAnn_Deliveries!$A$13:$AE$93,MATCH(NOD_Data!$AB85,ALT2_CalcAnn_Deliveries!$A$13:$A$93,0),NOD_Data!AJ$4) -> 0 | AL85: 37 | AM85: 1958 | AN85: =OFFSET('ALT 1B 051722'!ES$13,$AL85-1,0) -> 5519 | AO85: =OFFSET('ALT 1B 051722'!ET$13,$AL85-1,0) -> 3538 | AP85: =OFFSET('ALT 3B 041222'!ES$13,$AL85-1,0) -> 5519 | AQ85: =OFFSET('ALT 3B 041222'!ET$13,$AL85-1,0) -> 3538 | AR85: =IF(AM85="",AR84,INDEX('ALT 1B 051722'!$AT$13:$AT$996,MATCH(EOMONTH(DATE($AM85,5,1),0),'ALT 1B 051722'!$B$13:$B$996,0))) -> 0.9105637264 | AS85: =IF(AM85="",AS84,INDEX('ALT 3B 041222'!$AT$13:$AT$996,MATCH(EOMONTH(DATE($AM85,5,1),0),'ALT 3B 041222'!$B$13:$B$996,0))) -> 0.9105637264 | AT85: =IFERROR(999999*OFFSET('WYT_40-30-30'!O$3,$AL85-1,0),NA()) -> 999999 | AU85: =IFERROR(999999*OFFSET('WYT_40-30-30'!P$3,$AL85-1,0),NA()) ->  | AV85: =IFERROR(999999*OFFSET('WYT_40-30-30'!Q$3,$AL85-1,0),NA()) ->  | AW85: =IFERROR(999999*OFFSET('WYT_40-30-30'!R$3,$AL85-1,0),NA()) ->  | AX85: =IFERROR(999999*OFFSET('WYT_40-30-30'!S$3,$AL85-1,0),NA()) -> 
J86: 11 | K86: 1927-11-30 | L86: =INDIRECT(CONCATENATE("'",L$2,"'!",L$5,(MATCH(NOD_Data!$K86,'ALT 1B 051722'!$B:$B,0)))) -> 40.9670977 | M86: =INDIRECT(CONCATENATE("'",M$2,"'!",M$5,(MATCH(NOD_Data!$K86,'ALT 1B 051722'!$B:$B,0)))) -> 36.74438939 | N86: 65.86369456 | O86: 58.03374486 | Q86: =INDIRECT(CONCATENATE("'",Q$2,"'!",Q$5,(MATCH(NOD_Data!$K86,'ALT 1B 051722'!$B:$B,0)))) -> 0 | R86: =INDIRECT(CONCATENATE("'",R$2,"'!",R$5,(MATCH(NOD_Data!$K86,'ALT 1B 051722'!$B:$B,0)))) -> 0 | S86: =INDIRECT(CONCATENATE("'",S$2,"'!",S$5,(MATCH(NOD_Data!$K86,'ALT 1B 051722'!$B:$B,0)))) -> 0 | T86: =INDIRECT(CONCATENATE("'",T$2,"'!",T$5,(MATCH(NOD_Data!$K86,'ALT 1B 051722'!$B:$B,0)))) -> 0 | U86: =INDIRECT(CONCATENATE("'",U$2,"'!",U$5,(MATCH(NOD_Data!$K86,'ALT 1B 051722'!$B:$B,0)))) -> 0 | V86: =INDIRECT(CONCATENATE("'",V$2,"'!",V$5,(MATCH(NOD_Data!$K86,'ALT 1B 051722'!$B:$B,0)))) -> 0 | X86: 1927 | AB86: 1996 | AC86: =INDEX('WYT_40-30-30'!$B$3:$G$84,MATCH(NOD_Data!AB86,'WYT_40-30-30'!$A$3:$A$84,0),Control!$P$5) -> 1 | AD86: 0 | AE86: 0 | AF86: 0 | AG86: 0 | AI86: =INDEX(ALT1_CalcAnn_Deliveries!$A$13:$AE$93,MATCH(NOD_Data!$AB86,ALT1_CalcAnn_Deliveries!$A$13:$A$93,0),NOD_Data!AI$4) -> 0 | AJ86: =INDEX(ALT2_CalcAnn_Deliveries!$A$13:$AE$93,MATCH(NOD_Data!$AB86,ALT2_CalcAnn_Deliveries!$A$13:$A$93,0),NOD_Data!AJ$4) -> 0 | AL86: 37 | AN86: =OFFSET('ALT 1B 051722'!ES$13,$AL86-1,0) -> 5519 | AO86: =OFFSET('ALT 1B 051722'!ET$13,$AL86-1,0) -> 3538 | AP86: =OFFSET('ALT 3B 041222'!ES$13,$AL86-1,0) -> 5519 | AQ86: =OFFSET('ALT 3B 041222'!ET$13,$AL86-1,0) -> 3538 | AR86: =IF(AM86="",AR85,INDEX('ALT 1B 051722'!$AT$13:$AT$996,MATCH(EOMONTH(DATE($AM86,5,1),0),'ALT 1B 051722'!$B$13:$B$996,0))) -> 0.9105637264 | AS86: =IF(AM86="",AS85,INDEX('ALT 3B 041222'!$AT$13:$AT$996,MATCH(EOMONTH(DATE($AM86,5,1),0),'ALT 3B 041222'!$B$13:$B$996,0))) -> 0.9105637264 | AT86: =IFERROR(999999*OFFSET('WYT_40-30-30'!O$3,$AL86-1,0),NA()) -> 999999 | AU86: =IFERROR(999999*OFFSET('WYT_40-30-30'!P$3,$AL86-1,0),NA()) ->  | AV86: =IFERROR(999999*OFFSET('WYT_40-30-30'!Q$3,$AL86-1,0),NA()) ->  | AW86: =IFERROR(999999*OFFSET('WYT_40-30-30'!R$3,$AL86-1,0),NA()) ->  | AX86: =IFERROR(999999*OFFSET('WYT_40-30-30'!S$3,$AL86-1,0),NA()) -> 
J87: 12 | K87: 1927-12-31 | L87: =INDIRECT(CONCATENATE("'",L$2,"'!",L$5,(MATCH(NOD_Data!$K87,'ALT 1B 051722'!$B:$B,0)))) -> 41.09708061 | M87: =INDIRECT(CONCATENATE("'",M$2,"'!",M$5,(MATCH(NOD_Data!$K87,'ALT 1B 051722'!$B:$B,0)))) -> 36.8598751 | N87: 65.86369456 | O87: 58.03374486 | Q87: =INDIRECT(CONCATENATE("'",Q$2,"'!",Q$5,(MATCH(NOD_Data!$K87,'ALT 1B 051722'!$B:$B,0)))) -> 0 | R87: =INDIRECT(CONCATENATE("'",R$2,"'!",R$5,(MATCH(NOD_Data!$K87,'ALT 1B 051722'!$B:$B,0)))) -> 0 | S87: =INDIRECT(CONCATENATE("'",S$2,"'!",S$5,(MATCH(NOD_Data!$K87,'ALT 1B 051722'!$B:$B,0)))) -> 0 | T87: =INDIRECT(CONCATENATE("'",T$2,"'!",T$5,(MATCH(NOD_Data!$K87,'ALT 1B 051722'!$B:$B,0)))) -> 0 | U87: =INDIRECT(CONCATENATE("'",U$2,"'!",U$5,(MATCH(NOD_Data!$K87,'ALT 1B 051722'!$B:$B,0)))) -> 0 | V87: =INDIRECT(CONCATENATE("'",V$2,"'!",V$5,(MATCH(NOD_Data!$K87,'ALT 1B 051722'!$B:$B,0)))) -> 0 | X87: 1927 | AB87: 1997 | AC87: =INDEX('WYT_40-30-30'!$B$3:$G$84,MATCH(NOD_Data!AB87,'WYT_40-30-30'!$A$3:$A$84,0),Control!$P$5) -> 1 | AD87: 1.159858335 | AE87: 1.159858335 | AF87: 0 | AG87: 0 | AI87: =INDEX(ALT1_CalcAnn_Deliveries!$A$13:$AE$93,MATCH(NOD_Data!$AB87,ALT1_CalcAnn_Deliveries!$A$13:$A$93,0),NOD_Data!AI$4) -> 1.159858335 | AJ87: =INDEX(ALT2_CalcAnn_Deliveries!$A$13:$AE$93,MATCH(NOD_Data!$AB87,ALT2_CalcAnn_Deliveries!$A$13:$A$93,0),NOD_Data!AJ$4) -> 1.159858335 | AL87: 38 | AM87: 1959 | AN87: =OFFSET('ALT 1B 051722'!ES$13,$AL87-1,0) -> 5101.888362 | AO87: =OFFSET('ALT 1B 051722'!ET$13,$AL87-1,0) -> 3164.05348 | AP87: =OFFSET('ALT 3B 041222'!ES$13,$AL87-1,0) -> 5142.038313 | AQ87: =OFFSET('ALT 3B 041222'!ET$13,$AL87-1,0) -> 3160.988216 | AR87: =IF(AM87="",AR86,INDEX('ALT 1B 051722'!$AT$13:$AT$996,MATCH(EOMONTH(DATE($AM87,5,1),0),'ALT 1B 051722'!$B$13:$B$996,0))) -> 0.6998761068 | AS87: =IF(AM87="",AS86,INDEX('ALT 3B 041222'!$AT$13:$AT$996,MATCH(EOMONTH(DATE($AM87,5,1),0),'ALT 3B 041222'!$B$13:$B$996,0))) -> 0.6948126052 | AT87: =IFERROR(999999*OFFSET('WYT_40-30-30'!O$3,$AL87-1,0),NA()) ->  | AU87: =IFERROR(999999*OFFSET('WYT_40-30-30'!P$3,$AL87-1,0),NA()) ->  | AV87: =IFERROR(999999*OFFSET('WYT_40-30-30'!Q$3,$AL87-1,0),NA()) -> 2999997 | AW87: =IFERROR(999999*OFFSET('WYT_40-30-30'!R$3,$AL87-1,0),NA()) ->  | AX87: =IFERROR(999999*OFFSET('WYT_40-30-30'!S$3,$AL87-1,0),NA()) -> 
J88: 1 | K88: 1928-01-31 | L88: =INDIRECT(CONCATENATE("'",L$2,"'!",L$5,(MATCH(NOD_Data!$K88,'ALT 1B 051722'!$B:$B,0)))) -> 41.14833119 | M88: =INDIRECT(CONCATENATE("'",M$2,"'!",M$5,(MATCH(NOD_Data!$K88,'ALT 1B 051722'!$B:$B,0)))) -> 36.90540963 | N88: 65.86369456 | O88: 58.03374486 | Q88: =INDIRECT(CONCATENATE("'",Q$2,"'!",Q$5,(MATCH(NOD_Data!$K88,'ALT 1B 051722'!$B:$B,0)))) -> 0 | R88: =INDIRECT(CONCATENATE("'",R$2,"'!",R$5,(MATCH(NOD_Data!$K88,'ALT 1B 051722'!$B:$B,0)))) -> 0 | S88: =INDIRECT(CONCATENATE("'",S$2,"'!",S$5,(MATCH(NOD_Data!$K88,'ALT 1B 051722'!$B:$B,0)))) -> 0 | T88: =INDIRECT(CONCATENATE("'",T$2,"'!",T$5,(MATCH(NOD_Data!$K88,'ALT 1B 051722'!$B:$B,0)))) -> 0 | U88: =INDIRECT(CONCATENATE("'",U$2,"'!",U$5,(MATCH(NOD_Data!$K88,'ALT 1B 051722'!$B:$B,0)))) -> 0 | V88: =INDIRECT(CONCATENATE("'",V$2,"'!",V$5,(MATCH(NOD_Data!$K88,'ALT 1B 051722'!$B:$B,0)))) -> 0 | X88: 1927 | AB88: 1998 | AC88: =INDEX('WYT_40-30-30'!$B$3:$G$84,MATCH(NOD_Data!AB88,'WYT_40-30-30'!$A$3:$A$84,0),Control!$P$5) -> 1 | AD88: 0 | AE88: 0 | AF88: 0 | AG88: 0 | AI88: =INDEX(ALT1_CalcAnn_Deliveries!$A$13:$AE$93,MATCH(NOD_Data!$AB88,ALT1_CalcAnn_Deliveries!$A$13:$A$93,0),NOD_Data!AI$4) -> 0 | AJ88: =INDEX(ALT2_CalcAnn_Deliveries!$A$13:$AE$93,MATCH(NOD_Data!$AB88,ALT2_CalcAnn_Deliveries!$A$13:$A$93,0),NOD_Data!AJ$4) -> 0 | AL88: 38 | AN88: =OFFSET('ALT 1B 051722'!ES$13,$AL88-1,0) -> 5101.888362 | AO88: =OFFSET('ALT 1B 051722'!ET$13,$AL88-1,0) -> 3164.05348 | AP88: =OFFSET('ALT 3B 041222'!ES$13,$AL88-1,0) -> 5142.038313 | AQ88: =OFFSET('ALT 3B 041222'!ET$13,$AL88-1,0) -> 3160.988216 | AR88: =IF(AM88="",AR87,INDEX('ALT 1B 051722'!$AT$13:$AT$996,MATCH(EOMONTH(DATE($AM88,5,1),0),'ALT 1B 051722'!$B$13:$B$996,0))) -> 0.6998761068 | AS88: =IF(AM88="",AS87,INDEX('ALT 3B 041222'!$AT$13:$AT$996,MATCH(EOMONTH(DATE($AM88,5,1),0),'ALT 3B 041222'!$B$13:$B$996,0))) -> 0.6948126052 | AT88: =IFERROR(999999*OFFSET('WYT_40-30-30'!O$3,$AL88-1,0),NA()) ->  | AU88: =IFERROR(999999*OFFSET('WYT_40-30-30'!P$3,$AL88-1,0),NA()) ->  | AV88: =IFERROR(999999*OFFSET('WYT_40-30-30'!Q$3,$AL88-1,0),NA()) -> 2999997 | AW88: =IFERROR(999999*OFFSET('WYT_40-30-30'!R$3,$AL88-1,0),NA()) ->  | AX88: =IFERROR(999999*OFFSET('WYT_40-30-30'!S$3,$AL88-1,0),NA()) -> 
J89: 2 | K89: 1928-02-29 | L89: =INDIRECT(CONCATENATE("'",L$2,"'!",L$5,(MATCH(NOD_Data!$K89,'ALT 1B 051722'!$B:$B,0)))) -> 46.98113163 | M89: =INDIRECT(CONCATENATE("'",M$2,"'!",M$5,(MATCH(NOD_Data!$K89,'ALT 1B 051722'!$B:$B,0)))) -> 42.05306226 | N89: 65.86369456 | O89: 58.03374486 | Q89: =INDIRECT(CONCATENATE("'",Q$2,"'!",Q$5,(MATCH(NOD_Data!$K89,'ALT 1B 051722'!$B:$B,0)))) -> 5.77463627 | R89: =INDIRECT(CONCATENATE("'",R$2,"'!",R$5,(MATCH(NOD_Data!$K89,'ALT 1B 051722'!$B:$B,0)))) -> 5.095992454 | S89: =INDIRECT(CONCATENATE("'",S$2,"'!",S$5,(MATCH(NOD_Data!$K89,'ALT 1B 051722'!$B:$B,0)))) -> 0 | T89: =INDIRECT(CONCATENATE("'",T$2,"'!",T$5,(MATCH(NOD_Data!$K89,'ALT 1B 051722'!$B:$B,0)))) -> 0 | U89: =INDIRECT(CONCATENATE("'",U$2,"'!",U$5,(MATCH(NOD_Data!$K89,'ALT 1B 051722'!$B:$B,0)))) -> 0 | V89: =INDIRECT(CONCATENATE("'",V$2,"'!",V$5,(MATCH(NOD_Data!$K89,'ALT 1B 051722'!$B:$B,0)))) -> 0 | X89: 1927 | AB89: 1999 | AC89: =INDEX('WYT_40-30-30'!$B$3:$G$84,MATCH(NOD_Data!AB89,'WYT_40-30-30'!$A$3:$A$84,0),Control!$P$5) -> 1 | AD89: 0 | AE89: 0 | AF89: 0 | AG89: 0 | AI89: =INDEX(ALT1_CalcAnn_Deliveries!$A$13:$AE$93,MATCH(NOD_Data!$AB89,ALT1_CalcAnn_Deliveries!$A$13:$A$93,0),NOD_Data!AI$4) -> 0 | AJ89: =INDEX(ALT2_CalcAnn_Deliveries!$A$13:$AE$93,MATCH(NOD_Data!$AB89,ALT2_CalcAnn_Deliveries!$A$13:$A$93,0),NOD_Data!AJ$4) -> 0 | AL89: 39 | AM89: 1960 | AN89: =OFFSET('ALT 1B 051722'!ES$13,$AL89-1,0) -> 5218.595418 | AO89: =OFFSET('ALT 1B 051722'!ET$13,$AL89-1,0) -> 2846.337693 | AP89: =OFFSET('ALT 3B 041222'!ES$13,$AL89-1,0) -> 5244.18038 | AQ89: =OFFSET('ALT 3B 041222'!ET$13,$AL89-1,0) -> 2847.790245 | AR89: =IF(AM89="",AR88,INDEX('ALT 1B 051722'!$AT$13:$AT$996,MATCH(EOMONTH(DATE($AM89,5,1),0),'ALT 1B 051722'!$B$13:$B$996,0))) -> 0.2927735077 | AS89: =IF(AM89="",AS88,INDEX('ALT 3B 041222'!$AT$13:$AT$996,MATCH(EOMONTH(DATE($AM89,5,1),0),'ALT 3B 041222'!$B$13:$B$996,0))) -> 0.2940452662 | AT89: =IFERROR(999999*OFFSET('WYT_40-30-30'!O$3,$AL89-1,0),NA()) ->  | AU89: =IFERROR(999999*OFFSET('WYT_40-30-30'!P$3,$AL89-1,0),NA()) ->  | AV89: =IFERROR(999999*OFFSET('WYT_40-30-30'!Q$3,$AL89-1,0),NA()) ->  | AW89: =IFERROR(999999*OFFSET('WYT_40-30-30'!R$3,$AL89-1,0),NA()) -> 3999996 | AX89: =IFERROR(999999*OFFSET('WYT_40-30-30'!S$3,$AL89-1,0),NA()) -> 
J90: 3 | K90: 1928-03-31 | L90: =INDIRECT(CONCATENATE("'",L$2,"'!",L$5,(MATCH(NOD_Data!$K90,'ALT 1B 051722'!$B:$B,0)))) -> 55.38339483 | M90: =INDIRECT(CONCATENATE("'",M$2,"'!",M$5,(MATCH(NOD_Data!$K90,'ALT 1B 051722'!$B:$B,0)))) -> 49.4565262 | N90: 65.86369456 | O90: 58.03374486 | Q90: =INDIRECT(CONCATENATE("'",Q$2,"'!",Q$5,(MATCH(NOD_Data!$K90,'ALT 1B 051722'!$B:$B,0)))) -> 8.386871824 | R90: =INDIRECT(CONCATENATE("'",R$2,"'!",R$5,(MATCH(NOD_Data!$K90,'ALT 1B 051722'!$B:$B,0)))) -> 7.389822106 | S90: =INDIRECT(CONCATENATE("'",S$2,"'!",S$5,(MATCH(NOD_Data!$K90,'ALT 1B 051722'!$B:$B,0)))) -> 0 | T90: =INDIRECT(CONCATENATE("'",T$2,"'!",T$5,(MATCH(NOD_Data!$K90,'ALT 1B 051722'!$B:$B,0)))) -> 0 | U90: =INDIRECT(CONCATENATE("'",U$2,"'!",U$5,(MATCH(NOD_Data!$K90,'ALT 1B 051722'!$B:$B,0)))) -> 0 | V90: =INDIRECT(CONCATENATE("'",V$2,"'!",V$5,(MATCH(NOD_Data!$K90,'ALT 1B 051722'!$B:$B,0)))) -> 0 | X90: 1928 | AB90: 2000 | AC90: =INDEX('WYT_40-30-30'!$B$3:$G$84,MATCH(NOD_Data!AB90,'WYT_40-30-30'!$A$3:$A$84,0),Control!$P$5) -> 2 | AD90: 0 | AE90: 0 | AF90: 0 | AG90: 0 | AI90: =INDEX(ALT1_CalcAnn_Deliveries!$A$13:$AE$93,MATCH(NOD_Data!$AB90,ALT1_CalcAnn_Deliveries!$A$13:$A$93,0),NOD_Data!AI$4) -> 0 | AJ90: =INDEX(ALT2_CalcAnn_Deliveries!$A$13:$AE$93,MATCH(NOD_Data!$AB90,ALT2_CalcAnn_Deliveries!$A$13:$A$93,0),NOD_Data!AJ$4) -> 0 | AL90: 39 | AN90: =OFFSET('ALT 1B 051722'!ES$13,$AL90-1,0) -> 5218.595418 | AO90: =OFFSET('ALT 1B 051722'!ET$13,$AL90-1,0) -> 2846.337693 | AP90: =OFFSET('ALT 3B 041222'!ES$13,$AL90-1,0) -> 5244.18038 | AQ90: =OFFSET('ALT 3B 041222'!ET$13,$AL90-1,0) -> 2847.790245 | AR90: =IF(AM90="",AR89,INDEX('ALT 1B 051722'!$AT$13:$AT$996,MATCH(EOMONTH(DATE($AM90,5,1),0),'ALT 1B 051722'!$B$13:$B$996,0))) -> 0.2927735077 | AS90: =IF(AM90="",AS89,INDEX('ALT 3B 041222'!$AT$13:$AT$996,MATCH(EOMONTH(DATE($AM90,5,1),0),'ALT 3B 041222'!$B$13:$B$996,0))) -> 0.2940452662 | AT90: =IFERROR(999999*OFFSET('WYT_40-30-30'!O$3,$AL90-1,0),NA()) ->  | AU90: =IFERROR(999999*OFFSET('WYT_40-30-30'!P$3,$AL90-1,0),NA()) ->  | AV90: =IFERROR(999999*OFFSET('WYT_40-30-30'!Q$3,$AL90-1,0),NA()) ->  | AW90: =IFERROR(999999*OFFSET('WYT_40-30-30'!R$3,$AL90-1,0),NA()) -> 3999996 | AX90: =IFERROR(999999*OFFSET('WYT_40-30-30'!S$3,$AL90-1,0),NA()) -> 
J91: 4 | K91: 1928-04-30 | L91: =INDIRECT(CONCATENATE("'",L$2,"'!",L$5,(MATCH(NOD_Data!$K91,'ALT 1B 051722'!$B:$B,0)))) -> 54.40164262 | M91: =INDIRECT(CONCATENATE("'",M$2,"'!",M$5,(MATCH(NOD_Data!$K91,'ALT 1B 051722'!$B:$B,0)))) -> 48.49196156 | N91: 65.86369456 | O91: 58.03374486 | Q91: =INDIRECT(CONCATENATE("'",Q$2,"'!",Q$5,(MATCH(NOD_Data!$K91,'ALT 1B 051722'!$B:$B,0)))) -> 0 | R91: =INDIRECT(CONCATENATE("'",R$2,"'!",R$5,(MATCH(NOD_Data!$K91,'ALT 1B 051722'!$B:$B,0)))) -> 0 | S91: =INDIRECT(CONCATENATE("'",S$2,"'!",S$5,(MATCH(NOD_Data!$K91,'ALT 1B 051722'!$B:$B,0)))) -> 0.8291672906 | T91: =INDIRECT(CONCATENATE("'",T$2,"'!",T$5,(MATCH(NOD_Data!$K91,'ALT 1B 051722'!$B:$B,0)))) -> 0.8291672906 | U91: =INDIRECT(CONCATENATE("'",U$2,"'!",U$5,(MATCH(NOD_Data!$K91,'ALT 1B 051722'!$B:$B,0)))) -> 0 | V91: =INDIRECT(CONCATENATE("'",V$2,"'!",V$5,(MATCH(NOD_Data!$K91,'ALT 1B 051722'!$B:$B,0)))) -> 0 | X91: 1928 | AB91: 2001 | AC91: =INDEX('WYT_40-30-30'!$B$3:$G$84,MATCH(NOD_Data!AB91,'WYT_40-30-30'!$A$3:$A$84,0),Control!$P$5) -> 4 | AD91: 29.49460274 | AE91: 27.15962411 | AF91: 0 | AG91: 0 | AI91: =INDEX(ALT1_CalcAnn_Deliveries!$A$13:$AE$93,MATCH(NOD_Data!$AB91,ALT1_CalcAnn_Deliveries!$A$13:$A$93,0),NOD_Data!AI$4) -> 29.49460274 | AJ91: =INDEX(ALT2_CalcAnn_Deliveries!$A$13:$AE$93,MATCH(NOD_Data!$AB91,ALT2_CalcAnn_Deliveries!$A$13:$A$93,0),NOD_Data!AJ$4) -> 27.15962411 | AL91: 40 | AM91: 1961 | AN91: =OFFSET('ALT 1B 051722'!ES$13,$AL91-1,0) -> 5113.770103 | AO91: =OFFSET('ALT 1B 051722'!ET$13,$AL91-1,0) -> 2186.131544 | AP91: =OFFSET('ALT 3B 041222'!ES$13,$AL91-1,0) -> 5108.000347 | AQ91: =OFFSET('ALT 3B 041222'!ET$13,$AL91-1,0) -> 2150.633441 | AR91: =IF(AM91="",AR90,INDEX('ALT 1B 051722'!$AT$13:$AT$996,MATCH(EOMONTH(DATE($AM91,5,1),0),'ALT 1B 051722'!$B$13:$B$996,0))) -> 0.4625246205 | AS91: =IF(AM91="",AS90,INDEX('ALT 3B 041222'!$AT$13:$AT$996,MATCH(EOMONTH(DATE($AM91,5,1),0),'ALT 3B 041222'!$B$13:$B$996,0))) -> 0.4735160913 | AT91: =IFERROR(999999*OFFSET('WYT_40-30-30'!O$3,$AL91-1,0),NA()) ->  | AU91: =IFERROR(999999*OFFSET('WYT_40-30-30'!P$3,$AL91-1,0),NA()) ->  | AV91: =IFERROR(999999*OFFSET('WYT_40-30-30'!Q$3,$AL91-1,0),NA()) ->  | AW91: =IFERROR(999999*OFFSET('WYT_40-30-30'!R$3,$AL91-1,0),NA()) -> 3999996 | AX91: =IFERROR(999999*OFFSET('WYT_40-30-30'!S$3,$AL91-1,0),NA()) -> 
J92: 5 | K92: 1928-05-31 | L92: =INDIRECT(CONCATENATE("'",L$2,"'!",L$5,(MATCH(NOD_Data!$K92,'ALT 1B 051722'!$B:$B,0)))) -> 44.85440142 | M92: =INDIRECT(CONCATENATE("'",M$2,"'!",M$5,(MATCH(NOD_Data!$K92,'ALT 1B 051722'!$B:$B,0)))) -> 38.98305974 | N92: 65.86369456 | O92: 58.03374486 | Q92: =INDIRECT(CONCATENATE("'",Q$2,"'!",Q$5,(MATCH(NOD_Data!$K92,'ALT 1B 051722'!$B:$B,0)))) -> 0 | R92: =INDIRECT(CONCATENATE("'",R$2,"'!",R$5,(MATCH(NOD_Data!$K92,'ALT 1B 051722'!$B:$B,0)))) -> 0 | S92: =INDIRECT(CONCATENATE("'",S$2,"'!",S$5,(MATCH(NOD_Data!$K92,'ALT 1B 051722'!$B:$B,0)))) -> 0 | T92: =INDIRECT(CONCATENATE("'",T$2,"'!",T$5,(MATCH(NOD_Data!$K92,'ALT 1B 051722'!$B:$B,0)))) -> 0 | U92: =INDIRECT(CONCATENATE("'",U$2,"'!",U$5,(MATCH(NOD_Data!$K92,'ALT 1B 051722'!$B:$B,0)))) -> 9.211705533 | V92: =INDIRECT(CONCATENATE("'",V$2,"'!",V$5,(MATCH(NOD_Data!$K92,'ALT 1B 051722'!$B:$B,0)))) -> 9.211705533 | X92: 1928 | AB92: 2002 | AC92: =INDEX('WYT_40-30-30'!$B$3:$G$84,MATCH(NOD_Data!AB92,'WYT_40-30-30'!$A$3:$A$84,0),Control!$P$5) -> 4 | AD92: 0.108513094 | AE92: 0.1133553245 | AF92: 0 | AG92: 0 | AI92: =INDEX(ALT1_CalcAnn_Deliveries!$A$13:$AE$93,MATCH(NOD_Data!$AB92,ALT1_CalcAnn_Deliveries!$A$13:$A$93,0),NOD_Data!AI$4) -> 0.108513094 | AJ92: =INDEX(ALT2_CalcAnn_Deliveries!$A$13:$AE$93,MATCH(NOD_Data!$AB92,ALT2_CalcAnn_Deliveries!$A$13:$A$93,0),NOD_Data!AJ$4) -> 0.1133553245 | AL92: 40 | AN92: =OFFSET('ALT 1B 051722'!ES$13,$AL92-1,0) -> 5113.770103 | AO92: =OFFSET('ALT 1B 051722'!ET$13,$AL92-1,0) -> 2186.131544 | AP92: =OFFSET('ALT 3B 041222'!ES$13,$AL92-1,0) -> 5108.000347 | AQ92: =OFFSET('ALT 3B 041222'!ET$13,$AL92-1,0) -> 2150.633441 | AR92: =IF(AM92="",AR91,INDEX('ALT 1B 051722'!$AT$13:$AT$996,MATCH(EOMONTH(DATE($AM92,5,1),0),'ALT 1B 051722'!$B$13:$B$996,0))) -> 0.4625246205 | AS92: =IF(AM92="",AS91,INDEX('ALT 3B 041222'!$AT$13:$AT$996,MATCH(EOMONTH(DATE($AM92,5,1),0),'ALT 3B 041222'!$B$13:$B$996,0))) -> 0.4735160913 | AT92: =IFERROR(999999*OFFSET('WYT_40-30-30'!O$3,$AL92-1,0),NA()) ->  | AU92: =IFERROR(999999*OFFSET('WYT_40-30-30'!P$3,$AL92-1,0),NA()) ->  | AV92: =IFERROR(999999*OFFSET('WYT_40-30-30'!Q$3,$AL92-1,0),NA()) ->  | AW92: =IFERROR(999999*OFFSET('WYT_40-30-30'!R$3,$AL92-1,0),NA()) -> 3999996 | AX92: =IFERROR(999999*OFFSET('WYT_40-30-30'!S$3,$AL92-1,0),NA()) -> 
J93: 6 | K93: 1928-06-30 | L93: =INDIRECT(CONCATENATE("'",L$2,"'!",L$5,(MATCH(NOD_Data!$K93,'ALT 1B 051722'!$B:$B,0)))) -> 44.52724396 | M93: =INDIRECT(CONCATENATE("'",M$2,"'!",M$5,(MATCH(NOD_Data!$K93,'ALT 1B 051722'!$B:$B,0)))) -> 38.70075181 | N93: 65.86369456 | O93: 58.03374486 | Q93: =INDIRECT(CONCATENATE("'",Q$2,"'!",Q$5,(MATCH(NOD_Data!$K93,'ALT 1B 051722'!$B:$B,0)))) -> 0 | R93: =INDIRECT(CONCATENATE("'",R$2,"'!",R$5,(MATCH(NOD_Data!$K93,'ALT 1B 051722'!$B:$B,0)))) -> 0 | S93: =INDIRECT(CONCATENATE("'",S$2,"'!",S$5,(MATCH(NOD_Data!$K93,'ALT 1B 051722'!$B:$B,0)))) -> 0 | T93: =INDIRECT(CONCATENATE("'",T$2,"'!",T$5,(MATCH(NOD_Data!$K93,'ALT 1B 051722'!$B:$B,0)))) -> 0 | U93: =INDIRECT(CONCATENATE("'",U$2,"'!",U$5,(MATCH(NOD_Data!$K93,'ALT 1B 051722'!$B:$B,0)))) -> 0 | V93: =INDIRECT(CONCATENATE("'",V$2,"'!",V$5,(MATCH(NOD_Data!$K93,'ALT 1B 051722'!$B:$B,0)))) -> 0 | X93: 1928 | AL93: 41 | AM93: 1962 | AN93: =OFFSET('ALT 1B 051722'!ES$13,$AL93-1,0) -> 5469.83644 | AO93: =OFFSET('ALT 1B 051722'!ET$13,$AL93-1,0) -> 2778.895101 | AP93: =OFFSET('ALT 3B 041222'!ES$13,$AL93-1,0) -> 5500.516594 | AQ93: =OFFSET('ALT 3B 041222'!ET$13,$AL93-1,0) -> 2768.305689 | AR93: =IF(AM93="",AR92,INDEX('ALT 1B 051722'!$AT$13:$AT$996,MATCH(EOMONTH(DATE($AM93,5,1),0),'ALT 1B 051722'!$B$13:$B$996,0))) -> 0.6302532187 | AS93: =IF(AM93="",AS92,INDEX('ALT 3B 041222'!$AT$13:$AT$996,MATCH(EOMONTH(DATE($AM93,5,1),0),'ALT 3B 041222'!$B$13:$B$996,0))) -> 0.6447345398 | AT93: =IFERROR(999999*OFFSET('WYT_40-30-30'!O$3,$AL93-1,0),NA()) ->  | AU93: =IFERROR(999999*OFFSET('WYT_40-30-30'!P$3,$AL93-1,0),NA()) ->  | AV93: =IFERROR(999999*OFFSET('WYT_40-30-30'!Q$3,$AL93-1,0),NA()) -> 2999997 | AW93: =IFERROR(999999*OFFSET('WYT_40-30-30'!R$3,$AL93-1,0),NA()) ->  | AX93: =IFERROR(999999*OFFSET('WYT_40-30-30'!S$3,$AL93-1,0),NA()) -> 
J94: 7 | K94: 1928-07-31 | L94: =INDIRECT(CONCATENATE("'",L$2,"'!",L$5,(MATCH(NOD_Data!$K94,'ALT 1B 051722'!$B:$B,0)))) -> 44.14580958 | M94: =INDIRECT(CONCATENATE("'",M$2,"'!",M$5,(MATCH(NOD_Data!$K94,'ALT 1B 051722'!$B:$B,0)))) -> 38.38040497 | N94: 65.86369456 | O94: 58.03374486 | Q94: =INDIRECT(CONCATENATE("'",Q$2,"'!",Q$5,(MATCH(NOD_Data!$K94,'ALT 1B 051722'!$B:$B,0)))) -> 0 | R94: =INDIRECT(CONCATENATE("'",R$2,"'!",R$5,(MATCH(NOD_Data!$K94,'ALT 1B 051722'!$B:$B,0)))) -> 0 | S94: =INDIRECT(CONCATENATE("'",S$2,"'!",S$5,(MATCH(NOD_Data!$K94,'ALT 1B 051722'!$B:$B,0)))) -> 0 | T94: =INDIRECT(CONCATENATE("'",T$2,"'!",T$5,(MATCH(NOD_Data!$K94,'ALT 1B 051722'!$B:$B,0)))) -> 0 | U94: =INDIRECT(CONCATENATE("'",U$2,"'!",U$5,(MATCH(NOD_Data!$K94,'ALT 1B 051722'!$B:$B,0)))) -> 0 | V94: =INDIRECT(CONCATENATE("'",V$2,"'!",V$5,(MATCH(NOD_Data!$K94,'ALT 1B 051722'!$B:$B,0)))) -> 0 | X94: 1928 | AL94: 41 | AN94: =OFFSET('ALT 1B 051722'!ES$13,$AL94-1,0) -> 5469.83644 | AO94: =OFFSET('ALT 1B 051722'!ET$13,$AL94-1,0) -> 2778.895101 | AP94: =OFFSET('ALT 3B 041222'!ES$13,$AL94-1,0) -> 5500.516594 | AQ94: =OFFSET('ALT 3B 041222'!ET$13,$AL94-1,0) -> 2768.305689 | AR94: =IF(AM94="",AR93,INDEX('ALT 1B 051722'!$AT$13:$AT$996,MATCH(EOMONTH(DATE($AM94,5,1),0),'ALT 1B 051722'!$B$13:$B$996,0))) -> 0.6302532187 | AS94: =IF(AM94="",AS93,INDEX('ALT 3B 041222'!$AT$13:$AT$996,MATCH(EOMONTH(DATE($AM94,5,1),0),'ALT 3B 041222'!$B$13:$B$996,0))) -> 0.6447345398 | AT94: =IFERROR(999999*OFFSET('WYT_40-30-30'!O$3,$AL94-1,0),NA()) ->  | AU94: =IFERROR(999999*OFFSET('WYT_40-30-30'!P$3,$AL94-1,0),NA()) ->  | AV94: =IFERROR(999999*OFFSET('WYT_40-30-30'!Q$3,$AL94-1,0),NA()) -> 2999997 | AW94: =IFERROR(999999*OFFSET('WYT_40-30-30'!R$3,$AL94-1,0),NA()) ->  | AX94: =IFERROR(999999*OFFSET('WYT_40-30-30'!S$3,$AL94-1,0),NA()) -> 
J95: 8 | K95: 1928-08-31 | L95: =INDIRECT(CONCATENATE("'",L$2,"'!",L$5,(MATCH(NOD_Data!$K95,'ALT 1B 051722'!$B:$B,0)))) -> 43.80332682 | M95: =INDIRECT(CONCATENATE("'",M$2,"'!",M$5,(MATCH(NOD_Data!$K95,'ALT 1B 051722'!$B:$B,0)))) -> 38.06090201 | N95: 65.86369456 | O95: 58.03374486 | Q95: =INDIRECT(CONCATENATE("'",Q$2,"'!",Q$5,(MATCH(NOD_Data!$K95,'ALT 1B 051722'!$B:$B,0)))) -> 0 | R95: =INDIRECT(CONCATENATE("'",R$2,"'!",R$5,(MATCH(NOD_Data!$K95,'ALT 1B 051722'!$B:$B,0)))) -> 0 | S95: =INDIRECT(CONCATENATE("'",S$2,"'!",S$5,(MATCH(NOD_Data!$K95,'ALT 1B 051722'!$B:$B,0)))) -> 0 | T95: =INDIRECT(CONCATENATE("'",T$2,"'!",T$5,(MATCH(NOD_Data!$K95,'ALT 1B 051722'!$B:$B,0)))) -> 0 | U95: =INDIRECT(CONCATENATE("'",U$2,"'!",U$5,(MATCH(NOD_Data!$K95,'ALT 1B 051722'!$B:$B,0)))) -> 0 | V95: =INDIRECT(CONCATENATE("'",V$2,"'!",V$5,(MATCH(NOD_Data!$K95,'ALT 1B 051722'!$B:$B,0)))) -> 0 | X95: 1928 | AB95: WY1922-WY2002 | AL95: 42 | AM95: 1963 | AN95: =OFFSET('ALT 1B 051722'!ES$13,$AL95-1,0) -> 5519 | AO95: =OFFSET('ALT 1B 051722'!ET$13,$AL95-1,0) -> 3538 | AP95: =OFFSET('ALT 3B 041222'!ES$13,$AL95-1,0) -> 5519 | AQ95: =OFFSET('ALT 3B 041222'!ET$13,$AL95-1,0) -> 3538 | AR95: =IF(AM95="",AR94,INDEX('ALT 1B 051722'!$AT$13:$AT$996,MATCH(EOMONTH(DATE($AM95,5,1),0),'ALT 1B 051722'!$B$13:$B$996,0))) -> 0.5352203071 | AS95: =IF(AM95="",AS94,INDEX('ALT 3B 041222'!$AT$13:$AT$996,MATCH(EOMONTH(DATE($AM95,5,1),0),'ALT 3B 041222'!$B$13:$B$996,0))) -> 0.5351396799 | AT95: =IFERROR(999999*OFFSET('WYT_40-30-30'!O$3,$AL95-1,0),NA()) -> 999999 | AU95: =IFERROR(999999*OFFSET('WYT_40-30-30'!P$3,$AL95-1,0),NA()) ->  | AV95: =IFERROR(999999*OFFSET('WYT_40-30-30'!Q$3,$AL95-1,0),NA()) ->  | AW95: =IFERROR(999999*OFFSET('WYT_40-30-30'!R$3,$AL95-1,0),NA()) ->  | AX95: =IFERROR(999999*OFFSET('WYT_40-30-30'!S$3,$AL95-1,0),NA()) -> 
J96: 9 | K96: 1928-09-30 | L96: =INDIRECT(CONCATENATE("'",L$2,"'!",L$5,(MATCH(NOD_Data!$K96,'ALT 1B 051722'!$B:$B,0)))) -> 43.54271928 | M96: =INDIRECT(CONCATENATE("'",M$2,"'!",M$5,(MATCH(NOD_Data!$K96,'ALT 1B 051722'!$B:$B,0)))) -> 37.80014124 | N96: 65.86369456 | O96: 58.03374486 | Q96: =INDIRECT(CONCATENATE("'",Q$2,"'!",Q$5,(MATCH(NOD_Data!$K96,'ALT 1B 051722'!$B:$B,0)))) -> 0 | R96: =INDIRECT(CONCATENATE("'",R$2,"'!",R$5,(MATCH(NOD_Data!$K96,'ALT 1B 051722'!$B:$B,0)))) -> 0 | S96: =INDIRECT(CONCATENATE("'",S$2,"'!",S$5,(MATCH(NOD_Data!$K96,'ALT 1B 051722'!$B:$B,0)))) -> 0 | T96: =INDIRECT(CONCATENATE("'",T$2,"'!",T$5,(MATCH(NOD_Data!$K96,'ALT 1B 051722'!$B:$B,0)))) -> 0 | U96: =INDIRECT(CONCATENATE("'",U$2,"'!",U$5,(MATCH(NOD_Data!$K96,'ALT 1B 051722'!$B:$B,0)))) -> 0 | V96: =INDIRECT(CONCATENATE("'",V$2,"'!",V$5,(MATCH(NOD_Data!$K96,'ALT 1B 051722'!$B:$B,0)))) -> 0 | X96: 1928 | AB96: LT | AD96: =AVERAGE(AD$12:AD$92) -> 6.920534499 | AE96: =AVERAGE(AE$12:AE$92) -> 6.531012845 | AF96: =AVERAGE(AF$12:AF$92) -> 0.5686237984 | AG96: =AVERAGE(AG$12:AG$92) -> 0.587268148 | AI96: =AVERAGE(AI$12:AI$92) -> 6.920534499 | AJ96: =AVERAGE(AJ$12:AJ$92) -> 6.531012845 | AL96: 42 | AN96: =OFFSET('ALT 1B 051722'!ES$13,$AL96-1,0) -> 5519 | AO96: =OFFSET('ALT 1B 051722'!ET$13,$AL96-1,0) -> 3538 | AP96: =OFFSET('ALT 3B 041222'!ES$13,$AL96-1,0) -> 5519 | AQ96: =OFFSET('ALT 3B 041222'!ET$13,$AL96-1,0) -> 3538 | AR96: =IF(AM96="",AR95,INDEX('ALT 1B 051722'!$AT$13:$AT$996,MATCH(EOMONTH(DATE($AM96,5,1),0),'ALT 1B 051722'!$B$13:$B$996,0))) -> 0.5352203071 | AS96: =IF(AM96="",AS95,INDEX('ALT 3B 041222'!$AT$13:$AT$996,MATCH(EOMONTH(DATE($AM96,5,1),0),'ALT 3B 041222'!$B$13:$B$996,0))) -> 0.5351396799 | AT96: =IFERROR(999999*OFFSET('WYT_40-30-30'!O$3,$AL96-1,0),NA()) -> 999999 | AU96: =IFERROR(999999*OFFSET('WYT_40-30-30'!P$3,$AL96-1,0),NA()) ->  | AV96: =IFERROR(999999*OFFSET('WYT_40-30-30'!Q$3,$AL96-1,0),NA()) ->  | AW96: =IFERROR(999999*OFFSET('WYT_40-30-30'!R$3,$AL96-1,0),NA()) ->  | AX96: =IFERROR(999999*OFFSET('WYT_40-30-30'!S$3,$AL96-1,0),NA()) -> 
J97: 10 | K97: 1928-10-31 | L97: =INDIRECT(CONCATENATE("'",L$2,"'!",L$5,(MATCH(NOD_Data!$K97,'ALT 1B 051722'!$B:$B,0)))) -> 43.39451257 | M97: =INDIRECT(CONCATENATE("'",M$2,"'!",M$5,(MATCH(NOD_Data!$K97,'ALT 1B 051722'!$B:$B,0)))) -> 37.6420896 | N97: 65.86369456 | O97: 58.03374486 | Q97: =INDIRECT(CONCATENATE("'",Q$2,"'!",Q$5,(MATCH(NOD_Data!$K97,'ALT 1B 051722'!$B:$B,0)))) -> 0 | R97: =INDIRECT(CONCATENATE("'",R$2,"'!",R$5,(MATCH(NOD_Data!$K97,'ALT 1B 051722'!$B:$B,0)))) -> 0 | S97: =INDIRECT(CONCATENATE("'",S$2,"'!",S$5,(MATCH(NOD_Data!$K97,'ALT 1B 051722'!$B:$B,0)))) -> 0 | T97: =INDIRECT(CONCATENATE("'",T$2,"'!",T$5,(MATCH(NOD_Data!$K97,'ALT 1B 051722'!$B:$B,0)))) -> 0 | U97: =INDIRECT(CONCATENATE("'",U$2,"'!",U$5,(MATCH(NOD_Data!$K97,'ALT 1B 051722'!$B:$B,0)))) -> 0 | V97: =INDIRECT(CONCATENATE("'",V$2,"'!",V$5,(MATCH(NOD_Data!$K97,'ALT 1B 051722'!$B:$B,0)))) -> 0 | X97: 1928 | AB97: D&C | AD97: =AVERAGEIF($AC$12:$AC$92,">3",AD$12:AD$92) -> 15.36752256 | AE97: =AVERAGEIF($AC$12:$AC$92,">3",AE$12:AE$92) -> 14.52446479 | AF97: =AVERAGEIF($AC$12:$AC$92,">3",AF$12:AF$92) -> 0 | AG97: =AVERAGEIF($AC$12:$AC$92,">3",AG$12:AG$92) -> 0 | AI97: =AVERAGEIF($AC$12:$AC$92,">3",AI$12:AI$92) -> 15.36752256 | AJ97: =AVERAGEIF($AC$12:$AC$92,">3",AJ$12:AJ$92) -> 14.52446479 | AL97: 43 | AM97: 1964 | AN97: =OFFSET('ALT 1B 051722'!ES$13,$AL97-1,0) -> 4570.016619 | AO97: =OFFSET('ALT 1B 051722'!ET$13,$AL97-1,0) -> 2565.707909 | AP97: =OFFSET('ALT 3B 041222'!ES$13,$AL97-1,0) -> 4629.556521 | AQ97: =OFFSET('ALT 3B 041222'!ET$13,$AL97-1,0) -> 2565.593455 | AR97: =IF(AM97="",AR96,INDEX('ALT 1B 051722'!$AT$13:$AT$996,MATCH(EOMONTH(DATE($AM97,5,1),0),'ALT 1B 051722'!$B$13:$B$996,0))) -> 0.5488787831 | AS97: =IF(AM97="",AS96,INDEX('ALT 3B 041222'!$AT$13:$AT$996,MATCH(EOMONTH(DATE($AM97,5,1),0),'ALT 3B 041222'!$B$13:$B$996,0))) -> 0.5475918794 | AT97: =IFERROR(999999*OFFSET('WYT_40-30-30'!O$3,$AL97-1,0),NA()) ->  | AU97: =IFERROR(999999*OFFSET('WYT_40-30-30'!P$3,$AL97-1,0),NA()) ->  | AV97: =IFERROR(999999*OFFSET('WYT_40-30-30'!Q$3,$AL97-1,0),NA()) ->  | AW97: =IFERROR(999999*OFFSET('WYT_40-30-30'!R$3,$AL97-1,0),NA()) -> 3999996 | AX97: =IFERROR(999999*OFFSET('WYT_40-30-30'!S$3,$AL97-1,0),NA()) -> 
J98: 11 | K98: 1928-11-30 | L98: =INDIRECT(CONCATENATE("'",L$2,"'!",L$5,(MATCH(NOD_Data!$K98,'ALT 1B 051722'!$B:$B,0)))) -> 43.4726237 | M98: =INDIRECT(CONCATENATE("'",M$2,"'!",M$5,(MATCH(NOD_Data!$K98,'ALT 1B 051722'!$B:$B,0)))) -> 37.72569861 | N98: 65.86369456 | O98: 58.03374486 | Q98: =INDIRECT(CONCATENATE("'",Q$2,"'!",Q$5,(MATCH(NOD_Data!$K98,'ALT 1B 051722'!$B:$B,0)))) -> 0 | R98: =INDIRECT(CONCATENATE("'",R$2,"'!",R$5,(MATCH(NOD_Data!$K98,'ALT 1B 051722'!$B:$B,0)))) -> 0 | S98: =INDIRECT(CONCATENATE("'",S$2,"'!",S$5,(MATCH(NOD_Data!$K98,'ALT 1B 051722'!$B:$B,0)))) -> 0 | T98: =INDIRECT(CONCATENATE("'",T$2,"'!",T$5,(MATCH(NOD_Data!$K98,'ALT 1B 051722'!$B:$B,0)))) -> 0 | U98: =INDIRECT(CONCATENATE("'",U$2,"'!",U$5,(MATCH(NOD_Data!$K98,'ALT 1B 051722'!$B:$B,0)))) -> 0 | V98: =INDIRECT(CONCATENATE("'",V$2,"'!",V$5,(MATCH(NOD_Data!$K98,'ALT 1B 051722'!$B:$B,0)))) -> 0 | X98: 1928 | AB98: W | AD98: =AVERAGEIF($AC$12:$AC$92,1,AD$12:AD$92) -> 1.508195654 | AE98: =AVERAGEIF($AC$12:$AC$92,1,AE$12:AE$92) -> 1.457707426 | AF98: =AVERAGEIF($AC$12:$AC$92,1,AF$12:AF$92) -> 0 | AG98: =AVERAGEIF($AC$12:$AC$92,1,AG$12:AG$92) -> 0 | AI98: =AVERAGEIF($AC$12:$AC$92,1,AI$12:AI$92) -> 1.508195654 | AJ98: =AVERAGEIF($AC$12:$AC$92,1,AJ$12:AJ$92) -> 1.457707426 | AL98: 43 | AN98: =OFFSET('ALT 1B 051722'!ES$13,$AL98-1,0) -> 4570.016619 | AO98: =OFFSET('ALT 1B 051722'!ET$13,$AL98-1,0) -> 2565.707909 | AP98: =OFFSET('ALT 3B 041222'!ES$13,$AL98-1,0) -> 4629.556521 | AQ98: =OFFSET('ALT 3B 041222'!ET$13,$AL98-1,0) -> 2565.593455 | AR98: =IF(AM98="",AR97,INDEX('ALT 1B 051722'!$AT$13:$AT$996,MATCH(EOMONTH(DATE($AM98,5,1),0),'ALT 1B 051722'!$B$13:$B$996,0))) -> 0.5488787831 | AS98: =IF(AM98="",AS97,INDEX('ALT 3B 041222'!$AT$13:$AT$996,MATCH(EOMONTH(DATE($AM98,5,1),0),'ALT 3B 041222'!$B$13:$B$996,0))) -> 0.5475918794 | AT98: =IFERROR(999999*OFFSET('WYT_40-30-30'!O$3,$AL98-1,0),NA()) ->  | AU98: =IFERROR(999999*OFFSET('WYT_40-30-30'!P$3,$AL98-1,0),NA()) ->  | AV98: =IFERROR(999999*OFFSET('WYT_40-30-30'!Q$3,$AL98-1,0),NA()) ->  | AW98: =IFERROR(999999*OFFSET('WYT_40-30-30'!R$3,$AL98-1,0),NA()) -> 3999996 | AX98: =IFERROR(999999*OFFSET('WYT_40-30-30'!S$3,$AL98-1,0),NA()) -> 
J99: 12 | K99: 1928-12-31 | L99: =INDIRECT(CONCATENATE("'",L$2,"'!",L$5,(MATCH(NOD_Data!$K99,'ALT 1B 051722'!$B:$B,0)))) -> 43.55414756 | M99: =INDIRECT(CONCATENATE("'",M$2,"'!",M$5,(MATCH(NOD_Data!$K99,'ALT 1B 051722'!$B:$B,0)))) -> 37.81181718 | N99: 65.86369456 | O99: 58.03374486 | Q99: =INDIRECT(CONCATENATE("'",Q$2,"'!",Q$5,(MATCH(NOD_Data!$K99,'ALT 1B 051722'!$B:$B,0)))) -> 0 | R99: =INDIRECT(CONCATENATE("'",R$2,"'!",R$5,(MATCH(NOD_Data!$K99,'ALT 1B 051722'!$B:$B,0)))) -> 0 | S99: =INDIRECT(CONCATENATE("'",S$2,"'!",S$5,(MATCH(NOD_Data!$K99,'ALT 1B 051722'!$B:$B,0)))) -> 0 | T99: =INDIRECT(CONCATENATE("'",T$2,"'!",T$5,(MATCH(NOD_Data!$K99,'ALT 1B 051722'!$B:$B,0)))) -> 0 | U99: =INDIRECT(CONCATENATE("'",U$2,"'!",U$5,(MATCH(NOD_Data!$K99,'ALT 1B 051722'!$B:$B,0)))) -> 0 | V99: =INDIRECT(CONCATENATE("'",V$2,"'!",V$5,(MATCH(NOD_Data!$K99,'ALT 1B 051722'!$B:$B,0)))) -> 0 | X99: 1928 | AB99: AN | AD99: =AVERAGEIF($AC$12:$AC$92,2,AD$12:AD$92) -> 0.3036297947 | AE99: =AVERAGEIF($AC$12:$AC$92,2,AE$12:AE$92) -> 0.3036297984 | AF99: =AVERAGEIF($AC$12:$AC$92,2,AF$12:AF$92) -> 4.187138879 | AG99: =AVERAGEIF($AC$12:$AC$92,2,AG$12:AG$92) -> 4.203624937 | AI99: =AVERAGEIF($AC$12:$AC$92,2,AI$12:AI$92) -> 0.3036297947 | AJ99: =AVERAGEIF($AC$12:$AC$92,2,AJ$12:AJ$92) -> 0.3036297984 | AL99: 44 | AM99: 1965 | AN99: =OFFSET('ALT 1B 051722'!ES$13,$AL99-1,0) -> 5438.059528 | AO99: =OFFSET('ALT 1B 051722'!ET$13,$AL99-1,0) -> 3538 | AP99: =OFFSET('ALT 3B 041222'!ES$13,$AL99-1,0) -> 5519 | AQ99: =OFFSET('ALT 3B 041222'!ET$13,$AL99-1,0) -> 3538 | AR99: =IF(AM99="",AR98,INDEX('ALT 1B 051722'!$AT$13:$AT$996,MATCH(EOMONTH(DATE($AM99,5,1),0),'ALT 1B 051722'!$B$13:$B$996,0))) -> 0.4862016065 | AS99: =IF(AM99="",AS98,INDEX('ALT 3B 041222'!$AT$13:$AT$996,MATCH(EOMONTH(DATE($AM99,5,1),0),'ALT 3B 041222'!$B$13:$B$996,0))) -> 0.4869081377 | AT99: =IFERROR(999999*OFFSET('WYT_40-30-30'!O$3,$AL99-1,0),NA()) -> 999999 | AU99: =IFERROR(999999*OFFSET('WYT_40-30-30'!P$3,$AL99-1,0),NA()) ->  | AV99: =IFERROR(999999*OFFSET('WYT_40-30-30'!Q$3,$AL99-1,0),NA()) ->  | AW99: =IFERROR(999999*OFFSET('WYT_40-30-30'!R$3,$AL99-1,0),NA()) ->  | AX99: =IFERROR(999999*OFFSET('WYT_40-30-30'!S$3,$AL99-1,0),NA()) -> 
J100: 1 | K100: 1929-01-31 | L100: =INDIRECT(CONCATENATE("'",L$2,"'!",L$5,(MATCH(NOD_Data!$K100,'ALT 1B 051722'!$B:$B,0)))) -> 43.5375936 | M100: =INDIRECT(CONCATENATE("'",M$2,"'!",M$5,(MATCH(NOD_Data!$K100,'ALT 1B 051722'!$B:$B,0)))) -> 37.79432183 | N100: 65.86369456 | O100: 58.03374486 | Q100: =INDIRECT(CONCATENATE("'",Q$2,"'!",Q$5,(MATCH(NOD_Data!$K100,'ALT 1B 051722'!$B:$B,0)))) -> 0 | R100: =INDIRECT(CONCATENATE("'",R$2,"'!",R$5,(MATCH(NOD_Data!$K100,'ALT 1B 051722'!$B:$B,0)))) -> 0 | S100: =INDIRECT(CONCATENATE("'",S$2,"'!",S$5,(MATCH(NOD_Data!$K100,'ALT 1B 051722'!$B:$B,0)))) -> 0 | T100: =INDIRECT(CONCATENATE("'",T$2,"'!",T$5,(MATCH(NOD_Data!$K100,'ALT 1B 051722'!$B:$B,0)))) -> 0 | U100: =INDIRECT(CONCATENATE("'",U$2,"'!",U$5,(MATCH(NOD_Data!$K100,'ALT 1B 051722'!$B:$B,0)))) -> 0 | V100: =INDIRECT(CONCATENATE("'",V$2,"'!",V$5,(MATCH(NOD_Data!$K100,'ALT 1B 051722'!$B:$B,0)))) -> 0 | X100: 1928 | AB100: BN | AD100: =AVERAGEIF($AC$12:$AC$92,3,AD$12:AD$92) -> 4.070328778 | AE100: =AVERAGEIF($AC$12:$AC$92,3,AE$12:AE$92) -> 3.71698399 | AF100: =AVERAGEIF($AC$12:$AC$92,3,AF$12:AF$92) -> 0 | AG100: =AVERAGEIF($AC$12:$AC$92,3,AG$12:AG$92) -> 0.09491754864 | AI100: =AVERAGEIF($AC$12:$AC$92,3,AI$12:AI$92) -> 4.070328778 | AJ100: =AVERAGEIF($AC$12:$AC$92,3,AJ$12:AJ$92) -> 3.71698399 | AL100: 44 | AN100: =OFFSET('ALT 1B 051722'!ES$13,$AL100-1,0) -> 5438.059528 | AO100: =OFFSET('ALT 1B 051722'!ET$13,$AL100-1,0) -> 3538 | AP100: =OFFSET('ALT 3B 041222'!ES$13,$AL100-1,0) -> 5519 | AQ100: =OFFSET('ALT 3B 041222'!ET$13,$AL100-1,0) -> 3538 | AR100: =IF(AM100="",AR99,INDEX('ALT 1B 051722'!$AT$13:$AT$996,MATCH(EOMONTH(DATE($AM100,5,1),0),'ALT 1B 051722'!$B$13:$B$996,0))) -> 0.4862016065 | AS100: =IF(AM100="",AS99,INDEX('ALT 3B 041222'!$AT$13:$AT$996,MATCH(EOMONTH(DATE($AM100,5,1),0),'ALT 3B 041222'!$B$13:$B$996,0))) -> 0.4869081377 | AT100: =IFERROR(999999*OFFSET('WYT_40-30-30'!O$3,$AL100-1,0),NA()) -> 999999 | AU100: =IFERROR(999999*OFFSET('WYT_40-30-30'!P$3,$AL100-1,0),NA()) ->  | AV100: =IFERROR(999999*OFFSET('WYT_40-30-30'!Q$3,$AL100-1,0),NA()) ->  | AW100: =IFERROR(999999*OFFSET('WYT_40-30-30'!R$3,$AL100-1,0),NA()) ->  | AX100: =IFERROR(999999*OFFSET('WYT_40-30-30'!S$3,$AL100-1,0),NA()) -> 
J101: 2 | K101: 1929-02-28 | L101: =INDIRECT(CONCATENATE("'",L$2,"'!",L$5,(MATCH(NOD_Data!$K101,'ALT 1B 051722'!$B:$B,0)))) -> 43.57348829 | M101: =INDIRECT(CONCATENATE("'",M$2,"'!",M$5,(MATCH(NOD_Data!$K101,'ALT 1B 051722'!$B:$B,0)))) -> 37.8322584 | N101: 65.86369456 | O101: 58.03374486 | Q101: =INDIRECT(CONCATENATE("'",Q$2,"'!",Q$5,(MATCH(NOD_Data!$K101,'ALT 1B 051722'!$B:$B,0)))) -> 0 | R101: =INDIRECT(CONCATENATE("'",R$2,"'!",R$5,(MATCH(NOD_Data!$K101,'ALT 1B 051722'!$B:$B,0)))) -> 0 | S101: =INDIRECT(CONCATENATE("'",S$2,"'!",S$5,(MATCH(NOD_Data!$K101,'ALT 1B 051722'!$B:$B,0)))) -> 0 | T101: =INDIRECT(CONCATENATE("'",T$2,"'!",T$5,(MATCH(NOD_Data!$K101,'ALT 1B 051722'!$B:$B,0)))) -> 0 | U101: =INDIRECT(CONCATENATE("'",U$2,"'!",U$5,(MATCH(NOD_Data!$K101,'ALT 1B 051722'!$B:$B,0)))) -> 0 | V101: =INDIRECT(CONCATENATE("'",V$2,"'!",V$5,(MATCH(NOD_Data!$K101,'ALT 1B 051722'!$B:$B,0)))) -> 0 | X101: 1928 | AB101: D | AD101: =AVERAGEIF($AC$12:$AC$92,4,AD$12:AD$92) -> 15.14550301 | AE101: =AVERAGEIF($AC$12:$AC$92,4,AE$12:AE$92) -> 15.14723922 | AF101: =AVERAGEIF($AC$12:$AC$92,4,AF$12:AF$92) -> 0 | AG101: =AVERAGEIF($AC$12:$AC$92,4,AG$12:AG$92) -> 0 | AI101: =AVERAGEIF($AC$12:$AC$92,4,AI$12:AI$92) -> 15.14550301 | AJ101: =AVERAGEIF($AC$12:$AC$92,4,AJ$12:AJ$92) -> 15.14723922 | AL101: 45 | AM101: 1966 | AN101: =OFFSET('ALT 1B 051722'!ES$13,$AL101-1,0) -> 5320.731776 | AO101: =OFFSET('ALT 1B 051722'!ET$13,$AL101-1,0) -> 3021.538104 | AP101: =OFFSET('ALT 3B 041222'!ES$13,$AL101-1,0) -> 5315.935149 | AQ101: =OFFSET('ALT 3B 041222'!ET$13,$AL101-1,0) -> 3017.6894 | AR101: =IF(AM101="",AR100,INDEX('ALT 1B 051722'!$AT$13:$AT$996,MATCH(EOMONTH(DATE($AM101,5,1),0),'ALT 1B 051722'!$B$13:$B$996,0))) -> 0.8255033935 | AS101: =IF(AM101="",AS100,INDEX('ALT 3B 041222'!$AT$13:$AT$996,MATCH(EOMONTH(DATE($AM101,5,1),0),'ALT 3B 041222'!$B$13:$B$996,0))) -> 0.826511882 | AT101: =IFERROR(999999*OFFSET('WYT_40-30-30'!O$3,$AL101-1,0),NA()) ->  | AU101: =IFERROR(999999*OFFSET('WYT_40-30-30'!P$3,$AL101-1,0),NA()) ->  | AV101: =IFERROR(999999*OFFSET('WYT_40-30-30'!Q$3,$AL101-1,0),NA()) -> 2999997 | AW101: =IFERROR(999999*OFFSET('WYT_40-30-30'!R$3,$AL101-1,0),NA()) ->  | AX101: =IFERROR(999999*OFFSET('WYT_40-30-30'!S$3,$AL101-1,0),NA()) -> 
J102: 3 | K102: 1929-03-31 | L102: =INDIRECT(CONCATENATE("'",L$2,"'!",L$5,(MATCH(NOD_Data!$K102,'ALT 1B 051722'!$B:$B,0)))) -> 43.1231534 | M102: =INDIRECT(CONCATENATE("'",M$2,"'!",M$5,(MATCH(NOD_Data!$K102,'ALT 1B 051722'!$B:$B,0)))) -> 37.38910894 | N102: 65.86369456 | O102: 58.03374486 | Q102: =INDIRECT(CONCATENATE("'",Q$2,"'!",Q$5,(MATCH(NOD_Data!$K102,'ALT 1B 051722'!$B:$B,0)))) -> 0 | R102: =INDIRECT(CONCATENATE("'",R$2,"'!",R$5,(MATCH(NOD_Data!$K102,'ALT 1B 051722'!$B:$B,0)))) -> 0 | S102: =INDIRECT(CONCATENATE("'",S$2,"'!",S$5,(MATCH(NOD_Data!$K102,'ALT 1B 051722'!$B:$B,0)))) -> 0.3834279549 | T102: =INDIRECT(CONCATENATE("'",T$2,"'!",T$5,(MATCH(NOD_Data!$K102,'ALT 1B 051722'!$B:$B,0)))) -> 0.3724431893 | U102: =INDIRECT(CONCATENATE("'",U$2,"'!",U$5,(MATCH(NOD_Data!$K102,'ALT 1B 051722'!$B:$B,0)))) -> 0 | V102: =INDIRECT(CONCATENATE("'",V$2,"'!",V$5,(MATCH(NOD_Data!$K102,'ALT 1B 051722'!$B:$B,0)))) -> 0 | X102: 1929 | AB102: C | AD102: =AVERAGEIF($AC$12:$AC$92,5,AD$12:AD$92) -> 15.70055188 | AE102: =AVERAGEIF($AC$12:$AC$92,5,AE$12:AE$92) -> 13.59030315 | AF102: =AVERAGEIF($AC$12:$AC$92,5,AF$12:AF$92) -> 0 | AG102: =AVERAGEIF($AC$12:$AC$92,5,AG$12:AG$92) -> 0 | AI102: =AVERAGEIF($AC$12:$AC$92,5,AI$12:AI$92) -> 15.70055188 | AJ102: =AVERAGEIF($AC$12:$AC$92,5,AJ$12:AJ$92) -> 13.59030315 | AL102: 45 | AN102: =OFFSET('ALT 1B 051722'!ES$13,$AL102-1,0) -> 5320.731776 | AO102: =OFFSET('ALT 1B 051722'!ET$13,$AL102-1,0) -> 3021.538104 | AP102: =OFFSET('ALT 3B 041222'!ES$13,$AL102-1,0) -> 5315.935149 | AQ102: =OFFSET('ALT 3B 041222'!ET$13,$AL102-1,0) -> 3017.6894 | AR102: =IF(AM102="",AR101,INDEX('ALT 1B 051722'!$AT$13:$AT$996,MATCH(EOMONTH(DATE($AM102,5,1),0),'ALT 1B 051722'!$B$13:$B$996,0))) -> 0.8255033935 | AS102: =IF(AM102="",AS101,INDEX('ALT 3B 041222'!$AT$13:$AT$996,MATCH(EOMONTH(DATE($AM102,5,1),0),'ALT 3B 041222'!$B$13:$B$996,0))) -> 0.826511882 | AT102: =IFERROR(999999*OFFSET('WYT_40-30-30'!O$3,$AL102-1,0),NA()) ->  | AU102: =IFERROR(999999*OFFSET('WYT_40-30-30'!P$3,$AL102-1,0),NA()) ->  | AV102: =IFERROR(999999*OFFSET('WYT_40-30-30'!Q$3,$AL102-1,0),NA()) -> 2999997 | AW102: =IFERROR(999999*OFFSET('WYT_40-30-30'!R$3,$AL102-1,0),NA()) ->  | AX102: =IFERROR(999999*OFFSET('WYT_40-30-30'!S$3,$AL102-1,0),NA()) -> 
J103: 4 | K103: 1929-04-30 | L103: =INDIRECT(CONCATENATE("'",L$2,"'!",L$5,(MATCH(NOD_Data!$K103,'ALT 1B 051722'!$B:$B,0)))) -> 33.65595296 | M103: =INDIRECT(CONCATENATE("'",M$2,"'!",M$5,(MATCH(NOD_Data!$K103,'ALT 1B 051722'!$B:$B,0)))) -> 28.18389801 | N103: 65.86369456 | O103: 58.03374486 | Q103: =INDIRECT(CONCATENATE("'",Q$2,"'!",Q$5,(MATCH(NOD_Data!$K103,'ALT 1B 051722'!$B:$B,0)))) -> 0 | R103: =INDIRECT(CONCATENATE("'",R$2,"'!",R$5,(MATCH(NOD_Data!$K103,'ALT 1B 051722'!$B:$B,0)))) -> 0 | S103: =INDIRECT(CONCATENATE("'",S$2,"'!",S$5,(MATCH(NOD_Data!$K103,'ALT 1B 051722'!$B:$B,0)))) -> 9.346054912 | T103: =INDIRECT(CONCATENATE("'",T$2,"'!",T$5,(MATCH(NOD_Data!$K103,'ALT 1B 051722'!$B:$B,0)))) -> 9.078301292 | U103: =INDIRECT(CONCATENATE("'",U$2,"'!",U$5,(MATCH(NOD_Data!$K103,'ALT 1B 051722'!$B:$B,0)))) -> 0 | V103: =INDIRECT(CONCATENATE("'",V$2,"'!",V$5,(MATCH(NOD_Data!$K103,'ALT 1B 051722'!$B:$B,0)))) -> 0 | X103: 1929 | AL103: 46 | AM103: 1967 | AN103: =OFFSET('ALT 1B 051722'!ES$13,$AL103-1,0) -> 5519 | AO103: =OFFSET('ALT 1B 051722'!ET$13,$AL103-1,0) -> 3538 | AP103: =OFFSET('ALT 3B 041222'!ES$13,$AL103-1,0) -> 5519 | AQ103: =OFFSET('ALT 3B 041222'!ET$13,$AL103-1,0) -> 3538 | AR103: =IF(AM103="",AR102,INDEX('ALT 1B 051722'!$AT$13:$AT$996,MATCH(EOMONTH(DATE($AM103,5,1),0),'ALT 1B 051722'!$B$13:$B$996,0))) -> 0.744638326 | AS103: =IF(AM103="",AS102,INDEX('ALT 3B 041222'!$AT$13:$AT$996,MATCH(EOMONTH(DATE($AM103,5,1),0),'ALT 3B 041222'!$B$13:$B$996,0))) -> 0.7468503253 | AT103: =IFERROR(999999*OFFSET('WYT_40-30-30'!O$3,$AL103-1,0),NA()) -> 999999 | AU103: =IFERROR(999999*OFFSET('WYT_40-30-30'!P$3,$AL103-1,0),NA()) ->  | AV103: =IFERROR(999999*OFFSET('WYT_40-30-30'!Q$3,$AL103-1,0),NA()) ->  | AW103: =IFERROR(999999*OFFSET('WYT_40-30-30'!R$3,$AL103-1,0),NA()) ->  | AX103: =IFERROR(999999*OFFSET('WYT_40-30-30'!S$3,$AL103-1,0),NA()) -> 
J104: 5 | K104: 1929-05-31 | L104: =INDIRECT(CONCATENATE("'",L$2,"'!",L$5,(MATCH(NOD_Data!$K104,'ALT 1B 051722'!$B:$B,0)))) -> 18.30372781 | M104: =INDIRECT(CONCATENATE("'",M$2,"'!",M$5,(MATCH(NOD_Data!$K104,'ALT 1B 051722'!$B:$B,0)))) -> 13.25863689 | N104: 65.86369456 | O104: 58.03374486 | Q104: =INDIRECT(CONCATENATE("'",Q$2,"'!",Q$5,(MATCH(NOD_Data!$K104,'ALT 1B 051722'!$B:$B,0)))) -> 0 | R104: =INDIRECT(CONCATENATE("'",R$2,"'!",R$5,(MATCH(NOD_Data!$K104,'ALT 1B 051722'!$B:$B,0)))) -> 0 | S104: =INDIRECT(CONCATENATE("'",S$2,"'!",S$5,(MATCH(NOD_Data!$K104,'ALT 1B 051722'!$B:$B,0)))) -> 15.14535159 | T104: =INDIRECT(CONCATENATE("'",T$2,"'!",T$5,(MATCH(NOD_Data!$K104,'ALT 1B 051722'!$B:$B,0)))) -> 14.71145486 | U104: =INDIRECT(CONCATENATE("'",U$2,"'!",U$5,(MATCH(NOD_Data!$K104,'ALT 1B 051722'!$B:$B,0)))) -> 0 | V104: =INDIRECT(CONCATENATE("'",V$2,"'!",V$5,(MATCH(NOD_Data!$K104,'ALT 1B 051722'!$B:$B,0)))) -> 0 | X104: 1929 | AL104: 46 | AN104: =OFFSET('ALT 1B 051722'!ES$13,$AL104-1,0) -> 5519 | AO104: =OFFSET('ALT 1B 051722'!ET$13,$AL104-1,0) -> 3538 | AP104: =OFFSET('ALT 3B 041222'!ES$13,$AL104-1,0) -> 5519 | AQ104: =OFFSET('ALT 3B 041222'!ET$13,$AL104-1,0) -> 3538 | AR104: =IF(AM104="",AR103,INDEX('ALT 1B 051722'!$AT$13:$AT$996,MATCH(EOMONTH(DATE($AM104,5,1),0),'ALT 1B 051722'!$B$13:$B$996,0))) -> 0.744638326 | AS104: =IF(AM104="",AS103,INDEX('ALT 3B 041222'!$AT$13:$AT$996,MATCH(EOMONTH(DATE($AM104,5,1),0),'ALT 3B 041222'!$B$13:$B$996,0))) -> 0.7468503253 | AT104: =IFERROR(999999*OFFSET('WYT_40-30-30'!O$3,$AL104-1,0),NA()) -> 999999 | AU104: =IFERROR(999999*OFFSET('WYT_40-30-30'!P$3,$AL104-1,0),NA()) ->  | AV104: =IFERROR(999999*OFFSET('WYT_40-30-30'!Q$3,$AL104-1,0),NA()) ->  | AW104: =IFERROR(999999*OFFSET('WYT_40-30-30'!R$3,$AL104-1,0),NA()) ->  | AX104: =IFERROR(999999*OFFSET('WYT_40-30-30'!S$3,$AL104-1,0),NA()) -> 
J105: 6 | K105: 1929-06-30 | L105: =INDIRECT(CONCATENATE("'",L$2,"'!",L$5,(MATCH(NOD_Data!$K105,'ALT 1B 051722'!$B:$B,0)))) -> 5.424414628 | M105: =INDIRECT(CONCATENATE("'",M$2,"'!",M$5,(MATCH(NOD_Data!$K105,'ALT 1B 051722'!$B:$B,0)))) -> 0.7582654079 | N105: 65.86369456 | O105: 58.03374486 | Q105: =INDIRECT(CONCATENATE("'",Q$2,"'!",Q$5,(MATCH(NOD_Data!$K105,'ALT 1B 051722'!$B:$B,0)))) -> 0 | R105: =INDIRECT(CONCATENATE("'",R$2,"'!",R$5,(MATCH(NOD_Data!$K105,'ALT 1B 051722'!$B:$B,0)))) -> 0 | S105: =INDIRECT(CONCATENATE("'",S$2,"'!",S$5,(MATCH(NOD_Data!$K105,'ALT 1B 051722'!$B:$B,0)))) -> 12.7489637 | T105: =INDIRECT(CONCATENATE("'",T$2,"'!",T$5,(MATCH(NOD_Data!$K105,'ALT 1B 051722'!$B:$B,0)))) -> 12.3837207 | U105: =INDIRECT(CONCATENATE("'",U$2,"'!",U$5,(MATCH(NOD_Data!$K105,'ALT 1B 051722'!$B:$B,0)))) -> 0 | V105: =INDIRECT(CONCATENATE("'",V$2,"'!",V$5,(MATCH(NOD_Data!$K105,'ALT 1B 051722'!$B:$B,0)))) -> 0 | X105: 1929 | AL105: 47 | AM105: 1968 | AN105: =OFFSET('ALT 1B 051722'!ES$13,$AL105-1,0) -> 5259.998305 | AO105: =OFFSET('ALT 1B 051722'!ET$13,$AL105-1,0) -> 3322.408956 | AP105: =OFFSET('ALT 3B 041222'!ES$13,$AL105-1,0) -> 5266.046998 | AQ105: =OFFSET('ALT 3B 041222'!ET$13,$AL105-1,0) -> 3322.176968 | AR105: =IF(AM105="",AR104,INDEX('ALT 1B 051722'!$AT$13:$AT$996,MATCH(EOMONTH(DATE($AM105,5,1),0),'ALT 1B 051722'!$B$13:$B$996,0))) -> 0.7827308578 | AS105: =IF(AM105="",AS104,INDEX('ALT 3B 041222'!$AT$13:$AT$996,MATCH(EOMONTH(DATE($AM105,5,1),0),'ALT 3B 041222'!$B$13:$B$996,0))) -> 0.7820495161 | AT105: =IFERROR(999999*OFFSET('WYT_40-30-30'!O$3,$AL105-1,0),NA()) ->  | AU105: =IFERROR(999999*OFFSET('WYT_40-30-30'!P$3,$AL105-1,0),NA()) ->  | AV105: =IFERROR(999999*OFFSET('WYT_40-30-30'!Q$3,$AL105-1,0),NA()) -> 2999997 | AW105: =IFERROR(999999*OFFSET('WYT_40-30-30'!R$3,$AL105-1,0),NA()) ->  | AX105: =IFERROR(999999*OFFSET('WYT_40-30-30'!S$3,$AL105-1,0),NA()) -> 
J106: 7 | K106: 1929-07-31 | L106: =INDIRECT(CONCATENATE("'",L$2,"'!",L$5,(MATCH(NOD_Data!$K106,'ALT 1B 051722'!$B:$B,0)))) -> 0 | M106: =INDIRECT(CONCATENATE("'",M$2,"'!",M$5,(MATCH(NOD_Data!$K106,'ALT 1B 051722'!$B:$B,0)))) -> 0 | N106: 65.86369456 | O106: 58.03374486 | Q106: =INDIRECT(CONCATENATE("'",Q$2,"'!",Q$5,(MATCH(NOD_Data!$K106,'ALT 1B 051722'!$B:$B,0)))) -> 0 | R106: =INDIRECT(CONCATENATE("'",R$2,"'!",R$5,(MATCH(NOD_Data!$K106,'ALT 1B 051722'!$B:$B,0)))) -> 0 | S106: =INDIRECT(CONCATENATE("'",S$2,"'!",S$5,(MATCH(NOD_Data!$K106,'ALT 1B 051722'!$B:$B,0)))) -> 5.364804119 | T106: =INDIRECT(CONCATENATE("'",T$2,"'!",T$5,(MATCH(NOD_Data!$K106,'ALT 1B 051722'!$B:$B,0)))) -> 0.7471569886 | U106: =INDIRECT(CONCATENATE("'",U$2,"'!",U$5,(MATCH(NOD_Data!$K106,'ALT 1B 051722'!$B:$B,0)))) -> 0 | V106: =INDIRECT(CONCATENATE("'",V$2,"'!",V$5,(MATCH(NOD_Data!$K106,'ALT 1B 051722'!$B:$B,0)))) -> 0 | X106: 1929 | AL106: 47 | AN106: =OFFSET('ALT 1B 051722'!ES$13,$AL106-1,0) -> 5259.998305 | AO106: =OFFSET('ALT 1B 051722'!ET$13,$AL106-1,0) -> 3322.408956 | AP106: =OFFSET('ALT 3B 041222'!ES$13,$AL106-1,0) -> 5266.046998 | AQ106: =OFFSET('ALT 3B 041222'!ET$13,$AL106-1,0) -> 3322.176968 | AR106: =IF(AM106="",AR105,INDEX('ALT 1B 051722'!$AT$13:$AT$996,MATCH(EOMONTH(DATE($AM106,5,1),0),'ALT 1B 051722'!$B$13:$B$996,0))) -> 0.7827308578 | AS106: =IF(AM106="",AS105,INDEX('ALT 3B 041222'!$AT$13:$AT$996,MATCH(EOMONTH(DATE($AM106,5,1),0),'ALT 3B 041222'!$B$13:$B$996,0))) -> 0.7820495161 | AT106: =IFERROR(999999*OFFSET('WYT_40-30-30'!O$3,$AL106-1,0),NA()) ->  | AU106: =IFERROR(999999*OFFSET('WYT_40-30-30'!P$3,$AL106-1,0),NA()) ->  | AV106: =IFERROR(999999*OFFSET('WYT_40-30-30'!Q$3,$AL106-1,0),NA()) -> 2999997 | AW106: =IFERROR(999999*OFFSET('WYT_40-30-30'!R$3,$AL106-1,0),NA()) ->  | AX106: =IFERROR(999999*OFFSET('WYT_40-30-30'!S$3,$AL106-1,0),NA()) -> 
J107: 8 | K107: 1929-08-31 | L107: =INDIRECT(CONCATENATE("'",L$2,"'!",L$5,(MATCH(NOD_Data!$K107,'ALT 1B 051722'!$B:$B,0)))) -> 0 | M107: =INDIRECT(CONCATENATE("'",M$2,"'!",M$5,(MATCH(NOD_Data!$K107,'ALT 1B 051722'!$B:$B,0)))) -> 0 | N107: 65.86369456 | O107: 58.03374486 | Q107: =INDIRECT(CONCATENATE("'",Q$2,"'!",Q$5,(MATCH(NOD_Data!$K107,'ALT 1B 051722'!$B:$B,0)))) -> 0 | R107: =INDIRECT(CONCATENATE("'",R$2,"'!",R$5,(MATCH(NOD_Data!$K107,'ALT 1B 051722'!$B:$B,0)))) -> 0 | S107: =INDIRECT(CONCATENATE("'",S$2,"'!",S$5,(MATCH(NOD_Data!$K107,'ALT 1B 051722'!$B:$B,0)))) -> 0 | T107: =INDIRECT(CONCATENATE("'",T$2,"'!",T$5,(MATCH(NOD_Data!$K107,'ALT 1B 051722'!$B:$B,0)))) -> 0 | U107: =INDIRECT(CONCATENATE("'",U$2,"'!",U$5,(MATCH(NOD_Data!$K107,'ALT 1B 051722'!$B:$B,0)))) -> 0 | V107: =INDIRECT(CONCATENATE("'",V$2,"'!",V$5,(MATCH(NOD_Data!$K107,'ALT 1B 051722'!$B:$B,0)))) -> 0 | X107: 1929 | AL107: 48 | AM107: 1969 | AN107: =OFFSET('ALT 1B 051722'!ES$13,$AL107-1,0) -> 5519 | AO107: =OFFSET('ALT 1B 051722'!ET$13,$AL107-1,0) -> 3538 | AP107: =OFFSET('ALT 3B 041222'!ES$13,$AL107-1,0) -> 5519 | AQ107: =OFFSET('ALT 3B 041222'!ET$13,$AL107-1,0) -> 3538 | AR107: =IF(AM107="",AR106,INDEX('ALT 1B 051722'!$AT$13:$AT$996,MATCH(EOMONTH(DATE($AM107,5,1),0),'ALT 1B 051722'!$B$13:$B$996,0))) -> 0.9105637264 | AS107: =IF(AM107="",AS106,INDEX('ALT 3B 041222'!$AT$13:$AT$996,MATCH(EOMONTH(DATE($AM107,5,1),0),'ALT 3B 041222'!$B$13:$B$996,0))) -> 0.9105637264 | AT107: =IFERROR(999999*OFFSET('WYT_40-30-30'!O$3,$AL107-1,0),NA()) -> 999999 | AU107: =IFERROR(999999*OFFSET('WYT_40-30-30'!P$3,$AL107-1,0),NA()) ->  | AV107: =IFERROR(999999*OFFSET('WYT_40-30-30'!Q$3,$AL107-1,0),NA()) ->  | AW107: =IFERROR(999999*OFFSET('WYT_40-30-30'!R$3,$AL107-1,0),NA()) ->  | AX107: =IFERROR(999999*OFFSET('WYT_40-30-30'!S$3,$AL107-1,0),NA()) -> 
J108: 9 | K108: 1929-09-30 | L108: =INDIRECT(CONCATENATE("'",L$2,"'!",L$5,(MATCH(NOD_Data!$K108,'ALT 1B 051722'!$B:$B,0)))) -> 0 | M108: =INDIRECT(CONCATENATE("'",M$2,"'!",M$5,(MATCH(NOD_Data!$K108,'ALT 1B 051722'!$B:$B,0)))) -> 0 | N108: 65.86369456 | O108: 58.03374486 | Q108: =INDIRECT(CONCATENATE("'",Q$2,"'!",Q$5,(MATCH(NOD_Data!$K108,'ALT 1B 051722'!$B:$B,0)))) -> 0 | R108: =INDIRECT(CONCATENATE("'",R$2,"'!",R$5,(MATCH(NOD_Data!$K108,'ALT 1B 051722'!$B:$B,0)))) -> 0 | S108: =INDIRECT(CONCATENATE("'",S$2,"'!",S$5,(MATCH(NOD_Data!$K108,'ALT 1B 051722'!$B:$B,0)))) -> 0 | T108: =INDIRECT(CONCATENATE("'",T$2,"'!",T$5,(MATCH(NOD_Data!$K108,'ALT 1B 051722'!$B:$B,0)))) -> 0 | U108: =INDIRECT(CONCATENATE("'",U$2,"'!",U$5,(MATCH(NOD_Data!$K108,'ALT 1B 051722'!$B:$B,0)))) -> 0 | V108: =INDIRECT(CONCATENATE("'",V$2,"'!",V$5,(MATCH(NOD_Data!$K108,'ALT 1B 051722'!$B:$B,0)))) -> 0 | X108: 1929 | AL108: 48 | AN108: =OFFSET('ALT 1B 051722'!ES$13,$AL108-1,0) -> 5519 | AO108: =OFFSET('ALT 1B 051722'!ET$13,$AL108-1,0) -> 3538 | AP108: =OFFSET('ALT 3B 041222'!ES$13,$AL108-1,0) -> 5519 | AQ108: =OFFSET('ALT 3B 041222'!ET$13,$AL108-1,0) -> 3538 | AR108: =IF(AM108="",AR107,INDEX('ALT 1B 051722'!$AT$13:$AT$996,MATCH(EOMONTH(DATE($AM108,5,1),0),'ALT 1B 051722'!$B$13:$B$996,0))) -> 0.9105637264 | AS108: =IF(AM108="",AS107,INDEX('ALT 3B 041222'!$AT$13:$AT$996,MATCH(EOMONTH(DATE($AM108,5,1),0),'ALT 3B 041222'!$B$13:$B$996,0))) -> 0.9105637264 | AT108: =IFERROR(999999*OFFSET('WYT_40-30-30'!O$3,$AL108-1,0),NA()) -> 999999 | AU108: =IFERROR(999999*OFFSET('WYT_40-30-30'!P$3,$AL108-1,0),NA()) ->  | AV108: =IFERROR(999999*OFFSET('WYT_40-30-30'!Q$3,$AL108-1,0),NA()) ->  | AW108: =IFERROR(999999*OFFSET('WYT_40-30-30'!R$3,$AL108-1,0),NA()) ->  | AX108: =IFERROR(999999*OFFSET('WYT_40-30-30'!S$3,$AL108-1,0),NA()) -> 
J109: 10 | K109: 1929-10-31 | L109: =INDIRECT(CONCATENATE("'",L$2,"'!",L$5,(MATCH(NOD_Data!$K109,'ALT 1B 051722'!$B:$B,0)))) -> 0 | M109: =INDIRECT(CONCATENATE("'",M$2,"'!",M$5,(MATCH(NOD_Data!$K109,'ALT 1B 051722'!$B:$B,0)))) -> 0 | N109: 65.86369456 | O109: 58.03374486 | Q109: =INDIRECT(CONCATENATE("'",Q$2,"'!",Q$5,(MATCH(NOD_Data!$K109,'ALT 1B 051722'!$B:$B,0)))) -> 0 | R109: =INDIRECT(CONCATENATE("'",R$2,"'!",R$5,(MATCH(NOD_Data!$K109,'ALT 1B 051722'!$B:$B,0)))) -> 0 | S109: =INDIRECT(CONCATENATE("'",S$2,"'!",S$5,(MATCH(NOD_Data!$K109,'ALT 1B 051722'!$B:$B,0)))) -> 0 | T109: =INDIRECT(CONCATENATE("'",T$2,"'!",T$5,(MATCH(NOD_Data!$K109,'ALT 1B 051722'!$B:$B,0)))) -> 0 | U109: =INDIRECT(CONCATENATE("'",U$2,"'!",U$5,(MATCH(NOD_Data!$K109,'ALT 1B 051722'!$B:$B,0)))) -> 0 | V109: =INDIRECT(CONCATENATE("'",V$2,"'!",V$5,(MATCH(NOD_Data!$K109,'ALT 1B 051722'!$B:$B,0)))) -> 0 | X109: 1929 | AL109: 49 | AM109: 1970 | AN109: =OFFSET('ALT 1B 051722'!ES$13,$AL109-1,0) -> 5013.333265 | AO109: =OFFSET('ALT 1B 051722'!ET$13,$AL109-1,0) -> 3321.746893 | AP109: =OFFSET('ALT 3B 041222'!ES$13,$AL109-1,0) -> 5029.456527 | AQ109: =OFFSET('ALT 3B 041222'!ET$13,$AL109-1,0) -> 3321.746893 | AR109: =IF(AM109="",AR108,INDEX('ALT 1B 051722'!$AT$13:$AT$996,MATCH(EOMONTH(DATE($AM109,5,1),0),'ALT 1B 051722'!$B$13:$B$996,0))) -> 0.8285963797 | AS109: =IF(AM109="",AS108,INDEX('ALT 3B 041222'!$AT$13:$AT$996,MATCH(EOMONTH(DATE($AM109,5,1),0),'ALT 3B 041222'!$B$13:$B$996,0))) -> 0.8285963797 | AT109: =IFERROR(999999*OFFSET('WYT_40-30-30'!O$3,$AL109-1,0),NA()) -> 999999 | AU109: =IFERROR(999999*OFFSET('WYT_40-30-30'!P$3,$AL109-1,0),NA()) ->  | AV109: =IFERROR(999999*OFFSET('WYT_40-30-30'!Q$3,$AL109-1,0),NA()) ->  | AW109: =IFERROR(999999*OFFSET('WYT_40-30-30'!R$3,$AL109-1,0),NA()) ->  | AX109: =IFERROR(999999*OFFSET('WYT_40-30-30'!S$3,$AL109-1,0),NA()) -> 
J110: 11 | K110: 1929-11-30 | L110: =INDIRECT(CONCATENATE("'",L$2,"'!",L$5,(MATCH(NOD_Data!$K110,'ALT 1B 051722'!$B:$B,0)))) -> 0 | M110: =INDIRECT(CONCATENATE("'",M$2,"'!",M$5,(MATCH(NOD_Data!$K110,'ALT 1B 051722'!$B:$B,0)))) -> 0 | N110: 65.86369456 | O110: 58.03374486 | Q110: =INDIRECT(CONCATENATE("'",Q$2,"'!",Q$5,(MATCH(NOD_Data!$K110,'ALT 1B 051722'!$B:$B,0)))) -> 0 | R110: =INDIRECT(CONCATENATE("'",R$2,"'!",R$5,(MATCH(NOD_Data!$K110,'ALT 1B 051722'!$B:$B,0)))) -> 0 | S110: =INDIRECT(CONCATENATE("'",S$2,"'!",S$5,(MATCH(NOD_Data!$K110,'ALT 1B 051722'!$B:$B,0)))) -> 0 | T110: =INDIRECT(CONCATENATE("'",T$2,"'!",T$5,(MATCH(NOD_Data!$K110,'ALT 1B 051722'!$B:$B,0)))) -> 0 | U110: =INDIRECT(CONCATENATE("'",U$2,"'!",U$5,(MATCH(NOD_Data!$K110,'ALT 1B 051722'!$B:$B,0)))) -> 0 | V110: =INDIRECT(CONCATENATE("'",V$2,"'!",V$5,(MATCH(NOD_Data!$K110,'ALT 1B 051722'!$B:$B,0)))) -> 0 | X110: 1929 | AL110: 49 | AN110: =OFFSET('ALT 1B 051722'!ES$13,$AL110-1,0) -> 5013.333265 | AO110: =OFFSET('ALT 1B 051722'!ET$13,$AL110-1,0) -> 3321.746893 | AP110: =OFFSET('ALT 3B 041222'!ES$13,$AL110-1,0) -> 5029.456527 | AQ110: =OFFSET('ALT 3B 041222'!ET$13,$AL110-1,0) -> 3321.746893 | AR110: =IF(AM110="",AR109,INDEX('ALT 1B 051722'!$AT$13:$AT$996,MATCH(EOMONTH(DATE($AM110,5,1),0),'ALT 1B 051722'!$B$13:$B$996,0))) -> 0.8285963797 | AS110: =IF(AM110="",AS109,INDEX('ALT 3B 041222'!$AT$13:$AT$996,MATCH(EOMONTH(DATE($AM110,5,1),0),'ALT 3B 041222'!$B$13:$B$996,0))) -> 0.8285963797 | AT110: =IFERROR(999999*OFFSET('WYT_40-30-30'!O$3,$AL110-1,0),NA()) -> 999999 | AU110: =IFERROR(999999*OFFSET('WYT_40-30-30'!P$3,$AL110-1,0),NA()) ->  | AV110: =IFERROR(999999*OFFSET('WYT_40-30-30'!Q$3,$AL110-1,0),NA()) ->  | AW110: =IFERROR(999999*OFFSET('WYT_40-30-30'!R$3,$AL110-1,0),NA()) ->  | AX110: =IFERROR(999999*OFFSET('WYT_40-30-30'!S$3,$AL110-1,0),NA()) -> 
J111: 12 | K111: 1929-12-31 | L111: =INDIRECT(CONCATENATE("'",L$2,"'!",L$5,(MATCH(NOD_Data!$K111,'ALT 1B 051722'!$B:$B,0)))) -> 0 | M111: =INDIRECT(CONCATENATE("'",M$2,"'!",M$5,(MATCH(NOD_Data!$K111,'ALT 1B 051722'!$B:$B,0)))) -> 0 | N111: 65.86369456 | O111: 58.03374486 | Q111: =INDIRECT(CONCATENATE("'",Q$2,"'!",Q$5,(MATCH(NOD_Data!$K111,'ALT 1B 051722'!$B:$B,0)))) -> 0 | R111: =INDIRECT(CONCATENATE("'",R$2,"'!",R$5,(MATCH(NOD_Data!$K111,'ALT 1B 051722'!$B:$B,0)))) -> 0 | S111: =INDIRECT(CONCATENATE("'",S$2,"'!",S$5,(MATCH(NOD_Data!$K111,'ALT 1B 051722'!$B:$B,0)))) -> 0 | T111: =INDIRECT(CONCATENATE("'",T$2,"'!",T$5,(MATCH(NOD_Data!$K111,'ALT 1B 051722'!$B:$B,0)))) -> 0 | U111: =INDIRECT(CONCATENATE("'",U$2,"'!",U$5,(MATCH(NOD_Data!$K111,'ALT 1B 051722'!$B:$B,0)))) -> 0 | V111: =INDIRECT(CONCATENATE("'",V$2,"'!",V$5,(MATCH(NOD_Data!$K111,'ALT 1B 051722'!$B:$B,0)))) -> 0 | X111: 1929 | AL111: 50 | AM111: 1971 | AN111: =OFFSET('ALT 1B 051722'!ES$13,$AL111-1,0) -> 5519 | AO111: =OFFSET('ALT 1B 051722'!ET$13,$AL111-1,0) -> 3538 | AP111: =OFFSET('ALT 3B 041222'!ES$13,$AL111-1,0) -> 5519 | AQ111: =OFFSET('ALT 3B 041222'!ET$13,$AL111-1,0) -> 3538 | AR111: =IF(AM111="",AR110,INDEX('ALT 1B 051722'!$AT$13:$AT$996,MATCH(EOMONTH(DATE($AM111,5,1),0),'ALT 1B 051722'!$B$13:$B$996,0))) -> 0.5288415476 | AS111: =IF(AM111="",AS110,INDEX('ALT 3B 041222'!$AT$13:$AT$996,MATCH(EOMONTH(DATE($AM111,5,1),0),'ALT 3B 041222'!$B$13:$B$996,0))) -> 0.5288521568 | AT111: =IFERROR(999999*OFFSET('WYT_40-30-30'!O$3,$AL111-1,0),NA()) -> 999999 | AU111: =IFERROR(999999*OFFSET('WYT_40-30-30'!P$3,$AL111-1,0),NA()) ->  | AV111: =IFERROR(999999*OFFSET('WYT_40-30-30'!Q$3,$AL111-1,0),NA()) ->  | AW111: =IFERROR(999999*OFFSET('WYT_40-30-30'!R$3,$AL111-1,0),NA()) ->  | AX111: =IFERROR(999999*OFFSET('WYT_40-30-30'!S$3,$AL111-1,0),NA()) -> 
J112: 1 | K112: 1930-01-31 | L112: =INDIRECT(CONCATENATE("'",L$2,"'!",L$5,(MATCH(NOD_Data!$K112,'ALT 1B 051722'!$B:$B,0)))) -> 0 | M112: =INDIRECT(CONCATENATE("'",M$2,"'!",M$5,(MATCH(NOD_Data!$K112,'ALT 1B 051722'!$B:$B,0)))) -> 0 | N112: 65.86369456 | O112: 58.03374486 | Q112: =INDIRECT(CONCATENATE("'",Q$2,"'!",Q$5,(MATCH(NOD_Data!$K112,'ALT 1B 051722'!$B:$B,0)))) -> 0 | R112: =INDIRECT(CONCATENATE("'",R$2,"'!",R$5,(MATCH(NOD_Data!$K112,'ALT 1B 051722'!$B:$B,0)))) -> 0 | S112: =INDIRECT(CONCATENATE("'",S$2,"'!",S$5,(MATCH(NOD_Data!$K112,'ALT 1B 051722'!$B:$B,0)))) -> 0 | T112: =INDIRECT(CONCATENATE("'",T$2,"'!",T$5,(MATCH(NOD_Data!$K112,'ALT 1B 051722'!$B:$B,0)))) -> 0 | U112: =INDIRECT(CONCATENATE("'",U$2,"'!",U$5,(MATCH(NOD_Data!$K112,'ALT 1B 051722'!$B:$B,0)))) -> 0 | V112: =INDIRECT(CONCATENATE("'",V$2,"'!",V$5,(MATCH(NOD_Data!$K112,'ALT 1B 051722'!$B:$B,0)))) -> 0 | X112: 1929 | AL112: 50 | AN112: =OFFSET('ALT 1B 051722'!ES$13,$AL112-1,0) -> 5519 | AO112: =OFFSET('ALT 1B 051722'!ET$13,$AL112-1,0) -> 3538 | AP112: =OFFSET('ALT 3B 041222'!ES$13,$AL112-1,0) -> 5519 | AQ112: =OFFSET('ALT 3B 041222'!ET$13,$AL112-1,0) -> 3538 | AR112: =IF(AM112="",AR111,INDEX('ALT 1B 051722'!$AT$13:$AT$996,MATCH(EOMONTH(DATE($AM112,5,1),0),'ALT 1B 051722'!$B$13:$B$996,0))) -> 0.5288415476 | AS112: =IF(AM112="",AS111,INDEX('ALT 3B 041222'!$AT$13:$AT$996,MATCH(EOMONTH(DATE($AM112,5,1),0),'ALT 3B 041222'!$B$13:$B$996,0))) -> 0.5288521568 | AT112: =IFERROR(999999*OFFSET('WYT_40-30-30'!O$3,$AL112-1,0),NA()) -> 999999 | AU112: =IFERROR(999999*OFFSET('WYT_40-30-30'!P$3,$AL112-1,0),NA()) ->  | AV112: =IFERROR(999999*OFFSET('WYT_40-30-30'!Q$3,$AL112-1,0),NA()) ->  | AW112: =IFERROR(999999*OFFSET('WYT_40-30-30'!R$3,$AL112-1,0),NA()) ->  | AX112: =IFERROR(999999*OFFSET('WYT_40-30-30'!S$3,$AL112-1,0),NA()) -> 
J113: 2 | K113: 1930-02-28 | L113: =INDIRECT(CONCATENATE("'",L$2,"'!",L$5,(MATCH(NOD_Data!$K113,'ALT 1B 051722'!$B:$B,0)))) -> 1.80607204 | M113: =INDIRECT(CONCATENATE("'",M$2,"'!",M$5,(MATCH(NOD_Data!$K113,'ALT 1B 051722'!$B:$B,0)))) -> 1.596524393 | N113: 65.86369456 | O113: 58.03374486 | Q113: =INDIRECT(CONCATENATE("'",Q$2,"'!",Q$5,(MATCH(NOD_Data!$K113,'ALT 1B 051722'!$B:$B,0)))) -> 1.80607204 | R113: =INDIRECT(CONCATENATE("'",R$2,"'!",R$5,(MATCH(NOD_Data!$K113,'ALT 1B 051722'!$B:$B,0)))) -> 1.596486991 | S113: =INDIRECT(CONCATENATE("'",S$2,"'!",S$5,(MATCH(NOD_Data!$K113,'ALT 1B 051722'!$B:$B,0)))) -> 0 | T113: =INDIRECT(CONCATENATE("'",T$2,"'!",T$5,(MATCH(NOD_Data!$K113,'ALT 1B 051722'!$B:$B,0)))) -> 0 | U113: =INDIRECT(CONCATENATE("'",U$2,"'!",U$5,(MATCH(NOD_Data!$K113,'ALT 1B 051722'!$B:$B,0)))) -> 0 | V113: =INDIRECT(CONCATENATE("'",V$2,"'!",V$5,(MATCH(NOD_Data!$K113,'ALT 1B 051722'!$B:$B,0)))) -> 0 | X113: 1929 | AL113: 51 | AM113: 1972 | AN113: =OFFSET('ALT 1B 051722'!ES$13,$AL113-1,0) -> 5419.760553 | AO113: =OFFSET('ALT 1B 051722'!ET$13,$AL113-1,0) -> 3252.835088 | AP113: =OFFSET('ALT 3B 041222'!ES$13,$AL113-1,0) -> 5425.480375 | AQ113: =OFFSET('ALT 3B 041222'!ET$13,$AL113-1,0) -> 3252.869138 | AR113: =IF(AM113="",AR112,INDEX('ALT 1B 051722'!$AT$13:$AT$996,MATCH(EOMONTH(DATE($AM113,5,1),0),'ALT 1B 051722'!$B$13:$B$996,0))) -> 0.4737527922 | AS113: =IF(AM113="",AS112,INDEX('ALT 3B 041222'!$AT$13:$AT$996,MATCH(EOMONTH(DATE($AM113,5,1),0),'ALT 3B 041222'!$B$13:$B$996,0))) -> 0.4737596273 | AT113: =IFERROR(999999*OFFSET('WYT_40-30-30'!O$3,$AL113-1,0),NA()) ->  | AU113: =IFERROR(999999*OFFSET('WYT_40-30-30'!P$3,$AL113-1,0),NA()) ->  | AV113: =IFERROR(999999*OFFSET('WYT_40-30-30'!Q$3,$AL113-1,0),NA()) -> 2999997 | AW113: =IFERROR(999999*OFFSET('WYT_40-30-30'!R$3,$AL113-1,0),NA()) ->  | AX113: =IFERROR(999999*OFFSET('WYT_40-30-30'!S$3,$AL113-1,0),NA()) -> 
J114: 3 | K114: 1930-03-31 | L114: =INDIRECT(CONCATENATE("'",L$2,"'!",L$5,(MATCH(NOD_Data!$K114,'ALT 1B 051722'!$B:$B,0)))) -> 7.111159745 | M114: =INDIRECT(CONCATENATE("'",M$2,"'!",M$5,(MATCH(NOD_Data!$K114,'ALT 1B 051722'!$B:$B,0)))) -> 6.276319325 | N114: 65.86369456 | O114: 58.03374486 | Q114: =INDIRECT(CONCATENATE("'",Q$2,"'!",Q$5,(MATCH(NOD_Data!$K114,'ALT 1B 051722'!$B:$B,0)))) -> 5.303191005 | R114: =INDIRECT(CONCATENATE("'",R$2,"'!",R$5,(MATCH(NOD_Data!$K114,'ALT 1B 051722'!$B:$B,0)))) -> 4.675879473 | S114: =INDIRECT(CONCATENATE("'",S$2,"'!",S$5,(MATCH(NOD_Data!$K114,'ALT 1B 051722'!$B:$B,0)))) -> 0 | T114: =INDIRECT(CONCATENATE("'",T$2,"'!",T$5,(MATCH(NOD_Data!$K114,'ALT 1B 051722'!$B:$B,0)))) -> 0 | U114: =INDIRECT(CONCATENATE("'",U$2,"'!",U$5,(MATCH(NOD_Data!$K114,'ALT 1B 051722'!$B:$B,0)))) -> 0 | V114: =INDIRECT(CONCATENATE("'",V$2,"'!",V$5,(MATCH(NOD_Data!$K114,'ALT 1B 051722'!$B:$B,0)))) -> 0 | X114: 1930 | AL114: 51 | AN114: =OFFSET('ALT 1B 051722'!ES$13,$AL114-1,0) -> 5419.760553 | AO114: =OFFSET('ALT 1B 051722'!ET$13,$AL114-1,0) -> 3252.835088 | AP114: =OFFSET('ALT 3B 041222'!ES$13,$AL114-1,0) -> 5425.480375 | AQ114: =OFFSET('ALT 3B 041222'!ET$13,$AL114-1,0) -> 3252.869138 | AR114: =IF(AM114="",AR113,INDEX('ALT 1B 051722'!$AT$13:$AT$996,MATCH(EOMONTH(DATE($AM114,5,1),0),'ALT 1B 051722'!$B$13:$B$996,0))) -> 0.4737527922 | AS114: =IF(AM114="",AS113,INDEX('ALT 3B 041222'!$AT$13:$AT$996,MATCH(EOMONTH(DATE($AM114,5,1),0),'ALT 3B 041222'!$B$13:$B$996,0))) -> 0.4737596273 | AT114: =IFERROR(999999*OFFSET('WYT_40-30-30'!O$3,$AL114-1,0),NA()) ->  | AU114: =IFERROR(999999*OFFSET('WYT_40-30-30'!P$3,$AL114-1,0),NA()) ->  | AV114: =IFERROR(999999*OFFSET('WYT_40-30-30'!Q$3,$AL114-1,0),NA()) -> 2999997 | AW114: =IFERROR(999999*OFFSET('WYT_40-30-30'!R$3,$AL114-1,0),NA()) ->  | AX114: =IFERROR(999999*OFFSET('WYT_40-30-30'!S$3,$AL114-1,0),NA()) -> 
J115: 4 | K115: 1930-04-30 | L115: =INDIRECT(CONCATENATE("'",L$2,"'!",L$5,(MATCH(NOD_Data!$K115,'ALT 1B 051722'!$B:$B,0)))) -> 5.051239278 | M115: =INDIRECT(CONCATENATE("'",M$2,"'!",M$5,(MATCH(NOD_Data!$K115,'ALT 1B 051722'!$B:$B,0)))) -> 4.325746979 | N115: 65.86369456 | O115: 58.03374486 | Q115: =INDIRECT(CONCATENATE("'",Q$2,"'!",Q$5,(MATCH(NOD_Data!$K115,'ALT 1B 051722'!$B:$B,0)))) -> 0 | R115: =INDIRECT(CONCATENATE("'",R$2,"'!",R$5,(MATCH(NOD_Data!$K115,'ALT 1B 051722'!$B:$B,0)))) -> 0 | S115: =INDIRECT(CONCATENATE("'",S$2,"'!",S$5,(MATCH(NOD_Data!$K115,'ALT 1B 051722'!$B:$B,0)))) -> 2.025396066 | T115: =INDIRECT(CONCATENATE("'",T$2,"'!",T$5,(MATCH(NOD_Data!$K115,'ALT 1B 051722'!$B:$B,0)))) -> 1.903285293 | U115: =INDIRECT(CONCATENATE("'",U$2,"'!",U$5,(MATCH(NOD_Data!$K115,'ALT 1B 051722'!$B:$B,0)))) -> 0 | V115: =INDIRECT(CONCATENATE("'",V$2,"'!",V$5,(MATCH(NOD_Data!$K115,'ALT 1B 051722'!$B:$B,0)))) -> 0 | X115: 1930 | AL115: 52 | AM115: 1973 | AN115: =OFFSET('ALT 1B 051722'!ES$13,$AL115-1,0) -> 5519 | AO115: =OFFSET('ALT 1B 051722'!ET$13,$AL115-1,0) -> 3538 | AP115: =OFFSET('ALT 3B 041222'!ES$13,$AL115-1,0) -> 5519 | AQ115: =OFFSET('ALT 3B 041222'!ET$13,$AL115-1,0) -> 3538 | AR115: =IF(AM115="",AR114,INDEX('ALT 1B 051722'!$AT$13:$AT$996,MATCH(EOMONTH(DATE($AM115,5,1),0),'ALT 1B 051722'!$B$13:$B$996,0))) -> 0.8216928062 | AS115: =IF(AM115="",AS114,INDEX('ALT 3B 041222'!$AT$13:$AT$996,MATCH(EOMONTH(DATE($AM115,5,1),0),'ALT 3B 041222'!$B$13:$B$996,0))) -> 0.8216928062 | AT115: =IFERROR(999999*OFFSET('WYT_40-30-30'!O$3,$AL115-1,0),NA()) ->  | AU115: =IFERROR(999999*OFFSET('WYT_40-30-30'!P$3,$AL115-1,0),NA()) -> 1999998 | AV115: =IFERROR(999999*OFFSET('WYT_40-30-30'!Q$3,$AL115-1,0),NA()) ->  | AW115: =IFERROR(999999*OFFSET('WYT_40-30-30'!R$3,$AL115-1,0),NA()) ->  | AX115: =IFERROR(999999*OFFSET('WYT_40-30-30'!S$3,$AL115-1,0),NA()) -> 
J116: 5 | K116: 1930-05-31 | L116: =INDIRECT(CONCATENATE("'",L$2,"'!",L$5,(MATCH(NOD_Data!$K116,'ALT 1B 051722'!$B:$B,0)))) -> 0 | M116: =INDIRECT(CONCATENATE("'",M$2,"'!",M$5,(MATCH(NOD_Data!$K116,'ALT 1B 051722'!$B:$B,0)))) -> 0 | N116: 65.86369456 | O116: 58.03374486 | Q116: =INDIRECT(CONCATENATE("'",Q$2,"'!",Q$5,(MATCH(NOD_Data!$K116,'ALT 1B 051722'!$B:$B,0)))) -> 0 | R116: =INDIRECT(CONCATENATE("'",R$2,"'!",R$5,(MATCH(NOD_Data!$K116,'ALT 1B 051722'!$B:$B,0)))) -> 0 | S116: =INDIRECT(CONCATENATE("'",S$2,"'!",S$5,(MATCH(NOD_Data!$K116,'ALT 1B 051722'!$B:$B,0)))) -> 5.018352172 | T116: =INDIRECT(CONCATENATE("'",T$2,"'!",T$5,(MATCH(NOD_Data!$K116,'ALT 1B 051722'!$B:$B,0)))) -> 4.282128144 | U116: =INDIRECT(CONCATENATE("'",U$2,"'!",U$5,(MATCH(NOD_Data!$K116,'ALT 1B 051722'!$B:$B,0)))) -> 0 | V116: =INDIRECT(CONCATENATE("'",V$2,"'!",V$5,(MATCH(NOD_Data!$K116,'ALT 1B 051722'!$B:$B,0)))) -> 0 | X116: 1930 | AL116: 52 | AN116: =OFFSET('ALT 1B 051722'!ES$13,$AL116-1,0) -> 5519 | AO116: =OFFSET('ALT 1B 051722'!ET$13,$AL116-1,0) -> 3538 | AP116: =OFFSET('ALT 3B 041222'!ES$13,$AL116-1,0) -> 5519 | AQ116: =OFFSET('ALT 3B 041222'!ET$13,$AL116-1,0) -> 3538 | AR116: =IF(AM116="",AR115,INDEX('ALT 1B 051722'!$AT$13:$AT$996,MATCH(EOMONTH(DATE($AM116,5,1),0),'ALT 1B 051722'!$B$13:$B$996,0))) -> 0.8216928062 | AS116: =IF(AM116="",AS115,INDEX('ALT 3B 041222'!$AT$13:$AT$996,MATCH(EOMONTH(DATE($AM116,5,1),0),'ALT 3B 041222'!$B$13:$B$996,0))) -> 0.8216928062 | AT116: =IFERROR(999999*OFFSET('WYT_40-30-30'!O$3,$AL116-1,0),NA()) ->  | AU116: =IFERROR(999999*OFFSET('WYT_40-30-30'!P$3,$AL116-1,0),NA()) -> 1999998 | AV116: =IFERROR(999999*OFFSET('WYT_40-30-30'!Q$3,$AL116-1,0),NA()) ->  | AW116: =IFERROR(999999*OFFSET('WYT_40-30-30'!R$3,$AL116-1,0),NA()) ->  | AX116: =IFERROR(999999*OFFSET('WYT_40-30-30'!S$3,$AL116-1,0),NA()) -> 
J117: 6 | K117: 1930-06-30 | L117: =INDIRECT(CONCATENATE("'",L$2,"'!",L$5,(MATCH(NOD_Data!$K117,'ALT 1B 051722'!$B:$B,0)))) -> 0 | M117: =INDIRECT(CONCATENATE("'",M$2,"'!",M$5,(MATCH(NOD_Data!$K117,'ALT 1B 051722'!$B:$B,0)))) -> 0 | N117: 65.86369456 | O117: 58.03374486 | Q117: =INDIRECT(CONCATENATE("'",Q$2,"'!",Q$5,(MATCH(NOD_Data!$K117,'ALT 1B 051722'!$B:$B,0)))) -> 0 | R117: =INDIRECT(CONCATENATE("'",R$2,"'!",R$5,(MATCH(NOD_Data!$K117,'ALT 1B 051722'!$B:$B,0)))) -> 0 | S117: =INDIRECT(CONCATENATE("'",S$2,"'!",S$5,(MATCH(NOD_Data!$K117,'ALT 1B 051722'!$B:$B,0)))) -> 0 | T117: =INDIRECT(CONCATENATE("'",T$2,"'!",T$5,(MATCH(NOD_Data!$K117,'ALT 1B 051722'!$B:$B,0)))) -> 0 | U117: =INDIRECT(CONCATENATE("'",U$2,"'!",U$5,(MATCH(NOD_Data!$K117,'ALT 1B 051722'!$B:$B,0)))) -> 0 | V117: =INDIRECT(CONCATENATE("'",V$2,"'!",V$5,(MATCH(NOD_Data!$K117,'ALT 1B 051722'!$B:$B,0)))) -> 0 | X117: 1930 | AL117: 53 | AM117: 1974 | AN117: =OFFSET('ALT 1B 051722'!ES$13,$AL117-1,0) -> 5519 | AO117: =OFFSET('ALT 1B 051722'!ET$13,$AL117-1,0) -> 3538 | AP117: =OFFSET('ALT 3B 041222'!ES$13,$AL117-1,0) -> 5519 | AQ117: =OFFSET('ALT 3B 041222'!ET$13,$AL117-1,0) -> 3538 | AR117: =IF(AM117="",AR116,INDEX('ALT 1B 051722'!$AT$13:$AT$996,MATCH(EOMONTH(DATE($AM117,5,1),0),'ALT 1B 051722'!$B$13:$B$996,0))) -> 0.658787911 | AS117: =IF(AM117="",AS116,INDEX('ALT 3B 041222'!$AT$13:$AT$996,MATCH(EOMONTH(DATE($AM117,5,1),0),'ALT 3B 041222'!$B$13:$B$996,0))) -> 0.658807616 | AT117: =IFERROR(999999*OFFSET('WYT_40-30-30'!O$3,$AL117-1,0),NA()) -> 999999 | AU117: =IFERROR(999999*OFFSET('WYT_40-30-30'!P$3,$AL117-1,0),NA()) ->  | AV117: =IFERROR(999999*OFFSET('WYT_40-30-30'!Q$3,$AL117-1,0),NA()) ->  | AW117: =IFERROR(999999*OFFSET('WYT_40-30-30'!R$3,$AL117-1,0),NA()) ->  | AX117: =IFERROR(999999*OFFSET('WYT_40-30-30'!S$3,$AL117-1,0),NA()) -> 
J118: 7 | K118: 1930-07-31 | L118: =INDIRECT(CONCATENATE("'",L$2,"'!",L$5,(MATCH(NOD_Data!$K118,'ALT 1B 051722'!$B:$B,0)))) -> 0 | M118: =INDIRECT(CONCATENATE("'",M$2,"'!",M$5,(MATCH(NOD_Data!$K118,'ALT 1B 051722'!$B:$B,0)))) -> 0 | N118: 65.86369456 | O118: 58.03374486 | Q118: =INDIRECT(CONCATENATE("'",Q$2,"'!",Q$5,(MATCH(NOD_Data!$K118,'ALT 1B 051722'!$B:$B,0)))) -> 0 | R118: =INDIRECT(CONCATENATE("'",R$2,"'!",R$5,(MATCH(NOD_Data!$K118,'ALT 1B 051722'!$B:$B,0)))) -> 0 | S118: =INDIRECT(CONCATENATE("'",S$2,"'!",S$5,(MATCH(NOD_Data!$K118,'ALT 1B 051722'!$B:$B,0)))) -> 0 | T118: =INDIRECT(CONCATENATE("'",T$2,"'!",T$5,(MATCH(NOD_Data!$K118,'ALT 1B 051722'!$B:$B,0)))) -> 0 | U118: =INDIRECT(CONCATENATE("'",U$2,"'!",U$5,(MATCH(NOD_Data!$K118,'ALT 1B 051722'!$B:$B,0)))) -> 0 | V118: =INDIRECT(CONCATENATE("'",V$2,"'!",V$5,(MATCH(NOD_Data!$K118,'ALT 1B 051722'!$B:$B,0)))) -> 0 | X118: 1930 | AL118: 53 | AN118: =OFFSET('ALT 1B 051722'!ES$13,$AL118-1,0) -> 5519 | AO118: =OFFSET('ALT 1B 051722'!ET$13,$AL118-1,0) -> 3538 | AP118: =OFFSET('ALT 3B 041222'!ES$13,$AL118-1,0) -> 5519 | AQ118: =OFFSET('ALT 3B 041222'!ET$13,$AL118-1,0) -> 3538 | AR118: =IF(AM118="",AR117,INDEX('ALT 1B 051722'!$AT$13:$AT$996,MATCH(EOMONTH(DATE($AM118,5,1),0),'ALT 1B 051722'!$B$13:$B$996,0))) -> 0.658787911 | AS118: =IF(AM118="",AS117,INDEX('ALT 3B 041222'!$AT$13:$AT$996,MATCH(EOMONTH(DATE($AM118,5,1),0),'ALT 3B 041222'!$B$13:$B$996,0))) -> 0.658807616 | AT118: =IFERROR(999999*OFFSET('WYT_40-30-30'!O$3,$AL118-1,0),NA()) -> 999999 | AU118: =IFERROR(999999*OFFSET('WYT_40-30-30'!P$3,$AL118-1,0),NA()) ->  | AV118: =IFERROR(999999*OFFSET('WYT_40-30-30'!Q$3,$AL118-1,0),NA()) ->  | AW118: =IFERROR(999999*OFFSET('WYT_40-30-30'!R$3,$AL118-1,0),NA()) ->  | AX118: =IFERROR(999999*OFFSET('WYT_40-30-30'!S$3,$AL118-1,0),NA()) -> 
J119: 8 | K119: 1930-08-31 | L119: =INDIRECT(CONCATENATE("'",L$2,"'!",L$5,(MATCH(NOD_Data!$K119,'ALT 1B 051722'!$B:$B,0)))) -> 0 | M119: =INDIRECT(CONCATENATE("'",M$2,"'!",M$5,(MATCH(NOD_Data!$K119,'ALT 1B 051722'!$B:$B,0)))) -> 0 | N119: 65.86369456 | O119: 58.03374486 | Q119: =INDIRECT(CONCATENATE("'",Q$2,"'!",Q$5,(MATCH(NOD_Data!$K119,'ALT 1B 051722'!$B:$B,0)))) -> 0 | R119: =INDIRECT(CONCATENATE("'",R$2,"'!",R$5,(MATCH(NOD_Data!$K119,'ALT 1B 051722'!$B:$B,0)))) -> 0 | S119: =INDIRECT(CONCATENATE("'",S$2,"'!",S$5,(MATCH(NOD_Data!$K119,'ALT 1B 051722'!$B:$B,0)))) -> 0 | T119: =INDIRECT(CONCATENATE("'",T$2,"'!",T$5,(MATCH(NOD_Data!$K119,'ALT 1B 051722'!$B:$B,0)))) -> 0 | U119: =INDIRECT(CONCATENATE("'",U$2,"'!",U$5,(MATCH(NOD_Data!$K119,'ALT 1B 051722'!$B:$B,0)))) -> 0 | V119: =INDIRECT(CONCATENATE("'",V$2,"'!",V$5,(MATCH(NOD_Data!$K119,'ALT 1B 051722'!$B:$B,0)))) -> 0 | X119: 1930 | AL119: 54 | AM119: 1975 | AN119: =OFFSET('ALT 1B 051722'!ES$13,$AL119-1,0) -> 5519 | AO119: =OFFSET('ALT 1B 051722'!ET$13,$AL119-1,0) -> 3538 | AP119: =OFFSET('ALT 3B 041222'!ES$13,$AL119-1,0) -> 5519 | AQ119: =OFFSET('ALT 3B 041222'!ET$13,$AL119-1,0) -> 3538 | AR119: =IF(AM119="",AR118,INDEX('ALT 1B 051722'!$AT$13:$AT$996,MATCH(EOMONTH(DATE($AM119,5,1),0),'ALT 1B 051722'!$B$13:$B$996,0))) -> 0.8079590561 | AS119: =IF(AM119="",AS118,INDEX('ALT 3B 041222'!$AT$13:$AT$996,MATCH(EOMONTH(DATE($AM119,5,1),0),'ALT 3B 041222'!$B$13:$B$996,0))) -> 0.8102102562 | AT119: =IFERROR(999999*OFFSET('WYT_40-30-30'!O$3,$AL119-1,0),NA()) -> 999999 | AU119: =IFERROR(999999*OFFSET('WYT_40-30-30'!P$3,$AL119-1,0),NA()) ->  | AV119: =IFERROR(999999*OFFSET('WYT_40-30-30'!Q$3,$AL119-1,0),NA()) ->  | AW119: =IFERROR(999999*OFFSET('WYT_40-30-30'!R$3,$AL119-1,0),NA()) ->  | AX119: =IFERROR(999999*OFFSET('WYT_40-30-30'!S$3,$AL119-1,0),NA()) -> 
J120: 9 | K120: 1930-09-30 | L120: =INDIRECT(CONCATENATE("'",L$2,"'!",L$5,(MATCH(NOD_Data!$K120,'ALT 1B 051722'!$B:$B,0)))) -> 0 | M120: =INDIRECT(CONCATENATE("'",M$2,"'!",M$5,(MATCH(NOD_Data!$K120,'ALT 1B 051722'!$B:$B,0)))) -> 0 | N120: 65.86369456 | O120: 58.03374486 | Q120: =INDIRECT(CONCATENATE("'",Q$2,"'!",Q$5,(MATCH(NOD_Data!$K120,'ALT 1B 051722'!$B:$B,0)))) -> 0 | R120: =INDIRECT(CONCATENATE("'",R$2,"'!",R$5,(MATCH(NOD_Data!$K120,'ALT 1B 051722'!$B:$B,0)))) -> 0 | S120: =INDIRECT(CONCATENATE("'",S$2,"'!",S$5,(MATCH(NOD_Data!$K120,'ALT 1B 051722'!$B:$B,0)))) -> 0 | T120: =INDIRECT(CONCATENATE("'",T$2,"'!",T$5,(MATCH(NOD_Data!$K120,'ALT 1B 051722'!$B:$B,0)))) -> 0 | U120: =INDIRECT(CONCATENATE("'",U$2,"'!",U$5,(MATCH(NOD_Data!$K120,'ALT 1B 051722'!$B:$B,0)))) -> 0 | V120: =INDIRECT(CONCATENATE("'",V$2,"'!",V$5,(MATCH(NOD_Data!$K120,'ALT 1B 051722'!$B:$B,0)))) -> 0 | X120: 1930 | AL120: 54 | AN120: =OFFSET('ALT 1B 051722'!ES$13,$AL120-1,0) -> 5519 | AO120: =OFFSET('ALT 1B 051722'!ET$13,$AL120-1,0) -> 3538 | AP120: =OFFSET('ALT 3B 041222'!ES$13,$AL120-1,0) -> 5519 | AQ120: =OFFSET('ALT 3B 041222'!ET$13,$AL120-1,0) -> 3538 | AR120: =IF(AM120="",AR119,INDEX('ALT 1B 051722'!$AT$13:$AT$996,MATCH(EOMONTH(DATE($AM120,5,1),0),'ALT 1B 051722'!$B$13:$B$996,0))) -> 0.8079590561 | AS120: =IF(AM120="",AS119,INDEX('ALT 3B 041222'!$AT$13:$AT$996,MATCH(EOMONTH(DATE($AM120,5,1),0),'ALT 3B 041222'!$B$13:$B$996,0))) -> 0.8102102562 | AT120: =IFERROR(999999*OFFSET('WYT_40-30-30'!O$3,$AL120-1,0),NA()) -> 999999 | AU120: =IFERROR(999999*OFFSET('WYT_40-30-30'!P$3,$AL120-1,0),NA()) ->  | AV120: =IFERROR(999999*OFFSET('WYT_40-30-30'!Q$3,$AL120-1,0),NA()) ->  | AW120: =IFERROR(999999*OFFSET('WYT_40-30-30'!R$3,$AL120-1,0),NA()) ->  | AX120: =IFERROR(999999*OFFSET('WYT_40-30-30'!S$3,$AL120-1,0),NA()) -> 
J121: 10 | K121: 1930-10-31 | L121: =INDIRECT(CONCATENATE("'",L$2,"'!",L$5,(MATCH(NOD_Data!$K121,'ALT 1B 051722'!$B:$B,0)))) -> 0 | M121: =INDIRECT(CONCATENATE("'",M$2,"'!",M$5,(MATCH(NOD_Data!$K121,'ALT 1B 051722'!$B:$B,0)))) -> 0 | N121: 65.86369456 | O121: 58.03374486 | Q121: =INDIRECT(CONCATENATE("'",Q$2,"'!",Q$5,(MATCH(NOD_Data!$K121,'ALT 1B 051722'!$B:$B,0)))) -> 0 | R121: =INDIRECT(CONCATENATE("'",R$2,"'!",R$5,(MATCH(NOD_Data!$K121,'ALT 1B 051722'!$B:$B,0)))) -> 0 | S121: =INDIRECT(CONCATENATE("'",S$2,"'!",S$5,(MATCH(NOD_Data!$K121,'ALT 1B 051722'!$B:$B,0)))) -> 0 | T121: =INDIRECT(CONCATENATE("'",T$2,"'!",T$5,(MATCH(NOD_Data!$K121,'ALT 1B 051722'!$B:$B,0)))) -> 0 | U121: =INDIRECT(CONCATENATE("'",U$2,"'!",U$5,(MATCH(NOD_Data!$K121,'ALT 1B 051722'!$B:$B,0)))) -> 0 | V121: =INDIRECT(CONCATENATE("'",V$2,"'!",V$5,(MATCH(NOD_Data!$K121,'ALT 1B 051722'!$B:$B,0)))) -> 0 | X121: 1930 | AL121: 55 | AM121: 1976 | AN121: =OFFSET('ALT 1B 051722'!ES$13,$AL121-1,0) -> 4383.134808 | AO121: =OFFSET('ALT 1B 051722'!ET$13,$AL121-1,0) -> 2781.795701 | AP121: =OFFSET('ALT 3B 041222'!ES$13,$AL121-1,0) -> 4235.221163 | AQ121: =OFFSET('ALT 3B 041222'!ET$13,$AL121-1,0) -> 2801.982904 | AR121: =IF(AM121="",AR120,INDEX('ALT 1B 051722'!$AT$13:$AT$996,MATCH(EOMONTH(DATE($AM121,5,1),0),'ALT 1B 051722'!$B$13:$B$996,0))) -> 0.6546467311 | AS121: =IF(AM121="",AS120,INDEX('ALT 3B 041222'!$AT$13:$AT$996,MATCH(EOMONTH(DATE($AM121,5,1),0),'ALT 3B 041222'!$B$13:$B$996,0))) -> 0.6633840807 | AT121: =IFERROR(999999*OFFSET('WYT_40-30-30'!O$3,$AL121-1,0),NA()) ->  | AU121: =IFERROR(999999*OFFSET('WYT_40-30-30'!P$3,$AL121-1,0),NA()) ->  | AV121: =IFERROR(999999*OFFSET('WYT_40-30-30'!Q$3,$AL121-1,0),NA()) ->  | AW121: =IFERROR(999999*OFFSET('WYT_40-30-30'!R$3,$AL121-1,0),NA()) ->  | AX121: =IFERROR(999999*OFFSET('WYT_40-30-30'!S$3,$AL121-1,0),NA()) -> 4999995
J122: 11 | K122: 1930-11-30 | L122: =INDIRECT(CONCATENATE("'",L$2,"'!",L$5,(MATCH(NOD_Data!$K122,'ALT 1B 051722'!$B:$B,0)))) -> 0 | M122: =INDIRECT(CONCATENATE("'",M$2,"'!",M$5,(MATCH(NOD_Data!$K122,'ALT 1B 051722'!$B:$B,0)))) -> 0 | N122: 65.86369456 | O122: 58.03374486 | Q122: =INDIRECT(CONCATENATE("'",Q$2,"'!",Q$5,(MATCH(NOD_Data!$K122,'ALT 1B 051722'!$B:$B,0)))) -> 0 | R122: =INDIRECT(CONCATENATE("'",R$2,"'!",R$5,(MATCH(NOD_Data!$K122,'ALT 1B 051722'!$B:$B,0)))) -> 0 | S122: =INDIRECT(CONCATENATE("'",S$2,"'!",S$5,(MATCH(NOD_Data!$K122,'ALT 1B 051722'!$B:$B,0)))) -> 0 | T122: =INDIRECT(CONCATENATE("'",T$2,"'!",T$5,(MATCH(NOD_Data!$K122,'ALT 1B 051722'!$B:$B,0)))) -> 0 | U122: =INDIRECT(CONCATENATE("'",U$2,"'!",U$5,(MATCH(NOD_Data!$K122,'ALT 1B 051722'!$B:$B,0)))) -> 0 | V122: =INDIRECT(CONCATENATE("'",V$2,"'!",V$5,(MATCH(NOD_Data!$K122,'ALT 1B 051722'!$B:$B,0)))) -> 0 | X122: 1930 | AL122: 55 | AN122: =OFFSET('ALT 1B 051722'!ES$13,$AL122-1,0) -> 4383.134808 | AO122: =OFFSET('ALT 1B 051722'!ET$13,$AL122-1,0) -> 2781.795701 | AP122: =OFFSET('ALT 3B 041222'!ES$13,$AL122-1,0) -> 4235.221163 | AQ122: =OFFSET('ALT 3B 041222'!ET$13,$AL122-1,0) -> 2801.982904 | AR122: =IF(AM122="",AR121,INDEX('ALT 1B 051722'!$AT$13:$AT$996,MATCH(EOMONTH(DATE($AM122,5,1),0),'ALT 1B 051722'!$B$13:$B$996,0))) -> 0.6546467311 | AS122: =IF(AM122="",AS121,INDEX('ALT 3B 041222'!$AT$13:$AT$996,MATCH(EOMONTH(DATE($AM122,5,1),0),'ALT 3B 041222'!$B$13:$B$996,0))) -> 0.6633840807 | AT122: =IFERROR(999999*OFFSET('WYT_40-30-30'!O$3,$AL122-1,0),NA()) ->  | AU122: =IFERROR(999999*OFFSET('WYT_40-30-30'!P$3,$AL122-1,0),NA()) ->  | AV122: =IFERROR(999999*OFFSET('WYT_40-30-30'!Q$3,$AL122-1,0),NA()) ->  | AW122: =IFERROR(999999*OFFSET('WYT_40-30-30'!R$3,$AL122-1,0),NA()) ->  | AX122: =IFERROR(999999*OFFSET('WYT_40-30-30'!S$3,$AL122-1,0),NA()) -> 4999995
J123: 12 | K123: 1930-12-31 | L123: =INDIRECT(CONCATENATE("'",L$2,"'!",L$5,(MATCH(NOD_Data!$K123,'ALT 1B 051722'!$B:$B,0)))) -> 0 | M123: =INDIRECT(CONCATENATE("'",M$2,"'!",M$5,(MATCH(NOD_Data!$K123,'ALT 1B 051722'!$B:$B,0)))) -> 0 | N123: 65.86369456 | O123: 58.03374486 | Q123: =INDIRECT(CONCATENATE("'",Q$2,"'!",Q$5,(MATCH(NOD_Data!$K123,'ALT 1B 051722'!$B:$B,0)))) -> 0 | R123: =INDIRECT(CONCATENATE("'",R$2,"'!",R$5,(MATCH(NOD_Data!$K123,'ALT 1B 051722'!$B:$B,0)))) -> 0 | S123: =INDIRECT(CONCATENATE("'",S$2,"'!",S$5,(MATCH(NOD_Data!$K123,'ALT 1B 051722'!$B:$B,0)))) -> 0 | T123: =INDIRECT(CONCATENATE("'",T$2,"'!",T$5,(MATCH(NOD_Data!$K123,'ALT 1B 051722'!$B:$B,0)))) -> 0 | U123: =INDIRECT(CONCATENATE("'",U$2,"'!",U$5,(MATCH(NOD_Data!$K123,'ALT 1B 051722'!$B:$B,0)))) -> 0 | V123: =INDIRECT(CONCATENATE("'",V$2,"'!",V$5,(MATCH(NOD_Data!$K123,'ALT 1B 051722'!$B:$B,0)))) -> 0 | X123: 1930 | AL123: 56 | AM123: 1977 | AN123: =OFFSET('ALT 1B 051722'!ES$13,$AL123-1,0) -> 2695.2957 | AO123: =OFFSET('ALT 1B 051722'!ET$13,$AL123-1,0) -> 1018.87337 | AP123: =OFFSET('ALT 3B 041222'!ES$13,$AL123-1,0) -> 2686.162293 | AQ123: =OFFSET('ALT 3B 041222'!ET$13,$AL123-1,0) -> 990.8018315 | AR123: =IF(AM123="",AR122,INDEX('ALT 1B 051722'!$AT$13:$AT$996,MATCH(EOMONTH(DATE($AM123,5,1),0),'ALT 1B 051722'!$B$13:$B$996,0))) -> 0.06544803269 | AS123: =IF(AM123="",AS122,INDEX('ALT 3B 041222'!$AT$13:$AT$996,MATCH(EOMONTH(DATE($AM123,5,1),0),'ALT 3B 041222'!$B$13:$B$996,0))) -> 0.0451923242 | AT123: =IFERROR(999999*OFFSET('WYT_40-30-30'!O$3,$AL123-1,0),NA()) ->  | AU123: =IFERROR(999999*OFFSET('WYT_40-30-30'!P$3,$AL123-1,0),NA()) ->  | AV123: =IFERROR(999999*OFFSET('WYT_40-30-30'!Q$3,$AL123-1,0),NA()) ->  | AW123: =IFERROR(999999*OFFSET('WYT_40-30-30'!R$3,$AL123-1,0),NA()) ->  | AX123: =IFERROR(999999*OFFSET('WYT_40-30-30'!S$3,$AL123-1,0),NA()) -> 4999995
J124: 1 | K124: 1931-01-31 | L124: =INDIRECT(CONCATENATE("'",L$2,"'!",L$5,(MATCH(NOD_Data!$K124,'ALT 1B 051722'!$B:$B,0)))) -> 0 | M124: =INDIRECT(CONCATENATE("'",M$2,"'!",M$5,(MATCH(NOD_Data!$K124,'ALT 1B 051722'!$B:$B,0)))) -> 0 | N124: 65.86369456 | O124: 58.03374486 | Q124: =INDIRECT(CONCATENATE("'",Q$2,"'!",Q$5,(MATCH(NOD_Data!$K124,'ALT 1B 051722'!$B:$B,0)))) -> 0 | R124: =INDIRECT(CONCATENATE("'",R$2,"'!",R$5,(MATCH(NOD_Data!$K124,'ALT 1B 051722'!$B:$B,0)))) -> 0 | S124: =INDIRECT(CONCATENATE("'",S$2,"'!",S$5,(MATCH(NOD_Data!$K124,'ALT 1B 051722'!$B:$B,0)))) -> 0 | T124: =INDIRECT(CONCATENATE("'",T$2,"'!",T$5,(MATCH(NOD_Data!$K124,'ALT 1B 051722'!$B:$B,0)))) -> 0 | U124: =INDIRECT(CONCATENATE("'",U$2,"'!",U$5,(MATCH(NOD_Data!$K124,'ALT 1B 051722'!$B:$B,0)))) -> 0 | V124: =INDIRECT(CONCATENATE("'",V$2,"'!",V$5,(MATCH(NOD_Data!$K124,'ALT 1B 051722'!$B:$B,0)))) -> 0 | X124: 1930 | AL124: 56 | AN124: =OFFSET('ALT 1B 051722'!ES$13,$AL124-1,0) -> 2695.2957 | AO124: =OFFSET('ALT 1B 051722'!ET$13,$AL124-1,0) -> 1018.87337 | AP124: =OFFSET('ALT 3B 041222'!ES$13,$AL124-1,0) -> 2686.162293 | AQ124: =OFFSET('ALT 3B 041222'!ET$13,$AL124-1,0) -> 990.8018315 | AR124: =IF(AM124="",AR123,INDEX('ALT 1B 051722'!$AT$13:$AT$996,MATCH(EOMONTH(DATE($AM124,5,1),0),'ALT 1B 051722'!$B$13:$B$996,0))) -> 0.06544803269 | AS124: =IF(AM124="",AS123,INDEX('ALT 3B 041222'!$AT$13:$AT$996,MATCH(EOMONTH(DATE($AM124,5,1),0),'ALT 3B 041222'!$B$13:$B$996,0))) -> 0.0451923242 | AT124: =IFERROR(999999*OFFSET('WYT_40-30-30'!O$3,$AL124-1,0),NA()) ->  | AU124: =IFERROR(999999*OFFSET('WYT_40-30-30'!P$3,$AL124-1,0),NA()) ->  | AV124: =IFERROR(999999*OFFSET('WYT_40-30-30'!Q$3,$AL124-1,0),NA()) ->  | AW124: =IFERROR(999999*OFFSET('WYT_40-30-30'!R$3,$AL124-1,0),NA()) ->  | AX124: =IFERROR(999999*OFFSET('WYT_40-30-30'!S$3,$AL124-1,0),NA()) -> 4999995
J125: 2 | K125: 1931-02-28 | L125: =INDIRECT(CONCATENATE("'",L$2,"'!",L$5,(MATCH(NOD_Data!$K125,'ALT 1B 051722'!$B:$B,0)))) -> 0 | M125: =INDIRECT(CONCATENATE("'",M$2,"'!",M$5,(MATCH(NOD_Data!$K125,'ALT 1B 051722'!$B:$B,0)))) -> 0 | N125: 65.86369456 | O125: 58.03374486 | Q125: =INDIRECT(CONCATENATE("'",Q$2,"'!",Q$5,(MATCH(NOD_Data!$K125,'ALT 1B 051722'!$B:$B,0)))) -> 0 | R125: =INDIRECT(CONCATENATE("'",R$2,"'!",R$5,(MATCH(NOD_Data!$K125,'ALT 1B 051722'!$B:$B,0)))) -> 0 | S125: =INDIRECT(CONCATENATE("'",S$2,"'!",S$5,(MATCH(NOD_Data!$K125,'ALT 1B 051722'!$B:$B,0)))) -> 0 | T125: =INDIRECT(CONCATENATE("'",T$2,"'!",T$5,(MATCH(NOD_Data!$K125,'ALT 1B 051722'!$B:$B,0)))) -> 0 | U125: =INDIRECT(CONCATENATE("'",U$2,"'!",U$5,(MATCH(NOD_Data!$K125,'ALT 1B 051722'!$B:$B,0)))) -> 0 | V125: =INDIRECT(CONCATENATE("'",V$2,"'!",V$5,(MATCH(NOD_Data!$K125,'ALT 1B 051722'!$B:$B,0)))) -> 0 | X125: 1930 | AL125: 57 | AM125: 1978 | AN125: =OFFSET('ALT 1B 051722'!ES$13,$AL125-1,0) -> 5519 | AO125: =OFFSET('ALT 1B 051722'!ET$13,$AL125-1,0) -> 3533.861911 | AP125: =OFFSET('ALT 3B 041222'!ES$13,$AL125-1,0) -> 5519 | AQ125: =OFFSET('ALT 3B 041222'!ET$13,$AL125-1,0) -> 3533.861911 | AR125: =IF(AM125="",AR124,INDEX('ALT 1B 051722'!$AT$13:$AT$996,MATCH(EOMONTH(DATE($AM125,5,1),0),'ALT 1B 051722'!$B$13:$B$996,0))) -> 0.8845127104 | AS125: =IF(AM125="",AS124,INDEX('ALT 3B 041222'!$AT$13:$AT$996,MATCH(EOMONTH(DATE($AM125,5,1),0),'ALT 3B 041222'!$B$13:$B$996,0))) -> 0.8845127104 | AT125: =IFERROR(999999*OFFSET('WYT_40-30-30'!O$3,$AL125-1,0),NA()) ->  | AU125: =IFERROR(999999*OFFSET('WYT_40-30-30'!P$3,$AL125-1,0),NA()) -> 1999998 | AV125: =IFERROR(999999*OFFSET('WYT_40-30-30'!Q$3,$AL125-1,0),NA()) ->  | AW125: =IFERROR(999999*OFFSET('WYT_40-30-30'!R$3,$AL125-1,0),NA()) ->  | AX125: =IFERROR(999999*OFFSET('WYT_40-30-30'!S$3,$AL125-1,0),NA()) -> 
J126: 3 | K126: 1931-03-31 | L126: =INDIRECT(CONCATENATE("'",L$2,"'!",L$5,(MATCH(NOD_Data!$K126,'ALT 1B 051722'!$B:$B,0)))) -> 0 | M126: =INDIRECT(CONCATENATE("'",M$2,"'!",M$5,(MATCH(NOD_Data!$K126,'ALT 1B 051722'!$B:$B,0)))) -> 0 | N126: 65.86369456 | O126: 58.03374486 | Q126: =INDIRECT(CONCATENATE("'",Q$2,"'!",Q$5,(MATCH(NOD_Data!$K126,'ALT 1B 051722'!$B:$B,0)))) -> 0 | R126: =INDIRECT(CONCATENATE("'",R$2,"'!",R$5,(MATCH(NOD_Data!$K126,'ALT 1B 051722'!$B:$B,0)))) -> 0 | S126: =INDIRECT(CONCATENATE("'",S$2,"'!",S$5,(MATCH(NOD_Data!$K126,'ALT 1B 051722'!$B:$B,0)))) -> 0 | T126: =INDIRECT(CONCATENATE("'",T$2,"'!",T$5,(MATCH(NOD_Data!$K126,'ALT 1B 051722'!$B:$B,0)))) -> 0 | U126: =INDIRECT(CONCATENATE("'",U$2,"'!",U$5,(MATCH(NOD_Data!$K126,'ALT 1B 051722'!$B:$B,0)))) -> 0 | V126: =INDIRECT(CONCATENATE("'",V$2,"'!",V$5,(MATCH(NOD_Data!$K126,'ALT 1B 051722'!$B:$B,0)))) -> 0 | X126: 1931 | AL126: 57 | AN126: =OFFSET('ALT 1B 051722'!ES$13,$AL126-1,0) -> 5519 | AO126: =OFFSET('ALT 1B 051722'!ET$13,$AL126-1,0) -> 3533.861911 | AP126: =OFFSET('ALT 3B 041222'!ES$13,$AL126-1,0) -> 5519 | AQ126: =OFFSET('ALT 3B 041222'!ET$13,$AL126-1,0) -> 3533.861911 | AR126: =IF(AM126="",AR125,INDEX('ALT 1B 051722'!$AT$13:$AT$996,MATCH(EOMONTH(DATE($AM126,5,1),0),'ALT 1B 051722'!$B$13:$B$996,0))) -> 0.8845127104 | AS126: =IF(AM126="",AS125,INDEX('ALT 3B 041222'!$AT$13:$AT$996,MATCH(EOMONTH(DATE($AM126,5,1),0),'ALT 3B 041222'!$B$13:$B$996,0))) -> 0.8845127104 | AT126: =IFERROR(999999*OFFSET('WYT_40-30-30'!O$3,$AL126-1,0),NA()) ->  | AU126: =IFERROR(999999*OFFSET('WYT_40-30-30'!P$3,$AL126-1,0),NA()) -> 1999998 | AV126: =IFERROR(999999*OFFSET('WYT_40-30-30'!Q$3,$AL126-1,0),NA()) ->  | AW126: =IFERROR(999999*OFFSET('WYT_40-30-30'!R$3,$AL126-1,0),NA()) ->  | AX126: =IFERROR(999999*OFFSET('WYT_40-30-30'!S$3,$AL126-1,0),NA()) -> 
J127: 4 | K127: 1931-04-30 | L127: =INDIRECT(CONCATENATE("'",L$2,"'!",L$5,(MATCH(NOD_Data!$K127,'ALT 1B 051722'!$B:$B,0)))) -> 0 | M127: =INDIRECT(CONCATENATE("'",M$2,"'!",M$5,(MATCH(NOD_Data!$K127,'ALT 1B 051722'!$B:$B,0)))) -> 0 | N127: 65.86369456 | O127: 58.03374486 | Q127: =INDIRECT(CONCATENATE("'",Q$2,"'!",Q$5,(MATCH(NOD_Data!$K127,'ALT 1B 051722'!$B:$B,0)))) -> 0 | R127: =INDIRECT(CONCATENATE("'",R$2,"'!",R$5,(MATCH(NOD_Data!$K127,'ALT 1B 051722'!$B:$B,0)))) -> 0 | S127: =INDIRECT(CONCATENATE("'",S$2,"'!",S$5,(MATCH(NOD_Data!$K127,'ALT 1B 051722'!$B:$B,0)))) -> 0 | T127: =INDIRECT(CONCATENATE("'",T$2,"'!",T$5,(MATCH(NOD_Data!$K127,'ALT 1B 051722'!$B:$B,0)))) -> 0 | U127: =INDIRECT(CONCATENATE("'",U$2,"'!",U$5,(MATCH(NOD_Data!$K127,'ALT 1B 051722'!$B:$B,0)))) -> 0 | V127: =INDIRECT(CONCATENATE("'",V$2,"'!",V$5,(MATCH(NOD_Data!$K127,'ALT 1B 051722'!$B:$B,0)))) -> 0 | X127: 1931 | AL127: 58 | AM127: 1979 | AN127: =OFFSET('ALT 1B 051722'!ES$13,$AL127-1,0) -> 5451.150516 | AO127: =OFFSET('ALT 1B 051722'!ET$13,$AL127-1,0) -> 2993.011976 | AP127: =OFFSET('ALT 3B 041222'!ES$13,$AL127-1,0) -> 5478.087316 | AQ127: =OFFSET('ALT 3B 041222'!ET$13,$AL127-1,0) -> 3020.598506 | AR127: =IF(AM127="",AR126,INDEX('ALT 1B 051722'!$AT$13:$AT$996,MATCH(EOMONTH(DATE($AM127,5,1),0),'ALT 1B 051722'!$B$13:$B$996,0))) -> 0.7024581758 | AS127: =IF(AM127="",AS126,INDEX('ALT 3B 041222'!$AT$13:$AT$996,MATCH(EOMONTH(DATE($AM127,5,1),0),'ALT 3B 041222'!$B$13:$B$996,0))) -> 0.7146797107 | AT127: =IFERROR(999999*OFFSET('WYT_40-30-30'!O$3,$AL127-1,0),NA()) ->  | AU127: =IFERROR(999999*OFFSET('WYT_40-30-30'!P$3,$AL127-1,0),NA()) ->  | AV127: =IFERROR(999999*OFFSET('WYT_40-30-30'!Q$3,$AL127-1,0),NA()) -> 2999997 | AW127: =IFERROR(999999*OFFSET('WYT_40-30-30'!R$3,$AL127-1,0),NA()) ->  | AX127: =IFERROR(999999*OFFSET('WYT_40-30-30'!S$3,$AL127-1,0),NA()) -> 
J128: 5 | K128: 1931-05-31 | L128: =INDIRECT(CONCATENATE("'",L$2,"'!",L$5,(MATCH(NOD_Data!$K128,'ALT 1B 051722'!$B:$B,0)))) -> 0 | M128: =INDIRECT(CONCATENATE("'",M$2,"'!",M$5,(MATCH(NOD_Data!$K128,'ALT 1B 051722'!$B:$B,0)))) -> 0 | N128: 65.86369456 | O128: 58.03374486 | Q128: =INDIRECT(CONCATENATE("'",Q$2,"'!",Q$5,(MATCH(NOD_Data!$K128,'ALT 1B 051722'!$B:$B,0)))) -> 0 | R128: =INDIRECT(CONCATENATE("'",R$2,"'!",R$5,(MATCH(NOD_Data!$K128,'ALT 1B 051722'!$B:$B,0)))) -> 0 | S128: =INDIRECT(CONCATENATE("'",S$2,"'!",S$5,(MATCH(NOD_Data!$K128,'ALT 1B 051722'!$B:$B,0)))) -> 0 | T128: =INDIRECT(CONCATENATE("'",T$2,"'!",T$5,(MATCH(NOD_Data!$K128,'ALT 1B 051722'!$B:$B,0)))) -> 0 | U128: =INDIRECT(CONCATENATE("'",U$2,"'!",U$5,(MATCH(NOD_Data!$K128,'ALT 1B 051722'!$B:$B,0)))) -> 0 | V128: =INDIRECT(CONCATENATE("'",V$2,"'!",V$5,(MATCH(NOD_Data!$K128,'ALT 1B 051722'!$B:$B,0)))) -> 0 | X128: 1931 | AL128: 58 | AN128: =OFFSET('ALT 1B 051722'!ES$13,$AL128-1,0) -> 5451.150516 | AO128: =OFFSET('ALT 1B 051722'!ET$13,$AL128-1,0) -> 2993.011976 | AP128: =OFFSET('ALT 3B 041222'!ES$13,$AL128-1,0) -> 5478.087316 | AQ128: =OFFSET('ALT 3B 041222'!ET$13,$AL128-1,0) -> 3020.598506 | AR128: =IF(AM128="",AR127,INDEX('ALT 1B 051722'!$AT$13:$AT$996,MATCH(EOMONTH(DATE($AM128,5,1),0),'ALT 1B 051722'!$B$13:$B$996,0))) -> 0.7024581758 | AS128: =IF(AM128="",AS127,INDEX('ALT 3B 041222'!$AT$13:$AT$996,MATCH(EOMONTH(DATE($AM128,5,1),0),'ALT 3B 041222'!$B$13:$B$996,0))) -> 0.7146797107 | AT128: =IFERROR(999999*OFFSET('WYT_40-30-30'!O$3,$AL128-1,0),NA()) ->  | AU128: =IFERROR(999999*OFFSET('WYT_40-30-30'!P$3,$AL128-1,0),NA()) ->  | AV128: =IFERROR(999999*OFFSET('WYT_40-30-30'!Q$3,$AL128-1,0),NA()) -> 2999997 | AW128: =IFERROR(999999*OFFSET('WYT_40-30-30'!R$3,$AL128-1,0),NA()) ->  | AX128: =IFERROR(999999*OFFSET('WYT_40-30-30'!S$3,$AL128-1,0),NA()) -> 
J129: 6 | K129: 1931-06-30 | L129: =INDIRECT(CONCATENATE("'",L$2,"'!",L$5,(MATCH(NOD_Data!$K129,'ALT 1B 051722'!$B:$B,0)))) -> 0 | M129: =INDIRECT(CONCATENATE("'",M$2,"'!",M$5,(MATCH(NOD_Data!$K129,'ALT 1B 051722'!$B:$B,0)))) -> 0 | N129: 65.86369456 | O129: 58.03374486 | Q129: =INDIRECT(CONCATENATE("'",Q$2,"'!",Q$5,(MATCH(NOD_Data!$K129,'ALT 1B 051722'!$B:$B,0)))) -> 0 | R129: =INDIRECT(CONCATENATE("'",R$2,"'!",R$5,(MATCH(NOD_Data!$K129,'ALT 1B 051722'!$B:$B,0)))) -> 0 | S129: =INDIRECT(CONCATENATE("'",S$2,"'!",S$5,(MATCH(NOD_Data!$K129,'ALT 1B 051722'!$B:$B,0)))) -> 0 | T129: =INDIRECT(CONCATENATE("'",T$2,"'!",T$5,(MATCH(NOD_Data!$K129,'ALT 1B 051722'!$B:$B,0)))) -> 0 | U129: =INDIRECT(CONCATENATE("'",U$2,"'!",U$5,(MATCH(NOD_Data!$K129,'ALT 1B 051722'!$B:$B,0)))) -> 0 | V129: =INDIRECT(CONCATENATE("'",V$2,"'!",V$5,(MATCH(NOD_Data!$K129,'ALT 1B 051722'!$B:$B,0)))) -> 0 | X129: 1931 | AL129: 59 | AM129: 1980 | AN129: =OFFSET('ALT 1B 051722'!ES$13,$AL129-1,0) -> 5382.524389 | AO129: =OFFSET('ALT 1B 051722'!ET$13,$AL129-1,0) -> 3491.425069 | AP129: =OFFSET('ALT 3B 041222'!ES$13,$AL129-1,0) -> 5394.585177 | AQ129: =OFFSET('ALT 3B 041222'!ET$13,$AL129-1,0) -> 3491.425069 | AR129: =IF(AM129="",AR128,INDEX('ALT 1B 051722'!$AT$13:$AT$996,MATCH(EOMONTH(DATE($AM129,5,1),0),'ALT 1B 051722'!$B$13:$B$996,0))) -> 0.8569006201 | AS129: =IF(AM129="",AS128,INDEX('ALT 3B 041222'!$AT$13:$AT$996,MATCH(EOMONTH(DATE($AM129,5,1),0),'ALT 3B 041222'!$B$13:$B$996,0))) -> 0.8569006201 | AT129: =IFERROR(999999*OFFSET('WYT_40-30-30'!O$3,$AL129-1,0),NA()) ->  | AU129: =IFERROR(999999*OFFSET('WYT_40-30-30'!P$3,$AL129-1,0),NA()) -> 1999998 | AV129: =IFERROR(999999*OFFSET('WYT_40-30-30'!Q$3,$AL129-1,0),NA()) ->  | AW129: =IFERROR(999999*OFFSET('WYT_40-30-30'!R$3,$AL129-1,0),NA()) ->  | AX129: =IFERROR(999999*OFFSET('WYT_40-30-30'!S$3,$AL129-1,0),NA()) -> 
J130: 7 | K130: 1931-07-31 | L130: =INDIRECT(CONCATENATE("'",L$2,"'!",L$5,(MATCH(NOD_Data!$K130,'ALT 1B 051722'!$B:$B,0)))) -> 0 | M130: =INDIRECT(CONCATENATE("'",M$2,"'!",M$5,(MATCH(NOD_Data!$K130,'ALT 1B 051722'!$B:$B,0)))) -> 0 | N130: 65.86369456 | O130: 58.03374486 | Q130: =INDIRECT(CONCATENATE("'",Q$2,"'!",Q$5,(MATCH(NOD_Data!$K130,'ALT 1B 051722'!$B:$B,0)))) -> 0 | R130: =INDIRECT(CONCATENATE("'",R$2,"'!",R$5,(MATCH(NOD_Data!$K130,'ALT 1B 051722'!$B:$B,0)))) -> 0 | S130: =INDIRECT(CONCATENATE("'",S$2,"'!",S$5,(MATCH(NOD_Data!$K130,'ALT 1B 051722'!$B:$B,0)))) -> 0 | T130: =INDIRECT(CONCATENATE("'",T$2,"'!",T$5,(MATCH(NOD_Data!$K130,'ALT 1B 051722'!$B:$B,0)))) -> 0 | U130: =INDIRECT(CONCATENATE("'",U$2,"'!",U$5,(MATCH(NOD_Data!$K130,'ALT 1B 051722'!$B:$B,0)))) -> 0 | V130: =INDIRECT(CONCATENATE("'",V$2,"'!",V$5,(MATCH(NOD_Data!$K130,'ALT 1B 051722'!$B:$B,0)))) -> 0 | X130: 1931 | AL130: 59 | AN130: =OFFSET('ALT 1B 051722'!ES$13,$AL130-1,0) -> 5382.524389 | AO130: =OFFSET('ALT 1B 051722'!ET$13,$AL130-1,0) -> 3491.425069 | AP130: =OFFSET('ALT 3B 041222'!ES$13,$AL130-1,0) -> 5394.585177 | AQ130: =OFFSET('ALT 3B 041222'!ET$13,$AL130-1,0) -> 3491.425069 | AR130: =IF(AM130="",AR129,INDEX('ALT 1B 051722'!$AT$13:$AT$996,MATCH(EOMONTH(DATE($AM130,5,1),0),'ALT 1B 051722'!$B$13:$B$996,0))) -> 0.8569006201 | AS130: =IF(AM130="",AS129,INDEX('ALT 3B 041222'!$AT$13:$AT$996,MATCH(EOMONTH(DATE($AM130,5,1),0),'ALT 3B 041222'!$B$13:$B$996,0))) -> 0.8569006201 | AT130: =IFERROR(999999*OFFSET('WYT_40-30-30'!O$3,$AL130-1,0),NA()) ->  | AU130: =IFERROR(999999*OFFSET('WYT_40-30-30'!P$3,$AL130-1,0),NA()) -> 1999998 | AV130: =IFERROR(999999*OFFSET('WYT_40-30-30'!Q$3,$AL130-1,0),NA()) ->  | AW130: =IFERROR(999999*OFFSET('WYT_40-30-30'!R$3,$AL130-1,0),NA()) ->  | AX130: =IFERROR(999999*OFFSET('WYT_40-30-30'!S$3,$AL130-1,0),NA()) -> 
J131: 8 | K131: 1931-08-31 | L131: =INDIRECT(CONCATENATE("'",L$2,"'!",L$5,(MATCH(NOD_Data!$K131,'ALT 1B 051722'!$B:$B,0)))) -> 0 | M131: =INDIRECT(CONCATENATE("'",M$2,"'!",M$5,(MATCH(NOD_Data!$K131,'ALT 1B 051722'!$B:$B,0)))) -> 0 | N131: 65.86369456 | O131: 58.03374486 | Q131: =INDIRECT(CONCATENATE("'",Q$2,"'!",Q$5,(MATCH(NOD_Data!$K131,'ALT 1B 051722'!$B:$B,0)))) -> 0 | R131: =INDIRECT(CONCATENATE("'",R$2,"'!",R$5,(MATCH(NOD_Data!$K131,'ALT 1B 051722'!$B:$B,0)))) -> 0 | S131: =INDIRECT(CONCATENATE("'",S$2,"'!",S$5,(MATCH(NOD_Data!$K131,'ALT 1B 051722'!$B:$B,0)))) -> 0 | T131: =INDIRECT(CONCATENATE("'",T$2,"'!",T$5,(MATCH(NOD_Data!$K131,'ALT 1B 051722'!$B:$B,0)))) -> 0 | U131: =INDIRECT(CONCATENATE("'",U$2,"'!",U$5,(MATCH(NOD_Data!$K131,'ALT 1B 051722'!$B:$B,0)))) -> 0 | V131: =INDIRECT(CONCATENATE("'",V$2,"'!",V$5,(MATCH(NOD_Data!$K131,'ALT 1B 051722'!$B:$B,0)))) -> 0 | X131: 1931 | AL131: 60 | AM131: 1981 | AN131: =OFFSET('ALT 1B 051722'!ES$13,$AL131-1,0) -> 4953.325328 | AO131: =OFFSET('ALT 1B 051722'!ET$13,$AL131-1,0) -> 3060.926885 | AP131: =OFFSET('ALT 3B 041222'!ES$13,$AL131-1,0) -> 4977.978389 | AQ131: =OFFSET('ALT 3B 041222'!ET$13,$AL131-1,0) -> 3074.509011 | AR131: =IF(AM131="",AR130,INDEX('ALT 1B 051722'!$AT$13:$AT$996,MATCH(EOMONTH(DATE($AM131,5,1),0),'ALT 1B 051722'!$B$13:$B$996,0))) -> 0.6291558621 | AS131: =IF(AM131="",AS130,INDEX('ALT 3B 041222'!$AT$13:$AT$996,MATCH(EOMONTH(DATE($AM131,5,1),0),'ALT 3B 041222'!$B$13:$B$996,0))) -> 0.6343379127 | AT131: =IFERROR(999999*OFFSET('WYT_40-30-30'!O$3,$AL131-1,0),NA()) ->  | AU131: =IFERROR(999999*OFFSET('WYT_40-30-30'!P$3,$AL131-1,0),NA()) ->  | AV131: =IFERROR(999999*OFFSET('WYT_40-30-30'!Q$3,$AL131-1,0),NA()) ->  | AW131: =IFERROR(999999*OFFSET('WYT_40-30-30'!R$3,$AL131-1,0),NA()) -> 3999996 | AX131: =IFERROR(999999*OFFSET('WYT_40-30-30'!S$3,$AL131-1,0),NA()) -> 
J132: 9 | K132: 1931-09-30 | L132: =INDIRECT(CONCATENATE("'",L$2,"'!",L$5,(MATCH(NOD_Data!$K132,'ALT 1B 051722'!$B:$B,0)))) -> 0 | M132: =INDIRECT(CONCATENATE("'",M$2,"'!",M$5,(MATCH(NOD_Data!$K132,'ALT 1B 051722'!$B:$B,0)))) -> 0 | N132: 65.86369456 | O132: 58.03374486 | Q132: =INDIRECT(CONCATENATE("'",Q$2,"'!",Q$5,(MATCH(NOD_Data!$K132,'ALT 1B 051722'!$B:$B,0)))) -> 0 | R132: =INDIRECT(CONCATENATE("'",R$2,"'!",R$5,(MATCH(NOD_Data!$K132,'ALT 1B 051722'!$B:$B,0)))) -> 0 | S132: =INDIRECT(CONCATENATE("'",S$2,"'!",S$5,(MATCH(NOD_Data!$K132,'ALT 1B 051722'!$B:$B,0)))) -> 0 | T132: =INDIRECT(CONCATENATE("'",T$2,"'!",T$5,(MATCH(NOD_Data!$K132,'ALT 1B 051722'!$B:$B,0)))) -> 0 | U132: =INDIRECT(CONCATENATE("'",U$2,"'!",U$5,(MATCH(NOD_Data!$K132,'ALT 1B 051722'!$B:$B,0)))) -> 0 | V132: =INDIRECT(CONCATENATE("'",V$2,"'!",V$5,(MATCH(NOD_Data!$K132,'ALT 1B 051722'!$B:$B,0)))) -> 0 | X132: 1931 | AL132: 60 | AN132: =OFFSET('ALT 1B 051722'!ES$13,$AL132-1,0) -> 4953.325328 | AO132: =OFFSET('ALT 1B 051722'!ET$13,$AL132-1,0) -> 3060.926885 | AP132: =OFFSET('ALT 3B 041222'!ES$13,$AL132-1,0) -> 4977.978389 | AQ132: =OFFSET('ALT 3B 041222'!ET$13,$AL132-1,0) -> 3074.509011 | AR132: =IF(AM132="",AR131,INDEX('ALT 1B 051722'!$AT$13:$AT$996,MATCH(EOMONTH(DATE($AM132,5,1),0),'ALT 1B 051722'!$B$13:$B$996,0))) -> 0.6291558621 | AS132: =IF(AM132="",AS131,INDEX('ALT 3B 041222'!$AT$13:$AT$996,MATCH(EOMONTH(DATE($AM132,5,1),0),'ALT 3B 041222'!$B$13:$B$996,0))) -> 0.6343379127 | AT132: =IFERROR(999999*OFFSET('WYT_40-30-30'!O$3,$AL132-1,0),NA()) ->  | AU132: =IFERROR(999999*OFFSET('WYT_40-30-30'!P$3,$AL132-1,0),NA()) ->  | AV132: =IFERROR(999999*OFFSET('WYT_40-30-30'!Q$3,$AL132-1,0),NA()) ->  | AW132: =IFERROR(999999*OFFSET('WYT_40-30-30'!R$3,$AL132-1,0),NA()) -> 3999996 | AX132: =IFERROR(999999*OFFSET('WYT_40-30-30'!S$3,$AL132-1,0),NA()) -> 
J133: 10 | K133: 1931-10-31 | L133: =INDIRECT(CONCATENATE("'",L$2,"'!",L$5,(MATCH(NOD_Data!$K133,'ALT 1B 051722'!$B:$B,0)))) -> 0 | M133: =INDIRECT(CONCATENATE("'",M$2,"'!",M$5,(MATCH(NOD_Data!$K133,'ALT 1B 051722'!$B:$B,0)))) -> 0 | N133: 65.86369456 | O133: 58.03374486 | Q133: =INDIRECT(CONCATENATE("'",Q$2,"'!",Q$5,(MATCH(NOD_Data!$K133,'ALT 1B 051722'!$B:$B,0)))) -> 0 | R133: =INDIRECT(CONCATENATE("'",R$2,"'!",R$5,(MATCH(NOD_Data!$K133,'ALT 1B 051722'!$B:$B,0)))) -> 0 | S133: =INDIRECT(CONCATENATE("'",S$2,"'!",S$5,(MATCH(NOD_Data!$K133,'ALT 1B 051722'!$B:$B,0)))) -> 0 | T133: =INDIRECT(CONCATENATE("'",T$2,"'!",T$5,(MATCH(NOD_Data!$K133,'ALT 1B 051722'!$B:$B,0)))) -> 0 | U133: =INDIRECT(CONCATENATE("'",U$2,"'!",U$5,(MATCH(NOD_Data!$K133,'ALT 1B 051722'!$B:$B,0)))) -> 0 | V133: =INDIRECT(CONCATENATE("'",V$2,"'!",V$5,(MATCH(NOD_Data!$K133,'ALT 1B 051722'!$B:$B,0)))) -> 0 | X133: 1931 | AL133: 61 | AM133: 1982 | AN133: =OFFSET('ALT 1B 051722'!ES$13,$AL133-1,0) -> 5430.556461 | AO133: =OFFSET('ALT 1B 051722'!ET$13,$AL133-1,0) -> 3538 | AP133: =OFFSET('ALT 3B 041222'!ES$13,$AL133-1,0) -> 5454.950379 | AQ133: =OFFSET('ALT 3B 041222'!ET$13,$AL133-1,0) -> 3538 | AR133: =IF(AM133="",AR132,INDEX('ALT 1B 051722'!$AT$13:$AT$996,MATCH(EOMONTH(DATE($AM133,5,1),0),'ALT 1B 051722'!$B$13:$B$996,0))) -> 0.9105637264 | AS133: =IF(AM133="",AS132,INDEX('ALT 3B 041222'!$AT$13:$AT$996,MATCH(EOMONTH(DATE($AM133,5,1),0),'ALT 3B 041222'!$B$13:$B$996,0))) -> 0.9105637264 | AT133: =IFERROR(999999*OFFSET('WYT_40-30-30'!O$3,$AL133-1,0),NA()) -> 999999 | AU133: =IFERROR(999999*OFFSET('WYT_40-30-30'!P$3,$AL133-1,0),NA()) ->  | AV133: =IFERROR(999999*OFFSET('WYT_40-30-30'!Q$3,$AL133-1,0),NA()) ->  | AW133: =IFERROR(999999*OFFSET('WYT_40-30-30'!R$3,$AL133-1,0),NA()) ->  | AX133: =IFERROR(999999*OFFSET('WYT_40-30-30'!S$3,$AL133-1,0),NA()) -> 
J134: 11 | K134: 1931-11-30 | L134: =INDIRECT(CONCATENATE("'",L$2,"'!",L$5,(MATCH(NOD_Data!$K134,'ALT 1B 051722'!$B:$B,0)))) -> 0 | M134: =INDIRECT(CONCATENATE("'",M$2,"'!",M$5,(MATCH(NOD_Data!$K134,'ALT 1B 051722'!$B:$B,0)))) -> 0 | N134: 65.86369456 | O134: 58.03374486 | Q134: =INDIRECT(CONCATENATE("'",Q$2,"'!",Q$5,(MATCH(NOD_Data!$K134,'ALT 1B 051722'!$B:$B,0)))) -> 0 | R134: =INDIRECT(CONCATENATE("'",R$2,"'!",R$5,(MATCH(NOD_Data!$K134,'ALT 1B 051722'!$B:$B,0)))) -> 0 | S134: =INDIRECT(CONCATENATE("'",S$2,"'!",S$5,(MATCH(NOD_Data!$K134,'ALT 1B 051722'!$B:$B,0)))) -> 0 | T134: =INDIRECT(CONCATENATE("'",T$2,"'!",T$5,(MATCH(NOD_Data!$K134,'ALT 1B 051722'!$B:$B,0)))) -> 0 | U134: =INDIRECT(CONCATENATE("'",U$2,"'!",U$5,(MATCH(NOD_Data!$K134,'ALT 1B 051722'!$B:$B,0)))) -> 0 | V134: =INDIRECT(CONCATENATE("'",V$2,"'!",V$5,(MATCH(NOD_Data!$K134,'ALT 1B 051722'!$B:$B,0)))) -> 0 | X134: 1931 | AL134: 61 | AN134: =OFFSET('ALT 1B 051722'!ES$13,$AL134-1,0) -> 5430.556461 | AO134: =OFFSET('ALT 1B 051722'!ET$13,$AL134-1,0) -> 3538 | AP134: =OFFSET('ALT 3B 041222'!ES$13,$AL134-1,0) -> 5454.950379 | AQ134: =OFFSET('ALT 3B 041222'!ET$13,$AL134-1,0) -> 3538 | AR134: =IF(AM134="",AR133,INDEX('ALT 1B 051722'!$AT$13:$AT$996,MATCH(EOMONTH(DATE($AM134,5,1),0),'ALT 1B 051722'!$B$13:$B$996,0))) -> 0.9105637264 | AS134: =IF(AM134="",AS133,INDEX('ALT 3B 041222'!$AT$13:$AT$996,MATCH(EOMONTH(DATE($AM134,5,1),0),'ALT 3B 041222'!$B$13:$B$996,0))) -> 0.9105637264 | AT134: =IFERROR(999999*OFFSET('WYT_40-30-30'!O$3,$AL134-1,0),NA()) -> 999999 | AU134: =IFERROR(999999*OFFSET('WYT_40-30-30'!P$3,$AL134-1,0),NA()) ->  | AV134: =IFERROR(999999*OFFSET('WYT_40-30-30'!Q$3,$AL134-1,0),NA()) ->  | AW134: =IFERROR(999999*OFFSET('WYT_40-30-30'!R$3,$AL134-1,0),NA()) ->  | AX134: =IFERROR(999999*OFFSET('WYT_40-30-30'!S$3,$AL134-1,0),NA()) -> 
J135: 12 | K135: 1931-12-31 | L135: =INDIRECT(CONCATENATE("'",L$2,"'!",L$5,(MATCH(NOD_Data!$K135,'ALT 1B 051722'!$B:$B,0)))) -> 0.0002824249641 | M135: =INDIRECT(CONCATENATE("'",M$2,"'!",M$5,(MATCH(NOD_Data!$K135,'ALT 1B 051722'!$B:$B,0)))) -> 0.0004479999183 | N135: 65.86369456 | O135: 58.03374486 | Q135: =INDIRECT(CONCATENATE("'",Q$2,"'!",Q$5,(MATCH(NOD_Data!$K135,'ALT 1B 051722'!$B:$B,0)))) -> 0 | R135: =INDIRECT(CONCATENATE("'",R$2,"'!",R$5,(MATCH(NOD_Data!$K135,'ALT 1B 051722'!$B:$B,0)))) -> 0 | S135: =INDIRECT(CONCATENATE("'",S$2,"'!",S$5,(MATCH(NOD_Data!$K135,'ALT 1B 051722'!$B:$B,0)))) -> 0 | T135: =INDIRECT(CONCATENATE("'",T$2,"'!",T$5,(MATCH(NOD_Data!$K135,'ALT 1B 051722'!$B:$B,0)))) -> 0 | U135: =INDIRECT(CONCATENATE("'",U$2,"'!",U$5,(MATCH(NOD_Data!$K135,'ALT 1B 051722'!$B:$B,0)))) -> 0 | V135: =INDIRECT(CONCATENATE("'",V$2,"'!",V$5,(MATCH(NOD_Data!$K135,'ALT 1B 051722'!$B:$B,0)))) -> 0 | X135: 1931 | AL135: 62 | AM135: 1983 | AN135: =OFFSET('ALT 1B 051722'!ES$13,$AL135-1,0) -> 5519 | AO135: =OFFSET('ALT 1B 051722'!ET$13,$AL135-1,0) -> 3538 | AP135: =OFFSET('ALT 3B 041222'!ES$13,$AL135-1,0) -> 5519 | AQ135: =OFFSET('ALT 3B 041222'!ET$13,$AL135-1,0) -> 3538 | AR135: =IF(AM135="",AR134,INDEX('ALT 1B 051722'!$AT$13:$AT$996,MATCH(EOMONTH(DATE($AM135,5,1),0),'ALT 1B 051722'!$B$13:$B$996,0))) -> 0.9105637264 | AS135: =IF(AM135="",AS134,INDEX('ALT 3B 041222'!$AT$13:$AT$996,MATCH(EOMONTH(DATE($AM135,5,1),0),'ALT 3B 041222'!$B$13:$B$996,0))) -> 0.9105637264 | AT135: =IFERROR(999999*OFFSET('WYT_40-30-30'!O$3,$AL135-1,0),NA()) -> 999999 | AU135: =IFERROR(999999*OFFSET('WYT_40-30-30'!P$3,$AL135-1,0),NA()) ->  | AV135: =IFERROR(999999*OFFSET('WYT_40-30-30'!Q$3,$AL135-1,0),NA()) ->  | AW135: =IFERROR(999999*OFFSET('WYT_40-30-30'!R$3,$AL135-1,0),NA()) ->  | AX135: =IFERROR(999999*OFFSET('WYT_40-30-30'!S$3,$AL135-1,0),NA()) -> 
J136: 1 | K136: 1932-01-31 | L136: =INDIRECT(CONCATENATE("'",L$2,"'!",L$5,(MATCH(NOD_Data!$K136,'ALT 1B 051722'!$B:$B,0)))) -> 0.0002847480951 | M136: =INDIRECT(CONCATENATE("'",M$2,"'!",M$5,(MATCH(NOD_Data!$K136,'ALT 1B 051722'!$B:$B,0)))) -> 0.0004536516706 | N136: 65.86369456 | O136: 58.03374486 | Q136: =INDIRECT(CONCATENATE("'",Q$2,"'!",Q$5,(MATCH(NOD_Data!$K136,'ALT 1B 051722'!$B:$B,0)))) -> 0 | R136: =INDIRECT(CONCATENATE("'",R$2,"'!",R$5,(MATCH(NOD_Data!$K136,'ALT 1B 051722'!$B:$B,0)))) -> 0 | S136: =INDIRECT(CONCATENATE("'",S$2,"'!",S$5,(MATCH(NOD_Data!$K136,'ALT 1B 051722'!$B:$B,0)))) -> 0 | T136: =INDIRECT(CONCATENATE("'",T$2,"'!",T$5,(MATCH(NOD_Data!$K136,'ALT 1B 051722'!$B:$B,0)))) -> 0 | U136: =INDIRECT(CONCATENATE("'",U$2,"'!",U$5,(MATCH(NOD_Data!$K136,'ALT 1B 051722'!$B:$B,0)))) -> 0 | V136: =INDIRECT(CONCATENATE("'",V$2,"'!",V$5,(MATCH(NOD_Data!$K136,'ALT 1B 051722'!$B:$B,0)))) -> 0 | X136: 1931 | AL136: 62 | AN136: =OFFSET('ALT 1B 051722'!ES$13,$AL136-1,0) -> 5519 | AO136: =OFFSET('ALT 1B 051722'!ET$13,$AL136-1,0) -> 3538 | AP136: =OFFSET('ALT 3B 041222'!ES$13,$AL136-1,0) -> 5519 | AQ136: =OFFSET('ALT 3B 041222'!ET$13,$AL136-1,0) -> 3538 | AR136: =IF(AM136="",AR135,INDEX('ALT 1B 051722'!$AT$13:$AT$996,MATCH(EOMONTH(DATE($AM136,5,1),0),'ALT 1B 051722'!$B$13:$B$996,0))) -> 0.9105637264 | AS136: =IF(AM136="",AS135,INDEX('ALT 3B 041222'!$AT$13:$AT$996,MATCH(EOMONTH(DATE($AM136,5,1),0),'ALT 3B 041222'!$B$13:$B$996,0))) -> 0.9105637264 | AT136: =IFERROR(999999*OFFSET('WYT_40-30-30'!O$3,$AL136-1,0),NA()) -> 999999 | AU136: =IFERROR(999999*OFFSET('WYT_40-30-30'!P$3,$AL136-1,0),NA()) ->  | AV136: =IFERROR(999999*OFFSET('WYT_40-30-30'!Q$3,$AL136-1,0),NA()) ->  | AW136: =IFERROR(999999*OFFSET('WYT_40-30-30'!R$3,$AL136-1,0),NA()) ->  | AX136: =IFERROR(999999*OFFSET('WYT_40-30-30'!S$3,$AL136-1,0),NA()) -> 
